Workbook

Sheet Report
A1: 填權息大解密
V2: Y9999 加權指數
N3: 近10年 | Q3: 2020年
C4: 填權成功率 (高1→4低) | I4: No | J4: 公司 代碼 | K4: 公司 簡稱 | L4: 上市別 | M4: =TEXT('Raw4'!B1,"mm/dd"&"股價(元)") -> 06/17股價(元) | N4: 除權息次數 | O4: 填權息成功率(%) | P4: 填權息平均天數 | Q4: 股利分配年度 | R4: 現金 股利(元) | S4: 股票 股利(元) | T4: 董事會 | U4: 股東會 | V4: 除息日 | W4: 除權日 | X4: 當年填權息(Y/N)
C6: 1 | D6: 2 | E6: 3 | F6: 4 | H6: =IF('Raw2'!U2="","",'Raw2'!U2) -> 4523 永彰 | I6: 1 | J6: =IF(H6="","",LEFT(H6,FIND(" ",H6)-1)) -> 4523 | K6: =IF(H6="","",MID(H6,FIND(" ",H6)+1,100)) -> 永彰 | L6: =IF('Raw2'!V2="","",'Raw2'!V2) -> OTC | M6: =IFERROR(VLOOKUP(H6,'Raw4'!A:C,2,0),"") -> 21.35 | N6: =IFERROR(VLOOKUP(H6,'Raw2'!A:F,6,0),"") -> 8 | O6: =IFERROR(VLOOKUP($H6,'Raw2'!$A:$I,8,0),"") -> 100 | P6: =IFERROR(VLOOKUP($H6,'Raw2'!$A:$I,9,0),"") -> 1.25 | Q6: =IFERROR(YEAR(VLOOKUP(H6,'Raw3'!A:C,2,0)),"") ->  | R6: =IFERROR(VLOOKUP(H6,'Raw3'!A:P,16,0),"") ->  | S6: =IFERROR(VLOOKUP(H6,'Raw3'!A:P,3,0),"") ->  | T6: =IFERROR(IF(FIND("Q1",R6)>0,VLOOKUP(H6,'Raw3'!A:P,10,0),IF(FIND("Q2",R6)>0,VLOOKUP(H6,'Raw3'!A:P,11,0),IF(FIND("Q3",R6)>0,VLOOKUP(H6,'Raw3'!A:P,12,0),))),"") ->  | U6: =IFERROR(IF(FIND("Q4",R6)>0,VLOOKUP(H6,'Raw3'!A:P,14,0),""),"") ->  | V6: =IFERROR(IF(VLOOKUP(H6,'Raw3'!A:P,5,0)="","",VLOOKUP(H6,'Raw3'!A:P,5,0)),"") ->  | W6: =IFERROR(IF(VLOOKUP(H6,'Raw3'!A:P,4,0)="","",VLOOKUP(H6,'Raw3'!A:P,4,0)),"") ->  | X6: =IFERROR(IF(VLOOKUP(H6&V6,'Raw1'!A:Z,22,0)="","",VLOOKUP(H6&V6,'Raw1'!A:Z,22,0)),"") -> 
A7: 填權速度等級 (強1→4弱) | B7: 1 | C7: =COUNTIFS('Raw2'!$K:$K,Report!C$6,'Raw2'!$L:$L,Report!$B7) -> 179 | D7: =COUNTIFS('Raw2'!$K:$K,Report!D$6,'Raw2'!$L:$L,Report!$B7) -> 18 | E7: =COUNTIFS('Raw2'!$K:$K,Report!E$6,'Raw2'!$L:$L,Report!$B7) -> 65 | F7: =COUNTIFS('Raw2'!$K:$K,Report!F$6,'Raw2'!$L:$L,Report!$B7) -> 128 | H7: =IF('Raw2'!U3="","",'Raw2'!U3) -> 9944 新麗 | I7: =IF(J7="","",I6+1) -> 2 | J7: 9944 | K7: 新麗 | L7: =IF('Raw2'!V3="","",'Raw2'!V3) -> TSE | M7: =IFERROR(VLOOKUP(H7,'Raw4'!A:C,2,0),"") -> 23.6 | N7: =IFERROR(VLOOKUP(H7,'Raw2'!A:F,6,0),"") -> 8 | O7: =IFERROR(VLOOKUP($H7,'Raw2'!$A:$I,8,0),"") -> 100 | P7: =IFERROR(VLOOKUP($H7,'Raw2'!$A:$I,9,0),"") -> 2.25 | Q7: =IFERROR(YEAR(VLOOKUP(H7,'Raw3'!A:C,2,0)),"") ->  | R7: =IFERROR(VLOOKUP(H7,'Raw3'!A:P,16,0),"") ->  | S7: =IFERROR(VLOOKUP(H7,'Raw3'!A:P,3,0),"") ->  | T7: =IFERROR(IF(FIND("Q1",R7)>0,VLOOKUP(H7,'Raw3'!A:P,10,0),IF(FIND("Q2",R7)>0,VLOOKUP(H7,'Raw3'!A:P,11,0),IF(FIND("Q3",R7)>0,VLOOKUP(H7,'Raw3'!A:P,12,0),))),"") ->  | U7: =IFERROR(IF(FIND("Q4",R7)>0,VLOOKUP(H7,'Raw3'!A:P,14,0),""),"") ->  | V7: =IFERROR(IF(VLOOKUP(H7,'Raw3'!A:P,5,0)="","",VLOOKUP(H7,'Raw3'!A:P,5,0)),"") ->  | W7: =IFERROR(IF(VLOOKUP(H7,'Raw3'!A:P,4,0)="","",VLOOKUP(H7,'Raw3'!A:P,4,0)),"") ->  | X7: =IFERROR(IF(VLOOKUP(H7&V7,'Raw1'!A:Z,26,0)="","",VLOOKUP(H7&V7,'Raw1'!A:Z,26,0)),"") -> 
B8: 2 | C8: =COUNTIFS('Raw2'!$K:$K,Report!C$6,'Raw2'!$L:$L,Report!$B8) -> 140 | D8: =COUNTIFS('Raw2'!$K:$K,Report!D$6,'Raw2'!$L:$L,Report!$B8) -> 57 | E8: =COUNTIFS('Raw2'!$K:$K,Report!E$6,'Raw2'!$L:$L,Report!$B8) -> 105 | F8: =COUNTIFS('Raw2'!$K:$K,Report!F$6,'Raw2'!$L:$L,Report!$B8) -> 89 | H8: =IF('Raw2'!U4="","",'Raw2'!U4) -> 1815 富喬 | I8: =IF(J8="","",I7+1) -> 3 | J8: 1815 | K8: 富喬 | L8: =IF('Raw2'!V4="","",'Raw2'!V4) -> OTC | M8: =IFERROR(VLOOKUP(H8,'Raw4'!A:C,2,0),"") -> 10.7 | N8: =IFERROR(VLOOKUP(H8,'Raw2'!A:F,6,0),"") -> 8 | O8: =IFERROR(VLOOKUP($H8,'Raw2'!$A:$I,8,0),"") -> 100 | P8: =IFERROR(VLOOKUP($H8,'Raw2'!$A:$I,9,0),"") -> 2.63 | Q8: =IFERROR(YEAR(VLOOKUP(H8,'Raw3'!A:C,2,0)),"") ->  | R8: =IFERROR(VLOOKUP(H8,'Raw3'!A:P,16,0),"") ->  | S8: =IFERROR(VLOOKUP(H8,'Raw3'!A:P,3,0),"") ->  | T8: =IFERROR(IF(FIND("Q1",R8)>0,VLOOKUP(H8,'Raw3'!A:P,10,0),IF(FIND("Q2",R8)>0,VLOOKUP(H8,'Raw3'!A:P,11,0),IF(FIND("Q3",R8)>0,VLOOKUP(H8,'Raw3'!A:P,12,0),))),"") ->  | U8: =IFERROR(IF(FIND("Q4",R8)>0,VLOOKUP(H8,'Raw3'!A:P,14,0),""),"") ->  | V8: =IFERROR(IF(VLOOKUP(H8,'Raw3'!A:P,5,0)="","",VLOOKUP(H8,'Raw3'!A:P,5,0)),"") ->  | W8: =IFERROR(IF(VLOOKUP(H8,'Raw3'!A:P,4,0)="","",VLOOKUP(H8,'Raw3'!A:P,4,0)),"") ->  | X8: =IFERROR(IF(VLOOKUP(H8&V8,'Raw1'!A:Z,26,0)="","",VLOOKUP(H8&V8,'Raw1'!A:Z,26,0)),"") -> 
B9: 3 | C9: =COUNTIFS('Raw2'!$K:$K,Report!C$6,'Raw2'!$L:$L,Report!$B9) -> 114 | D9: =COUNTIFS('Raw2'!$K:$K,Report!D$6,'Raw2'!$L:$L,Report!$B9) -> 57 | E9: =COUNTIFS('Raw2'!$K:$K,Report!E$6,'Raw2'!$L:$L,Report!$B9) -> 118 | F9: =COUNTIFS('Raw2'!$K:$K,Report!F$6,'Raw2'!$L:$L,Report!$B9) -> 97 | H9: =IF('Raw2'!U5="","",'Raw2'!U5) -> 2059 川湖 | I9: 4 | J9: 2059 | K9: 川湖 | L9: =IF('Raw2'!V5="","",'Raw2'!V5) -> TSE | M9: =IFERROR(VLOOKUP(H9,'Raw4'!A:C,2,0),"") -> 338.5 | N9: =IFERROR(VLOOKUP(H9,'Raw2'!A:F,6,0),"") -> 9 | O9: =IFERROR(VLOOKUP($H9,'Raw2'!$A:$I,8,0),"") -> 100 | P9: =IFERROR(VLOOKUP($H9,'Raw2'!$A:$I,9,0),"") -> 2.89 | Q9: =IFERROR(YEAR(VLOOKUP(H9,'Raw3'!A:C,2,0)),"") -> 2019 | R9: =IFERROR(VLOOKUP(H9,'Raw3'!A:P,16,0),"") -> 8 | S9: =IFERROR(VLOOKUP(H9,'Raw3'!A:P,3,0),"") -> 0 | T9: =IFERROR(IF(FIND("Q1",R9)>0,VLOOKUP(H9,'Raw3'!A:P,10,0),IF(FIND("Q2",R9)>0,VLOOKUP(H9,'Raw3'!A:P,11,0),IF(FIND("Q3",R9)>0,VLOOKUP(H9,'Raw3'!A:P,12,0),))),"") ->  | U9: =IFERROR(IF(FIND("Q4",R9)>0,VLOOKUP(H9,'Raw3'!A:P,14,0),""),"") ->  | V9: =IFERROR(IF(VLOOKUP(H9,'Raw3'!A:P,5,0)="","",VLOOKUP(H9,'Raw3'!A:P,5,0)),"") ->  | W9: =IFERROR(IF(VLOOKUP(H9,'Raw3'!A:P,4,0)="","",VLOOKUP(H9,'Raw3'!A:P,4,0)),"") ->  | X9: =IFERROR(IF(VLOOKUP(H9&V9,'Raw1'!A:Z,26,0)="","",VLOOKUP(H9&V9,'Raw1'!A:Z,26,0)),"") -> 
B10: 4 | C10: =COUNTIFS('Raw2'!$K:$K,Report!C$6,'Raw2'!$L:$L,Report!$B10) -> 301 | D10: =COUNTIFS('Raw2'!$K:$K,Report!D$6,'Raw2'!$L:$L,Report!$B10) -> 64 | E10: =COUNTIFS('Raw2'!$K:$K,Report!E$6,'Raw2'!$L:$L,Report!$B10) -> 119 | F10: =COUNTIFS('Raw2'!$K:$K,Report!F$6,'Raw2'!$L:$L,Report!$B10) -> 85 | H10: =IF('Raw2'!U6="","",'Raw2'!U6) -> 2313 華通 | I10: 5 | J10: 2313 | K10: 華通 | L10: =IF('Raw2'!V6="","",'Raw2'!V6) -> TSE | M10: =IFERROR(VLOOKUP(H10,'Raw4'!A:C,2,0),"") -> 46.05 | N10: =IFERROR(VLOOKUP(H10,'Raw2'!A:F,6,0),"") -> 8 | O10: =IFERROR(VLOOKUP($H10,'Raw2'!$A:$I,8,0),"") -> 100 | P10: =IFERROR(VLOOKUP($H10,'Raw2'!$A:$I,9,0),"") -> 3.5 | Q10: =IFERROR(YEAR(VLOOKUP(H10,'Raw3'!A:C,2,0)),"") -> 2019 | R10: =IFERROR(VLOOKUP(H10,'Raw3'!A:P,16,0),"") -> 1.2 | S10: =IFERROR(VLOOKUP(H10,'Raw3'!A:P,3,0),"") -> 0 | T10: =IFERROR(IF(FIND("Q1",R10)>0,VLOOKUP(H10,'Raw3'!A:P,10,0),IF(FIND("Q2",R10)>0,VLOOKUP(H10,'Raw3'!A:P,11,0),IF(FIND("Q3",R10)>0,VLOOKUP(H10,'Raw3'!A:P,12,0),))),"") ->  | U10: =IFERROR(IF(FIND("Q4",R10)>0,VLOOKUP(H10,'Raw3'!A:P,14,0),""),"") ->  | V10: =IFERROR(IF(VLOOKUP(H10,'Raw3'!A:P,5,0)="","",VLOOKUP(H10,'Raw3'!A:P,5,0)),"") -> 2020-07-09 | W10: =IFERROR(IF(VLOOKUP(H10,'Raw3'!A:P,4,0)="","",VLOOKUP(H10,'Raw3'!A:P,4,0)),"") ->  | X10: =IFERROR(IF(VLOOKUP(H10&V10,'Raw1'!A:Z,26,0)="","",VLOOKUP(H10&V10,'Raw1'!A:Z,26,0)),"") -> 
H11: =IF('Raw2'!U7="","",'Raw2'!U7) -> 2328 廣宇 | I11: 6 | J11: 2328 | K11: 廣宇 | L11: =IF('Raw2'!V7="","",'Raw2'!V7) -> TSE | M11: =IFERROR(VLOOKUP(H11,'Raw4'!A:C,2,0),"") -> 18.05 | N11: =IFERROR(VLOOKUP(H11,'Raw2'!A:F,6,0),"") -> 8 | O11: =IFERROR(VLOOKUP($H11,'Raw2'!$A:$I,8,0),"") -> 100 | P11: =IFERROR(VLOOKUP($H11,'Raw2'!$A:$I,9,0),"") -> 3.63 | Q11: =IFERROR(YEAR(VLOOKUP(H11,'Raw3'!A:C,2,0)),"") -> 2019 | R11: =IFERROR(VLOOKUP(H11,'Raw3'!A:P,16,0),"") -> 1 | S11: =IFERROR(VLOOKUP(H11,'Raw3'!A:P,3,0),"") -> 0 | T11: =IFERROR(IF(FIND("Q1",R11)>0,VLOOKUP(H11,'Raw3'!A:P,10,0),IF(FIND("Q2",R11)>0,VLOOKUP(H11,'Raw3'!A:P,11,0),IF(FIND("Q3",R11)>0,VLOOKUP(H11,'Raw3'!A:P,12,0),))),"") ->  | U11: =IFERROR(IF(FIND("Q4",R11)>0,VLOOKUP(H11,'Raw3'!A:P,14,0),""),"") ->  | V11: =IFERROR(IF(VLOOKUP(H11,'Raw3'!A:P,5,0)="","",VLOOKUP(H11,'Raw3'!A:P,5,0)),"") ->  | W11: =IFERROR(IF(VLOOKUP(H11,'Raw3'!A:P,4,0)="","",VLOOKUP(H11,'Raw3'!A:P,4,0)),"") ->  | X11: =IFERROR(IF(VLOOKUP(H11&V11,'Raw1'!A:Z,26,0)="","",VLOOKUP(H11&V11,'Raw1'!A:Z,26,0)),"") -> 
H12: =IF('Raw2'!U8="","",'Raw2'!U8) -> 9921 巨大 | I12: 7 | J12: 9921 | K12: 巨大 | L12: =IF('Raw2'!V8="","",'Raw2'!V8) -> TSE | M12: =IFERROR(VLOOKUP(H12,'Raw4'!A:C,2,0),"") -> 264.5 | N12: =IFERROR(VLOOKUP(H12,'Raw2'!A:F,6,0),"") -> 9 | O12: =IFERROR(VLOOKUP($H12,'Raw2'!$A:$I,8,0),"") -> 100 | P12: =IFERROR(VLOOKUP($H12,'Raw2'!$A:$I,9,0),"") -> 4 | Q12: =IFERROR(YEAR(VLOOKUP(H12,'Raw3'!A:C,2,0)),"") -> 2019 | R12: =IFERROR(VLOOKUP(H12,'Raw3'!A:P,16,0),"") -> 4.6 | S12: =IFERROR(VLOOKUP(H12,'Raw3'!A:P,3,0),"") -> 0 | T12: =IFERROR(IF(FIND("Q1",R12)>0,VLOOKUP(H12,'Raw3'!A:P,10,0),IF(FIND("Q2",R12)>0,VLOOKUP(H12,'Raw3'!A:P,11,0),IF(FIND("Q3",R12)>0,VLOOKUP(H12,'Raw3'!A:P,12,0),))),"") ->  | U12: =IFERROR(IF(FIND("Q4",R12)>0,VLOOKUP(H12,'Raw3'!A:P,14,0),""),"") ->  | V12: =IFERROR(IF(VLOOKUP(H12,'Raw3'!A:P,5,0)="","",VLOOKUP(H12,'Raw3'!A:P,5,0)),"") ->  | W12: =IFERROR(IF(VLOOKUP(H12,'Raw3'!A:P,4,0)="","",VLOOKUP(H12,'Raw3'!A:P,4,0)),"") ->  | X12: =IFERROR(IF(VLOOKUP(H12&V12,'Raw1'!A:Z,26,0)="","",VLOOKUP(H12&V12,'Raw1'!A:Z,26,0)),"") -> 
A13: 填權成功率等級 | B13: 1 | E13: 填入數字1-4 | H13: =IF('Raw2'!U9="","",'Raw2'!U9) -> 4133 亞諾法 | I13: 8 | J13: 4133 | K13: 亞諾法 | L13: =IF('Raw2'!V9="","",'Raw2'!V9) -> TSE | M13: =IFERROR(VLOOKUP(H13,'Raw4'!A:C,2,0),"") -> 76.3 | N13: =IFERROR(VLOOKUP(H13,'Raw2'!A:F,6,0),"") -> 9 | O13: =IFERROR(VLOOKUP($H13,'Raw2'!$A:$I,8,0),"") -> 100 | P13: =IFERROR(VLOOKUP($H13,'Raw2'!$A:$I,9,0),"") -> 4.22 | Q13: =IFERROR(YEAR(VLOOKUP(H13,'Raw3'!A:C,2,0)),"") -> 2019 | R13: =IFERROR(VLOOKUP(H13,'Raw3'!A:P,16,0),"") -> 0.1 | S13: =IFERROR(VLOOKUP(H13,'Raw3'!A:P,3,0),"") -> 0 | T13: =IFERROR(IF(FIND("Q1",R13)>0,VLOOKUP(H13,'Raw3'!A:P,10,0),IF(FIND("Q2",R13)>0,VLOOKUP(H13,'Raw3'!A:P,11,0),IF(FIND("Q3",R13)>0,VLOOKUP(H13,'Raw3'!A:P,12,0),))),"") ->  | U13: =IFERROR(IF(FIND("Q4",R13)>0,VLOOKUP(H13,'Raw3'!A:P,14,0),""),"") ->  | V13: =IFERROR(IF(VLOOKUP(H13,'Raw3'!A:P,5,0)="","",VLOOKUP(H13,'Raw3'!A:P,5,0)),"") ->  | W13: =IFERROR(IF(VLOOKUP(H13,'Raw3'!A:P,4,0)="","",VLOOKUP(H13,'Raw3'!A:P,4,0)),"") ->  | X13: =IFERROR(IF(VLOOKUP(H13&V13,'Raw1'!A:Z,26,0)="","",VLOOKUP(H13&V13,'Raw1'!A:Z,26,0)),"") -> 
H14: =IF('Raw2'!U10="","",'Raw2'!U10) -> 1734 杏輝 | I14: 9 | J14: 1734 | K14: 杏輝 | L14: =IF('Raw2'!V10="","",'Raw2'!V10) -> TSE | M14: =IFERROR(VLOOKUP(H14,'Raw4'!A:C,2,0),"") -> 28.1 | N14: =IFERROR(VLOOKUP(H14,'Raw2'!A:F,6,0),"") -> 10 | O14: =IFERROR(VLOOKUP($H14,'Raw2'!$A:$I,8,0),"") -> 100 | P14: =IFERROR(VLOOKUP($H14,'Raw2'!$A:$I,9,0),"") -> 5 | Q14: =IFERROR(YEAR(VLOOKUP(H14,'Raw3'!A:C,2,0)),"") -> 2019 | R14: =IFERROR(VLOOKUP(H14,'Raw3'!A:P,16,0),"") -> 0.2 | S14: =IFERROR(VLOOKUP(H14,'Raw3'!A:P,3,0),"") -> 0 | T14: =IFERROR(IF(FIND("Q1",R14)>0,VLOOKUP(H14,'Raw3'!A:P,10,0),IF(FIND("Q2",R14)>0,VLOOKUP(H14,'Raw3'!A:P,11,0),IF(FIND("Q3",R14)>0,VLOOKUP(H14,'Raw3'!A:P,12,0),))),"") ->  | U14: =IFERROR(IF(FIND("Q4",R14)>0,VLOOKUP(H14,'Raw3'!A:P,14,0),""),"") ->  | V14: =IFERROR(IF(VLOOKUP(H14,'Raw3'!A:P,5,0)="","",VLOOKUP(H14,'Raw3'!A:P,5,0)),"") -> 2020-07-23 | W14: =IFERROR(IF(VLOOKUP(H14,'Raw3'!A:P,4,0)="","",VLOOKUP(H14,'Raw3'!A:P,4,0)),"") ->  | X14: =IFERROR(IF(VLOOKUP(H14&V14,'Raw1'!A:Z,26,0)="","",VLOOKUP(H14&V14,'Raw1'!A:Z,26,0)),"") -> 
A15: 填權速度等級 | B15: 1 | E15: 填入數字1-4 | H15: =IF('Raw2'!U11="","",'Raw2'!U11) -> 3003 健和興 | I15: 10 | J15: 3003 | K15: 健和興 | L15: =IF('Raw2'!V11="","",'Raw2'!V11) -> TSE | M15: =IFERROR(VLOOKUP(H15,'Raw4'!A:C,2,0),"") -> 42.2 | N15: =IFERROR(VLOOKUP(H15,'Raw2'!A:F,6,0),"") -> 9 | O15: =IFERROR(VLOOKUP($H15,'Raw2'!$A:$I,8,0),"") -> 100 | P15: =IFERROR(VLOOKUP($H15,'Raw2'!$A:$I,9,0),"") -> 5.56 | Q15: =IFERROR(YEAR(VLOOKUP(H15,'Raw3'!A:C,2,0)),"") -> 2019 | R15: =IFERROR(VLOOKUP(H15,'Raw3'!A:P,16,0),"") -> 1 | S15: =IFERROR(VLOOKUP(H15,'Raw3'!A:P,3,0),"") -> 0 | T15: =IFERROR(IF(FIND("Q1",R15)>0,VLOOKUP(H15,'Raw3'!A:P,10,0),IF(FIND("Q2",R15)>0,VLOOKUP(H15,'Raw3'!A:P,11,0),IF(FIND("Q3",R15)>0,VLOOKUP(H15,'Raw3'!A:P,12,0),))),"") ->  | U15: =IFERROR(IF(FIND("Q4",R15)>0,VLOOKUP(H15,'Raw3'!A:P,14,0),""),"") ->  | V15: =IFERROR(IF(VLOOKUP(H15,'Raw3'!A:P,5,0)="","",VLOOKUP(H15,'Raw3'!A:P,5,0)),"") -> 2020-06-29 | W15: =IFERROR(IF(VLOOKUP(H15,'Raw3'!A:P,4,0)="","",VLOOKUP(H15,'Raw3'!A:P,4,0)),"") ->  | X15: =IFERROR(IF(VLOOKUP(H15&V15,'Raw1'!A:Z,26,0)="","",VLOOKUP(H15&V15,'Raw1'!A:Z,26,0)),"") -> 
H16: =IF('Raw2'!U12="","",'Raw2'!U12) -> 6237 驊訊 | I16: 11 | J16: 6237 | K16: 驊訊 | L16: =IF('Raw2'!V12="","",'Raw2'!V12) -> OTC | M16: =IFERROR(VLOOKUP(H16,'Raw4'!A:C,2,0),"") -> 34.95 | N16: =IFERROR(VLOOKUP(H16,'Raw2'!A:F,6,0),"") -> 8 | O16: =IFERROR(VLOOKUP($H16,'Raw2'!$A:$I,8,0),"") -> 100 | P16: =IFERROR(VLOOKUP($H16,'Raw2'!$A:$I,9,0),"") -> 5.63 | Q16: =IFERROR(YEAR(VLOOKUP(H16,'Raw3'!A:C,2,0)),"") -> 2019 | R16: =IFERROR(VLOOKUP(H16,'Raw3'!A:P,16,0),"") -> 0.25 | S16: =IFERROR(VLOOKUP(H16,'Raw3'!A:P,3,0),"") -> 0 | T16: =IFERROR(IF(FIND("Q1",R16)>0,VLOOKUP(H16,'Raw3'!A:P,10,0),IF(FIND("Q2",R16)>0,VLOOKUP(H16,'Raw3'!A:P,11,0),IF(FIND("Q3",R16)>0,VLOOKUP(H16,'Raw3'!A:P,12,0),))),"") ->  | U16: =IFERROR(IF(FIND("Q4",R16)>0,VLOOKUP(H16,'Raw3'!A:P,14,0),""),"") ->  | V16: =IFERROR(IF(VLOOKUP(H16,'Raw3'!A:P,5,0)="","",VLOOKUP(H16,'Raw3'!A:P,5,0)),"") ->  | W16: =IFERROR(IF(VLOOKUP(H16,'Raw3'!A:P,4,0)="","",VLOOKUP(H16,'Raw3'!A:P,4,0)),"") ->  | X16: =IFERROR(IF(VLOOKUP(H16&V16,'Raw1'!A:Z,26,0)="","",VLOOKUP(H16&V16,'Raw1'!A:Z,26,0)),"") -> 
A17: 近十年除權息次數(以上) | B17: 8 | E17: 填入數字1-10 | H17: =IF('Raw2'!U13="","",'Raw2'!U13) -> 2436 偉詮電 | I17: 12 | J17: 2436 | K17: 偉詮電 | L17: =IF('Raw2'!V13="","",'Raw2'!V13) -> TSE | M17: =IFERROR(VLOOKUP(H17,'Raw4'!A:C,2,0),"") -> 27.7 | N17: =IFERROR(VLOOKUP(H17,'Raw2'!A:F,6,0),"") -> 8 | O17: =IFERROR(VLOOKUP($H17,'Raw2'!$A:$I,8,0),"") -> 100 | P17: =IFERROR(VLOOKUP($H17,'Raw2'!$A:$I,9,0),"") -> 5.88 | Q17: =IFERROR(YEAR(VLOOKUP(H17,'Raw3'!A:C,2,0)),"") -> 2019 | R17: =IFERROR(VLOOKUP(H17,'Raw3'!A:P,16,0),"") -> 1.5 | S17: =IFERROR(VLOOKUP(H17,'Raw3'!A:P,3,0),"") -> 0 | T17: =IFERROR(IF(FIND("Q1",R17)>0,VLOOKUP(H17,'Raw3'!A:P,10,0),IF(FIND("Q2",R17)>0,VLOOKUP(H17,'Raw3'!A:P,11,0),IF(FIND("Q3",R17)>0,VLOOKUP(H17,'Raw3'!A:P,12,0),))),"") ->  | U17: =IFERROR(IF(FIND("Q4",R17)>0,VLOOKUP(H17,'Raw3'!A:P,14,0),""),"") ->  | V17: =IFERROR(IF(VLOOKUP(H17,'Raw3'!A:P,5,0)="","",VLOOKUP(H17,'Raw3'!A:P,5,0)),"") -> 2020-07-01 | W17: =IFERROR(IF(VLOOKUP(H17,'Raw3'!A:P,4,0)="","",VLOOKUP(H17,'Raw3'!A:P,4,0)),"") ->  | X17: =IFERROR(IF(VLOOKUP(H17&V17,'Raw1'!A:Z,26,0)="","",VLOOKUP(H17&V17,'Raw1'!A:Z,26,0)),"") -> 
H18: =IF('Raw2'!U14="","",'Raw2'!U14) -> 2901 欣欣 | I18: 13 | J18: 2901 | K18: 欣欣 | L18: =IF('Raw2'!V14="","",'Raw2'!V14) -> TSE | M18: =IFERROR(VLOOKUP(H18,'Raw4'!A:C,2,0),"") -> 24 | N18: =IFERROR(VLOOKUP(H18,'Raw2'!A:F,6,0),"") -> 9 | O18: =IFERROR(VLOOKUP($H18,'Raw2'!$A:$I,8,0),"") -> 100 | P18: =IFERROR(VLOOKUP($H18,'Raw2'!$A:$I,9,0),"") -> 6.22 | Q18: =IFERROR(YEAR(VLOOKUP(H18,'Raw3'!A:C,2,0)),"") -> 2019 | R18: =IFERROR(VLOOKUP(H18,'Raw3'!A:P,16,0),"") -> 0.4 | S18: =IFERROR(VLOOKUP(H18,'Raw3'!A:P,3,0),"") -> 0 | T18: =IFERROR(IF(FIND("Q1",R18)>0,VLOOKUP(H18,'Raw3'!A:P,10,0),IF(FIND("Q2",R18)>0,VLOOKUP(H18,'Raw3'!A:P,11,0),IF(FIND("Q3",R18)>0,VLOOKUP(H18,'Raw3'!A:P,12,0),))),"") ->  | U18: =IFERROR(IF(FIND("Q4",R18)>0,VLOOKUP(H18,'Raw3'!A:P,14,0),""),"") ->  | V18: =IFERROR(IF(VLOOKUP(H18,'Raw3'!A:P,5,0)="","",VLOOKUP(H18,'Raw3'!A:P,5,0)),"") ->  | W18: =IFERROR(IF(VLOOKUP(H18,'Raw3'!A:P,4,0)="","",VLOOKUP(H18,'Raw3'!A:P,4,0)),"") ->  | X18: =IFERROR(IF(VLOOKUP(H18&V18,'Raw1'!A:Z,26,0)="","",VLOOKUP(H18&V18,'Raw1'!A:Z,26,0)),"") -> 
H19: =IF('Raw2'!U15="","",'Raw2'!U15) -> 1470 大統新創 | I19: 14 | J19: 1470 | K19: 大統新創 | L19: =IF('Raw2'!V15="","",'Raw2'!V15) -> TSE | M19: =IFERROR(VLOOKUP(H19,'Raw4'!A:C,2,0),"") -> 18.85 | N19: =IFERROR(VLOOKUP(H19,'Raw2'!A:F,6,0),"") -> 8 | O19: =IFERROR(VLOOKUP($H19,'Raw2'!$A:$I,8,0),"") -> 100 | P19: =IFERROR(VLOOKUP($H19,'Raw2'!$A:$I,9,0),"") -> 6.38 | Q19: =IFERROR(YEAR(VLOOKUP(H19,'Raw3'!A:C,2,0)),"") -> 2019 | R19: =IFERROR(VLOOKUP(H19,'Raw3'!A:P,16,0),"") -> 0.8 | S19: =IFERROR(VLOOKUP(H19,'Raw3'!A:P,3,0),"") -> 0 | T19: =IFERROR(IF(FIND("Q1",R19)>0,VLOOKUP(H19,'Raw3'!A:P,10,0),IF(FIND("Q2",R19)>0,VLOOKUP(H19,'Raw3'!A:P,11,0),IF(FIND("Q3",R19)>0,VLOOKUP(H19,'Raw3'!A:P,12,0),))),"") ->  | U19: =IFERROR(IF(FIND("Q4",R19)>0,VLOOKUP(H19,'Raw3'!A:P,14,0),""),"") ->  | V19: =IFERROR(IF(VLOOKUP(H19,'Raw3'!A:P,5,0)="","",VLOOKUP(H19,'Raw3'!A:P,5,0)),"") ->  | W19: =IFERROR(IF(VLOOKUP(H19,'Raw3'!A:P,4,0)="","",VLOOKUP(H19,'Raw3'!A:P,4,0)),"") ->  | X19: =IFERROR(IF(VLOOKUP(H19&V19,'Raw1'!A:Z,26,0)="","",VLOOKUP(H19&V19,'Raw1'!A:Z,26,0)),"") -> 
H20: =IF('Raw2'!U16="","",'Raw2'!U16) -> 3004 豐達科 | I20: 15 | J20: 3004 | K20: 豐達科 | L20: =IF('Raw2'!V16="","",'Raw2'!V16) -> TSE | M20: =IFERROR(VLOOKUP(H20,'Raw4'!A:C,2,0),"") -> 58.9 | N20: =IFERROR(VLOOKUP(H20,'Raw2'!A:F,6,0),"") -> 8 | O20: =IFERROR(VLOOKUP($H20,'Raw2'!$A:$I,8,0),"") -> 100 | P20: =IFERROR(VLOOKUP($H20,'Raw2'!$A:$I,9,0),"") -> 6.38 | Q20: =IFERROR(YEAR(VLOOKUP(H20,'Raw3'!A:C,2,0)),"") -> 2019 | R20: =IFERROR(VLOOKUP(H20,'Raw3'!A:P,16,0),"") -> 2.67 | S20: =IFERROR(VLOOKUP(H20,'Raw3'!A:P,3,0),"") -> 0 | T20: =IFERROR(IF(FIND("Q1",R20)>0,VLOOKUP(H20,'Raw3'!A:P,10,0),IF(FIND("Q2",R20)>0,VLOOKUP(H20,'Raw3'!A:P,11,0),IF(FIND("Q3",R20)>0,VLOOKUP(H20,'Raw3'!A:P,12,0),))),"") ->  | U20: =IFERROR(IF(FIND("Q4",R20)>0,VLOOKUP(H20,'Raw3'!A:P,14,0),""),"") ->  | V20: =IFERROR(IF(VLOOKUP(H20,'Raw3'!A:P,5,0)="","",VLOOKUP(H20,'Raw3'!A:P,5,0)),"") -> 2020-03-30 | W20: =IFERROR(IF(VLOOKUP(H20,'Raw3'!A:P,4,0)="","",VLOOKUP(H20,'Raw3'!A:P,4,0)),"") ->  | X20: =IFERROR(IF(VLOOKUP(H20&V20,'Raw1'!A:Z,26,0)="","",VLOOKUP(H20&V20,'Raw1'!A:Z,26,0)),"") -> 
H21: =IF('Raw2'!U17="","",'Raw2'!U17) -> 5904 寶雅 | I21: 16 | J21: 5904 | K21: 寶雅 | L21: =IF('Raw2'!V17="","",'Raw2'!V17) -> OTC | M21: =IFERROR(VLOOKUP(H21,'Raw4'!A:C,2,0),"") -> 584 | N21: =IFERROR(VLOOKUP(H21,'Raw2'!A:F,6,0),"") -> 10 | O21: =IFERROR(VLOOKUP($H21,'Raw2'!$A:$I,8,0),"") -> 100 | P21: =IFERROR(VLOOKUP($H21,'Raw2'!$A:$I,9,0),"") -> 7.1 | Q21: =IFERROR(YEAR(VLOOKUP(H21,'Raw3'!A:C,2,0)),"") -> 2019 | R21: =IFERROR(VLOOKUP(H21,'Raw3'!A:P,16,0),"") -> 17.1 | S21: =IFERROR(VLOOKUP(H21,'Raw3'!A:P,3,0),"") -> 0 | T21: =IFERROR(IF(FIND("Q1",R21)>0,VLOOKUP(H21,'Raw3'!A:P,10,0),IF(FIND("Q2",R21)>0,VLOOKUP(H21,'Raw3'!A:P,11,0),IF(FIND("Q3",R21)>0,VLOOKUP(H21,'Raw3'!A:P,12,0),))),"") ->  | U21: =IFERROR(IF(FIND("Q4",R21)>0,VLOOKUP(H21,'Raw3'!A:P,14,0),""),"") ->  | V21: =IFERROR(IF(VLOOKUP(H21,'Raw3'!A:P,5,0)="","",VLOOKUP(H21,'Raw3'!A:P,5,0)),"") -> 2020-03-31 | W21: =IFERROR(IF(VLOOKUP(H21,'Raw3'!A:P,4,0)="","",VLOOKUP(H21,'Raw3'!A:P,4,0)),"") ->  | X21: =IFERROR(IF(VLOOKUP(H21&V21,'Raw1'!A:Z,26,0)="","",VLOOKUP(H21&V21,'Raw1'!A:Z,26,0)),"") -> 
H22: =IF('Raw2'!U18="","",'Raw2'!U18) ->  | L22: =IF('Raw2'!V18="","",'Raw2'!V18) ->  | M22: =IFERROR(VLOOKUP(H22,'Raw4'!A:C,2,0),"") ->  | N22: =IFERROR(VLOOKUP(H22,'Raw2'!A:F,6,0),"") ->  | O22: =IFERROR(VLOOKUP($H22,'Raw2'!$A:$I,8,0),"") ->  | P22: =IFERROR(VLOOKUP($H22,'Raw2'!$A:$I,9,0),"") ->  | Q22: =IFERROR(YEAR(VLOOKUP(H22,'Raw3'!A:C,2,0)),"") ->  | R22: =IFERROR(VLOOKUP(H22,'Raw3'!A:P,16,0),"") ->  | S22: =IFERROR(VLOOKUP(H22,'Raw3'!A:P,3,0),"") ->  | T22: =IFERROR(IF(FIND("Q1",R22)>0,VLOOKUP(H22,'Raw3'!A:P,10,0),IF(FIND("Q2",R22)>0,VLOOKUP(H22,'Raw3'!A:P,11,0),IF(FIND("Q3",R22)>0,VLOOKUP(H22,'Raw3'!A:P,12,0),))),"") ->  | U22: =IFERROR(IF(FIND("Q4",R22)>0,VLOOKUP(H22,'Raw3'!A:P,14,0),""),"") ->  | V22: =IFERROR(IF(VLOOKUP(H22,'Raw3'!A:P,5,0)="","",VLOOKUP(H22,'Raw3'!A:P,5,0)),"") ->  | W22: =IFERROR(IF(VLOOKUP(H22,'Raw3'!A:P,4,0)="","",VLOOKUP(H22,'Raw3'!A:P,4,0)),"") ->  | X22: =IFERROR(IF(VLOOKUP(H22&V22,'Raw1'!A:Z,26,0)="","",VLOOKUP(H22&V22,'Raw1'!A:Z,26,0)),"") -> 
A23: 使用說明： 1.於上三格輸入數字之後點選等級篩選，即可於右方取得篩選後股票清單 2. 資料更新可一天更新一次 檔案說明：此表將填權息的速度和成功率依序分為四個等級，判斷出每家公司在除權息旺季時，填權息的相關表現 資料來源：TEJ股東會資料庫、TEJ填權息資料庫 計算說明： 填權息Y/N：當年度除權息後一年內有填權息，為Ｙ 填權息成功率：填權息次數/配息次數 填權息速度：計算每一年度除權息後到填權息的天數，並進行歷史的平均 計算年度：近十年 | H23: =IF('Raw2'!U19="","",'Raw2'!U19) ->  | L23: =IF('Raw2'!V19="","",'Raw2'!V19) ->  | M23: =IFERROR(VLOOKUP(H23,'Raw4'!A:C,2,0),"") ->  | N23: =IFERROR(VLOOKUP(H23,'Raw2'!A:F,6,0),"") ->  | O23: =IFERROR(VLOOKUP($H23,'Raw2'!$A:$I,8,0),"") ->  | P23: =IFERROR(VLOOKUP($H23,'Raw2'!$A:$I,9,0),"") ->  | Q23: =IFERROR(YEAR(VLOOKUP(H23,'Raw3'!A:C,2,0)),"") ->  | R23: =IFERROR(VLOOKUP(H23,'Raw3'!A:P,16,0),"") ->  | S23: =IFERROR(VLOOKUP(H23,'Raw3'!A:P,3,0),"") ->  | T23: =IFERROR(IF(FIND("Q1",R23)>0,VLOOKUP(H23,'Raw3'!A:P,10,0),IF(FIND("Q2",R23)>0,VLOOKUP(H23,'Raw3'!A:P,11,0),IF(FIND("Q3",R23)>0,VLOOKUP(H23,'Raw3'!A:P,12,0),))),"") ->  | U23: =IFERROR(IF(FIND("Q4",R23)>0,VLOOKUP(H23,'Raw3'!A:P,14,0),""),"") ->  | V23: =IFERROR(IF(VLOOKUP(H23,'Raw3'!A:P,5,0)="","",VLOOKUP(H23,'Raw3'!A:P,5,0)),"") ->  | W23: =IFERROR(IF(VLOOKUP(H23,'Raw3'!A:P,4,0)="","",VLOOKUP(H23,'Raw3'!A:P,4,0)),"") ->  | X23: =IFERROR(IF(VLOOKUP(H23&V23,'Raw1'!A:Z,26,0)="","",VLOOKUP(H23&V23,'Raw1'!A:Z,26,0)),"") -> 
H24: =IF('Raw2'!U20="","",'Raw2'!U20) ->  | L24: =IF('Raw2'!V20="","",'Raw2'!V20) ->  | M24: =IFERROR(VLOOKUP(H24,'Raw4'!A:C,2,0),"") ->  | N24: =IFERROR(VLOOKUP(H24,'Raw2'!A:F,6,0),"") ->  | O24: =IFERROR(VLOOKUP($H24,'Raw2'!$A:$I,8,0),"") ->  | P24: =IFERROR(VLOOKUP($H24,'Raw2'!$A:$I,9,0),"") ->  | Q24: =IFERROR(YEAR(VLOOKUP(H24,'Raw3'!A:C,2,0)),"") ->  | R24: =IFERROR(VLOOKUP(H24,'Raw3'!A:P,16,0),"") ->  | S24: =IFERROR(VLOOKUP(H24,'Raw3'!A:P,3,0),"") ->  | T24: =IFERROR(IF(FIND("Q1",R24)>0,VLOOKUP(H24,'Raw3'!A:P,10,0),IF(FIND("Q2",R24)>0,VLOOKUP(H24,'Raw3'!A:P,11,0),IF(FIND("Q3",R24)>0,VLOOKUP(H24,'Raw3'!A:P,12,0),))),"") ->  | U24: =IFERROR(IF(FIND("Q4",R24)>0,VLOOKUP(H24,'Raw3'!A:P,14,0),""),"") ->  | V24: =IFERROR(IF(VLOOKUP(H24,'Raw3'!A:P,5,0)="","",VLOOKUP(H24,'Raw3'!A:P,5,0)),"") ->  | W24: =IFERROR(IF(VLOOKUP(H24,'Raw3'!A:P,4,0)="","",VLOOKUP(H24,'Raw3'!A:P,4,0)),"") ->  | X24: =IFERROR(IF(VLOOKUP(H24&V24,'Raw1'!A:Z,26,0)="","",VLOOKUP(H24&V24,'Raw1'!A:Z,26,0)),"") -> 
H25: =IF('Raw2'!U21="","",'Raw2'!U21) ->  | L25: =IF('Raw2'!V21="","",'Raw2'!V21) ->  | M25: =IFERROR(VLOOKUP(H25,'Raw4'!A:C,2,0),"") ->  | N25: =IFERROR(VLOOKUP(H25,'Raw2'!A:F,6,0),"") ->  | O25: =IFERROR(VLOOKUP($H25,'Raw2'!$A:$I,8,0),"") ->  | P25: =IFERROR(VLOOKUP($H25,'Raw2'!$A:$I,9,0),"") ->  | Q25: =IFERROR(YEAR(VLOOKUP(H25,'Raw3'!A:C,2,0)),"") ->  | R25: =IFERROR(VLOOKUP(H25,'Raw3'!A:P,16,0),"") ->  | S25: =IFERROR(VLOOKUP(H25,'Raw3'!A:P,3,0),"") ->  | T25: =IFERROR(IF(FIND("Q1",R25)>0,VLOOKUP(H25,'Raw3'!A:P,10,0),IF(FIND("Q2",R25)>0,VLOOKUP(H25,'Raw3'!A:P,11,0),IF(FIND("Q3",R25)>0,VLOOKUP(H25,'Raw3'!A:P,12,0),))),"") ->  | U25: =IFERROR(IF(FIND("Q4",R25)>0,VLOOKUP(H25,'Raw3'!A:P,14,0),""),"") ->  | V25: =IFERROR(IF(VLOOKUP(H25,'Raw3'!A:P,5,0)="","",VLOOKUP(H25,'Raw3'!A:P,5,0)),"") ->  | W25: =IFERROR(IF(VLOOKUP(H25,'Raw3'!A:P,4,0)="","",VLOOKUP(H25,'Raw3'!A:P,4,0)),"") ->  | X25: =IFERROR(IF(VLOOKUP(H25&V25,'Raw1'!A:Z,26,0)="","",VLOOKUP(H25&V25,'Raw1'!A:Z,26,0)),"") -> 
H26: =IF('Raw2'!U22="","",'Raw2'!U22) ->  | L26: =IF('Raw2'!V22="","",'Raw2'!V22) ->  | M26: =IFERROR(VLOOKUP(H26,'Raw4'!A:C,2,0),"") ->  | N26: =IFERROR(VLOOKUP(H26,'Raw2'!A:F,6,0),"") ->  | O26: =IFERROR(VLOOKUP($H26,'Raw2'!$A:$I,8,0),"") ->  | P26: =IFERROR(VLOOKUP($H26,'Raw2'!$A:$I,9,0),"") ->  | Q26: =IFERROR(YEAR(VLOOKUP(H26,'Raw3'!A:C,2,0)),"") ->  | R26: =IFERROR(VLOOKUP(H26,'Raw3'!A:P,16,0),"") ->  | S26: =IFERROR(VLOOKUP(H26,'Raw3'!A:P,3,0),"") ->  | T26: =IFERROR(IF(FIND("Q1",R26)>0,VLOOKUP(H26,'Raw3'!A:P,10,0),IF(FIND("Q2",R26)>0,VLOOKUP(H26,'Raw3'!A:P,11,0),IF(FIND("Q3",R26)>0,VLOOKUP(H26,'Raw3'!A:P,12,0),))),"") ->  | U26: =IFERROR(IF(FIND("Q4",R26)>0,VLOOKUP(H26,'Raw3'!A:P,14,0),""),"") ->  | V26: =IFERROR(IF(VLOOKUP(H26,'Raw3'!A:P,5,0)="","",VLOOKUP(H26,'Raw3'!A:P,5,0)),"") ->  | W26: =IFERROR(IF(VLOOKUP(H26,'Raw3'!A:P,4,0)="","",VLOOKUP(H26,'Raw3'!A:P,4,0)),"") ->  | X26: =IFERROR(IF(VLOOKUP(H26&V26,'Raw1'!A:Z,26,0)="","",VLOOKUP(H26&V26,'Raw1'!A:Z,26,0)),"") -> 
H27: =IF('Raw2'!U23="","",'Raw2'!U23) ->  | L27: =IF('Raw2'!V23="","",'Raw2'!V23) ->  | M27: =IFERROR(VLOOKUP(H27,'Raw4'!A:C,2,0),"") ->  | N27: =IFERROR(VLOOKUP(H27,'Raw2'!A:F,6,0),"") ->  | O27: =IFERROR(VLOOKUP($H27,'Raw2'!$A:$I,8,0),"") ->  | P27: =IFERROR(VLOOKUP($H27,'Raw2'!$A:$I,9,0),"") ->  | Q27: =IFERROR(YEAR(VLOOKUP(H27,'Raw3'!A:C,2,0)),"") ->  | R27: =IFERROR(VLOOKUP(H27,'Raw3'!A:P,16,0),"") ->  | S27: =IFERROR(VLOOKUP(H27,'Raw3'!A:P,3,0),"") ->  | T27: =IFERROR(IF(FIND("Q1",R27)>0,VLOOKUP(H27,'Raw3'!A:P,10,0),IF(FIND("Q2",R27)>0,VLOOKUP(H27,'Raw3'!A:P,11,0),IF(FIND("Q3",R27)>0,VLOOKUP(H27,'Raw3'!A:P,12,0),))),"") ->  | U27: =IFERROR(IF(FIND("Q4",R27)>0,VLOOKUP(H27,'Raw3'!A:P,14,0),""),"") ->  | V27: =IFERROR(IF(VLOOKUP(H27,'Raw3'!A:P,5,0)="","",VLOOKUP(H27,'Raw3'!A:P,5,0)),"") ->  | W27: =IFERROR(IF(VLOOKUP(H27,'Raw3'!A:P,4,0)="","",VLOOKUP(H27,'Raw3'!A:P,4,0)),"") ->  | X27: =IFERROR(IF(VLOOKUP(H27&V27,'Raw1'!A:Z,26,0)="","",VLOOKUP(H27&V27,'Raw1'!A:Z,26,0)),"") -> 
H28: =IF('Raw2'!U24="","",'Raw2'!U24) ->  | L28: =IF('Raw2'!V24="","",'Raw2'!V24) ->  | M28: =IFERROR(VLOOKUP(H28,'Raw4'!A:C,2,0),"") ->  | N28: =IFERROR(VLOOKUP(H28,'Raw2'!A:F,6,0),"") ->  | O28: =IFERROR(VLOOKUP($H28,'Raw2'!$A:$I,8,0),"") ->  | P28: =IFERROR(VLOOKUP($H28,'Raw2'!$A:$I,9,0),"") ->  | Q28: =IFERROR(YEAR(VLOOKUP(H28,'Raw3'!A:C,2,0)),"") ->  | R28: =IFERROR(VLOOKUP(H28,'Raw3'!A:P,16,0),"") ->  | S28: =IFERROR(VLOOKUP(H28,'Raw3'!A:P,3,0),"") ->  | T28: =IFERROR(IF(FIND("Q1",R28)>0,VLOOKUP(H28,'Raw3'!A:P,10,0),IF(FIND("Q2",R28)>0,VLOOKUP(H28,'Raw3'!A:P,11,0),IF(FIND("Q3",R28)>0,VLOOKUP(H28,'Raw3'!A:P,12,0),))),"") ->  | U28: =IFERROR(IF(FIND("Q4",R28)>0,VLOOKUP(H28,'Raw3'!A:P,14,0),""),"") ->  | V28: =IFERROR(IF(VLOOKUP(H28,'Raw3'!A:P,5,0)="","",VLOOKUP(H28,'Raw3'!A:P,5,0)),"") ->  | W28: =IFERROR(IF(VLOOKUP(H28,'Raw3'!A:P,4,0)="","",VLOOKUP(H28,'Raw3'!A:P,4,0)),"") ->  | X28: =IFERROR(IF(VLOOKUP(H28&V28,'Raw1'!A:Z,26,0)="","",VLOOKUP(H28&V28,'Raw1'!A:Z,26,0)),"") -> 
H29: =IF('Raw2'!U25="","",'Raw2'!U25) ->  | L29: =IF('Raw2'!V25="","",'Raw2'!V25) ->  | M29: =IFERROR(VLOOKUP(H29,'Raw4'!A:C,2,0),"") ->  | N29: =IFERROR(VLOOKUP(H29,'Raw2'!A:F,6,0),"") ->  | O29: =IFERROR(VLOOKUP($H29,'Raw2'!$A:$I,8,0),"") ->  | P29: =IFERROR(VLOOKUP($H29,'Raw2'!$A:$I,9,0),"") ->  | Q29: =IFERROR(YEAR(VLOOKUP(H29,'Raw3'!A:C,2,0)),"") ->  | R29: =IFERROR(VLOOKUP(H29,'Raw3'!A:P,16,0),"") ->  | S29: =IFERROR(VLOOKUP(H29,'Raw3'!A:P,3,0),"") ->  | T29: =IFERROR(IF(FIND("Q1",R29)>0,VLOOKUP(H29,'Raw3'!A:P,10,0),IF(FIND("Q2",R29)>0,VLOOKUP(H29,'Raw3'!A:P,11,0),IF(FIND("Q3",R29)>0,VLOOKUP(H29,'Raw3'!A:P,12,0),))),"") ->  | U29: =IFERROR(IF(FIND("Q4",R29)>0,VLOOKUP(H29,'Raw3'!A:P,14,0),""),"") ->  | V29: =IFERROR(IF(VLOOKUP(H29,'Raw3'!A:P,5,0)="","",VLOOKUP(H29,'Raw3'!A:P,5,0)),"") ->  | W29: =IFERROR(IF(VLOOKUP(H29,'Raw3'!A:P,4,0)="","",VLOOKUP(H29,'Raw3'!A:P,4,0)),"") ->  | X29: =IFERROR(IF(VLOOKUP(H29&V29,'Raw1'!A:Z,26,0)="","",VLOOKUP(H29&V29,'Raw1'!A:Z,26,0)),"") -> 
H30: =IF('Raw2'!U26="","",'Raw2'!U26) ->  | L30: =IF('Raw2'!V26="","",'Raw2'!V26) ->  | M30: =IFERROR(VLOOKUP(H30,'Raw4'!A:C,2,0),"") ->  | N30: =IFERROR(VLOOKUP(H30,'Raw2'!A:F,6,0),"") ->  | O30: =IFERROR(VLOOKUP($H30,'Raw2'!$A:$I,8,0),"") ->  | P30: =IFERROR(VLOOKUP($H30,'Raw2'!$A:$I,9,0),"") ->  | Q30: =IFERROR(YEAR(VLOOKUP(H30,'Raw3'!A:C,2,0)),"") ->  | R30: =IFERROR(VLOOKUP(H30,'Raw3'!A:P,16,0),"") ->  | S30: =IFERROR(VLOOKUP(H30,'Raw3'!A:P,3,0),"") ->  | T30: =IFERROR(IF(FIND("Q1",R30)>0,VLOOKUP(H30,'Raw3'!A:P,10,0),IF(FIND("Q2",R30)>0,VLOOKUP(H30,'Raw3'!A:P,11,0),IF(FIND("Q3",R30)>0,VLOOKUP(H30,'Raw3'!A:P,12,0),))),"") ->  | U30: =IFERROR(IF(FIND("Q4",R30)>0,VLOOKUP(H30,'Raw3'!A:P,14,0),""),"") ->  | V30: =IFERROR(IF(VLOOKUP(H30,'Raw3'!A:P,5,0)="","",VLOOKUP(H30,'Raw3'!A:P,5,0)),"") ->  | W30: =IFERROR(IF(VLOOKUP(H30,'Raw3'!A:P,4,0)="","",VLOOKUP(H30,'Raw3'!A:P,4,0)),"") ->  | X30: =IFERROR(IF(VLOOKUP(H30&V30,'Raw1'!A:Z,26,0)="","",VLOOKUP(H30&V30,'Raw1'!A:Z,26,0)),"") -> 
H31: =IF('Raw2'!U27="","",'Raw2'!U27) ->  | L31: =IF('Raw2'!V27="","",'Raw2'!V27) ->  | M31: =IFERROR(VLOOKUP(H31,'Raw4'!A:C,2,0),"") ->  | N31: =IFERROR(VLOOKUP(H31,'Raw2'!A:F,6,0),"") ->  | O31: =IFERROR(VLOOKUP($H31,'Raw2'!$A:$I,8,0),"") ->  | P31: =IFERROR(VLOOKUP($H31,'Raw2'!$A:$I,9,0),"") ->  | Q31: =IFERROR(YEAR(VLOOKUP(H31,'Raw3'!A:C,2,0)),"") ->  | R31: =IFERROR(VLOOKUP(H31,'Raw3'!A:P,16,0),"") ->  | S31: =IFERROR(VLOOKUP(H31,'Raw3'!A:P,3,0),"") ->  | T31: =IFERROR(IF(FIND("Q1",R31)>0,VLOOKUP(H31,'Raw3'!A:P,10,0),IF(FIND("Q2",R31)>0,VLOOKUP(H31,'Raw3'!A:P,11,0),IF(FIND("Q3",R31)>0,VLOOKUP(H31,'Raw3'!A:P,12,0),))),"") ->  | U31: =IFERROR(IF(FIND("Q4",R31)>0,VLOOKUP(H31,'Raw3'!A:P,14,0),""),"") ->  | V31: =IFERROR(IF(VLOOKUP(H31,'Raw3'!A:P,5,0)="","",VLOOKUP(H31,'Raw3'!A:P,5,0)),"") ->  | W31: =IFERROR(IF(VLOOKUP(H31,'Raw3'!A:P,4,0)="","",VLOOKUP(H31,'Raw3'!A:P,4,0)),"") ->  | X31: =IFERROR(IF(VLOOKUP(H31&V31,'Raw1'!A:Z,26,0)="","",VLOOKUP(H31&V31,'Raw1'!A:Z,26,0)),"") -> 
H32: =IF('Raw2'!U28="","",'Raw2'!U28) ->  | L32: =IF('Raw2'!V28="","",'Raw2'!V28) ->  | M32: =IFERROR(VLOOKUP(H32,'Raw4'!A:C,2,0),"") ->  | N32: =IFERROR(VLOOKUP(H32,'Raw2'!A:F,6,0),"") ->  | O32: =IFERROR(VLOOKUP($H32,'Raw2'!$A:$I,8,0),"") ->  | P32: =IFERROR(VLOOKUP($H32,'Raw2'!$A:$I,9,0),"") ->  | Q32: =IFERROR(YEAR(VLOOKUP(H32,'Raw3'!A:C,2,0)),"") ->  | R32: =IFERROR(VLOOKUP(H32,'Raw3'!A:P,16,0),"") ->  | S32: =IFERROR(VLOOKUP(H32,'Raw3'!A:P,3,0),"") ->  | T32: =IFERROR(IF(FIND("Q1",R32)>0,VLOOKUP(H32,'Raw3'!A:P,10,0),IF(FIND("Q2",R32)>0,VLOOKUP(H32,'Raw3'!A:P,11,0),IF(FIND("Q3",R32)>0,VLOOKUP(H32,'Raw3'!A:P,12,0),))),"") ->  | U32: =IFERROR(IF(FIND("Q4",R32)>0,VLOOKUP(H32,'Raw3'!A:P,14,0),""),"") ->  | V32: =IFERROR(IF(VLOOKUP(H32,'Raw3'!A:P,5,0)="","",VLOOKUP(H32,'Raw3'!A:P,5,0)),"") ->  | W32: =IFERROR(IF(VLOOKUP(H32,'Raw3'!A:P,4,0)="","",VLOOKUP(H32,'Raw3'!A:P,4,0)),"") ->  | X32: =IFERROR(IF(VLOOKUP(H32&V32,'Raw1'!A:Z,26,0)="","",VLOOKUP(H32&V32,'Raw1'!A:Z,26,0)),"") -> 
H33: =IF('Raw2'!U29="","",'Raw2'!U29) ->  | L33: =IF('Raw2'!V29="","",'Raw2'!V29) ->  | M33: =IFERROR(VLOOKUP(H33,'Raw4'!A:C,2,0),"") ->  | N33: =IFERROR(VLOOKUP(H33,'Raw2'!A:F,6,0),"") ->  | O33: =IFERROR(VLOOKUP($H33,'Raw2'!$A:$I,8,0),"") ->  | P33: =IFERROR(VLOOKUP($H33,'Raw2'!$A:$I,9,0),"") ->  | Q33: =IFERROR(YEAR(VLOOKUP(H33,'Raw3'!A:C,2,0)),"") ->  | R33: =IFERROR(VLOOKUP(H33,'Raw3'!A:P,16,0),"") ->  | S33: =IFERROR(VLOOKUP(H33,'Raw3'!A:P,3,0),"") ->  | T33: =IFERROR(IF(FIND("Q1",R33)>0,VLOOKUP(H33,'Raw3'!A:P,10,0),IF(FIND("Q2",R33)>0,VLOOKUP(H33,'Raw3'!A:P,11,0),IF(FIND("Q3",R33)>0,VLOOKUP(H33,'Raw3'!A:P,12,0),))),"") ->  | U33: =IFERROR(IF(FIND("Q4",R33)>0,VLOOKUP(H33,'Raw3'!A:P,14,0),""),"") ->  | V33: =IFERROR(IF(VLOOKUP(H33,'Raw3'!A:P,5,0)="","",VLOOKUP(H33,'Raw3'!A:P,5,0)),"") ->  | W33: =IFERROR(IF(VLOOKUP(H33,'Raw3'!A:P,4,0)="","",VLOOKUP(H33,'Raw3'!A:P,4,0)),"") ->  | X33: =IFERROR(IF(VLOOKUP(H33&V33,'Raw1'!A:Z,26,0)="","",VLOOKUP(H33&V33,'Raw1'!A:Z,26,0)),"") -> 
H34: =IF('Raw2'!U30="","",'Raw2'!U30) ->  | L34: =IF('Raw2'!V30="","",'Raw2'!V30) ->  | M34: =IFERROR(VLOOKUP(H34,'Raw4'!A:C,2,0),"") ->  | N34: =IFERROR(VLOOKUP(H34,'Raw2'!A:F,6,0),"") ->  | O34: =IFERROR(VLOOKUP($H34,'Raw2'!$A:$I,8,0),"") ->  | P34: =IFERROR(VLOOKUP($H34,'Raw2'!$A:$I,9,0),"") ->  | Q34: =IFERROR(YEAR(VLOOKUP(H34,'Raw3'!A:C,2,0)),"") ->  | R34: =IFERROR(VLOOKUP(H34,'Raw3'!A:P,16,0),"") ->  | S34: =IFERROR(VLOOKUP(H34,'Raw3'!A:P,3,0),"") ->  | T34: =IFERROR(IF(FIND("Q1",R34)>0,VLOOKUP(H34,'Raw3'!A:P,10,0),IF(FIND("Q2",R34)>0,VLOOKUP(H34,'Raw3'!A:P,11,0),IF(FIND("Q3",R34)>0,VLOOKUP(H34,'Raw3'!A:P,12,0),))),"") ->  | U34: =IFERROR(IF(FIND("Q4",R34)>0,VLOOKUP(H34,'Raw3'!A:P,14,0),""),"") ->  | V34: =IFERROR(IF(VLOOKUP(H34,'Raw3'!A:P,5,0)="","",VLOOKUP(H34,'Raw3'!A:P,5,0)),"") ->  | W34: =IFERROR(IF(VLOOKUP(H34,'Raw3'!A:P,4,0)="","",VLOOKUP(H34,'Raw3'!A:P,4,0)),"") ->  | X34: =IFERROR(IF(VLOOKUP(H34&V34,'Raw1'!A:Z,26,0)="","",VLOOKUP(H34&V34,'Raw1'!A:Z,26,0)),"") -> 
H35: =IF('Raw2'!U31="","",'Raw2'!U31) ->  | L35: =IF('Raw2'!V31="","",'Raw2'!V31) ->  | M35: =IFERROR(VLOOKUP(H35,'Raw4'!A:C,2,0),"") ->  | N35: =IFERROR(VLOOKUP(H35,'Raw2'!A:F,6,0),"") ->  | O35: =IFERROR(VLOOKUP($H35,'Raw2'!$A:$I,8,0),"") ->  | P35: =IFERROR(VLOOKUP($H35,'Raw2'!$A:$I,9,0),"") ->  | Q35: =IFERROR(YEAR(VLOOKUP(H35,'Raw3'!A:C,2,0)),"") ->  | R35: =IFERROR(VLOOKUP(H35,'Raw3'!A:P,16,0),"") ->  | S35: =IFERROR(VLOOKUP(H35,'Raw3'!A:P,3,0),"") ->  | T35: =IFERROR(IF(FIND("Q1",R35)>0,VLOOKUP(H35,'Raw3'!A:P,10,0),IF(FIND("Q2",R35)>0,VLOOKUP(H35,'Raw3'!A:P,11,0),IF(FIND("Q3",R35)>0,VLOOKUP(H35,'Raw3'!A:P,12,0),))),"") ->  | U35: =IFERROR(IF(FIND("Q4",R35)>0,VLOOKUP(H35,'Raw3'!A:P,14,0),""),"") ->  | V35: =IFERROR(IF(VLOOKUP(H35,'Raw3'!A:P,5,0)="","",VLOOKUP(H35,'Raw3'!A:P,5,0)),"") ->  | W35: =IFERROR(IF(VLOOKUP(H35,'Raw3'!A:P,4,0)="","",VLOOKUP(H35,'Raw3'!A:P,4,0)),"") ->  | X35: =IFERROR(IF(VLOOKUP(H35&V35,'Raw1'!A:Z,26,0)="","",VLOOKUP(H35&V35,'Raw1'!A:Z,26,0)),"") -> 
H36: =IF('Raw2'!U32="","",'Raw2'!U32) ->  | L36: =IF('Raw2'!V32="","",'Raw2'!V32) ->  | M36: =IFERROR(VLOOKUP(H36,'Raw4'!A:C,2,0),"") ->  | N36: =IFERROR(VLOOKUP(H36,'Raw2'!A:F,6,0),"") ->  | O36: =IFERROR(VLOOKUP($H36,'Raw2'!$A:$I,8,0),"") ->  | P36: =IFERROR(VLOOKUP($H36,'Raw2'!$A:$I,9,0),"") ->  | Q36: =IFERROR(YEAR(VLOOKUP(H36,'Raw3'!A:C,2,0)),"") ->  | R36: =IFERROR(VLOOKUP(H36,'Raw3'!A:P,16,0),"") ->  | S36: =IFERROR(VLOOKUP(H36,'Raw3'!A:P,3,0),"") ->  | T36: =IFERROR(IF(FIND("Q1",R36)>0,VLOOKUP(H36,'Raw3'!A:P,10,0),IF(FIND("Q2",R36)>0,VLOOKUP(H36,'Raw3'!A:P,11,0),IF(FIND("Q3",R36)>0,VLOOKUP(H36,'Raw3'!A:P,12,0),))),"") ->  | U36: =IFERROR(IF(FIND("Q4",R36)>0,VLOOKUP(H36,'Raw3'!A:P,14,0),""),"") ->  | V36: =IFERROR(IF(VLOOKUP(H36,'Raw3'!A:P,5,0)="","",VLOOKUP(H36,'Raw3'!A:P,5,0)),"") ->  | W36: =IFERROR(IF(VLOOKUP(H36,'Raw3'!A:P,4,0)="","",VLOOKUP(H36,'Raw3'!A:P,4,0)),"") ->  | X36: =IFERROR(IF(VLOOKUP(H36&V36,'Raw1'!A:Z,26,0)="","",VLOOKUP(H36&V36,'Raw1'!A:Z,26,0)),"") -> 
H37: =IF('Raw2'!U33="","",'Raw2'!U33) ->  | L37: =IF('Raw2'!V33="","",'Raw2'!V33) ->  | M37: =IFERROR(VLOOKUP(H37,'Raw4'!A:C,2,0),"") ->  | N37: =IFERROR(VLOOKUP(H37,'Raw2'!A:F,6,0),"") ->  | O37: =IFERROR(VLOOKUP($H37,'Raw2'!$A:$I,8,0),"") ->  | P37: =IFERROR(VLOOKUP($H37,'Raw2'!$A:$I,9,0),"") ->  | Q37: =IFERROR(YEAR(VLOOKUP(H37,'Raw3'!A:C,2,0)),"") ->  | R37: =IFERROR(VLOOKUP(H37,'Raw3'!A:P,16,0),"") ->  | S37: =IFERROR(VLOOKUP(H37,'Raw3'!A:P,3,0),"") ->  | T37: =IFERROR(IF(FIND("Q1",R37)>0,VLOOKUP(H37,'Raw3'!A:P,10,0),IF(FIND("Q2",R37)>0,VLOOKUP(H37,'Raw3'!A:P,11,0),IF(FIND("Q3",R37)>0,VLOOKUP(H37,'Raw3'!A:P,12,0),))),"") ->  | U37: =IFERROR(IF(FIND("Q4",R37)>0,VLOOKUP(H37,'Raw3'!A:P,14,0),""),"") ->  | V37: =IFERROR(IF(VLOOKUP(H37,'Raw3'!A:P,5,0)="","",VLOOKUP(H37,'Raw3'!A:P,5,0)),"") ->  | W37: =IFERROR(IF(VLOOKUP(H37,'Raw3'!A:P,4,0)="","",VLOOKUP(H37,'Raw3'!A:P,4,0)),"") ->  | X37: =IFERROR(IF(VLOOKUP(H37&V37,'Raw1'!A:Z,26,0)="","",VLOOKUP(H37&V37,'Raw1'!A:Z,26,0)),"") -> 
H38: =IF('Raw2'!U34="","",'Raw2'!U34) ->  | L38: =IF('Raw2'!V34="","",'Raw2'!V34) ->  | M38: =IFERROR(VLOOKUP(H38,'Raw4'!A:C,2,0),"") ->  | N38: =IFERROR(VLOOKUP(H38,'Raw2'!A:F,6,0),"") ->  | O38: =IFERROR(VLOOKUP($H38,'Raw2'!$A:$I,8,0),"") ->  | P38: =IFERROR(VLOOKUP($H38,'Raw2'!$A:$I,9,0),"") ->  | Q38: =IFERROR(YEAR(VLOOKUP(H38,'Raw3'!A:C,2,0)),"") ->  | R38: =IFERROR(VLOOKUP(H38,'Raw3'!A:P,16,0),"") ->  | S38: =IFERROR(VLOOKUP(H38,'Raw3'!A:P,3,0),"") ->  | T38: =IFERROR(IF(FIND("Q1",R38)>0,VLOOKUP(H38,'Raw3'!A:P,10,0),IF(FIND("Q2",R38)>0,VLOOKUP(H38,'Raw3'!A:P,11,0),IF(FIND("Q3",R38)>0,VLOOKUP(H38,'Raw3'!A:P,12,0),))),"") ->  | U38: =IFERROR(IF(FIND("Q4",R38)>0,VLOOKUP(H38,'Raw3'!A:P,14,0),""),"") ->  | V38: =IFERROR(IF(VLOOKUP(H38,'Raw3'!A:P,5,0)="","",VLOOKUP(H38,'Raw3'!A:P,5,0)),"") ->  | W38: =IFERROR(IF(VLOOKUP(H38,'Raw3'!A:P,4,0)="","",VLOOKUP(H38,'Raw3'!A:P,4,0)),"") ->  | X38: =IFERROR(IF(VLOOKUP(H38&V38,'Raw1'!A:Z,26,0)="","",VLOOKUP(H38&V38,'Raw1'!A:Z,26,0)),"") -> 
H39: =IF('Raw2'!U35="","",'Raw2'!U35) ->  | L39: =IF('Raw2'!V35="","",'Raw2'!V35) ->  | M39: =IFERROR(VLOOKUP(H39,'Raw4'!A:C,2,0),"") ->  | N39: =IFERROR(VLOOKUP(H39,'Raw2'!A:F,6,0),"") ->  | O39: =IFERROR(VLOOKUP($H39,'Raw2'!$A:$I,8,0),"") ->  | P39: =IFERROR(VLOOKUP($H39,'Raw2'!$A:$I,9,0),"") ->  | Q39: =IFERROR(YEAR(VLOOKUP(H39,'Raw3'!A:C,2,0)),"") ->  | R39: =IFERROR(VLOOKUP(H39,'Raw3'!A:P,16,0),"") ->  | S39: =IFERROR(VLOOKUP(H39,'Raw3'!A:P,3,0),"") ->  | T39: =IFERROR(IF(FIND("Q1",R39)>0,VLOOKUP(H39,'Raw3'!A:P,10,0),IF(FIND("Q2",R39)>0,VLOOKUP(H39,'Raw3'!A:P,11,0),IF(FIND("Q3",R39)>0,VLOOKUP(H39,'Raw3'!A:P,12,0),))),"") ->  | U39: =IFERROR(IF(FIND("Q4",R39)>0,VLOOKUP(H39,'Raw3'!A:P,14,0),""),"") ->  | V39: =IFERROR(IF(VLOOKUP(H39,'Raw3'!A:P,5,0)="","",VLOOKUP(H39,'Raw3'!A:P,5,0)),"") ->  | W39: =IFERROR(IF(VLOOKUP(H39,'Raw3'!A:P,4,0)="","",VLOOKUP(H39,'Raw3'!A:P,4,0)),"") ->  | X39: =IFERROR(IF(VLOOKUP(H39&V39,'Raw1'!A:Z,26,0)="","",VLOOKUP(H39&V39,'Raw1'!A:Z,26,0)),"") -> 
H40: =IF('Raw2'!U36="","",'Raw2'!U36) ->  | L40: =IF('Raw2'!V36="","",'Raw2'!V36) ->  | M40: =IFERROR(VLOOKUP(H40,'Raw4'!A:C,2,0),"") ->  | N40: =IFERROR(VLOOKUP(H40,'Raw2'!A:F,6,0),"") ->  | O40: =IFERROR(VLOOKUP($H40,'Raw2'!$A:$I,8,0),"") ->  | P40: =IFERROR(VLOOKUP($H40,'Raw2'!$A:$I,9,0),"") ->  | Q40: =IFERROR(YEAR(VLOOKUP(H40,'Raw3'!A:C,2,0)),"") ->  | R40: =IFERROR(VLOOKUP(H40,'Raw3'!A:P,16,0),"") ->  | S40: =IFERROR(VLOOKUP(H40,'Raw3'!A:P,3,0),"") ->  | T40: =IFERROR(IF(FIND("Q1",R40)>0,VLOOKUP(H40,'Raw3'!A:P,10,0),IF(FIND("Q2",R40)>0,VLOOKUP(H40,'Raw3'!A:P,11,0),IF(FIND("Q3",R40)>0,VLOOKUP(H40,'Raw3'!A:P,12,0),))),"") ->  | U40: =IFERROR(IF(FIND("Q4",R40)>0,VLOOKUP(H40,'Raw3'!A:P,14,0),""),"") ->  | V40: =IFERROR(IF(VLOOKUP(H40,'Raw3'!A:P,5,0)="","",VLOOKUP(H40,'Raw3'!A:P,5,0)),"") ->  | W40: =IFERROR(IF(VLOOKUP(H40,'Raw3'!A:P,4,0)="","",VLOOKUP(H40,'Raw3'!A:P,4,0)),"") ->  | X40: =IFERROR(IF(VLOOKUP(H40&V40,'Raw1'!A:Z,26,0)="","",VLOOKUP(H40&V40,'Raw1'!A:Z,26,0)),"") -> 
H41: =IF('Raw2'!U37="","",'Raw2'!U37) ->  | L41: =IF('Raw2'!V37="","",'Raw2'!V37) ->  | M41: =IFERROR(VLOOKUP(H41,'Raw4'!A:C,2,0),"") ->  | N41: =IFERROR(VLOOKUP(H41,'Raw2'!A:F,6,0),"") ->  | O41: =IFERROR(VLOOKUP($H41,'Raw2'!$A:$I,8,0),"") ->  | P41: =IFERROR(VLOOKUP($H41,'Raw2'!$A:$I,9,0),"") ->  | Q41: =IFERROR(YEAR(VLOOKUP(H41,'Raw3'!A:C,2,0)),"") ->  | R41: =IFERROR(VLOOKUP(H41,'Raw3'!A:P,16,0),"") ->  | S41: =IFERROR(VLOOKUP(H41,'Raw3'!A:P,3,0),"") ->  | T41: =IFERROR(IF(FIND("Q1",R41)>0,VLOOKUP(H41,'Raw3'!A:P,10,0),IF(FIND("Q2",R41)>0,VLOOKUP(H41,'Raw3'!A:P,11,0),IF(FIND("Q3",R41)>0,VLOOKUP(H41,'Raw3'!A:P,12,0),))),"") ->  | U41: =IFERROR(IF(FIND("Q4",R41)>0,VLOOKUP(H41,'Raw3'!A:P,14,0),""),"") ->  | V41: =IFERROR(IF(VLOOKUP(H41,'Raw3'!A:P,5,0)="","",VLOOKUP(H41,'Raw3'!A:P,5,0)),"") ->  | W41: =IFERROR(IF(VLOOKUP(H41,'Raw3'!A:P,4,0)="","",VLOOKUP(H41,'Raw3'!A:P,4,0)),"") ->  | X41: =IFERROR(IF(VLOOKUP(H41&V41,'Raw1'!A:Z,26,0)="","",VLOOKUP(H41&V41,'Raw1'!A:Z,26,0)),"") -> 
H42: =IF('Raw2'!U38="","",'Raw2'!U38) ->  | L42: =IF('Raw2'!V38="","",'Raw2'!V38) ->  | M42: =IFERROR(VLOOKUP(H42,'Raw4'!A:C,2,0),"") ->  | N42: =IFERROR(VLOOKUP(H42,'Raw2'!A:F,6,0),"") ->  | O42: =IFERROR(VLOOKUP($H42,'Raw2'!$A:$I,8,0),"") ->  | P42: =IFERROR(VLOOKUP($H42,'Raw2'!$A:$I,9,0),"") ->  | Q42: =IFERROR(YEAR(VLOOKUP(H42,'Raw3'!A:C,2,0)),"") ->  | R42: =IFERROR(VLOOKUP(H42,'Raw3'!A:P,16,0),"") ->  | S42: =IFERROR(VLOOKUP(H42,'Raw3'!A:P,3,0),"") ->  | T42: =IFERROR(IF(FIND("Q1",R42)>0,VLOOKUP(H42,'Raw3'!A:P,10,0),IF(FIND("Q2",R42)>0,VLOOKUP(H42,'Raw3'!A:P,11,0),IF(FIND("Q3",R42)>0,VLOOKUP(H42,'Raw3'!A:P,12,0),))),"") ->  | U42: =IFERROR(IF(FIND("Q4",R42)>0,VLOOKUP(H42,'Raw3'!A:P,14,0),""),"") ->  | V42: =IFERROR(IF(VLOOKUP(H42,'Raw3'!A:P,5,0)="","",VLOOKUP(H42,'Raw3'!A:P,5,0)),"") ->  | W42: =IFERROR(IF(VLOOKUP(H42,'Raw3'!A:P,4,0)="","",VLOOKUP(H42,'Raw3'!A:P,4,0)),"") ->  | X42: =IFERROR(IF(VLOOKUP(H42&V42,'Raw1'!A:Z,26,0)="","",VLOOKUP(H42&V42,'Raw1'!A:Z,26,0)),"") -> 
H43: =IF('Raw2'!U39="","",'Raw2'!U39) ->  | L43: =IF('Raw2'!V39="","",'Raw2'!V39) ->  | M43: =IFERROR(VLOOKUP(H43,'Raw4'!A:C,2,0),"") ->  | N43: =IFERROR(VLOOKUP(H43,'Raw2'!A:F,6,0),"") ->  | O43: =IFERROR(VLOOKUP($H43,'Raw2'!$A:$I,8,0),"") ->  | P43: =IFERROR(VLOOKUP($H43,'Raw2'!$A:$I,9,0),"") ->  | Q43: =IFERROR(YEAR(VLOOKUP(H43,'Raw3'!A:C,2,0)),"") ->  | R43: =IFERROR(VLOOKUP(H43,'Raw3'!A:P,16,0),"") ->  | S43: =IFERROR(VLOOKUP(H43,'Raw3'!A:P,3,0),"") ->  | T43: =IFERROR(IF(FIND("Q1",R43)>0,VLOOKUP(H43,'Raw3'!A:P,10,0),IF(FIND("Q2",R43)>0,VLOOKUP(H43,'Raw3'!A:P,11,0),IF(FIND("Q3",R43)>0,VLOOKUP(H43,'Raw3'!A:P,12,0),))),"") ->  | U43: =IFERROR(IF(FIND("Q4",R43)>0,VLOOKUP(H43,'Raw3'!A:P,14,0),""),"") ->  | V43: =IFERROR(IF(VLOOKUP(H43,'Raw3'!A:P,5,0)="","",VLOOKUP(H43,'Raw3'!A:P,5,0)),"") ->  | W43: =IFERROR(IF(VLOOKUP(H43,'Raw3'!A:P,4,0)="","",VLOOKUP(H43,'Raw3'!A:P,4,0)),"") ->  | X43: =IFERROR(IF(VLOOKUP(H43&V43,'Raw1'!A:Z,26,0)="","",VLOOKUP(H43&V43,'Raw1'!A:Z,26,0)),"") -> 
H44: =IF('Raw2'!U40="","",'Raw2'!U40) ->  | L44: =IF('Raw2'!V40="","",'Raw2'!V40) ->  | M44: =IFERROR(VLOOKUP(H44,'Raw4'!A:C,2,0),"") ->  | N44: =IFERROR(VLOOKUP(H44,'Raw2'!A:F,6,0),"") ->  | O44: =IFERROR(VLOOKUP($H44,'Raw2'!$A:$I,8,0),"") ->  | P44: =IFERROR(VLOOKUP($H44,'Raw2'!$A:$I,9,0),"") ->  | Q44: =IFERROR(YEAR(VLOOKUP(H44,'Raw3'!A:C,2,0)),"") ->  | R44: =IFERROR(VLOOKUP(H44,'Raw3'!A:P,16,0),"") ->  | S44: =IFERROR(VLOOKUP(H44,'Raw3'!A:P,3,0),"") ->  | T44: =IFERROR(IF(FIND("Q1",R44)>0,VLOOKUP(H44,'Raw3'!A:P,10,0),IF(FIND("Q2",R44)>0,VLOOKUP(H44,'Raw3'!A:P,11,0),IF(FIND("Q3",R44)>0,VLOOKUP(H44,'Raw3'!A:P,12,0),))),"") ->  | U44: =IFERROR(IF(FIND("Q4",R44)>0,VLOOKUP(H44,'Raw3'!A:P,14,0),""),"") ->  | V44: =IFERROR(IF(VLOOKUP(H44,'Raw3'!A:P,5,0)="","",VLOOKUP(H44,'Raw3'!A:P,5,0)),"") ->  | W44: =IFERROR(IF(VLOOKUP(H44,'Raw3'!A:P,4,0)="","",VLOOKUP(H44,'Raw3'!A:P,4,0)),"") ->  | X44: =IFERROR(IF(VLOOKUP(H44&V44,'Raw1'!A:Z,26,0)="","",VLOOKUP(H44&V44,'Raw1'!A:Z,26,0)),"") -> 
H45: =IF('Raw2'!U41="","",'Raw2'!U41) ->  | L45: =IF('Raw2'!V41="","",'Raw2'!V41) ->  | M45: =IFERROR(VLOOKUP(H45,'Raw4'!A:C,2,0),"") ->  | N45: =IFERROR(VLOOKUP(H45,'Raw2'!A:F,6,0),"") ->  | O45: =IFERROR(VLOOKUP($H45,'Raw2'!$A:$I,8,0),"") ->  | P45: =IFERROR(VLOOKUP($H45,'Raw2'!$A:$I,9,0),"") ->  | Q45: =IFERROR(YEAR(VLOOKUP(H45,'Raw3'!A:C,2,0)),"") ->  | R45: =IFERROR(VLOOKUP(H45,'Raw3'!A:P,16,0),"") ->  | S45: =IFERROR(VLOOKUP(H45,'Raw3'!A:P,3,0),"") ->  | T45: =IFERROR(IF(FIND("Q1",R45)>0,VLOOKUP(H45,'Raw3'!A:P,10,0),IF(FIND("Q2",R45)>0,VLOOKUP(H45,'Raw3'!A:P,11,0),IF(FIND("Q3",R45)>0,VLOOKUP(H45,'Raw3'!A:P,12,0),))),"") ->  | U45: =IFERROR(IF(FIND("Q4",R45)>0,VLOOKUP(H45,'Raw3'!A:P,14,0),""),"") ->  | V45: =IFERROR(IF(VLOOKUP(H45,'Raw3'!A:P,5,0)="","",VLOOKUP(H45,'Raw3'!A:P,5,0)),"") ->  | W45: =IFERROR(IF(VLOOKUP(H45,'Raw3'!A:P,4,0)="","",VLOOKUP(H45,'Raw3'!A:P,4,0)),"") ->  | X45: =IFERROR(IF(VLOOKUP(H45&V45,'Raw1'!A:Z,26,0)="","",VLOOKUP(H45&V45,'Raw1'!A:Z,26,0)),"") -> 
H46: =IF('Raw2'!U42="","",'Raw2'!U42) ->  | L46: =IF('Raw2'!V42="","",'Raw2'!V42) ->  | M46: =IFERROR(VLOOKUP(H46,'Raw4'!A:C,2,0),"") ->  | N46: =IFERROR(VLOOKUP(H46,'Raw2'!A:F,6,0),"") ->  | O46: =IFERROR(VLOOKUP($H46,'Raw2'!$A:$I,8,0),"") ->  | P46: =IFERROR(VLOOKUP($H46,'Raw2'!$A:$I,9,0),"") ->  | Q46: =IFERROR(YEAR(VLOOKUP(H46,'Raw3'!A:C,2,0)),"") ->  | R46: =IFERROR(VLOOKUP(H46,'Raw3'!A:P,16,0),"") ->  | S46: =IFERROR(VLOOKUP(H46,'Raw3'!A:P,3,0),"") ->  | T46: =IFERROR(IF(FIND("Q1",R46)>0,VLOOKUP(H46,'Raw3'!A:P,10,0),IF(FIND("Q2",R46)>0,VLOOKUP(H46,'Raw3'!A:P,11,0),IF(FIND("Q3",R46)>0,VLOOKUP(H46,'Raw3'!A:P,12,0),))),"") ->  | U46: =IFERROR(IF(FIND("Q4",R46)>0,VLOOKUP(H46,'Raw3'!A:P,14,0),""),"") ->  | V46: =IFERROR(IF(VLOOKUP(H46,'Raw3'!A:P,5,0)="","",VLOOKUP(H46,'Raw3'!A:P,5,0)),"") ->  | W46: =IFERROR(IF(VLOOKUP(H46,'Raw3'!A:P,4,0)="","",VLOOKUP(H46,'Raw3'!A:P,4,0)),"") ->  | X46: =IFERROR(IF(VLOOKUP(H46&V46,'Raw1'!A:Z,26,0)="","",VLOOKUP(H46&V46,'Raw1'!A:Z,26,0)),"") -> 
H47: =IF('Raw2'!U43="","",'Raw2'!U43) ->  | L47: =IF('Raw2'!V43="","",'Raw2'!V43) ->  | M47: =IFERROR(VLOOKUP(H47,'Raw4'!A:C,2,0),"") ->  | N47: =IFERROR(VLOOKUP(H47,'Raw2'!A:F,6,0),"") ->  | O47: =IFERROR(VLOOKUP($H47,'Raw2'!$A:$I,8,0),"") ->  | P47: =IFERROR(VLOOKUP($H47,'Raw2'!$A:$I,9,0),"") ->  | Q47: =IFERROR(YEAR(VLOOKUP(H47,'Raw3'!A:C,2,0)),"") ->  | R47: =IFERROR(VLOOKUP(H47,'Raw3'!A:P,16,0),"") ->  | S47: =IFERROR(VLOOKUP(H47,'Raw3'!A:P,3,0),"") ->  | T47: =IFERROR(IF(FIND("Q1",R47)>0,VLOOKUP(H47,'Raw3'!A:P,10,0),IF(FIND("Q2",R47)>0,VLOOKUP(H47,'Raw3'!A:P,11,0),IF(FIND("Q3",R47)>0,VLOOKUP(H47,'Raw3'!A:P,12,0),))),"") ->  | U47: =IFERROR(IF(FIND("Q4",R47)>0,VLOOKUP(H47,'Raw3'!A:P,14,0),""),"") ->  | V47: =IFERROR(IF(VLOOKUP(H47,'Raw3'!A:P,5,0)="","",VLOOKUP(H47,'Raw3'!A:P,5,0)),"") ->  | W47: =IFERROR(IF(VLOOKUP(H47,'Raw3'!A:P,4,0)="","",VLOOKUP(H47,'Raw3'!A:P,4,0)),"") ->  | X47: =IFERROR(IF(VLOOKUP(H47&V47,'Raw1'!A:Z,26,0)="","",VLOOKUP(H47&V47,'Raw1'!A:Z,26,0)),"") -> 
H48: =IF('Raw2'!U44="","",'Raw2'!U44) ->  | L48: =IF('Raw2'!V44="","",'Raw2'!V44) ->  | M48: =IFERROR(VLOOKUP(H48,'Raw4'!A:C,2,0),"") ->  | N48: =IFERROR(VLOOKUP(H48,'Raw2'!A:F,6,0),"") ->  | O48: =IFERROR(VLOOKUP($H48,'Raw2'!$A:$I,8,0),"") ->  | P48: =IFERROR(VLOOKUP($H48,'Raw2'!$A:$I,9,0),"") ->  | Q48: =IFERROR(YEAR(VLOOKUP(H48,'Raw3'!A:C,2,0)),"") ->  | R48: =IFERROR(VLOOKUP(H48,'Raw3'!A:P,16,0),"") ->  | S48: =IFERROR(VLOOKUP(H48,'Raw3'!A:P,3,0),"") ->  | T48: =IFERROR(IF(FIND("Q1",R48)>0,VLOOKUP(H48,'Raw3'!A:P,10,0),IF(FIND("Q2",R48)>0,VLOOKUP(H48,'Raw3'!A:P,11,0),IF(FIND("Q3",R48)>0,VLOOKUP(H48,'Raw3'!A:P,12,0),))),"") ->  | U48: =IFERROR(IF(FIND("Q4",R48)>0,VLOOKUP(H48,'Raw3'!A:P,14,0),""),"") ->  | V48: =IFERROR(IF(VLOOKUP(H48,'Raw3'!A:P,5,0)="","",VLOOKUP(H48,'Raw3'!A:P,5,0)),"") ->  | W48: =IFERROR(IF(VLOOKUP(H48,'Raw3'!A:P,4,0)="","",VLOOKUP(H48,'Raw3'!A:P,4,0)),"") ->  | X48: =IFERROR(IF(VLOOKUP(H48&V48,'Raw1'!A:Z,26,0)="","",VLOOKUP(H48&V48,'Raw1'!A:Z,26,0)),"") -> 
H49: =IF('Raw2'!U45="","",'Raw2'!U45) ->  | L49: =IF('Raw2'!V45="","",'Raw2'!V45) ->  | M49: =IFERROR(VLOOKUP(H49,'Raw4'!A:C,2,0),"") ->  | N49: =IFERROR(VLOOKUP(H49,'Raw2'!A:F,6,0),"") ->  | O49: =IFERROR(VLOOKUP($H49,'Raw2'!$A:$I,8,0),"") ->  | P49: =IFERROR(VLOOKUP($H49,'Raw2'!$A:$I,9,0),"") ->  | Q49: =IFERROR(YEAR(VLOOKUP(H49,'Raw3'!A:C,2,0)),"") ->  | R49: =IFERROR(VLOOKUP(H49,'Raw3'!A:P,16,0),"") ->  | S49: =IFERROR(VLOOKUP(H49,'Raw3'!A:P,3,0),"") ->  | T49: =IFERROR(IF(FIND("Q1",R49)>0,VLOOKUP(H49,'Raw3'!A:P,10,0),IF(FIND("Q2",R49)>0,VLOOKUP(H49,'Raw3'!A:P,11,0),IF(FIND("Q3",R49)>0,VLOOKUP(H49,'Raw3'!A:P,12,0),))),"") ->  | U49: =IFERROR(IF(FIND("Q4",R49)>0,VLOOKUP(H49,'Raw3'!A:P,14,0),""),"") ->  | V49: =IFERROR(IF(VLOOKUP(H49,'Raw3'!A:P,5,0)="","",VLOOKUP(H49,'Raw3'!A:P,5,0)),"") ->  | W49: =IFERROR(IF(VLOOKUP(H49,'Raw3'!A:P,4,0)="","",VLOOKUP(H49,'Raw3'!A:P,4,0)),"") ->  | X49: =IFERROR(IF(VLOOKUP(H49&V49,'Raw1'!A:Z,26,0)="","",VLOOKUP(H49&V49,'Raw1'!A:Z,26,0)),"") -> 
H50: =IF('Raw2'!U46="","",'Raw2'!U46) ->  | L50: =IF('Raw2'!V46="","",'Raw2'!V46) ->  | M50: =IFERROR(VLOOKUP(H50,'Raw4'!A:C,2,0),"") ->  | N50: =IFERROR(VLOOKUP(H50,'Raw2'!A:F,6,0),"") ->  | O50: =IFERROR(VLOOKUP($H50,'Raw2'!$A:$I,8,0),"") ->  | P50: =IFERROR(VLOOKUP($H50,'Raw2'!$A:$I,9,0),"") ->  | Q50: =IFERROR(YEAR(VLOOKUP(H50,'Raw3'!A:C,2,0)),"") ->  | R50: =IFERROR(VLOOKUP(H50,'Raw3'!A:P,16,0),"") ->  | S50: =IFERROR(VLOOKUP(H50,'Raw3'!A:P,3,0),"") ->  | T50: =IFERROR(IF(FIND("Q1",R50)>0,VLOOKUP(H50,'Raw3'!A:P,10,0),IF(FIND("Q2",R50)>0,VLOOKUP(H50,'Raw3'!A:P,11,0),IF(FIND("Q3",R50)>0,VLOOKUP(H50,'Raw3'!A:P,12,0),))),"") ->  | U50: =IFERROR(IF(FIND("Q4",R50)>0,VLOOKUP(H50,'Raw3'!A:P,14,0),""),"") ->  | V50: =IFERROR(IF(VLOOKUP(H50,'Raw3'!A:P,5,0)="","",VLOOKUP(H50,'Raw3'!A:P,5,0)),"") ->  | W50: =IFERROR(IF(VLOOKUP(H50,'Raw3'!A:P,4,0)="","",VLOOKUP(H50,'Raw3'!A:P,4,0)),"") ->  | X50: =IFERROR(IF(VLOOKUP(H50&V50,'Raw1'!A:Z,26,0)="","",VLOOKUP(H50&V50,'Raw1'!A:Z,26,0)),"") -> 
H51: =IF('Raw2'!U47="","",'Raw2'!U47) ->  | L51: =IF('Raw2'!V47="","",'Raw2'!V47) ->  | M51: =IFERROR(VLOOKUP(H51,'Raw4'!A:C,2,0),"") ->  | N51: =IFERROR(VLOOKUP(H51,'Raw2'!A:F,6,0),"") ->  | O51: =IFERROR(VLOOKUP($H51,'Raw2'!$A:$I,8,0),"") ->  | P51: =IFERROR(VLOOKUP($H51,'Raw2'!$A:$I,9,0),"") ->  | Q51: =IFERROR(YEAR(VLOOKUP(H51,'Raw3'!A:C,2,0)),"") ->  | R51: =IFERROR(VLOOKUP(H51,'Raw3'!A:P,16,0),"") ->  | S51: =IFERROR(VLOOKUP(H51,'Raw3'!A:P,3,0),"") ->  | T51: =IFERROR(IF(FIND("Q1",R51)>0,VLOOKUP(H51,'Raw3'!A:P,10,0),IF(FIND("Q2",R51)>0,VLOOKUP(H51,'Raw3'!A:P,11,0),IF(FIND("Q3",R51)>0,VLOOKUP(H51,'Raw3'!A:P,12,0),))),"") ->  | U51: =IFERROR(IF(FIND("Q4",R51)>0,VLOOKUP(H51,'Raw3'!A:P,14,0),""),"") ->  | V51: =IFERROR(IF(VLOOKUP(H51,'Raw3'!A:P,5,0)="","",VLOOKUP(H51,'Raw3'!A:P,5,0)),"") ->  | W51: =IFERROR(IF(VLOOKUP(H51,'Raw3'!A:P,4,0)="","",VLOOKUP(H51,'Raw3'!A:P,4,0)),"") ->  | X51: =IFERROR(IF(VLOOKUP(H51&V51,'Raw1'!A:Z,26,0)="","",VLOOKUP(H51&V51,'Raw1'!A:Z,26,0)),"") -> 
H52: =IF('Raw2'!U48="","",'Raw2'!U48) ->  | L52: =IF('Raw2'!V48="","",'Raw2'!V48) ->  | M52: =IFERROR(VLOOKUP(H52,'Raw4'!A:C,2,0),"") ->  | N52: =IFERROR(VLOOKUP(H52,'Raw2'!A:F,6,0),"") ->  | O52: =IFERROR(VLOOKUP($H52,'Raw2'!$A:$I,8,0),"") ->  | P52: =IFERROR(VLOOKUP($H52,'Raw2'!$A:$I,9,0),"") ->  | Q52: =IFERROR(YEAR(VLOOKUP(H52,'Raw3'!A:C,2,0)),"") ->  | R52: =IFERROR(VLOOKUP(H52,'Raw3'!A:P,16,0),"") ->  | S52: =IFERROR(VLOOKUP(H52,'Raw3'!A:P,3,0),"") ->  | T52: =IFERROR(IF(FIND("Q1",R52)>0,VLOOKUP(H52,'Raw3'!A:P,10,0),IF(FIND("Q2",R52)>0,VLOOKUP(H52,'Raw3'!A:P,11,0),IF(FIND("Q3",R52)>0,VLOOKUP(H52,'Raw3'!A:P,12,0),))),"") ->  | U52: =IFERROR(IF(FIND("Q4",R52)>0,VLOOKUP(H52,'Raw3'!A:P,14,0),""),"") ->  | V52: =IFERROR(IF(VLOOKUP(H52,'Raw3'!A:P,5,0)="","",VLOOKUP(H52,'Raw3'!A:P,5,0)),"") ->  | W52: =IFERROR(IF(VLOOKUP(H52,'Raw3'!A:P,4,0)="","",VLOOKUP(H52,'Raw3'!A:P,4,0)),"") ->  | X52: =IFERROR(IF(VLOOKUP(H52&V52,'Raw1'!A:Z,26,0)="","",VLOOKUP(H52&V52,'Raw1'!A:Z,26,0)),"") -> 
H53: =IF('Raw2'!U49="","",'Raw2'!U49) ->  | L53: =IF('Raw2'!V49="","",'Raw2'!V49) ->  | M53: =IFERROR(VLOOKUP(H53,'Raw4'!A:C,2,0),"") ->  | N53: =IFERROR(VLOOKUP(H53,'Raw2'!A:F,6,0),"") ->  | O53: =IFERROR(VLOOKUP($H53,'Raw2'!$A:$I,8,0),"") ->  | P53: =IFERROR(VLOOKUP($H53,'Raw2'!$A:$I,9,0),"") ->  | Q53: =IFERROR(YEAR(VLOOKUP(H53,'Raw3'!A:C,2,0)),"") ->  | R53: =IFERROR(VLOOKUP(H53,'Raw3'!A:P,16,0),"") ->  | S53: =IFERROR(VLOOKUP(H53,'Raw3'!A:P,3,0),"") ->  | T53: =IFERROR(IF(FIND("Q1",R53)>0,VLOOKUP(H53,'Raw3'!A:P,10,0),IF(FIND("Q2",R53)>0,VLOOKUP(H53,'Raw3'!A:P,11,0),IF(FIND("Q3",R53)>0,VLOOKUP(H53,'Raw3'!A:P,12,0),))),"") ->  | U53: =IFERROR(IF(FIND("Q4",R53)>0,VLOOKUP(H53,'Raw3'!A:P,14,0),""),"") ->  | V53: =IFERROR(IF(VLOOKUP(H53,'Raw3'!A:P,5,0)="","",VLOOKUP(H53,'Raw3'!A:P,5,0)),"") ->  | W53: =IFERROR(IF(VLOOKUP(H53,'Raw3'!A:P,4,0)="","",VLOOKUP(H53,'Raw3'!A:P,4,0)),"") ->  | X53: =IFERROR(IF(VLOOKUP(H53&V53,'Raw1'!A:Z,26,0)="","",VLOOKUP(H53&V53,'Raw1'!A:Z,26,0)),"") -> 
H54: =IF('Raw2'!U50="","",'Raw2'!U50) ->  | L54: =IF('Raw2'!V50="","",'Raw2'!V50) ->  | M54: =IFERROR(VLOOKUP(H54,'Raw4'!A:C,2,0),"") ->  | N54: =IFERROR(VLOOKUP(H54,'Raw2'!A:F,6,0),"") ->  | O54: =IFERROR(VLOOKUP($H54,'Raw2'!$A:$I,8,0),"") ->  | P54: =IFERROR(VLOOKUP($H54,'Raw2'!$A:$I,9,0),"") ->  | Q54: =IFERROR(YEAR(VLOOKUP(H54,'Raw3'!A:C,2,0)),"") ->  | R54: =IFERROR(VLOOKUP(H54,'Raw3'!A:P,16,0),"") ->  | S54: =IFERROR(VLOOKUP(H54,'Raw3'!A:P,3,0),"") ->  | T54: =IFERROR(IF(FIND("Q1",R54)>0,VLOOKUP(H54,'Raw3'!A:P,10,0),IF(FIND("Q2",R54)>0,VLOOKUP(H54,'Raw3'!A:P,11,0),IF(FIND("Q3",R54)>0,VLOOKUP(H54,'Raw3'!A:P,12,0),))),"") ->  | U54: =IFERROR(IF(FIND("Q4",R54)>0,VLOOKUP(H54,'Raw3'!A:P,14,0),""),"") ->  | V54: =IFERROR(IF(VLOOKUP(H54,'Raw3'!A:P,5,0)="","",VLOOKUP(H54,'Raw3'!A:P,5,0)),"") ->  | W54: =IFERROR(IF(VLOOKUP(H54,'Raw3'!A:P,4,0)="","",VLOOKUP(H54,'Raw3'!A:P,4,0)),"") ->  | X54: =IFERROR(IF(VLOOKUP(H54&V54,'Raw1'!A:Z,26,0)="","",VLOOKUP(H54&V54,'Raw1'!A:Z,26,0)),"") -> 
H55: =IF('Raw2'!U51="","",'Raw2'!U51) ->  | L55: =IF('Raw2'!V51="","",'Raw2'!V51) ->  | M55: =IFERROR(VLOOKUP(H55,'Raw4'!A:C,2,0),"") ->  | N55: =IFERROR(VLOOKUP(H55,'Raw2'!A:F,6,0),"") ->  | O55: =IFERROR(VLOOKUP($H55,'Raw2'!$A:$I,8,0),"") ->  | P55: =IFERROR(VLOOKUP($H55,'Raw2'!$A:$I,9,0),"") ->  | Q55: =IFERROR(YEAR(VLOOKUP(H55,'Raw3'!A:C,2,0)),"") ->  | R55: =IFERROR(VLOOKUP(H55,'Raw3'!A:P,16,0),"") ->  | S55: =IFERROR(VLOOKUP(H55,'Raw3'!A:P,3,0),"") ->  | T55: =IFERROR(IF(FIND("Q1",R55)>0,VLOOKUP(H55,'Raw3'!A:P,10,0),IF(FIND("Q2",R55)>0,VLOOKUP(H55,'Raw3'!A:P,11,0),IF(FIND("Q3",R55)>0,VLOOKUP(H55,'Raw3'!A:P,12,0),))),"") ->  | U55: =IFERROR(IF(FIND("Q4",R55)>0,VLOOKUP(H55,'Raw3'!A:P,14,0),""),"") ->  | V55: =IFERROR(IF(VLOOKUP(H55,'Raw3'!A:P,5,0)="","",VLOOKUP(H55,'Raw3'!A:P,5,0)),"") ->  | W55: =IFERROR(IF(VLOOKUP(H55,'Raw3'!A:P,4,0)="","",VLOOKUP(H55,'Raw3'!A:P,4,0)),"") ->  | X55: =IFERROR(IF(VLOOKUP(H55&V55,'Raw1'!A:Z,26,0)="","",VLOOKUP(H55&V55,'Raw1'!A:Z,26,0)),"") -> 
H56: =IF('Raw2'!U52="","",'Raw2'!U52) ->  | L56: =IF('Raw2'!V52="","",'Raw2'!V52) ->  | M56: =IFERROR(VLOOKUP(H56,'Raw4'!A:C,2,0),"") ->  | N56: =IFERROR(VLOOKUP(H56,'Raw2'!A:F,6,0),"") ->  | O56: =IFERROR(VLOOKUP($H56,'Raw2'!$A:$I,8,0),"") ->  | P56: =IFERROR(VLOOKUP($H56,'Raw2'!$A:$I,9,0),"") ->  | Q56: =IFERROR(YEAR(VLOOKUP(H56,'Raw3'!A:C,2,0)),"") ->  | R56: =IFERROR(VLOOKUP(H56,'Raw3'!A:P,16,0),"") ->  | S56: =IFERROR(VLOOKUP(H56,'Raw3'!A:P,3,0),"") ->  | T56: =IFERROR(IF(FIND("Q1",R56)>0,VLOOKUP(H56,'Raw3'!A:P,10,0),IF(FIND("Q2",R56)>0,VLOOKUP(H56,'Raw3'!A:P,11,0),IF(FIND("Q3",R56)>0,VLOOKUP(H56,'Raw3'!A:P,12,0),))),"") ->  | U56: =IFERROR(IF(FIND("Q4",R56)>0,VLOOKUP(H56,'Raw3'!A:P,14,0),""),"") ->  | V56: =IFERROR(IF(VLOOKUP(H56,'Raw3'!A:P,5,0)="","",VLOOKUP(H56,'Raw3'!A:P,5,0)),"") ->  | W56: =IFERROR(IF(VLOOKUP(H56,'Raw3'!A:P,4,0)="","",VLOOKUP(H56,'Raw3'!A:P,4,0)),"") ->  | X56: =IFERROR(IF(VLOOKUP(H56&V56,'Raw1'!A:Z,26,0)="","",VLOOKUP(H56&V56,'Raw1'!A:Z,26,0)),"") -> 
H57: =IF('Raw2'!U53="","",'Raw2'!U53) ->  | L57: =IF('Raw2'!V53="","",'Raw2'!V53) ->  | M57: =IFERROR(VLOOKUP(H57,'Raw4'!A:C,2,0),"") ->  | N57: =IFERROR(VLOOKUP(H57,'Raw2'!A:F,6,0),"") ->  | O57: =IFERROR(VLOOKUP($H57,'Raw2'!$A:$I,8,0),"") ->  | P57: =IFERROR(VLOOKUP($H57,'Raw2'!$A:$I,9,0),"") ->  | Q57: =IFERROR(YEAR(VLOOKUP(H57,'Raw3'!A:C,2,0)),"") ->  | R57: =IFERROR(VLOOKUP(H57,'Raw3'!A:P,16,0),"") ->  | S57: =IFERROR(VLOOKUP(H57,'Raw3'!A:P,3,0),"") ->  | T57: =IFERROR(IF(FIND("Q1",R57)>0,VLOOKUP(H57,'Raw3'!A:P,10,0),IF(FIND("Q2",R57)>0,VLOOKUP(H57,'Raw3'!A:P,11,0),IF(FIND("Q3",R57)>0,VLOOKUP(H57,'Raw3'!A:P,12,0),))),"") ->  | U57: =IFERROR(IF(FIND("Q4",R57)>0,VLOOKUP(H57,'Raw3'!A:P,14,0),""),"") ->  | V57: =IFERROR(IF(VLOOKUP(H57,'Raw3'!A:P,5,0)="","",VLOOKUP(H57,'Raw3'!A:P,5,0)),"") ->  | W57: =IFERROR(IF(VLOOKUP(H57,'Raw3'!A:P,4,0)="","",VLOOKUP(H57,'Raw3'!A:P,4,0)),"") ->  | X57: =IFERROR(IF(VLOOKUP(H57&V57,'Raw1'!A:Z,26,0)="","",VLOOKUP(H57&V57,'Raw1'!A:Z,26,0)),"") -> 
H58: =IF('Raw2'!U54="","",'Raw2'!U54) ->  | L58: =IF('Raw2'!V54="","",'Raw2'!V54) ->  | M58: =IFERROR(VLOOKUP(H58,'Raw4'!A:C,2,0),"") ->  | N58: =IFERROR(VLOOKUP(H58,'Raw2'!A:F,6,0),"") ->  | O58: =IFERROR(VLOOKUP($H58,'Raw2'!$A:$I,8,0),"") ->  | P58: =IFERROR(VLOOKUP($H58,'Raw2'!$A:$I,9,0),"") ->  | Q58: =IFERROR(YEAR(VLOOKUP(H58,'Raw3'!A:C,2,0)),"") ->  | R58: =IFERROR(VLOOKUP(H58,'Raw3'!A:P,16,0),"") ->  | S58: =IFERROR(VLOOKUP(H58,'Raw3'!A:P,3,0),"") ->  | T58: =IFERROR(IF(FIND("Q1",R58)>0,VLOOKUP(H58,'Raw3'!A:P,10,0),IF(FIND("Q2",R58)>0,VLOOKUP(H58,'Raw3'!A:P,11,0),IF(FIND("Q3",R58)>0,VLOOKUP(H58,'Raw3'!A:P,12,0),))),"") ->  | U58: =IFERROR(IF(FIND("Q4",R58)>0,VLOOKUP(H58,'Raw3'!A:P,14,0),""),"") ->  | V58: =IFERROR(IF(VLOOKUP(H58,'Raw3'!A:P,5,0)="","",VLOOKUP(H58,'Raw3'!A:P,5,0)),"") ->  | W58: =IFERROR(IF(VLOOKUP(H58,'Raw3'!A:P,4,0)="","",VLOOKUP(H58,'Raw3'!A:P,4,0)),"") ->  | X58: =IFERROR(IF(VLOOKUP(H58&V58,'Raw1'!A:Z,26,0)="","",VLOOKUP(H58&V58,'Raw1'!A:Z,26,0)),"") -> 
H59: =IF('Raw2'!U55="","",'Raw2'!U55) ->  | L59: =IF('Raw2'!V55="","",'Raw2'!V55) ->  | M59: =IFERROR(VLOOKUP(H59,'Raw4'!A:C,2,0),"") ->  | N59: =IFERROR(VLOOKUP(H59,'Raw2'!A:F,6,0),"") ->  | O59: =IFERROR(VLOOKUP($H59,'Raw2'!$A:$I,8,0),"") ->  | P59: =IFERROR(VLOOKUP($H59,'Raw2'!$A:$I,9,0),"") ->  | Q59: =IFERROR(YEAR(VLOOKUP(H59,'Raw3'!A:C,2,0)),"") ->  | R59: =IFERROR(VLOOKUP(H59,'Raw3'!A:P,16,0),"") ->  | S59: =IFERROR(VLOOKUP(H59,'Raw3'!A:P,3,0),"") ->  | T59: =IFERROR(IF(FIND("Q1",R59)>0,VLOOKUP(H59,'Raw3'!A:P,10,0),IF(FIND("Q2",R59)>0,VLOOKUP(H59,'Raw3'!A:P,11,0),IF(FIND("Q3",R59)>0,VLOOKUP(H59,'Raw3'!A:P,12,0),))),"") ->  | U59: =IFERROR(IF(FIND("Q4",R59)>0,VLOOKUP(H59,'Raw3'!A:P,14,0),""),"") ->  | V59: =IFERROR(IF(VLOOKUP(H59,'Raw3'!A:P,5,0)="","",VLOOKUP(H59,'Raw3'!A:P,5,0)),"") ->  | W59: =IFERROR(IF(VLOOKUP(H59,'Raw3'!A:P,4,0)="","",VLOOKUP(H59,'Raw3'!A:P,4,0)),"") ->  | X59: =IFERROR(IF(VLOOKUP(H59&V59,'Raw1'!A:Z,26,0)="","",VLOOKUP(H59&V59,'Raw1'!A:Z,26,0)),"") -> 
H60: =IF('Raw2'!U56="","",'Raw2'!U56) ->  | L60: =IF('Raw2'!V56="","",'Raw2'!V56) ->  | M60: =IFERROR(VLOOKUP(H60,'Raw4'!A:C,2,0),"") ->  | N60: =IFERROR(VLOOKUP(H60,'Raw2'!A:F,6,0),"") ->  | O60: =IFERROR(VLOOKUP($H60,'Raw2'!$A:$I,8,0),"") ->  | P60: =IFERROR(VLOOKUP($H60,'Raw2'!$A:$I,9,0),"") ->  | Q60: =IFERROR(YEAR(VLOOKUP(H60,'Raw3'!A:C,2,0)),"") ->  | R60: =IFERROR(VLOOKUP(H60,'Raw3'!A:P,16,0),"") ->  | S60: =IFERROR(VLOOKUP(H60,'Raw3'!A:P,3,0),"") ->  | T60: =IFERROR(IF(FIND("Q1",R60)>0,VLOOKUP(H60,'Raw3'!A:P,10,0),IF(FIND("Q2",R60)>0,VLOOKUP(H60,'Raw3'!A:P,11,0),IF(FIND("Q3",R60)>0,VLOOKUP(H60,'Raw3'!A:P,12,0),))),"") ->  | U60: =IFERROR(IF(FIND("Q4",R60)>0,VLOOKUP(H60,'Raw3'!A:P,14,0),""),"") ->  | V60: =IFERROR(IF(VLOOKUP(H60,'Raw3'!A:P,5,0)="","",VLOOKUP(H60,'Raw3'!A:P,5,0)),"") ->  | W60: =IFERROR(IF(VLOOKUP(H60,'Raw3'!A:P,4,0)="","",VLOOKUP(H60,'Raw3'!A:P,4,0)),"") ->  | X60: =IFERROR(IF(VLOOKUP(H60&V60,'Raw1'!A:Z,26,0)="","",VLOOKUP(H60&V60,'Raw1'!A:Z,26,0)),"") -> 
H61: =IF('Raw2'!U57="","",'Raw2'!U57) ->  | L61: =IF('Raw2'!V57="","",'Raw2'!V57) ->  | M61: =IFERROR(VLOOKUP(H61,'Raw4'!A:C,2,0),"") ->  | N61: =IFERROR(VLOOKUP(H61,'Raw2'!A:F,6,0),"") ->  | O61: =IFERROR(VLOOKUP($H61,'Raw2'!$A:$I,8,0),"") ->  | P61: =IFERROR(VLOOKUP($H61,'Raw2'!$A:$I,9,0),"") ->  | Q61: =IFERROR(YEAR(VLOOKUP(H61,'Raw3'!A:C,2,0)),"") ->  | R61: =IFERROR(VLOOKUP(H61,'Raw3'!A:P,16,0),"") ->  | S61: =IFERROR(VLOOKUP(H61,'Raw3'!A:P,3,0),"") ->  | T61: =IFERROR(IF(FIND("Q1",R61)>0,VLOOKUP(H61,'Raw3'!A:P,10,0),IF(FIND("Q2",R61)>0,VLOOKUP(H61,'Raw3'!A:P,11,0),IF(FIND("Q3",R61)>0,VLOOKUP(H61,'Raw3'!A:P,12,0),))),"") ->  | U61: =IFERROR(IF(FIND("Q4",R61)>0,VLOOKUP(H61,'Raw3'!A:P,14,0),""),"") ->  | V61: =IFERROR(IF(VLOOKUP(H61,'Raw3'!A:P,5,0)="","",VLOOKUP(H61,'Raw3'!A:P,5,0)),"") ->  | W61: =IFERROR(IF(VLOOKUP(H61,'Raw3'!A:P,4,0)="","",VLOOKUP(H61,'Raw3'!A:P,4,0)),"") ->  | X61: =IFERROR(IF(VLOOKUP(H61&V61,'Raw1'!A:Z,26,0)="","",VLOOKUP(H61&V61,'Raw1'!A:Z,26,0)),"") -> 
H62: =IF('Raw2'!U58="","",'Raw2'!U58) ->  | L62: =IF('Raw2'!V58="","",'Raw2'!V58) ->  | M62: =IFERROR(VLOOKUP(H62,'Raw4'!A:C,2,0),"") ->  | N62: =IFERROR(VLOOKUP(H62,'Raw2'!A:F,6,0),"") ->  | O62: =IFERROR(VLOOKUP($H62,'Raw2'!$A:$I,8,0),"") ->  | P62: =IFERROR(VLOOKUP($H62,'Raw2'!$A:$I,9,0),"") ->  | Q62: =IFERROR(YEAR(VLOOKUP(H62,'Raw3'!A:C,2,0)),"") ->  | R62: =IFERROR(VLOOKUP(H62,'Raw3'!A:P,16,0),"") ->  | S62: =IFERROR(VLOOKUP(H62,'Raw3'!A:P,3,0),"") ->  | T62: =IFERROR(IF(FIND("Q1",R62)>0,VLOOKUP(H62,'Raw3'!A:P,10,0),IF(FIND("Q2",R62)>0,VLOOKUP(H62,'Raw3'!A:P,11,0),IF(FIND("Q3",R62)>0,VLOOKUP(H62,'Raw3'!A:P,12,0),))),"") ->  | U62: =IFERROR(IF(FIND("Q4",R62)>0,VLOOKUP(H62,'Raw3'!A:P,14,0),""),"") ->  | V62: =IFERROR(IF(VLOOKUP(H62,'Raw3'!A:P,5,0)="","",VLOOKUP(H62,'Raw3'!A:P,5,0)),"") ->  | W62: =IFERROR(IF(VLOOKUP(H62,'Raw3'!A:P,4,0)="","",VLOOKUP(H62,'Raw3'!A:P,4,0)),"") ->  | X62: =IFERROR(IF(VLOOKUP(H62&V62,'Raw1'!A:Z,26,0)="","",VLOOKUP(H62&V62,'Raw1'!A:Z,26,0)),"") -> 
H63: =IF('Raw2'!U59="","",'Raw2'!U59) ->  | L63: =IF('Raw2'!V59="","",'Raw2'!V59) ->  | M63: =IFERROR(VLOOKUP(H63,'Raw4'!A:C,2,0),"") ->  | N63: =IFERROR(VLOOKUP(H63,'Raw2'!A:F,6,0),"") ->  | O63: =IFERROR(VLOOKUP($H63,'Raw2'!$A:$I,8,0),"") ->  | P63: =IFERROR(VLOOKUP($H63,'Raw2'!$A:$I,9,0),"") ->  | Q63: =IFERROR(YEAR(VLOOKUP(H63,'Raw3'!A:C,2,0)),"") ->  | R63: =IFERROR(VLOOKUP(H63,'Raw3'!A:P,16,0),"") ->  | S63: =IFERROR(VLOOKUP(H63,'Raw3'!A:P,3,0),"") ->  | T63: =IFERROR(IF(FIND("Q1",R63)>0,VLOOKUP(H63,'Raw3'!A:P,10,0),IF(FIND("Q2",R63)>0,VLOOKUP(H63,'Raw3'!A:P,11,0),IF(FIND("Q3",R63)>0,VLOOKUP(H63,'Raw3'!A:P,12,0),))),"") ->  | U63: =IFERROR(IF(FIND("Q4",R63)>0,VLOOKUP(H63,'Raw3'!A:P,14,0),""),"") ->  | V63: =IFERROR(IF(VLOOKUP(H63,'Raw3'!A:P,5,0)="","",VLOOKUP(H63,'Raw3'!A:P,5,0)),"") ->  | W63: =IFERROR(IF(VLOOKUP(H63,'Raw3'!A:P,4,0)="","",VLOOKUP(H63,'Raw3'!A:P,4,0)),"") ->  | X63: =IFERROR(IF(VLOOKUP(H63&V63,'Raw1'!A:Z,26,0)="","",VLOOKUP(H63&V63,'Raw1'!A:Z,26,0)),"") -> 
H64: =IF('Raw2'!U60="","",'Raw2'!U60) ->  | L64: =IF('Raw2'!V60="","",'Raw2'!V60) ->  | M64: =IFERROR(VLOOKUP(H64,'Raw4'!A:C,2,0),"") ->  | N64: =IFERROR(VLOOKUP(H64,'Raw2'!A:F,6,0),"") ->  | O64: =IFERROR(VLOOKUP($H64,'Raw2'!$A:$I,8,0),"") ->  | P64: =IFERROR(VLOOKUP($H64,'Raw2'!$A:$I,9,0),"") ->  | Q64: =IFERROR(YEAR(VLOOKUP(H64,'Raw3'!A:C,2,0)),"") ->  | R64: =IFERROR(VLOOKUP(H64,'Raw3'!A:P,16,0),"") ->  | S64: =IFERROR(VLOOKUP(H64,'Raw3'!A:P,3,0),"") ->  | T64: =IFERROR(IF(FIND("Q1",R64)>0,VLOOKUP(H64,'Raw3'!A:P,10,0),IF(FIND("Q2",R64)>0,VLOOKUP(H64,'Raw3'!A:P,11,0),IF(FIND("Q3",R64)>0,VLOOKUP(H64,'Raw3'!A:P,12,0),))),"") ->  | U64: =IFERROR(IF(FIND("Q4",R64)>0,VLOOKUP(H64,'Raw3'!A:P,14,0),""),"") ->  | V64: =IFERROR(IF(VLOOKUP(H64,'Raw3'!A:P,5,0)="","",VLOOKUP(H64,'Raw3'!A:P,5,0)),"") ->  | W64: =IFERROR(IF(VLOOKUP(H64,'Raw3'!A:P,4,0)="","",VLOOKUP(H64,'Raw3'!A:P,4,0)),"") ->  | X64: =IFERROR(IF(VLOOKUP(H64&V64,'Raw1'!A:Z,26,0)="","",VLOOKUP(H64&V64,'Raw1'!A:Z,26,0)),"") -> 
H65: =IF('Raw2'!U61="","",'Raw2'!U61) ->  | L65: =IF('Raw2'!V61="","",'Raw2'!V61) ->  | M65: =IFERROR(VLOOKUP(H65,'Raw4'!A:C,2,0),"") ->  | N65: =IFERROR(VLOOKUP(H65,'Raw2'!A:F,6,0),"") ->  | O65: =IFERROR(VLOOKUP($H65,'Raw2'!$A:$I,8,0),"") ->  | P65: =IFERROR(VLOOKUP($H65,'Raw2'!$A:$I,9,0),"") ->  | Q65: =IFERROR(YEAR(VLOOKUP(H65,'Raw3'!A:C,2,0)),"") ->  | R65: =IFERROR(VLOOKUP(H65,'Raw3'!A:P,16,0),"") ->  | S65: =IFERROR(VLOOKUP(H65,'Raw3'!A:P,3,0),"") ->  | T65: =IFERROR(IF(FIND("Q1",R65)>0,VLOOKUP(H65,'Raw3'!A:P,10,0),IF(FIND("Q2",R65)>0,VLOOKUP(H65,'Raw3'!A:P,11,0),IF(FIND("Q3",R65)>0,VLOOKUP(H65,'Raw3'!A:P,12,0),))),"") ->  | U65: =IFERROR(IF(FIND("Q4",R65)>0,VLOOKUP(H65,'Raw3'!A:P,14,0),""),"") ->  | V65: =IFERROR(IF(VLOOKUP(H65,'Raw3'!A:P,5,0)="","",VLOOKUP(H65,'Raw3'!A:P,5,0)),"") ->  | W65: =IFERROR(IF(VLOOKUP(H65,'Raw3'!A:P,4,0)="","",VLOOKUP(H65,'Raw3'!A:P,4,0)),"") ->  | X65: =IFERROR(IF(VLOOKUP(H65&V65,'Raw1'!A:Z,26,0)="","",VLOOKUP(H65&V65,'Raw1'!A:Z,26,0)),"") -> 
H66: =IF('Raw2'!U62="","",'Raw2'!U62) ->  | L66: =IF('Raw2'!V62="","",'Raw2'!V62) ->  | M66: =IFERROR(VLOOKUP(H66,'Raw4'!A:C,2,0),"") ->  | N66: =IFERROR(VLOOKUP(H66,'Raw2'!A:F,6,0),"") ->  | O66: =IFERROR(VLOOKUP($H66,'Raw2'!$A:$I,8,0),"") ->  | P66: =IFERROR(VLOOKUP($H66,'Raw2'!$A:$I,9,0),"") ->  | Q66: =IFERROR(YEAR(VLOOKUP(H66,'Raw3'!A:C,2,0)),"") ->  | R66: =IFERROR(VLOOKUP(H66,'Raw3'!A:P,16,0),"") ->  | S66: =IFERROR(VLOOKUP(H66,'Raw3'!A:P,3,0),"") ->  | T66: =IFERROR(IF(FIND("Q1",R66)>0,VLOOKUP(H66,'Raw3'!A:P,10,0),IF(FIND("Q2",R66)>0,VLOOKUP(H66,'Raw3'!A:P,11,0),IF(FIND("Q3",R66)>0,VLOOKUP(H66,'Raw3'!A:P,12,0),))),"") ->  | U66: =IFERROR(IF(FIND("Q4",R66)>0,VLOOKUP(H66,'Raw3'!A:P,14,0),""),"") ->  | V66: =IFERROR(IF(VLOOKUP(H66,'Raw3'!A:P,5,0)="","",VLOOKUP(H66,'Raw3'!A:P,5,0)),"") ->  | W66: =IFERROR(IF(VLOOKUP(H66,'Raw3'!A:P,4,0)="","",VLOOKUP(H66,'Raw3'!A:P,4,0)),"") ->  | X66: =IFERROR(IF(VLOOKUP(H66&V66,'Raw1'!A:Z,26,0)="","",VLOOKUP(H66&V66,'Raw1'!A:Z,26,0)),"") -> 
H67: =IF('Raw2'!U63="","",'Raw2'!U63) ->  | L67: =IF('Raw2'!V63="","",'Raw2'!V63) ->  | M67: =IFERROR(VLOOKUP(H67,'Raw4'!A:C,2,0),"") ->  | N67: =IFERROR(VLOOKUP(H67,'Raw2'!A:F,6,0),"") ->  | O67: =IFERROR(VLOOKUP($H67,'Raw2'!$A:$I,8,0),"") ->  | P67: =IFERROR(VLOOKUP($H67,'Raw2'!$A:$I,9,0),"") ->  | Q67: =IFERROR(YEAR(VLOOKUP(H67,'Raw3'!A:C,2,0)),"") ->  | R67: =IFERROR(VLOOKUP(H67,'Raw3'!A:P,16,0),"") ->  | S67: =IFERROR(VLOOKUP(H67,'Raw3'!A:P,3,0),"") ->  | T67: =IFERROR(IF(FIND("Q1",R67)>0,VLOOKUP(H67,'Raw3'!A:P,10,0),IF(FIND("Q2",R67)>0,VLOOKUP(H67,'Raw3'!A:P,11,0),IF(FIND("Q3",R67)>0,VLOOKUP(H67,'Raw3'!A:P,12,0),))),"") ->  | U67: =IFERROR(IF(FIND("Q4",R67)>0,VLOOKUP(H67,'Raw3'!A:P,14,0),""),"") ->  | V67: =IFERROR(IF(VLOOKUP(H67,'Raw3'!A:P,5,0)="","",VLOOKUP(H67,'Raw3'!A:P,5,0)),"") ->  | W67: =IFERROR(IF(VLOOKUP(H67,'Raw3'!A:P,4,0)="","",VLOOKUP(H67,'Raw3'!A:P,4,0)),"") ->  | X67: =IFERROR(IF(VLOOKUP(H67&V67,'Raw1'!A:Z,26,0)="","",VLOOKUP(H67&V67,'Raw1'!A:Z,26,0)),"") -> 
H68: =IF('Raw2'!U64="","",'Raw2'!U64) ->  | L68: =IF('Raw2'!V64="","",'Raw2'!V64) ->  | M68: =IFERROR(VLOOKUP(H68,'Raw4'!A:C,2,0),"") ->  | N68: =IFERROR(VLOOKUP(H68,'Raw2'!A:F,6,0),"") ->  | O68: =IFERROR(VLOOKUP($H68,'Raw2'!$A:$I,8,0),"") ->  | P68: =IFERROR(VLOOKUP($H68,'Raw2'!$A:$I,9,0),"") ->  | Q68: =IFERROR(YEAR(VLOOKUP(H68,'Raw3'!A:C,2,0)),"") ->  | R68: =IFERROR(VLOOKUP(H68,'Raw3'!A:P,16,0),"") ->  | S68: =IFERROR(VLOOKUP(H68,'Raw3'!A:P,3,0),"") ->  | T68: =IFERROR(IF(FIND("Q1",R68)>0,VLOOKUP(H68,'Raw3'!A:P,10,0),IF(FIND("Q2",R68)>0,VLOOKUP(H68,'Raw3'!A:P,11,0),IF(FIND("Q3",R68)>0,VLOOKUP(H68,'Raw3'!A:P,12,0),))),"") ->  | U68: =IFERROR(IF(FIND("Q4",R68)>0,VLOOKUP(H68,'Raw3'!A:P,14,0),""),"") ->  | V68: =IFERROR(IF(VLOOKUP(H68,'Raw3'!A:P,5,0)="","",VLOOKUP(H68,'Raw3'!A:P,5,0)),"") ->  | W68: =IFERROR(IF(VLOOKUP(H68,'Raw3'!A:P,4,0)="","",VLOOKUP(H68,'Raw3'!A:P,4,0)),"") ->  | X68: =IFERROR(IF(VLOOKUP(H68&V68,'Raw1'!A:Z,26,0)="","",VLOOKUP(H68&V68,'Raw1'!A:Z,26,0)),"") -> 
H69: =IF('Raw2'!U65="","",'Raw2'!U65) ->  | L69: =IF('Raw2'!V65="","",'Raw2'!V65) ->  | M69: =IFERROR(VLOOKUP(H69,'Raw4'!A:C,2,0),"") ->  | N69: =IFERROR(VLOOKUP(H69,'Raw2'!A:F,6,0),"") ->  | O69: =IFERROR(VLOOKUP($H69,'Raw2'!$A:$I,8,0),"") ->  | P69: =IFERROR(VLOOKUP($H69,'Raw2'!$A:$I,9,0),"") ->  | Q69: =IFERROR(YEAR(VLOOKUP(H69,'Raw3'!A:C,2,0)),"") ->  | R69: =IFERROR(VLOOKUP(H69,'Raw3'!A:P,16,0),"") ->  | S69: =IFERROR(VLOOKUP(H69,'Raw3'!A:P,3,0),"") ->  | T69: =IFERROR(IF(FIND("Q1",R69)>0,VLOOKUP(H69,'Raw3'!A:P,10,0),IF(FIND("Q2",R69)>0,VLOOKUP(H69,'Raw3'!A:P,11,0),IF(FIND("Q3",R69)>0,VLOOKUP(H69,'Raw3'!A:P,12,0),))),"") ->  | U69: =IFERROR(IF(FIND("Q4",R69)>0,VLOOKUP(H69,'Raw3'!A:P,14,0),""),"") ->  | V69: =IFERROR(IF(VLOOKUP(H69,'Raw3'!A:P,5,0)="","",VLOOKUP(H69,'Raw3'!A:P,5,0)),"") ->  | W69: =IFERROR(IF(VLOOKUP(H69,'Raw3'!A:P,4,0)="","",VLOOKUP(H69,'Raw3'!A:P,4,0)),"") ->  | X69: =IFERROR(IF(VLOOKUP(H69&V69,'Raw1'!A:Z,26,0)="","",VLOOKUP(H69&V69,'Raw1'!A:Z,26,0)),"") -> 
H70: =IF('Raw2'!U66="","",'Raw2'!U66) ->  | J70: =IF(H70="","",LEFT(H70,FIND(" ",H70)-1)) ->  | K70: =IF(H70="","",MID(H70,FIND(" ",H70)+1,100)) ->  | L70: =IF('Raw2'!V66="","",'Raw2'!V66) ->  | M70: =IFERROR(VLOOKUP(H70,'Raw4'!A:C,2,0),"") ->  | N70: =IFERROR(VLOOKUP(H70,'Raw2'!A:F,6,0),"") ->  | O70: =IFERROR(VLOOKUP($H70,'Raw2'!$A:$I,8,0),"") ->  | P70: =IFERROR(VLOOKUP($H70,'Raw2'!$A:$I,9,0),"") ->  | Q70: =IFERROR(YEAR(VLOOKUP(H70,'Raw3'!A:C,2,0)),"") ->  | R70: =IFERROR(VLOOKUP(H70,'Raw3'!A:P,16,0),"") ->  | S70: =IFERROR(VLOOKUP(H70,'Raw3'!A:P,3,0),"") ->  | T70: =IFERROR(IF(FIND("Q1",R70)>0,VLOOKUP(H70,'Raw3'!A:P,10,0),IF(FIND("Q2",R70)>0,VLOOKUP(H70,'Raw3'!A:P,11,0),IF(FIND("Q3",R70)>0,VLOOKUP(H70,'Raw3'!A:P,12,0),))),"") ->  | U70: =IFERROR(IF(FIND("Q4",R70)>0,VLOOKUP(H70,'Raw3'!A:P,14,0),""),"") ->  | V70: =IFERROR(IF(VLOOKUP(H70,'Raw3'!A:P,5,0)="","",VLOOKUP(H70,'Raw3'!A:P,5,0)),"") ->  | W70: =IFERROR(IF(VLOOKUP(H70,'Raw3'!A:P,4,0)="","",VLOOKUP(H70,'Raw3'!A:P,4,0)),"") ->  | X70: =IFERROR(IF(VLOOKUP(H70&V70,'Raw1'!A:Z,26,0)="","",VLOOKUP(H70&V70,'Raw1'!A:Z,26,0)),"") -> 
H71: =IF('Raw2'!U67="","",'Raw2'!U67) ->  | L71: =IF('Raw2'!V67="","",'Raw2'!V67) ->  | M71: =IFERROR(VLOOKUP(H71,'Raw4'!A:C,2,0),"") ->  | N71: =IFERROR(VLOOKUP(H71,'Raw2'!A:F,6,0),"") ->  | O71: =IFERROR(VLOOKUP($H71,'Raw2'!$A:$I,8,0),"") ->  | P71: =IFERROR(VLOOKUP($H71,'Raw2'!$A:$I,9,0),"") ->  | Q71: =IFERROR(YEAR(VLOOKUP(H71,'Raw3'!A:C,2,0)),"") ->  | R71: =IFERROR(VLOOKUP(H71,'Raw3'!A:P,16,0),"") ->  | S71: =IFERROR(VLOOKUP(H71,'Raw3'!A:P,3,0),"") ->  | T71: =IFERROR(IF(FIND("Q1",R71)>0,VLOOKUP(H71,'Raw3'!A:P,10,0),IF(FIND("Q2",R71)>0,VLOOKUP(H71,'Raw3'!A:P,11,0),IF(FIND("Q3",R71)>0,VLOOKUP(H71,'Raw3'!A:P,12,0),))),"") ->  | U71: =IFERROR(IF(FIND("Q4",R71)>0,VLOOKUP(H71,'Raw3'!A:P,14,0),""),"") ->  | V71: =IFERROR(IF(VLOOKUP(H71,'Raw3'!A:P,5,0)="","",VLOOKUP(H71,'Raw3'!A:P,5,0)),"") ->  | W71: =IFERROR(IF(VLOOKUP(H71,'Raw3'!A:P,4,0)="","",VLOOKUP(H71,'Raw3'!A:P,4,0)),"") ->  | X71: =IFERROR(IF(VLOOKUP(H71&V71,'Raw1'!A:Z,26,0)="","",VLOOKUP(H71&V71,'Raw1'!A:Z,26,0)),"") -> 
H72: =IF('Raw2'!U68="","",'Raw2'!U68) ->  | I72: =IF(J72="","",I71+1) ->  | L72: =IF('Raw2'!V68="","",'Raw2'!V68) ->  | M72: =IFERROR(VLOOKUP(H72,'Raw4'!A:C,2,0),"") ->  | N72: =IFERROR(VLOOKUP(H72,'Raw2'!A:F,6,0),"") ->  | O72: =IFERROR(VLOOKUP($H72,'Raw2'!$A:$I,8,0),"") ->  | P72: =IFERROR(VLOOKUP($H72,'Raw2'!$A:$I,9,0),"") ->  | Q72: =IFERROR(YEAR(VLOOKUP(H72,'Raw3'!A:C,2,0)),"") ->  | R72: =IFERROR(VLOOKUP(H72,'Raw3'!A:P,16,0),"") ->  | S72: =IFERROR(VLOOKUP(H72,'Raw3'!A:P,3,0),"") ->  | T72: =IFERROR(IF(FIND("Q1",R72)>0,VLOOKUP(H72,'Raw3'!A:P,10,0),IF(FIND("Q2",R72)>0,VLOOKUP(H72,'Raw3'!A:P,11,0),IF(FIND("Q3",R72)>0,VLOOKUP(H72,'Raw3'!A:P,12,0),))),"") ->  | U72: =IFERROR(IF(FIND("Q4",R72)>0,VLOOKUP(H72,'Raw3'!A:P,14,0),""),"") ->  | V72: =IFERROR(IF(VLOOKUP(H72,'Raw3'!A:P,5,0)="","",VLOOKUP(H72,'Raw3'!A:P,5,0)),"") ->  | W72: =IFERROR(IF(VLOOKUP(H72,'Raw3'!A:P,4,0)="","",VLOOKUP(H72,'Raw3'!A:P,4,0)),"") ->  | X72: =IFERROR(IF(VLOOKUP(H72&V72,'Raw1'!A:Z,26,0)="","",VLOOKUP(H72&V72,'Raw1'!A:Z,26,0)),"") -> 
H73: =IF('Raw2'!U69="","",'Raw2'!U69) ->  | L73: =IF('Raw2'!V69="","",'Raw2'!V69) ->  | M73: =IFERROR(VLOOKUP(H73,'Raw4'!A:C,2,0),"") ->  | N73: =IFERROR(VLOOKUP(H73,'Raw2'!A:F,6,0),"") ->  | O73: =IFERROR(VLOOKUP($H73,'Raw2'!$A:$I,8,0),"") ->  | P73: =IFERROR(VLOOKUP($H73,'Raw2'!$A:$I,9,0),"") ->  | Q73: =IFERROR(YEAR(VLOOKUP(H73,'Raw3'!A:C,2,0)),"") ->  | R73: =IFERROR(VLOOKUP(H73,'Raw3'!A:P,16,0),"") ->  | S73: =IFERROR(VLOOKUP(H73,'Raw3'!A:P,3,0),"") ->  | T73: =IFERROR(IF(FIND("Q1",R73)>0,VLOOKUP(H73,'Raw3'!A:P,10,0),IF(FIND("Q2",R73)>0,VLOOKUP(H73,'Raw3'!A:P,11,0),IF(FIND("Q3",R73)>0,VLOOKUP(H73,'Raw3'!A:P,12,0),))),"") ->  | U73: =IFERROR(IF(FIND("Q4",R73)>0,VLOOKUP(H73,'Raw3'!A:P,14,0),""),"") ->  | V73: =IFERROR(IF(VLOOKUP(H73,'Raw3'!A:P,5,0)="","",VLOOKUP(H73,'Raw3'!A:P,5,0)),"") ->  | W73: =IFERROR(IF(VLOOKUP(H73,'Raw3'!A:P,4,0)="","",VLOOKUP(H73,'Raw3'!A:P,4,0)),"") ->  | X73: =IFERROR(IF(VLOOKUP(H73&V73,'Raw1'!A:Z,26,0)="","",VLOOKUP(H73&V73,'Raw1'!A:Z,26,0)),"") -> 
H74: =IF('Raw2'!U70="","",'Raw2'!U70) ->  | L74: =IF('Raw2'!V70="","",'Raw2'!V70) ->  | M74: =IFERROR(VLOOKUP(H74,'Raw4'!A:C,2,0),"") ->  | N74: =IFERROR(VLOOKUP(H74,'Raw2'!A:F,6,0),"") ->  | O74: =IFERROR(VLOOKUP($H74,'Raw2'!$A:$I,8,0),"") ->  | P74: =IFERROR(VLOOKUP($H74,'Raw2'!$A:$I,9,0),"") ->  | Q74: =IFERROR(YEAR(VLOOKUP(H74,'Raw3'!A:C,2,0)),"") ->  | R74: =IFERROR(VLOOKUP(H74,'Raw3'!A:P,16,0),"") ->  | S74: =IFERROR(VLOOKUP(H74,'Raw3'!A:P,3,0),"") ->  | T74: =IFERROR(IF(FIND("Q1",R74)>0,VLOOKUP(H74,'Raw3'!A:P,10,0),IF(FIND("Q2",R74)>0,VLOOKUP(H74,'Raw3'!A:P,11,0),IF(FIND("Q3",R74)>0,VLOOKUP(H74,'Raw3'!A:P,12,0),))),"") ->  | U74: =IFERROR(IF(FIND("Q4",R74)>0,VLOOKUP(H74,'Raw3'!A:P,14,0),""),"") ->  | V74: =IFERROR(IF(VLOOKUP(H74,'Raw3'!A:P,5,0)="","",VLOOKUP(H74,'Raw3'!A:P,5,0)),"") ->  | W74: =IFERROR(IF(VLOOKUP(H74,'Raw3'!A:P,4,0)="","",VLOOKUP(H74,'Raw3'!A:P,4,0)),"") ->  | X74: =IFERROR(IF(VLOOKUP(H74&V74,'Raw1'!A:Z,26,0)="","",VLOOKUP(H74&V74,'Raw1'!A:Z,26,0)),"") -> 
H75: =IF('Raw2'!U71="","",'Raw2'!U71) ->  | L75: =IF('Raw2'!V71="","",'Raw2'!V71) ->  | M75: =IFERROR(VLOOKUP(H75,'Raw4'!A:C,2,0),"") ->  | N75: =IFERROR(VLOOKUP(H75,'Raw2'!A:F,6,0),"") ->  | O75: =IFERROR(VLOOKUP($H75,'Raw2'!$A:$I,8,0),"") ->  | P75: =IFERROR(VLOOKUP($H75,'Raw2'!$A:$I,9,0),"") ->  | Q75: =IFERROR(YEAR(VLOOKUP(H75,'Raw3'!A:C,2,0)),"") ->  | R75: =IFERROR(VLOOKUP(H75,'Raw3'!A:P,16,0),"") ->  | S75: =IFERROR(VLOOKUP(H75,'Raw3'!A:P,3,0),"") ->  | T75: =IFERROR(IF(FIND("Q1",R75)>0,VLOOKUP(H75,'Raw3'!A:P,10,0),IF(FIND("Q2",R75)>0,VLOOKUP(H75,'Raw3'!A:P,11,0),IF(FIND("Q3",R75)>0,VLOOKUP(H75,'Raw3'!A:P,12,0),))),"") ->  | U75: =IFERROR(IF(FIND("Q4",R75)>0,VLOOKUP(H75,'Raw3'!A:P,14,0),""),"") ->  | V75: =IFERROR(IF(VLOOKUP(H75,'Raw3'!A:P,5,0)="","",VLOOKUP(H75,'Raw3'!A:P,5,0)),"") ->  | W75: =IFERROR(IF(VLOOKUP(H75,'Raw3'!A:P,4,0)="","",VLOOKUP(H75,'Raw3'!A:P,4,0)),"") ->  | X75: =IFERROR(IF(VLOOKUP(H75&V75,'Raw1'!A:Z,26,0)="","",VLOOKUP(H75&V75,'Raw1'!A:Z,26,0)),"") -> 
H76: =IF('Raw2'!U72="","",'Raw2'!U72) ->  | L76: =IF('Raw2'!V72="","",'Raw2'!V72) ->  | M76: =IFERROR(VLOOKUP(H76,'Raw4'!A:C,2,0),"") ->  | N76: =IFERROR(VLOOKUP(H76,'Raw2'!A:F,6,0),"") ->  | O76: =IFERROR(VLOOKUP($H76,'Raw2'!$A:$I,8,0),"") ->  | P76: =IFERROR(VLOOKUP($H76,'Raw2'!$A:$I,9,0),"") ->  | Q76: =IFERROR(YEAR(VLOOKUP(H76,'Raw3'!A:C,2,0)),"") ->  | R76: =IFERROR(VLOOKUP(H76,'Raw3'!A:P,16,0),"") ->  | S76: =IFERROR(VLOOKUP(H76,'Raw3'!A:P,3,0),"") ->  | T76: =IFERROR(IF(FIND("Q1",R76)>0,VLOOKUP(H76,'Raw3'!A:P,10,0),IF(FIND("Q2",R76)>0,VLOOKUP(H76,'Raw3'!A:P,11,0),IF(FIND("Q3",R76)>0,VLOOKUP(H76,'Raw3'!A:P,12,0),))),"") ->  | U76: =IFERROR(IF(FIND("Q4",R76)>0,VLOOKUP(H76,'Raw3'!A:P,14,0),""),"") ->  | V76: =IFERROR(IF(VLOOKUP(H76,'Raw3'!A:P,5,0)="","",VLOOKUP(H76,'Raw3'!A:P,5,0)),"") ->  | W76: =IFERROR(IF(VLOOKUP(H76,'Raw3'!A:P,4,0)="","",VLOOKUP(H76,'Raw3'!A:P,4,0)),"") ->  | X76: =IFERROR(IF(VLOOKUP(H76&V76,'Raw1'!A:Z,26,0)="","",VLOOKUP(H76&V76,'Raw1'!A:Z,26,0)),"") -> 
H77: =IF('Raw2'!U73="","",'Raw2'!U73) ->  | L77: =IF('Raw2'!V73="","",'Raw2'!V73) ->  | M77: =IFERROR(VLOOKUP(H77,'Raw4'!A:C,2,0),"") ->  | N77: =IFERROR(VLOOKUP(H77,'Raw2'!A:F,6,0),"") ->  | O77: =IFERROR(VLOOKUP($H77,'Raw2'!$A:$I,8,0),"") ->  | P77: =IFERROR(VLOOKUP($H77,'Raw2'!$A:$I,9,0),"") ->  | Q77: =IFERROR(YEAR(VLOOKUP(H77,'Raw3'!A:C,2,0)),"") ->  | R77: =IFERROR(VLOOKUP(H77,'Raw3'!A:P,16,0),"") ->  | S77: =IFERROR(VLOOKUP(H77,'Raw3'!A:P,3,0),"") ->  | T77: =IFERROR(IF(FIND("Q1",R77)>0,VLOOKUP(H77,'Raw3'!A:P,10,0),IF(FIND("Q2",R77)>0,VLOOKUP(H77,'Raw3'!A:P,11,0),IF(FIND("Q3",R77)>0,VLOOKUP(H77,'Raw3'!A:P,12,0),))),"") ->  | U77: =IFERROR(IF(FIND("Q4",R77)>0,VLOOKUP(H77,'Raw3'!A:P,14,0),""),"") ->  | V77: =IFERROR(IF(VLOOKUP(H77,'Raw3'!A:P,5,0)="","",VLOOKUP(H77,'Raw3'!A:P,5,0)),"") ->  | W77: =IFERROR(IF(VLOOKUP(H77,'Raw3'!A:P,4,0)="","",VLOOKUP(H77,'Raw3'!A:P,4,0)),"") ->  | X77: =IFERROR(IF(VLOOKUP(H77&V77,'Raw1'!A:Z,26,0)="","",VLOOKUP(H77&V77,'Raw1'!A:Z,26,0)),"") -> 
H78: =IF('Raw2'!U74="","",'Raw2'!U74) ->  | L78: =IF('Raw2'!V74="","",'Raw2'!V74) ->  | M78: =IFERROR(VLOOKUP(H78,'Raw4'!A:C,2,0),"") ->  | N78: =IFERROR(VLOOKUP(H78,'Raw2'!A:F,6,0),"") ->  | O78: =IFERROR(VLOOKUP($H78,'Raw2'!$A:$I,8,0),"") ->  | P78: =IFERROR(VLOOKUP($H78,'Raw2'!$A:$I,9,0),"") ->  | Q78: =IFERROR(YEAR(VLOOKUP(H78,'Raw3'!A:C,2,0)),"") ->  | R78: =IFERROR(VLOOKUP(H78,'Raw3'!A:P,16,0),"") ->  | S78: =IFERROR(VLOOKUP(H78,'Raw3'!A:P,3,0),"") ->  | T78: =IFERROR(IF(FIND("Q1",R78)>0,VLOOKUP(H78,'Raw3'!A:P,10,0),IF(FIND("Q2",R78)>0,VLOOKUP(H78,'Raw3'!A:P,11,0),IF(FIND("Q3",R78)>0,VLOOKUP(H78,'Raw3'!A:P,12,0),))),"") ->  | U78: =IFERROR(IF(FIND("Q4",R78)>0,VLOOKUP(H78,'Raw3'!A:P,14,0),""),"") ->  | V78: =IFERROR(IF(VLOOKUP(H78,'Raw3'!A:P,5,0)="","",VLOOKUP(H78,'Raw3'!A:P,5,0)),"") ->  | W78: =IFERROR(IF(VLOOKUP(H78,'Raw3'!A:P,4,0)="","",VLOOKUP(H78,'Raw3'!A:P,4,0)),"") ->  | X78: =IFERROR(IF(VLOOKUP(H78&V78,'Raw1'!A:Z,26,0)="","",VLOOKUP(H78&V78,'Raw1'!A:Z,26,0)),"") -> 
H79: =IF('Raw2'!U75="","",'Raw2'!U75) ->  | L79: =IF('Raw2'!V75="","",'Raw2'!V75) ->  | M79: =IFERROR(VLOOKUP(H79,'Raw4'!A:C,2,0),"") ->  | N79: =IFERROR(VLOOKUP(H79,'Raw2'!A:F,6,0),"") ->  | O79: =IFERROR(VLOOKUP($H79,'Raw2'!$A:$I,8,0),"") ->  | P79: =IFERROR(VLOOKUP($H79,'Raw2'!$A:$I,9,0),"") ->  | Q79: =IFERROR(YEAR(VLOOKUP(H79,'Raw3'!A:C,2,0)),"") ->  | R79: =IFERROR(VLOOKUP(H79,'Raw3'!A:P,16,0),"") ->  | S79: =IFERROR(VLOOKUP(H79,'Raw3'!A:P,3,0),"") ->  | T79: =IFERROR(IF(FIND("Q1",R79)>0,VLOOKUP(H79,'Raw3'!A:P,10,0),IF(FIND("Q2",R79)>0,VLOOKUP(H79,'Raw3'!A:P,11,0),IF(FIND("Q3",R79)>0,VLOOKUP(H79,'Raw3'!A:P,12,0),))),"") ->  | U79: =IFERROR(IF(FIND("Q4",R79)>0,VLOOKUP(H79,'Raw3'!A:P,14,0),""),"") ->  | V79: =IFERROR(IF(VLOOKUP(H79,'Raw3'!A:P,5,0)="","",VLOOKUP(H79,'Raw3'!A:P,5,0)),"") ->  | W79: =IFERROR(IF(VLOOKUP(H79,'Raw3'!A:P,4,0)="","",VLOOKUP(H79,'Raw3'!A:P,4,0)),"") ->  | X79: =IFERROR(IF(VLOOKUP(H79&V79,'Raw1'!A:Z,26,0)="","",VLOOKUP(H79&V79,'Raw1'!A:Z,26,0)),"") -> 
H80: =IF('Raw2'!U76="","",'Raw2'!U76) ->  | L80: =IF('Raw2'!V76="","",'Raw2'!V76) ->  | M80: =IFERROR(VLOOKUP(H80,'Raw4'!A:C,2,0),"") ->  | N80: =IFERROR(VLOOKUP(H80,'Raw2'!A:F,6,0),"") ->  | O80: =IFERROR(VLOOKUP($H80,'Raw2'!$A:$I,8,0),"") ->  | P80: =IFERROR(VLOOKUP($H80,'Raw2'!$A:$I,9,0),"") ->  | Q80: =IFERROR(YEAR(VLOOKUP(H80,'Raw3'!A:C,2,0)),"") ->  | R80: =IFERROR(VLOOKUP(H80,'Raw3'!A:P,16,0),"") ->  | S80: =IFERROR(VLOOKUP(H80,'Raw3'!A:P,3,0),"") ->  | T80: =IFERROR(IF(FIND("Q1",R80)>0,VLOOKUP(H80,'Raw3'!A:P,10,0),IF(FIND("Q2",R80)>0,VLOOKUP(H80,'Raw3'!A:P,11,0),IF(FIND("Q3",R80)>0,VLOOKUP(H80,'Raw3'!A:P,12,0),))),"") ->  | U80: =IFERROR(IF(FIND("Q4",R80)>0,VLOOKUP(H80,'Raw3'!A:P,14,0),""),"") ->  | V80: =IFERROR(IF(VLOOKUP(H80,'Raw3'!A:P,5,0)="","",VLOOKUP(H80,'Raw3'!A:P,5,0)),"") ->  | W80: =IFERROR(IF(VLOOKUP(H80,'Raw3'!A:P,4,0)="","",VLOOKUP(H80,'Raw3'!A:P,4,0)),"") ->  | X80: =IFERROR(IF(VLOOKUP(H80&V80,'Raw1'!A:Z,26,0)="","",VLOOKUP(H80&V80,'Raw1'!A:Z,26,0)),"") -> 
H81: =IF('Raw2'!U77="","",'Raw2'!U77) ->  | L81: =IF('Raw2'!V77="","",'Raw2'!V77) ->  | M81: =IFERROR(VLOOKUP(H81,'Raw4'!A:C,2,0),"") ->  | N81: =IFERROR(VLOOKUP(H81,'Raw2'!A:F,6,0),"") ->  | O81: =IFERROR(VLOOKUP($H81,'Raw2'!$A:$I,8,0),"") ->  | P81: =IFERROR(VLOOKUP($H81,'Raw2'!$A:$I,9,0),"") ->  | Q81: =IFERROR(YEAR(VLOOKUP(H81,'Raw3'!A:C,2,0)),"") ->  | R81: =IFERROR(VLOOKUP(H81,'Raw3'!A:P,16,0),"") ->  | S81: =IFERROR(VLOOKUP(H81,'Raw3'!A:P,3,0),"") ->  | T81: =IFERROR(IF(FIND("Q1",R81)>0,VLOOKUP(H81,'Raw3'!A:P,10,0),IF(FIND("Q2",R81)>0,VLOOKUP(H81,'Raw3'!A:P,11,0),IF(FIND("Q3",R81)>0,VLOOKUP(H81,'Raw3'!A:P,12,0),))),"") ->  | U81: =IFERROR(IF(FIND("Q4",R81)>0,VLOOKUP(H81,'Raw3'!A:P,14,0),""),"") ->  | V81: =IFERROR(IF(VLOOKUP(H81,'Raw3'!A:P,5,0)="","",VLOOKUP(H81,'Raw3'!A:P,5,0)),"") ->  | W81: =IFERROR(IF(VLOOKUP(H81,'Raw3'!A:P,4,0)="","",VLOOKUP(H81,'Raw3'!A:P,4,0)),"") ->  | X81: =IFERROR(IF(VLOOKUP(H81&V81,'Raw1'!A:Z,26,0)="","",VLOOKUP(H81&V81,'Raw1'!A:Z,26,0)),"") -> 
H82: =IF('Raw2'!U78="","",'Raw2'!U78) ->  | L82: =IF('Raw2'!V78="","",'Raw2'!V78) ->  | M82: =IFERROR(VLOOKUP(H82,'Raw4'!A:C,2,0),"") ->  | N82: =IFERROR(VLOOKUP(H82,'Raw2'!A:F,6,0),"") ->  | O82: =IFERROR(VLOOKUP($H82,'Raw2'!$A:$I,8,0),"") ->  | P82: =IFERROR(VLOOKUP($H82,'Raw2'!$A:$I,9,0),"") ->  | Q82: =IFERROR(YEAR(VLOOKUP(H82,'Raw3'!A:C,2,0)),"") ->  | R82: =IFERROR(VLOOKUP(H82,'Raw3'!A:P,16,0),"") ->  | S82: =IFERROR(VLOOKUP(H82,'Raw3'!A:P,3,0),"") ->  | T82: =IFERROR(IF(FIND("Q1",R82)>0,VLOOKUP(H82,'Raw3'!A:P,10,0),IF(FIND("Q2",R82)>0,VLOOKUP(H82,'Raw3'!A:P,11,0),IF(FIND("Q3",R82)>0,VLOOKUP(H82,'Raw3'!A:P,12,0),))),"") ->  | U82: =IFERROR(IF(FIND("Q4",R82)>0,VLOOKUP(H82,'Raw3'!A:P,14,0),""),"") ->  | V82: =IFERROR(IF(VLOOKUP(H82,'Raw3'!A:P,5,0)="","",VLOOKUP(H82,'Raw3'!A:P,5,0)),"") ->  | W82: =IFERROR(IF(VLOOKUP(H82,'Raw3'!A:P,4,0)="","",VLOOKUP(H82,'Raw3'!A:P,4,0)),"") ->  | X82: =IFERROR(IF(VLOOKUP(H82&V82,'Raw1'!A:Z,26,0)="","",VLOOKUP(H82&V82,'Raw1'!A:Z,26,0)),"") -> 
H83: =IF('Raw2'!U79="","",'Raw2'!U79) ->  | L83: =IF('Raw2'!V79="","",'Raw2'!V79) ->  | M83: =IFERROR(VLOOKUP(H83,'Raw4'!A:C,2,0),"") ->  | N83: =IFERROR(VLOOKUP(H83,'Raw2'!A:F,6,0),"") ->  | O83: =IFERROR(VLOOKUP($H83,'Raw2'!$A:$I,8,0),"") ->  | P83: =IFERROR(VLOOKUP($H83,'Raw2'!$A:$I,9,0),"") ->  | Q83: =IFERROR(YEAR(VLOOKUP(H83,'Raw3'!A:C,2,0)),"") ->  | R83: =IFERROR(VLOOKUP(H83,'Raw3'!A:P,16,0),"") ->  | S83: =IFERROR(VLOOKUP(H83,'Raw3'!A:P,3,0),"") ->  | T83: =IFERROR(IF(FIND("Q1",R83)>0,VLOOKUP(H83,'Raw3'!A:P,10,0),IF(FIND("Q2",R83)>0,VLOOKUP(H83,'Raw3'!A:P,11,0),IF(FIND("Q3",R83)>0,VLOOKUP(H83,'Raw3'!A:P,12,0),))),"") ->  | U83: =IFERROR(IF(FIND("Q4",R83)>0,VLOOKUP(H83,'Raw3'!A:P,14,0),""),"") ->  | V83: =IFERROR(IF(VLOOKUP(H83,'Raw3'!A:P,5,0)="","",VLOOKUP(H83,'Raw3'!A:P,5,0)),"") ->  | W83: =IFERROR(IF(VLOOKUP(H83,'Raw3'!A:P,4,0)="","",VLOOKUP(H83,'Raw3'!A:P,4,0)),"") ->  | X83: =IFERROR(IF(VLOOKUP(H83&V83,'Raw1'!A:Z,26,0)="","",VLOOKUP(H83&V83,'Raw1'!A:Z,26,0)),"") -> 
H84: =IF('Raw2'!U80="","",'Raw2'!U80) ->  | L84: =IF('Raw2'!V80="","",'Raw2'!V80) ->  | M84: =IFERROR(VLOOKUP(H84,'Raw4'!A:C,2,0),"") ->  | N84: =IFERROR(VLOOKUP(H84,'Raw2'!A:F,6,0),"") ->  | O84: =IFERROR(VLOOKUP($H84,'Raw2'!$A:$I,8,0),"") ->  | P84: =IFERROR(VLOOKUP($H84,'Raw2'!$A:$I,9,0),"") ->  | Q84: =IFERROR(YEAR(VLOOKUP(H84,'Raw3'!A:C,2,0)),"") ->  | R84: =IFERROR(VLOOKUP(H84,'Raw3'!A:P,16,0),"") ->  | S84: =IFERROR(VLOOKUP(H84,'Raw3'!A:P,3,0),"") ->  | T84: =IFERROR(IF(FIND("Q1",R84)>0,VLOOKUP(H84,'Raw3'!A:P,10,0),IF(FIND("Q2",R84)>0,VLOOKUP(H84,'Raw3'!A:P,11,0),IF(FIND("Q3",R84)>0,VLOOKUP(H84,'Raw3'!A:P,12,0),))),"") ->  | U84: =IFERROR(IF(FIND("Q4",R84)>0,VLOOKUP(H84,'Raw3'!A:P,14,0),""),"") ->  | V84: =IFERROR(IF(VLOOKUP(H84,'Raw3'!A:P,5,0)="","",VLOOKUP(H84,'Raw3'!A:P,5,0)),"") ->  | W84: =IFERROR(IF(VLOOKUP(H84,'Raw3'!A:P,4,0)="","",VLOOKUP(H84,'Raw3'!A:P,4,0)),"") ->  | X84: =IFERROR(IF(VLOOKUP(H84&V84,'Raw1'!A:Z,26,0)="","",VLOOKUP(H84&V84,'Raw1'!A:Z,26,0)),"") -> 
H85: =IF('Raw2'!U81="","",'Raw2'!U81) ->  | L85: =IF('Raw2'!V81="","",'Raw2'!V81) ->  | M85: =IFERROR(VLOOKUP(H85,'Raw4'!A:C,2,0),"") ->  | N85: =IFERROR(VLOOKUP(H85,'Raw2'!A:F,6,0),"") ->  | O85: =IFERROR(VLOOKUP($H85,'Raw2'!$A:$I,8,0),"") ->  | P85: =IFERROR(VLOOKUP($H85,'Raw2'!$A:$I,9,0),"") ->  | Q85: =IFERROR(YEAR(VLOOKUP(H85,'Raw3'!A:C,2,0)),"") ->  | R85: =IFERROR(VLOOKUP(H85,'Raw3'!A:P,16,0),"") ->  | S85: =IFERROR(VLOOKUP(H85,'Raw3'!A:P,3,0),"") ->  | T85: =IFERROR(IF(FIND("Q1",R85)>0,VLOOKUP(H85,'Raw3'!A:P,10,0),IF(FIND("Q2",R85)>0,VLOOKUP(H85,'Raw3'!A:P,11,0),IF(FIND("Q3",R85)>0,VLOOKUP(H85,'Raw3'!A:P,12,0),))),"") ->  | U85: =IFERROR(IF(FIND("Q4",R85)>0,VLOOKUP(H85,'Raw3'!A:P,14,0),""),"") ->  | V85: =IFERROR(IF(VLOOKUP(H85,'Raw3'!A:P,5,0)="","",VLOOKUP(H85,'Raw3'!A:P,5,0)),"") ->  | W85: =IFERROR(IF(VLOOKUP(H85,'Raw3'!A:P,4,0)="","",VLOOKUP(H85,'Raw3'!A:P,4,0)),"") ->  | X85: =IFERROR(IF(VLOOKUP(H85&V85,'Raw1'!A:Z,26,0)="","",VLOOKUP(H85&V85,'Raw1'!A:Z,26,0)),"") -> 
H86: =IF('Raw2'!U82="","",'Raw2'!U82) ->  | L86: =IF('Raw2'!V82="","",'Raw2'!V82) ->  | M86: =IFERROR(VLOOKUP(H86,'Raw4'!A:C,2,0),"") ->  | N86: =IFERROR(VLOOKUP(H86,'Raw2'!A:F,6,0),"") ->  | O86: =IFERROR(VLOOKUP($H86,'Raw2'!$A:$I,8,0),"") ->  | P86: =IFERROR(VLOOKUP($H86,'Raw2'!$A:$I,9,0),"") ->  | Q86: =IFERROR(YEAR(VLOOKUP(H86,'Raw3'!A:C,2,0)),"") ->  | R86: =IFERROR(VLOOKUP(H86,'Raw3'!A:P,16,0),"") ->  | S86: =IFERROR(VLOOKUP(H86,'Raw3'!A:P,3,0),"") ->  | T86: =IFERROR(IF(FIND("Q1",R86)>0,VLOOKUP(H86,'Raw3'!A:P,10,0),IF(FIND("Q2",R86)>0,VLOOKUP(H86,'Raw3'!A:P,11,0),IF(FIND("Q3",R86)>0,VLOOKUP(H86,'Raw3'!A:P,12,0),))),"") ->  | U86: =IFERROR(IF(FIND("Q4",R86)>0,VLOOKUP(H86,'Raw3'!A:P,14,0),""),"") ->  | V86: =IFERROR(IF(VLOOKUP(H86,'Raw3'!A:P,5,0)="","",VLOOKUP(H86,'Raw3'!A:P,5,0)),"") ->  | W86: =IFERROR(IF(VLOOKUP(H86,'Raw3'!A:P,4,0)="","",VLOOKUP(H86,'Raw3'!A:P,4,0)),"") ->  | X86: =IFERROR(IF(VLOOKUP(H86&V86,'Raw1'!A:Z,26,0)="","",VLOOKUP(H86&V86,'Raw1'!A:Z,26,0)),"") -> 
H87: =IF('Raw2'!U83="","",'Raw2'!U83) ->  | L87: =IF('Raw2'!V83="","",'Raw2'!V83) ->  | M87: =IFERROR(VLOOKUP(H87,'Raw4'!A:C,2,0),"") ->  | N87: =IFERROR(VLOOKUP(H87,'Raw2'!A:F,6,0),"") ->  | O87: =IFERROR(VLOOKUP($H87,'Raw2'!$A:$I,8,0),"") ->  | P87: =IFERROR(VLOOKUP($H87,'Raw2'!$A:$I,9,0),"") ->  | Q87: =IFERROR(YEAR(VLOOKUP(H87,'Raw3'!A:C,2,0)),"") ->  | R87: =IFERROR(VLOOKUP(H87,'Raw3'!A:P,16,0),"") ->  | S87: =IFERROR(VLOOKUP(H87,'Raw3'!A:P,3,0),"") ->  | T87: =IFERROR(IF(FIND("Q1",R87)>0,VLOOKUP(H87,'Raw3'!A:P,10,0),IF(FIND("Q2",R87)>0,VLOOKUP(H87,'Raw3'!A:P,11,0),IF(FIND("Q3",R87)>0,VLOOKUP(H87,'Raw3'!A:P,12,0),))),"") ->  | U87: =IFERROR(IF(FIND("Q4",R87)>0,VLOOKUP(H87,'Raw3'!A:P,14,0),""),"") ->  | V87: =IFERROR(IF(VLOOKUP(H87,'Raw3'!A:P,5,0)="","",VLOOKUP(H87,'Raw3'!A:P,5,0)),"") ->  | W87: =IFERROR(IF(VLOOKUP(H87,'Raw3'!A:P,4,0)="","",VLOOKUP(H87,'Raw3'!A:P,4,0)),"") ->  | X87: =IFERROR(IF(VLOOKUP(H87&V87,'Raw1'!A:Z,26,0)="","",VLOOKUP(H87&V87,'Raw1'!A:Z,26,0)),"") -> 
H88: =IF('Raw2'!U84="","",'Raw2'!U84) ->  | L88: =IF('Raw2'!V84="","",'Raw2'!V84) ->  | M88: =IFERROR(VLOOKUP(H88,'Raw4'!A:C,2,0),"") ->  | N88: =IFERROR(VLOOKUP(H88,'Raw2'!A:F,6,0),"") ->  | O88: =IFERROR(VLOOKUP($H88,'Raw2'!$A:$I,8,0),"") ->  | P88: =IFERROR(VLOOKUP($H88,'Raw2'!$A:$I,9,0),"") ->  | Q88: =IFERROR(YEAR(VLOOKUP(H88,'Raw3'!A:C,2,0)),"") ->  | R88: =IFERROR(VLOOKUP(H88,'Raw3'!A:P,16,0),"") ->  | S88: =IFERROR(VLOOKUP(H88,'Raw3'!A:P,3,0),"") ->  | T88: =IFERROR(IF(FIND("Q1",R88)>0,VLOOKUP(H88,'Raw3'!A:P,10,0),IF(FIND("Q2",R88)>0,VLOOKUP(H88,'Raw3'!A:P,11,0),IF(FIND("Q3",R88)>0,VLOOKUP(H88,'Raw3'!A:P,12,0),))),"") ->  | U88: =IFERROR(IF(FIND("Q4",R88)>0,VLOOKUP(H88,'Raw3'!A:P,14,0),""),"") ->  | V88: =IFERROR(IF(VLOOKUP(H88,'Raw3'!A:P,5,0)="","",VLOOKUP(H88,'Raw3'!A:P,5,0)),"") ->  | W88: =IFERROR(IF(VLOOKUP(H88,'Raw3'!A:P,4,0)="","",VLOOKUP(H88,'Raw3'!A:P,4,0)),"") ->  | X88: =IFERROR(IF(VLOOKUP(H88&V88,'Raw1'!A:Z,26,0)="","",VLOOKUP(H88&V88,'Raw1'!A:Z,26,0)),"") -> 
H89: =IF('Raw2'!U85="","",'Raw2'!U85) ->  | L89: =IF('Raw2'!V85="","",'Raw2'!V85) ->  | M89: =IFERROR(VLOOKUP(H89,'Raw4'!A:C,2,0),"") ->  | N89: =IFERROR(VLOOKUP(H89,'Raw2'!A:F,6,0),"") ->  | O89: =IFERROR(VLOOKUP($H89,'Raw2'!$A:$I,8,0),"") ->  | P89: =IFERROR(VLOOKUP($H89,'Raw2'!$A:$I,9,0),"") ->  | Q89: =IFERROR(YEAR(VLOOKUP(H89,'Raw3'!A:C,2,0)),"") ->  | R89: =IFERROR(VLOOKUP(H89,'Raw3'!A:P,16,0),"") ->  | S89: =IFERROR(VLOOKUP(H89,'Raw3'!A:P,3,0),"") ->  | T89: =IFERROR(IF(FIND("Q1",R89)>0,VLOOKUP(H89,'Raw3'!A:P,10,0),IF(FIND("Q2",R89)>0,VLOOKUP(H89,'Raw3'!A:P,11,0),IF(FIND("Q3",R89)>0,VLOOKUP(H89,'Raw3'!A:P,12,0),))),"") ->  | U89: =IFERROR(IF(FIND("Q4",R89)>0,VLOOKUP(H89,'Raw3'!A:P,14,0),""),"") ->  | V89: =IFERROR(IF(VLOOKUP(H89,'Raw3'!A:P,5,0)="","",VLOOKUP(H89,'Raw3'!A:P,5,0)),"") ->  | W89: =IFERROR(IF(VLOOKUP(H89,'Raw3'!A:P,4,0)="","",VLOOKUP(H89,'Raw3'!A:P,4,0)),"") ->  | X89: =IFERROR(IF(VLOOKUP(H89&V89,'Raw1'!A:Z,26,0)="","",VLOOKUP(H89&V89,'Raw1'!A:Z,26,0)),"") -> 
H90: =IF('Raw2'!U86="","",'Raw2'!U86) ->  | L90: =IF('Raw2'!V86="","",'Raw2'!V86) ->  | M90: =IFERROR(VLOOKUP(H90,'Raw4'!A:C,2,0),"") ->  | N90: =IFERROR(VLOOKUP(H90,'Raw2'!A:F,6,0),"") ->  | O90: =IFERROR(VLOOKUP($H90,'Raw2'!$A:$I,8,0),"") ->  | P90: =IFERROR(VLOOKUP($H90,'Raw2'!$A:$I,9,0),"") ->  | Q90: =IFERROR(YEAR(VLOOKUP(H90,'Raw3'!A:C,2,0)),"") ->  | R90: =IFERROR(VLOOKUP(H90,'Raw3'!A:P,16,0),"") ->  | S90: =IFERROR(VLOOKUP(H90,'Raw3'!A:P,3,0),"") ->  | T90: =IFERROR(IF(FIND("Q1",R90)>0,VLOOKUP(H90,'Raw3'!A:P,10,0),IF(FIND("Q2",R90)>0,VLOOKUP(H90,'Raw3'!A:P,11,0),IF(FIND("Q3",R90)>0,VLOOKUP(H90,'Raw3'!A:P,12,0),))),"") ->  | U90: =IFERROR(IF(FIND("Q4",R90)>0,VLOOKUP(H90,'Raw3'!A:P,14,0),""),"") ->  | V90: =IFERROR(IF(VLOOKUP(H90,'Raw3'!A:P,5,0)="","",VLOOKUP(H90,'Raw3'!A:P,5,0)),"") ->  | W90: =IFERROR(IF(VLOOKUP(H90,'Raw3'!A:P,4,0)="","",VLOOKUP(H90,'Raw3'!A:P,4,0)),"") ->  | X90: =IFERROR(IF(VLOOKUP(H90&V90,'Raw1'!A:Z,26,0)="","",VLOOKUP(H90&V90,'Raw1'!A:Z,26,0)),"") -> 
H91: =IF('Raw2'!U87="","",'Raw2'!U87) ->  | L91: =IF('Raw2'!V87="","",'Raw2'!V87) ->  | M91: =IFERROR(VLOOKUP(H91,'Raw4'!A:C,2,0),"") ->  | N91: =IFERROR(VLOOKUP(H91,'Raw2'!A:F,6,0),"") ->  | O91: =IFERROR(VLOOKUP($H91,'Raw2'!$A:$I,8,0),"") ->  | P91: =IFERROR(VLOOKUP($H91,'Raw2'!$A:$I,9,0),"") ->  | Q91: =IFERROR(YEAR(VLOOKUP(H91,'Raw3'!A:C,2,0)),"") ->  | R91: =IFERROR(VLOOKUP(H91,'Raw3'!A:P,16,0),"") ->  | S91: =IFERROR(VLOOKUP(H91,'Raw3'!A:P,3,0),"") ->  | T91: =IFERROR(IF(FIND("Q1",R91)>0,VLOOKUP(H91,'Raw3'!A:P,10,0),IF(FIND("Q2",R91)>0,VLOOKUP(H91,'Raw3'!A:P,11,0),IF(FIND("Q3",R91)>0,VLOOKUP(H91,'Raw3'!A:P,12,0),))),"") ->  | U91: =IFERROR(IF(FIND("Q4",R91)>0,VLOOKUP(H91,'Raw3'!A:P,14,0),""),"") ->  | V91: =IFERROR(IF(VLOOKUP(H91,'Raw3'!A:P,5,0)="","",VLOOKUP(H91,'Raw3'!A:P,5,0)),"") ->  | W91: =IFERROR(IF(VLOOKUP(H91,'Raw3'!A:P,4,0)="","",VLOOKUP(H91,'Raw3'!A:P,4,0)),"") ->  | X91: =IFERROR(IF(VLOOKUP(H91&V91,'Raw1'!A:Z,26,0)="","",VLOOKUP(H91&V91,'Raw1'!A:Z,26,0)),"") -> 
H92: =IF('Raw2'!U88="","",'Raw2'!U88) ->  | L92: =IF('Raw2'!V88="","",'Raw2'!V88) ->  | M92: =IFERROR(VLOOKUP(H92,'Raw4'!A:C,2,0),"") ->  | N92: =IFERROR(VLOOKUP(H92,'Raw2'!A:F,6,0),"") ->  | O92: =IFERROR(VLOOKUP($H92,'Raw2'!$A:$I,8,0),"") ->  | P92: =IFERROR(VLOOKUP($H92,'Raw2'!$A:$I,9,0),"") ->  | Q92: =IFERROR(YEAR(VLOOKUP(H92,'Raw3'!A:C,2,0)),"") ->  | R92: =IFERROR(VLOOKUP(H92,'Raw3'!A:P,16,0),"") ->  | S92: =IFERROR(VLOOKUP(H92,'Raw3'!A:P,3,0),"") ->  | T92: =IFERROR(IF(FIND("Q1",R92)>0,VLOOKUP(H92,'Raw3'!A:P,10,0),IF(FIND("Q2",R92)>0,VLOOKUP(H92,'Raw3'!A:P,11,0),IF(FIND("Q3",R92)>0,VLOOKUP(H92,'Raw3'!A:P,12,0),))),"") ->  | U92: =IFERROR(IF(FIND("Q4",R92)>0,VLOOKUP(H92,'Raw3'!A:P,14,0),""),"") ->  | V92: =IFERROR(IF(VLOOKUP(H92,'Raw3'!A:P,5,0)="","",VLOOKUP(H92,'Raw3'!A:P,5,0)),"") ->  | W92: =IFERROR(IF(VLOOKUP(H92,'Raw3'!A:P,4,0)="","",VLOOKUP(H92,'Raw3'!A:P,4,0)),"") ->  | X92: =IFERROR(IF(VLOOKUP(H92&V92,'Raw1'!A:Z,26,0)="","",VLOOKUP(H92&V92,'Raw1'!A:Z,26,0)),"") -> 
H93: =IF('Raw2'!U89="","",'Raw2'!U89) ->  | L93: =IF('Raw2'!V89="","",'Raw2'!V89) ->  | M93: =IFERROR(VLOOKUP(H93,'Raw4'!A:C,2,0),"") ->  | N93: =IFERROR(VLOOKUP(H93,'Raw2'!A:F,6,0),"") ->  | O93: =IFERROR(VLOOKUP($H93,'Raw2'!$A:$I,8,0),"") ->  | P93: =IFERROR(VLOOKUP($H93,'Raw2'!$A:$I,9,0),"") ->  | Q93: =IFERROR(YEAR(VLOOKUP(H93,'Raw3'!A:C,2,0)),"") ->  | R93: =IFERROR(VLOOKUP(H93,'Raw3'!A:P,16,0),"") ->  | S93: =IFERROR(VLOOKUP(H93,'Raw3'!A:P,3,0),"") ->  | T93: =IFERROR(IF(FIND("Q1",R93)>0,VLOOKUP(H93,'Raw3'!A:P,10,0),IF(FIND("Q2",R93)>0,VLOOKUP(H93,'Raw3'!A:P,11,0),IF(FIND("Q3",R93)>0,VLOOKUP(H93,'Raw3'!A:P,12,0),))),"") ->  | U93: =IFERROR(IF(FIND("Q4",R93)>0,VLOOKUP(H93,'Raw3'!A:P,14,0),""),"") ->  | V93: =IFERROR(IF(VLOOKUP(H93,'Raw3'!A:P,5,0)="","",VLOOKUP(H93,'Raw3'!A:P,5,0)),"") ->  | W93: =IFERROR(IF(VLOOKUP(H93,'Raw3'!A:P,4,0)="","",VLOOKUP(H93,'Raw3'!A:P,4,0)),"") ->  | X93: =IFERROR(IF(VLOOKUP(H93&V93,'Raw1'!A:Z,26,0)="","",VLOOKUP(H93&V93,'Raw1'!A:Z,26,0)),"") -> 
H94: =IF('Raw2'!U90="","",'Raw2'!U90) ->  | L94: =IF('Raw2'!V90="","",'Raw2'!V90) ->  | M94: =IFERROR(VLOOKUP(H94,'Raw4'!A:C,2,0),"") ->  | N94: =IFERROR(VLOOKUP(H94,'Raw2'!A:F,6,0),"") ->  | O94: =IFERROR(VLOOKUP($H94,'Raw2'!$A:$I,8,0),"") ->  | P94: =IFERROR(VLOOKUP($H94,'Raw2'!$A:$I,9,0),"") ->  | Q94: =IFERROR(YEAR(VLOOKUP(H94,'Raw3'!A:C,2,0)),"") ->  | R94: =IFERROR(VLOOKUP(H94,'Raw3'!A:P,16,0),"") ->  | S94: =IFERROR(VLOOKUP(H94,'Raw3'!A:P,3,0),"") ->  | T94: =IFERROR(IF(FIND("Q1",R94)>0,VLOOKUP(H94,'Raw3'!A:P,10,0),IF(FIND("Q2",R94)>0,VLOOKUP(H94,'Raw3'!A:P,11,0),IF(FIND("Q3",R94)>0,VLOOKUP(H94,'Raw3'!A:P,12,0),))),"") ->  | U94: =IFERROR(IF(FIND("Q4",R94)>0,VLOOKUP(H94,'Raw3'!A:P,14,0),""),"") ->  | V94: =IFERROR(IF(VLOOKUP(H94,'Raw3'!A:P,5,0)="","",VLOOKUP(H94,'Raw3'!A:P,5,0)),"") ->  | W94: =IFERROR(IF(VLOOKUP(H94,'Raw3'!A:P,4,0)="","",VLOOKUP(H94,'Raw3'!A:P,4,0)),"") ->  | X94: =IFERROR(IF(VLOOKUP(H94&V94,'Raw1'!A:Z,26,0)="","",VLOOKUP(H94&V94,'Raw1'!A:Z,26,0)),"") -> 
H95: =IF('Raw2'!U91="","",'Raw2'!U91) ->  | L95: =IF('Raw2'!V91="","",'Raw2'!V91) ->  | M95: =IFERROR(VLOOKUP(H95,'Raw4'!A:C,2,0),"") ->  | N95: =IFERROR(VLOOKUP(H95,'Raw2'!A:F,6,0),"") ->  | O95: =IFERROR(VLOOKUP($H95,'Raw2'!$A:$I,8,0),"") ->  | P95: =IFERROR(VLOOKUP($H95,'Raw2'!$A:$I,9,0),"") ->  | Q95: =IFERROR(YEAR(VLOOKUP(H95,'Raw3'!A:C,2,0)),"") ->  | R95: =IFERROR(VLOOKUP(H95,'Raw3'!A:P,16,0),"") ->  | S95: =IFERROR(VLOOKUP(H95,'Raw3'!A:P,3,0),"") ->  | T95: =IFERROR(IF(FIND("Q1",R95)>0,VLOOKUP(H95,'Raw3'!A:P,10,0),IF(FIND("Q2",R95)>0,VLOOKUP(H95,'Raw3'!A:P,11,0),IF(FIND("Q3",R95)>0,VLOOKUP(H95,'Raw3'!A:P,12,0),))),"") ->  | U95: =IFERROR(IF(FIND("Q4",R95)>0,VLOOKUP(H95,'Raw3'!A:P,14,0),""),"") ->  | V95: =IFERROR(IF(VLOOKUP(H95,'Raw3'!A:P,5,0)="","",VLOOKUP(H95,'Raw3'!A:P,5,0)),"") ->  | W95: =IFERROR(IF(VLOOKUP(H95,'Raw3'!A:P,4,0)="","",VLOOKUP(H95,'Raw3'!A:P,4,0)),"") ->  | X95: =IFERROR(IF(VLOOKUP(H95&V95,'Raw1'!A:Z,26,0)="","",VLOOKUP(H95&V95,'Raw1'!A:Z,26,0)),"") -> 
H96: =IF('Raw2'!U92="","",'Raw2'!U92) ->  | L96: =IF('Raw2'!V92="","",'Raw2'!V92) ->  | M96: =IFERROR(VLOOKUP(H96,'Raw4'!A:C,2,0),"") ->  | N96: =IFERROR(VLOOKUP(H96,'Raw2'!A:F,6,0),"") ->  | O96: =IFERROR(VLOOKUP($H96,'Raw2'!$A:$I,8,0),"") ->  | P96: =IFERROR(VLOOKUP($H96,'Raw2'!$A:$I,9,0),"") ->  | Q96: =IFERROR(YEAR(VLOOKUP(H96,'Raw3'!A:C,2,0)),"") ->  | R96: =IFERROR(VLOOKUP(H96,'Raw3'!A:P,16,0),"") ->  | S96: =IFERROR(VLOOKUP(H96,'Raw3'!A:P,3,0),"") ->  | T96: =IFERROR(IF(FIND("Q1",R96)>0,VLOOKUP(H96,'Raw3'!A:P,10,0),IF(FIND("Q2",R96)>0,VLOOKUP(H96,'Raw3'!A:P,11,0),IF(FIND("Q3",R96)>0,VLOOKUP(H96,'Raw3'!A:P,12,0),))),"") ->  | U96: =IFERROR(IF(FIND("Q4",R96)>0,VLOOKUP(H96,'Raw3'!A:P,14,0),""),"") ->  | V96: =IFERROR(IF(VLOOKUP(H96,'Raw3'!A:P,5,0)="","",VLOOKUP(H96,'Raw3'!A:P,5,0)),"") ->  | W96: =IFERROR(IF(VLOOKUP(H96,'Raw3'!A:P,4,0)="","",VLOOKUP(H96,'Raw3'!A:P,4,0)),"") ->  | X96: =IFERROR(IF(VLOOKUP(H96&V96,'Raw1'!A:Z,26,0)="","",VLOOKUP(H96&V96,'Raw1'!A:Z,26,0)),"") -> 
H97: =IF('Raw2'!U93="","",'Raw2'!U93) ->  | L97: =IF('Raw2'!V93="","",'Raw2'!V93) ->  | M97: =IFERROR(VLOOKUP(H97,'Raw4'!A:C,2,0),"") ->  | N97: =IFERROR(VLOOKUP(H97,'Raw2'!A:F,6,0),"") ->  | O97: =IFERROR(VLOOKUP($H97,'Raw2'!$A:$I,8,0),"") ->  | P97: =IFERROR(VLOOKUP($H97,'Raw2'!$A:$I,9,0),"") ->  | Q97: =IFERROR(YEAR(VLOOKUP(H97,'Raw3'!A:C,2,0)),"") ->  | R97: =IFERROR(VLOOKUP(H97,'Raw3'!A:P,16,0),"") ->  | S97: =IFERROR(VLOOKUP(H97,'Raw3'!A:P,3,0),"") ->  | T97: =IFERROR(IF(FIND("Q1",R97)>0,VLOOKUP(H97,'Raw3'!A:P,10,0),IF(FIND("Q2",R97)>0,VLOOKUP(H97,'Raw3'!A:P,11,0),IF(FIND("Q3",R97)>0,VLOOKUP(H97,'Raw3'!A:P,12,0),))),"") ->  | U97: =IFERROR(IF(FIND("Q4",R97)>0,VLOOKUP(H97,'Raw3'!A:P,14,0),""),"") ->  | V97: =IFERROR(IF(VLOOKUP(H97,'Raw3'!A:P,5,0)="","",VLOOKUP(H97,'Raw3'!A:P,5,0)),"") ->  | W97: =IFERROR(IF(VLOOKUP(H97,'Raw3'!A:P,4,0)="","",VLOOKUP(H97,'Raw3'!A:P,4,0)),"") ->  | X97: =IFERROR(IF(VLOOKUP(H97&V97,'Raw1'!A:Z,26,0)="","",VLOOKUP(H97&V97,'Raw1'!A:Z,26,0)),"") -> 
H98: =IF('Raw2'!U94="","",'Raw2'!U94) ->  | L98: =IF('Raw2'!V94="","",'Raw2'!V94) ->  | M98: =IFERROR(VLOOKUP(H98,'Raw4'!A:C,2,0),"") ->  | N98: =IFERROR(VLOOKUP(H98,'Raw2'!A:F,6,0),"") ->  | O98: =IFERROR(VLOOKUP($H98,'Raw2'!$A:$I,8,0),"") ->  | P98: =IFERROR(VLOOKUP($H98,'Raw2'!$A:$I,9,0),"") ->  | Q98: =IFERROR(YEAR(VLOOKUP(H98,'Raw3'!A:C,2,0)),"") ->  | R98: =IFERROR(VLOOKUP(H98,'Raw3'!A:P,16,0),"") ->  | S98: =IFERROR(VLOOKUP(H98,'Raw3'!A:P,3,0),"") ->  | T98: =IFERROR(IF(FIND("Q1",R98)>0,VLOOKUP(H98,'Raw3'!A:P,10,0),IF(FIND("Q2",R98)>0,VLOOKUP(H98,'Raw3'!A:P,11,0),IF(FIND("Q3",R98)>0,VLOOKUP(H98,'Raw3'!A:P,12,0),))),"") ->  | U98: =IFERROR(IF(FIND("Q4",R98)>0,VLOOKUP(H98,'Raw3'!A:P,14,0),""),"") ->  | V98: =IFERROR(IF(VLOOKUP(H98,'Raw3'!A:P,5,0)="","",VLOOKUP(H98,'Raw3'!A:P,5,0)),"") ->  | W98: =IFERROR(IF(VLOOKUP(H98,'Raw3'!A:P,4,0)="","",VLOOKUP(H98,'Raw3'!A:P,4,0)),"") ->  | X98: =IFERROR(IF(VLOOKUP(H98&V98,'Raw1'!A:Z,26,0)="","",VLOOKUP(H98&V98,'Raw1'!A:Z,26,0)),"") -> 
H99: =IF('Raw2'!U95="","",'Raw2'!U95) ->  | L99: =IF('Raw2'!V95="","",'Raw2'!V95) ->  | M99: =IFERROR(VLOOKUP(H99,'Raw4'!A:C,2,0),"") ->  | N99: =IFERROR(VLOOKUP(H99,'Raw2'!A:F,6,0),"") ->  | O99: =IFERROR(VLOOKUP($H99,'Raw2'!$A:$I,8,0),"") ->  | P99: =IFERROR(VLOOKUP($H99,'Raw2'!$A:$I,9,0),"") ->  | Q99: =IFERROR(YEAR(VLOOKUP(H99,'Raw3'!A:C,2,0)),"") ->  | R99: =IFERROR(VLOOKUP(H99,'Raw3'!A:P,16,0),"") ->  | S99: =IFERROR(VLOOKUP(H99,'Raw3'!A:P,3,0),"") ->  | T99: =IFERROR(IF(FIND("Q1",R99)>0,VLOOKUP(H99,'Raw3'!A:P,10,0),IF(FIND("Q2",R99)>0,VLOOKUP(H99,'Raw3'!A:P,11,0),IF(FIND("Q3",R99)>0,VLOOKUP(H99,'Raw3'!A:P,12,0),))),"") ->  | U99: =IFERROR(IF(FIND("Q4",R99)>0,VLOOKUP(H99,'Raw3'!A:P,14,0),""),"") ->  | V99: =IFERROR(IF(VLOOKUP(H99,'Raw3'!A:P,5,0)="","",VLOOKUP(H99,'Raw3'!A:P,5,0)),"") ->  | W99: =IFERROR(IF(VLOOKUP(H99,'Raw3'!A:P,4,0)="","",VLOOKUP(H99,'Raw3'!A:P,4,0)),"") ->  | X99: =IFERROR(IF(VLOOKUP(H99&V99,'Raw1'!A:Z,26,0)="","",VLOOKUP(H99&V99,'Raw1'!A:Z,26,0)),"") -> 
H100: =IF('Raw2'!U96="","",'Raw2'!U96) ->  | L100: =IF('Raw2'!V96="","",'Raw2'!V96) ->  | M100: =IFERROR(VLOOKUP(H100,'Raw4'!A:C,2,0),"") ->  | N100: =IFERROR(VLOOKUP(H100,'Raw2'!A:F,6,0),"") ->  | O100: =IFERROR(VLOOKUP($H100,'Raw2'!$A:$I,8,0),"") ->  | P100: =IFERROR(VLOOKUP($H100,'Raw2'!$A:$I,9,0),"") ->  | Q100: =IFERROR(YEAR(VLOOKUP(H100,'Raw3'!A:C,2,0)),"") ->  | R100: =IFERROR(VLOOKUP(H100,'Raw3'!A:P,16,0),"") ->  | S100: =IFERROR(VLOOKUP(H100,'Raw3'!A:P,3,0),"") ->  | T100: =IFERROR(IF(FIND("Q1",R100)>0,VLOOKUP(H100,'Raw3'!A:P,10,0),IF(FIND("Q2",R100)>0,VLOOKUP(H100,'Raw3'!A:P,11,0),IF(FIND("Q3",R100)>0,VLOOKUP(H100,'Raw3'!A:P,12,0),))),"") ->  | U100: =IFERROR(IF(FIND("Q4",R100)>0,VLOOKUP(H100,'Raw3'!A:P,14,0),""),"") ->  | V100: =IFERROR(IF(VLOOKUP(H100,'Raw3'!A:P,5,0)="","",VLOOKUP(H100,'Raw3'!A:P,5,0)),"") ->  | W100: =IFERROR(IF(VLOOKUP(H100,'Raw3'!A:P,4,0)="","",VLOOKUP(H100,'Raw3'!A:P,4,0)),"") ->  | X100: =IFERROR(IF(VLOOKUP(H100&V100,'Raw1'!A:Z,26,0)="","",VLOOKUP(H100&V100,'Raw1'!A:Z,26,0)),"") -> 
H101: =IF('Raw2'!U97="","",'Raw2'!U97) ->  | L101: =IF('Raw2'!V97="","",'Raw2'!V97) ->  | M101: =IFERROR(VLOOKUP(H101,'Raw4'!A:C,2,0),"") ->  | N101: =IFERROR(VLOOKUP(H101,'Raw2'!A:F,6,0),"") ->  | O101: =IFERROR(VLOOKUP($H101,'Raw2'!$A:$I,8,0),"") ->  | P101: =IFERROR(VLOOKUP($H101,'Raw2'!$A:$I,9,0),"") ->  | Q101: =IFERROR(YEAR(VLOOKUP(H101,'Raw3'!A:C,2,0)),"") ->  | R101: =IFERROR(VLOOKUP(H101,'Raw3'!A:P,16,0),"") ->  | S101: =IFERROR(VLOOKUP(H101,'Raw3'!A:P,3,0),"") ->  | T101: =IFERROR(IF(FIND("Q1",R101)>0,VLOOKUP(H101,'Raw3'!A:P,10,0),IF(FIND("Q2",R101)>0,VLOOKUP(H101,'Raw3'!A:P,11,0),IF(FIND("Q3",R101)>0,VLOOKUP(H101,'Raw3'!A:P,12,0),))),"") ->  | U101: =IFERROR(IF(FIND("Q4",R101)>0,VLOOKUP(H101,'Raw3'!A:P,14,0),""),"") ->  | V101: =IFERROR(IF(VLOOKUP(H101,'Raw3'!A:P,5,0)="","",VLOOKUP(H101,'Raw3'!A:P,5,0)),"") ->  | W101: =IFERROR(IF(VLOOKUP(H101,'Raw3'!A:P,4,0)="","",VLOOKUP(H101,'Raw3'!A:P,4,0)),"") ->  | X101: =IFERROR(IF(VLOOKUP(H101&V101,'Raw1'!A:Z,26,0)="","",VLOOKUP(H101&V101,'Raw1'!A:Z,26,0)),"") -> 
H102: =IF('Raw2'!U98="","",'Raw2'!U98) ->  | L102: =IF('Raw2'!V98="","",'Raw2'!V98) ->  | M102: =IFERROR(VLOOKUP(H102,'Raw4'!A:C,2,0),"") ->  | N102: =IFERROR(VLOOKUP(H102,'Raw2'!A:F,6,0),"") ->  | O102: =IFERROR(VLOOKUP($H102,'Raw2'!$A:$I,8,0),"") ->  | P102: =IFERROR(VLOOKUP($H102,'Raw2'!$A:$I,9,0),"") ->  | Q102: =IFERROR(YEAR(VLOOKUP(H102,'Raw3'!A:C,2,0)),"") ->  | R102: =IFERROR(VLOOKUP(H102,'Raw3'!A:P,16,0),"") ->  | S102: =IFERROR(VLOOKUP(H102,'Raw3'!A:P,3,0),"") ->  | T102: =IFERROR(IF(FIND("Q1",R102)>0,VLOOKUP(H102,'Raw3'!A:P,10,0),IF(FIND("Q2",R102)>0,VLOOKUP(H102,'Raw3'!A:P,11,0),IF(FIND("Q3",R102)>0,VLOOKUP(H102,'Raw3'!A:P,12,0),))),"") ->  | U102: =IFERROR(IF(FIND("Q4",R102)>0,VLOOKUP(H102,'Raw3'!A:P,14,0),""),"") ->  | V102: =IFERROR(IF(VLOOKUP(H102,'Raw3'!A:P,5,0)="","",VLOOKUP(H102,'Raw3'!A:P,5,0)),"") ->  | W102: =IFERROR(IF(VLOOKUP(H102,'Raw3'!A:P,4,0)="","",VLOOKUP(H102,'Raw3'!A:P,4,0)),"") ->  | X102: =IFERROR(IF(VLOOKUP(H102&V102,'Raw1'!A:Z,26,0)="","",VLOOKUP(H102&V102,'Raw1'!A:Z,26,0)),"") -> 
H103: =IF('Raw2'!U99="","",'Raw2'!U99) ->  | L103: =IF('Raw2'!V99="","",'Raw2'!V99) ->  | M103: =IFERROR(VLOOKUP(H103,'Raw4'!A:C,2,0),"") ->  | N103: =IFERROR(VLOOKUP(H103,'Raw2'!A:F,6,0),"") ->  | O103: =IFERROR(VLOOKUP($H103,'Raw2'!$A:$I,8,0),"") ->  | P103: =IFERROR(VLOOKUP($H103,'Raw2'!$A:$I,9,0),"") ->  | Q103: =IFERROR(YEAR(VLOOKUP(H103,'Raw3'!A:C,2,0)),"") ->  | R103: =IFERROR(VLOOKUP(H103,'Raw3'!A:P,16,0),"") ->  | S103: =IFERROR(VLOOKUP(H103,'Raw3'!A:P,3,0),"") ->  | T103: =IFERROR(IF(FIND("Q1",R103)>0,VLOOKUP(H103,'Raw3'!A:P,10,0),IF(FIND("Q2",R103)>0,VLOOKUP(H103,'Raw3'!A:P,11,0),IF(FIND("Q3",R103)>0,VLOOKUP(H103,'Raw3'!A:P,12,0),))),"") ->  | U103: =IFERROR(IF(FIND("Q4",R103)>0,VLOOKUP(H103,'Raw3'!A:P,14,0),""),"") ->  | V103: =IFERROR(IF(VLOOKUP(H103,'Raw3'!A:P,5,0)="","",VLOOKUP(H103,'Raw3'!A:P,5,0)),"") ->  | W103: =IFERROR(IF(VLOOKUP(H103,'Raw3'!A:P,4,0)="","",VLOOKUP(H103,'Raw3'!A:P,4,0)),"") ->  | X103: =IFERROR(IF(VLOOKUP(H103&V103,'Raw1'!A:Z,26,0)="","",VLOOKUP(H103&V103,'Raw1'!A:Z,26,0)),"") -> 
H104: =IF('Raw2'!U100="","",'Raw2'!U100) ->  | L104: =IF('Raw2'!V100="","",'Raw2'!V100) ->  | M104: =IFERROR(VLOOKUP(H104,'Raw4'!A:C,2,0),"") ->  | N104: =IFERROR(VLOOKUP(H104,'Raw2'!A:F,6,0),"") ->  | O104: =IFERROR(VLOOKUP($H104,'Raw2'!$A:$I,8,0),"") ->  | P104: =IFERROR(VLOOKUP($H104,'Raw2'!$A:$I,9,0),"") ->  | Q104: =IFERROR(YEAR(VLOOKUP(H104,'Raw3'!A:C,2,0)),"") ->  | R104: =IFERROR(VLOOKUP(H104,'Raw3'!A:P,16,0),"") ->  | S104: =IFERROR(VLOOKUP(H104,'Raw3'!A:P,3,0),"") ->  | T104: =IFERROR(IF(FIND("Q1",R104)>0,VLOOKUP(H104,'Raw3'!A:P,10,0),IF(FIND("Q2",R104)>0,VLOOKUP(H104,'Raw3'!A:P,11,0),IF(FIND("Q3",R104)>0,VLOOKUP(H104,'Raw3'!A:P,12,0),))),"") ->  | U104: =IFERROR(IF(FIND("Q4",R104)>0,VLOOKUP(H104,'Raw3'!A:P,14,0),""),"") ->  | V104: =IFERROR(IF(VLOOKUP(H104,'Raw3'!A:P,5,0)="","",VLOOKUP(H104,'Raw3'!A:P,5,0)),"") ->  | W104: =IFERROR(IF(VLOOKUP(H104,'Raw3'!A:P,4,0)="","",VLOOKUP(H104,'Raw3'!A:P,4,0)),"") ->  | X104: =IFERROR(IF(VLOOKUP(H104&V104,'Raw1'!A:Z,26,0)="","",VLOOKUP(H104&V104,'Raw1'!A:Z,26,0)),"") -> 
H105: =IF('Raw2'!U101="","",'Raw2'!U101) ->  | L105: =IF('Raw2'!V101="","",'Raw2'!V101) ->  | M105: =IFERROR(VLOOKUP(H105,'Raw4'!A:C,2,0),"") ->  | N105: =IFERROR(VLOOKUP(H105,'Raw2'!A:F,6,0),"") ->  | O105: =IFERROR(VLOOKUP($H105,'Raw2'!$A:$I,8,0),"") ->  | P105: =IFERROR(VLOOKUP($H105,'Raw2'!$A:$I,9,0),"") ->  | Q105: =IFERROR(YEAR(VLOOKUP(H105,'Raw3'!A:C,2,0)),"") ->  | R105: =IFERROR(VLOOKUP(H105,'Raw3'!A:P,16,0),"") ->  | S105: =IFERROR(VLOOKUP(H105,'Raw3'!A:P,3,0),"") ->  | T105: =IFERROR(IF(FIND("Q1",R105)>0,VLOOKUP(H105,'Raw3'!A:P,10,0),IF(FIND("Q2",R105)>0,VLOOKUP(H105,'Raw3'!A:P,11,0),IF(FIND("Q3",R105)>0,VLOOKUP(H105,'Raw3'!A:P,12,0),))),"") ->  | U105: =IFERROR(IF(FIND("Q4",R105)>0,VLOOKUP(H105,'Raw3'!A:P,14,0),""),"") ->  | V105: =IFERROR(IF(VLOOKUP(H105,'Raw3'!A:P,5,0)="","",VLOOKUP(H105,'Raw3'!A:P,5,0)),"") ->  | W105: =IFERROR(IF(VLOOKUP(H105,'Raw3'!A:P,4,0)="","",VLOOKUP(H105,'Raw3'!A:P,4,0)),"") ->  | X105: =IFERROR(IF(VLOOKUP(H105&V105,'Raw1'!A:Z,26,0)="","",VLOOKUP(H105&V105,'Raw1'!A:Z,26,0)),"") -> 
H106: =IF('Raw2'!U102="","",'Raw2'!U102) ->  | L106: =IF('Raw2'!V102="","",'Raw2'!V102) ->  | M106: =IFERROR(VLOOKUP(H106,'Raw4'!A:C,2,0),"") ->  | N106: =IFERROR(VLOOKUP(H106,'Raw2'!A:F,6,0),"") ->  | O106: =IFERROR(VLOOKUP($H106,'Raw2'!$A:$I,8,0),"") ->  | P106: =IFERROR(VLOOKUP($H106,'Raw2'!$A:$I,9,0),"") ->  | Q106: =IFERROR(YEAR(VLOOKUP(H106,'Raw3'!A:C,2,0)),"") ->  | R106: =IFERROR(VLOOKUP(H106,'Raw3'!A:P,16,0),"") ->  | S106: =IFERROR(VLOOKUP(H106,'Raw3'!A:P,3,0),"") ->  | T106: =IFERROR(IF(FIND("Q1",R106)>0,VLOOKUP(H106,'Raw3'!A:P,10,0),IF(FIND("Q2",R106)>0,VLOOKUP(H106,'Raw3'!A:P,11,0),IF(FIND("Q3",R106)>0,VLOOKUP(H106,'Raw3'!A:P,12,0),))),"") ->  | U106: =IFERROR(IF(FIND("Q4",R106)>0,VLOOKUP(H106,'Raw3'!A:P,14,0),""),"") ->  | V106: =IFERROR(IF(VLOOKUP(H106,'Raw3'!A:P,5,0)="","",VLOOKUP(H106,'Raw3'!A:P,5,0)),"") ->  | W106: =IFERROR(IF(VLOOKUP(H106,'Raw3'!A:P,4,0)="","",VLOOKUP(H106,'Raw3'!A:P,4,0)),"") ->  | X106: =IFERROR(IF(VLOOKUP(H106&V106,'Raw1'!A:Z,26,0)="","",VLOOKUP(H106&V106,'Raw1'!A:Z,26,0)),"") -> 
H107: =IF('Raw2'!U103="","",'Raw2'!U103) ->  | L107: =IF('Raw2'!V103="","",'Raw2'!V103) ->  | M107: =IFERROR(VLOOKUP(H107,'Raw4'!A:C,2,0),"") ->  | N107: =IFERROR(VLOOKUP(H107,'Raw2'!A:F,6,0),"") ->  | O107: =IFERROR(VLOOKUP($H107,'Raw2'!$A:$I,8,0),"") ->  | P107: =IFERROR(VLOOKUP($H107,'Raw2'!$A:$I,9,0),"") ->  | Q107: =IFERROR(YEAR(VLOOKUP(H107,'Raw3'!A:C,2,0)),"") ->  | R107: =IFERROR(VLOOKUP(H107,'Raw3'!A:P,16,0),"") ->  | S107: =IFERROR(VLOOKUP(H107,'Raw3'!A:P,3,0),"") ->  | T107: =IFERROR(IF(FIND("Q1",R107)>0,VLOOKUP(H107,'Raw3'!A:P,10,0),IF(FIND("Q2",R107)>0,VLOOKUP(H107,'Raw3'!A:P,11,0),IF(FIND("Q3",R107)>0,VLOOKUP(H107,'Raw3'!A:P,12,0),))),"") ->  | U107: =IFERROR(IF(FIND("Q4",R107)>0,VLOOKUP(H107,'Raw3'!A:P,14,0),""),"") ->  | V107: =IFERROR(IF(VLOOKUP(H107,'Raw3'!A:P,5,0)="","",VLOOKUP(H107,'Raw3'!A:P,5,0)),"") ->  | W107: =IFERROR(IF(VLOOKUP(H107,'Raw3'!A:P,4,0)="","",VLOOKUP(H107,'Raw3'!A:P,4,0)),"") ->  | X107: =IFERROR(IF(VLOOKUP(H107&V107,'Raw1'!A:Z,26,0)="","",VLOOKUP(H107&V107,'Raw1'!A:Z,26,0)),"") -> 
H108: =IF('Raw2'!U104="","",'Raw2'!U104) ->  | L108: =IF('Raw2'!V104="","",'Raw2'!V104) ->  | M108: =IFERROR(VLOOKUP(H108,'Raw4'!A:C,2,0),"") ->  | N108: =IFERROR(VLOOKUP(H108,'Raw2'!A:F,6,0),"") ->  | O108: =IFERROR(VLOOKUP($H108,'Raw2'!$A:$I,8,0),"") ->  | P108: =IFERROR(VLOOKUP($H108,'Raw2'!$A:$I,9,0),"") ->  | Q108: =IFERROR(YEAR(VLOOKUP(H108,'Raw3'!A:C,2,0)),"") ->  | R108: =IFERROR(VLOOKUP(H108,'Raw3'!A:P,16,0),"") ->  | S108: =IFERROR(VLOOKUP(H108,'Raw3'!A:P,3,0),"") ->  | T108: =IFERROR(IF(FIND("Q1",R108)>0,VLOOKUP(H108,'Raw3'!A:P,10,0),IF(FIND("Q2",R108)>0,VLOOKUP(H108,'Raw3'!A:P,11,0),IF(FIND("Q3",R108)>0,VLOOKUP(H108,'Raw3'!A:P,12,0),))),"") ->  | U108: =IFERROR(IF(FIND("Q4",R108)>0,VLOOKUP(H108,'Raw3'!A:P,14,0),""),"") ->  | V108: =IFERROR(IF(VLOOKUP(H108,'Raw3'!A:P,5,0)="","",VLOOKUP(H108,'Raw3'!A:P,5,0)),"") ->  | W108: =IFERROR(IF(VLOOKUP(H108,'Raw3'!A:P,4,0)="","",VLOOKUP(H108,'Raw3'!A:P,4,0)),"") ->  | X108: =IFERROR(IF(VLOOKUP(H108&V108,'Raw1'!A:Z,26,0)="","",VLOOKUP(H108&V108,'Raw1'!A:Z,26,0)),"") -> 
H109: =IF('Raw2'!U105="","",'Raw2'!U105) ->  | L109: =IF('Raw2'!V105="","",'Raw2'!V105) ->  | M109: =IFERROR(VLOOKUP(H109,'Raw4'!A:C,2,0),"") ->  | N109: =IFERROR(VLOOKUP(H109,'Raw2'!A:F,6,0),"") ->  | O109: =IFERROR(VLOOKUP($H109,'Raw2'!$A:$I,8,0),"") ->  | P109: =IFERROR(VLOOKUP($H109,'Raw2'!$A:$I,9,0),"") ->  | Q109: =IFERROR(YEAR(VLOOKUP(H109,'Raw3'!A:C,2,0)),"") ->  | R109: =IFERROR(VLOOKUP(H109,'Raw3'!A:P,16,0),"") ->  | S109: =IFERROR(VLOOKUP(H109,'Raw3'!A:P,3,0),"") ->  | T109: =IFERROR(IF(FIND("Q1",R109)>0,VLOOKUP(H109,'Raw3'!A:P,10,0),IF(FIND("Q2",R109)>0,VLOOKUP(H109,'Raw3'!A:P,11,0),IF(FIND("Q3",R109)>0,VLOOKUP(H109,'Raw3'!A:P,12,0),))),"") ->  | U109: =IFERROR(IF(FIND("Q4",R109)>0,VLOOKUP(H109,'Raw3'!A:P,14,0),""),"") ->  | V109: =IFERROR(IF(VLOOKUP(H109,'Raw3'!A:P,5,0)="","",VLOOKUP(H109,'Raw3'!A:P,5,0)),"") ->  | W109: =IFERROR(IF(VLOOKUP(H109,'Raw3'!A:P,4,0)="","",VLOOKUP(H109,'Raw3'!A:P,4,0)),"") ->  | X109: =IFERROR(IF(VLOOKUP(H109&V109,'Raw1'!A:Z,26,0)="","",VLOOKUP(H109&V109,'Raw1'!A:Z,26,0)),"") -> 
H110: =IF('Raw2'!U106="","",'Raw2'!U106) ->  | L110: =IF('Raw2'!V106="","",'Raw2'!V106) ->  | M110: =IFERROR(VLOOKUP(H110,'Raw4'!A:C,2,0),"") ->  | N110: =IFERROR(VLOOKUP(H110,'Raw2'!A:F,6,0),"") ->  | O110: =IFERROR(VLOOKUP($H110,'Raw2'!$A:$I,8,0),"") ->  | P110: =IFERROR(VLOOKUP($H110,'Raw2'!$A:$I,9,0),"") ->  | Q110: =IFERROR(YEAR(VLOOKUP(H110,'Raw3'!A:C,2,0)),"") ->  | R110: =IFERROR(VLOOKUP(H110,'Raw3'!A:P,16,0),"") ->  | S110: =IFERROR(VLOOKUP(H110,'Raw3'!A:P,3,0),"") ->  | T110: =IFERROR(IF(FIND("Q1",R110)>0,VLOOKUP(H110,'Raw3'!A:P,10,0),IF(FIND("Q2",R110)>0,VLOOKUP(H110,'Raw3'!A:P,11,0),IF(FIND("Q3",R110)>0,VLOOKUP(H110,'Raw3'!A:P,12,0),))),"") ->  | U110: =IFERROR(IF(FIND("Q4",R110)>0,VLOOKUP(H110,'Raw3'!A:P,14,0),""),"") ->  | V110: =IFERROR(IF(VLOOKUP(H110,'Raw3'!A:P,5,0)="","",VLOOKUP(H110,'Raw3'!A:P,5,0)),"") ->  | W110: =IFERROR(IF(VLOOKUP(H110,'Raw3'!A:P,4,0)="","",VLOOKUP(H110,'Raw3'!A:P,4,0)),"") ->  | X110: =IFERROR(IF(VLOOKUP(H110&V110,'Raw1'!A:Z,26,0)="","",VLOOKUP(H110&V110,'Raw1'!A:Z,26,0)),"") -> 
H111: =IF('Raw2'!U107="","",'Raw2'!U107) ->  | L111: =IF('Raw2'!V107="","",'Raw2'!V107) ->  | M111: =IFERROR(VLOOKUP(H111,'Raw4'!A:C,2,0),"") ->  | N111: =IFERROR(VLOOKUP(H111,'Raw2'!A:F,6,0),"") ->  | O111: =IFERROR(VLOOKUP($H111,'Raw2'!$A:$I,8,0),"") ->  | P111: =IFERROR(VLOOKUP($H111,'Raw2'!$A:$I,9,0),"") ->  | Q111: =IFERROR(YEAR(VLOOKUP(H111,'Raw3'!A:C,2,0)),"") ->  | R111: =IFERROR(VLOOKUP(H111,'Raw3'!A:P,16,0),"") ->  | S111: =IFERROR(VLOOKUP(H111,'Raw3'!A:P,3,0),"") ->  | T111: =IFERROR(IF(FIND("Q1",R111)>0,VLOOKUP(H111,'Raw3'!A:P,10,0),IF(FIND("Q2",R111)>0,VLOOKUP(H111,'Raw3'!A:P,11,0),IF(FIND("Q3",R111)>0,VLOOKUP(H111,'Raw3'!A:P,12,0),))),"") ->  | U111: =IFERROR(IF(FIND("Q4",R111)>0,VLOOKUP(H111,'Raw3'!A:P,14,0),""),"") ->  | V111: =IFERROR(IF(VLOOKUP(H111,'Raw3'!A:P,5,0)="","",VLOOKUP(H111,'Raw3'!A:P,5,0)),"") ->  | W111: =IFERROR(IF(VLOOKUP(H111,'Raw3'!A:P,4,0)="","",VLOOKUP(H111,'Raw3'!A:P,4,0)),"") ->  | X111: =IFERROR(IF(VLOOKUP(H111&V111,'Raw1'!A:Z,26,0)="","",VLOOKUP(H111&V111,'Raw1'!A:Z,26,0)),"") -> 
H112: =IF('Raw2'!U108="","",'Raw2'!U108) ->  | L112: =IF('Raw2'!V108="","",'Raw2'!V108) ->  | M112: =IFERROR(VLOOKUP(H112,'Raw4'!A:C,2,0),"") ->  | N112: =IFERROR(VLOOKUP(H112,'Raw2'!A:F,6,0),"") ->  | O112: =IFERROR(VLOOKUP($H112,'Raw2'!$A:$I,8,0),"") ->  | P112: =IFERROR(VLOOKUP($H112,'Raw2'!$A:$I,9,0),"") ->  | Q112: =IFERROR(YEAR(VLOOKUP(H112,'Raw3'!A:C,2,0)),"") ->  | R112: =IFERROR(VLOOKUP(H112,'Raw3'!A:P,16,0),"") ->  | S112: =IFERROR(VLOOKUP(H112,'Raw3'!A:P,3,0),"") ->  | T112: =IFERROR(IF(FIND("Q1",R112)>0,VLOOKUP(H112,'Raw3'!A:P,10,0),IF(FIND("Q2",R112)>0,VLOOKUP(H112,'Raw3'!A:P,11,0),IF(FIND("Q3",R112)>0,VLOOKUP(H112,'Raw3'!A:P,12,0),))),"") ->  | U112: =IFERROR(IF(FIND("Q4",R112)>0,VLOOKUP(H112,'Raw3'!A:P,14,0),""),"") ->  | V112: =IFERROR(IF(VLOOKUP(H112,'Raw3'!A:P,5,0)="","",VLOOKUP(H112,'Raw3'!A:P,5,0)),"") ->  | W112: =IFERROR(IF(VLOOKUP(H112,'Raw3'!A:P,4,0)="","",VLOOKUP(H112,'Raw3'!A:P,4,0)),"") ->  | X112: =IFERROR(IF(VLOOKUP(H112&V112,'Raw1'!A:Z,26,0)="","",VLOOKUP(H112&V112,'Raw1'!A:Z,26,0)),"") -> 
H113: =IF('Raw2'!U109="","",'Raw2'!U109) ->  | L113: =IF('Raw2'!V109="","",'Raw2'!V109) ->  | M113: =IFERROR(VLOOKUP(H113,'Raw4'!A:C,2,0),"") ->  | N113: =IFERROR(VLOOKUP(H113,'Raw2'!A:F,6,0),"") ->  | O113: =IFERROR(VLOOKUP($H113,'Raw2'!$A:$I,8,0),"") ->  | P113: =IFERROR(VLOOKUP($H113,'Raw2'!$A:$I,9,0),"") ->  | Q113: =IFERROR(YEAR(VLOOKUP(H113,'Raw3'!A:C,2,0)),"") ->  | R113: =IFERROR(VLOOKUP(H113,'Raw3'!A:P,16,0),"") ->  | S113: =IFERROR(VLOOKUP(H113,'Raw3'!A:P,3,0),"") ->  | T113: =IFERROR(IF(FIND("Q1",R113)>0,VLOOKUP(H113,'Raw3'!A:P,10,0),IF(FIND("Q2",R113)>0,VLOOKUP(H113,'Raw3'!A:P,11,0),IF(FIND("Q3",R113)>0,VLOOKUP(H113,'Raw3'!A:P,12,0),))),"") ->  | U113: =IFERROR(IF(FIND("Q4",R113)>0,VLOOKUP(H113,'Raw3'!A:P,14,0),""),"") ->  | V113: =IFERROR(IF(VLOOKUP(H113,'Raw3'!A:P,5,0)="","",VLOOKUP(H113,'Raw3'!A:P,5,0)),"") ->  | W113: =IFERROR(IF(VLOOKUP(H113,'Raw3'!A:P,4,0)="","",VLOOKUP(H113,'Raw3'!A:P,4,0)),"") ->  | X113: =IFERROR(IF(VLOOKUP(H113&V113,'Raw1'!A:Z,26,0)="","",VLOOKUP(H113&V113,'Raw1'!A:Z,26,0)),"") -> 
H114: =IF('Raw2'!U110="","",'Raw2'!U110) ->  | L114: =IF('Raw2'!V110="","",'Raw2'!V110) ->  | M114: =IFERROR(VLOOKUP(H114,'Raw4'!A:C,2,0),"") ->  | N114: =IFERROR(VLOOKUP(H114,'Raw2'!A:F,6,0),"") ->  | O114: =IFERROR(VLOOKUP($H114,'Raw2'!$A:$I,8,0),"") ->  | P114: =IFERROR(VLOOKUP($H114,'Raw2'!$A:$I,9,0),"") ->  | Q114: =IFERROR(YEAR(VLOOKUP(H114,'Raw3'!A:C,2,0)),"") ->  | R114: =IFERROR(VLOOKUP(H114,'Raw3'!A:P,16,0),"") ->  | S114: =IFERROR(VLOOKUP(H114,'Raw3'!A:P,3,0),"") ->  | T114: =IFERROR(IF(FIND("Q1",R114)>0,VLOOKUP(H114,'Raw3'!A:P,10,0),IF(FIND("Q2",R114)>0,VLOOKUP(H114,'Raw3'!A:P,11,0),IF(FIND("Q3",R114)>0,VLOOKUP(H114,'Raw3'!A:P,12,0),))),"") ->  | U114: =IFERROR(IF(FIND("Q4",R114)>0,VLOOKUP(H114,'Raw3'!A:P,14,0),""),"") ->  | V114: =IFERROR(IF(VLOOKUP(H114,'Raw3'!A:P,5,0)="","",VLOOKUP(H114,'Raw3'!A:P,5,0)),"") ->  | W114: =IFERROR(IF(VLOOKUP(H114,'Raw3'!A:P,4,0)="","",VLOOKUP(H114,'Raw3'!A:P,4,0)),"") ->  | X114: =IFERROR(IF(VLOOKUP(H114&V114,'Raw1'!A:Z,26,0)="","",VLOOKUP(H114&V114,'Raw1'!A:Z,26,0)),"") -> 
H115: =IF('Raw2'!U111="","",'Raw2'!U111) ->  | L115: =IF('Raw2'!V111="","",'Raw2'!V111) ->  | M115: =IFERROR(VLOOKUP(H115,'Raw4'!A:C,2,0),"") ->  | N115: =IFERROR(VLOOKUP(H115,'Raw2'!A:F,6,0),"") ->  | O115: =IFERROR(VLOOKUP($H115,'Raw2'!$A:$I,8,0),"") ->  | P115: =IFERROR(VLOOKUP($H115,'Raw2'!$A:$I,9,0),"") ->  | Q115: =IFERROR(YEAR(VLOOKUP(H115,'Raw3'!A:C,2,0)),"") ->  | R115: =IFERROR(VLOOKUP(H115,'Raw3'!A:P,16,0),"") ->  | S115: =IFERROR(VLOOKUP(H115,'Raw3'!A:P,3,0),"") ->  | T115: =IFERROR(IF(FIND("Q1",R115)>0,VLOOKUP(H115,'Raw3'!A:P,10,0),IF(FIND("Q2",R115)>0,VLOOKUP(H115,'Raw3'!A:P,11,0),IF(FIND("Q3",R115)>0,VLOOKUP(H115,'Raw3'!A:P,12,0),))),"") ->  | U115: =IFERROR(IF(FIND("Q4",R115)>0,VLOOKUP(H115,'Raw3'!A:P,14,0),""),"") ->  | V115: =IFERROR(IF(VLOOKUP(H115,'Raw3'!A:P,5,0)="","",VLOOKUP(H115,'Raw3'!A:P,5,0)),"") ->  | W115: =IFERROR(IF(VLOOKUP(H115,'Raw3'!A:P,4,0)="","",VLOOKUP(H115,'Raw3'!A:P,4,0)),"") ->  | X115: =IFERROR(IF(VLOOKUP(H115&V115,'Raw1'!A:Z,26,0)="","",VLOOKUP(H115&V115,'Raw1'!A:Z,26,0)),"") -> 
H116: =IF('Raw2'!U112="","",'Raw2'!U112) ->  | L116: =IF('Raw2'!V112="","",'Raw2'!V112) ->  | M116: =IFERROR(VLOOKUP(H116,'Raw4'!A:C,2,0),"") ->  | N116: =IFERROR(VLOOKUP(H116,'Raw2'!A:F,6,0),"") ->  | O116: =IFERROR(VLOOKUP($H116,'Raw2'!$A:$I,8,0),"") ->  | P116: =IFERROR(VLOOKUP($H116,'Raw2'!$A:$I,9,0),"") ->  | Q116: =IFERROR(YEAR(VLOOKUP(H116,'Raw3'!A:C,2,0)),"") ->  | R116: =IFERROR(VLOOKUP(H116,'Raw3'!A:P,16,0),"") ->  | S116: =IFERROR(VLOOKUP(H116,'Raw3'!A:P,3,0),"") ->  | T116: =IFERROR(IF(FIND("Q1",R116)>0,VLOOKUP(H116,'Raw3'!A:P,10,0),IF(FIND("Q2",R116)>0,VLOOKUP(H116,'Raw3'!A:P,11,0),IF(FIND("Q3",R116)>0,VLOOKUP(H116,'Raw3'!A:P,12,0),))),"") ->  | U116: =IFERROR(IF(FIND("Q4",R116)>0,VLOOKUP(H116,'Raw3'!A:P,14,0),""),"") ->  | V116: =IFERROR(IF(VLOOKUP(H116,'Raw3'!A:P,5,0)="","",VLOOKUP(H116,'Raw3'!A:P,5,0)),"") ->  | W116: =IFERROR(IF(VLOOKUP(H116,'Raw3'!A:P,4,0)="","",VLOOKUP(H116,'Raw3'!A:P,4,0)),"") ->  | X116: =IFERROR(IF(VLOOKUP(H116&V116,'Raw1'!A:Z,26,0)="","",VLOOKUP(H116&V116,'Raw1'!A:Z,26,0)),"") -> 
H117: =IF('Raw2'!U113="","",'Raw2'!U113) ->  | L117: =IF('Raw2'!V113="","",'Raw2'!V113) ->  | M117: =IFERROR(VLOOKUP(H117,'Raw4'!A:C,2,0),"") ->  | N117: =IFERROR(VLOOKUP(H117,'Raw2'!A:F,6,0),"") ->  | O117: =IFERROR(VLOOKUP($H117,'Raw2'!$A:$I,8,0),"") ->  | P117: =IFERROR(VLOOKUP($H117,'Raw2'!$A:$I,9,0),"") ->  | Q117: =IFERROR(YEAR(VLOOKUP(H117,'Raw3'!A:C,2,0)),"") ->  | R117: =IFERROR(VLOOKUP(H117,'Raw3'!A:P,16,0),"") ->  | S117: =IFERROR(VLOOKUP(H117,'Raw3'!A:P,3,0),"") ->  | T117: =IFERROR(IF(FIND("Q1",R117)>0,VLOOKUP(H117,'Raw3'!A:P,10,0),IF(FIND("Q2",R117)>0,VLOOKUP(H117,'Raw3'!A:P,11,0),IF(FIND("Q3",R117)>0,VLOOKUP(H117,'Raw3'!A:P,12,0),))),"") ->  | U117: =IFERROR(IF(FIND("Q4",R117)>0,VLOOKUP(H117,'Raw3'!A:P,14,0),""),"") ->  | V117: =IFERROR(IF(VLOOKUP(H117,'Raw3'!A:P,5,0)="","",VLOOKUP(H117,'Raw3'!A:P,5,0)),"") ->  | W117: =IFERROR(IF(VLOOKUP(H117,'Raw3'!A:P,4,0)="","",VLOOKUP(H117,'Raw3'!A:P,4,0)),"") ->  | X117: =IFERROR(IF(VLOOKUP(H117&V117,'Raw1'!A:Z,26,0)="","",VLOOKUP(H117&V117,'Raw1'!A:Z,26,0)),"") -> 
H118: =IF('Raw2'!U114="","",'Raw2'!U114) ->  | L118: =IF('Raw2'!V114="","",'Raw2'!V114) ->  | M118: =IFERROR(VLOOKUP(H118,'Raw4'!A:C,2,0),"") ->  | N118: =IFERROR(VLOOKUP(H118,'Raw2'!A:F,6,0),"") ->  | O118: =IFERROR(VLOOKUP($H118,'Raw2'!$A:$I,8,0),"") ->  | P118: =IFERROR(VLOOKUP($H118,'Raw2'!$A:$I,9,0),"") ->  | Q118: =IFERROR(YEAR(VLOOKUP(H118,'Raw3'!A:C,2,0)),"") ->  | R118: =IFERROR(VLOOKUP(H118,'Raw3'!A:P,16,0),"") ->  | S118: =IFERROR(VLOOKUP(H118,'Raw3'!A:P,3,0),"") ->  | T118: =IFERROR(IF(FIND("Q1",R118)>0,VLOOKUP(H118,'Raw3'!A:P,10,0),IF(FIND("Q2",R118)>0,VLOOKUP(H118,'Raw3'!A:P,11,0),IF(FIND("Q3",R118)>0,VLOOKUP(H118,'Raw3'!A:P,12,0),))),"") ->  | U118: =IFERROR(IF(FIND("Q4",R118)>0,VLOOKUP(H118,'Raw3'!A:P,14,0),""),"") ->  | V118: =IFERROR(IF(VLOOKUP(H118,'Raw3'!A:P,5,0)="","",VLOOKUP(H118,'Raw3'!A:P,5,0)),"") ->  | W118: =IFERROR(IF(VLOOKUP(H118,'Raw3'!A:P,4,0)="","",VLOOKUP(H118,'Raw3'!A:P,4,0)),"") ->  | X118: =IFERROR(IF(VLOOKUP(H118&V118,'Raw1'!A:Z,26,0)="","",VLOOKUP(H118&V118,'Raw1'!A:Z,26,0)),"") -> 
H119: =IF('Raw2'!U115="","",'Raw2'!U115) ->  | L119: =IF('Raw2'!V115="","",'Raw2'!V115) ->  | M119: =IFERROR(VLOOKUP(H119,'Raw4'!A:C,2,0),"") ->  | N119: =IFERROR(VLOOKUP(H119,'Raw2'!A:F,6,0),"") ->  | O119: =IFERROR(VLOOKUP($H119,'Raw2'!$A:$I,8,0),"") ->  | P119: =IFERROR(VLOOKUP($H119,'Raw2'!$A:$I,9,0),"") ->  | Q119: =IFERROR(YEAR(VLOOKUP(H119,'Raw3'!A:C,2,0)),"") ->  | R119: =IFERROR(VLOOKUP(H119,'Raw3'!A:P,16,0),"") ->  | S119: =IFERROR(VLOOKUP(H119,'Raw3'!A:P,3,0),"") ->  | T119: =IFERROR(IF(FIND("Q1",R119)>0,VLOOKUP(H119,'Raw3'!A:P,10,0),IF(FIND("Q2",R119)>0,VLOOKUP(H119,'Raw3'!A:P,11,0),IF(FIND("Q3",R119)>0,VLOOKUP(H119,'Raw3'!A:P,12,0),))),"") ->  | U119: =IFERROR(IF(FIND("Q4",R119)>0,VLOOKUP(H119,'Raw3'!A:P,14,0),""),"") ->  | V119: =IFERROR(IF(VLOOKUP(H119,'Raw3'!A:P,5,0)="","",VLOOKUP(H119,'Raw3'!A:P,5,0)),"") ->  | W119: =IFERROR(IF(VLOOKUP(H119,'Raw3'!A:P,4,0)="","",VLOOKUP(H119,'Raw3'!A:P,4,0)),"") ->  | X119: =IFERROR(IF(VLOOKUP(H119&V119,'Raw1'!A:Z,26,0)="","",VLOOKUP(H119&V119,'Raw1'!A:Z,26,0)),"") -> 
H120: =IF('Raw2'!U116="","",'Raw2'!U116) ->  | L120: =IF('Raw2'!V116="","",'Raw2'!V116) ->  | M120: =IFERROR(VLOOKUP(H120,'Raw4'!A:C,2,0),"") ->  | N120: =IFERROR(VLOOKUP(H120,'Raw2'!A:F,6,0),"") ->  | O120: =IFERROR(VLOOKUP($H120,'Raw2'!$A:$I,8,0),"") ->  | P120: =IFERROR(VLOOKUP($H120,'Raw2'!$A:$I,9,0),"") ->  | Q120: =IFERROR(YEAR(VLOOKUP(H120,'Raw3'!A:C,2,0)),"") ->  | R120: =IFERROR(VLOOKUP(H120,'Raw3'!A:P,16,0),"") ->  | S120: =IFERROR(VLOOKUP(H120,'Raw3'!A:P,3,0),"") ->  | T120: =IFERROR(IF(FIND("Q1",R120)>0,VLOOKUP(H120,'Raw3'!A:P,10,0),IF(FIND("Q2",R120)>0,VLOOKUP(H120,'Raw3'!A:P,11,0),IF(FIND("Q3",R120)>0,VLOOKUP(H120,'Raw3'!A:P,12,0),))),"") ->  | U120: =IFERROR(IF(FIND("Q4",R120)>0,VLOOKUP(H120,'Raw3'!A:P,14,0),""),"") ->  | V120: =IFERROR(IF(VLOOKUP(H120,'Raw3'!A:P,5,0)="","",VLOOKUP(H120,'Raw3'!A:P,5,0)),"") ->  | W120: =IFERROR(IF(VLOOKUP(H120,'Raw3'!A:P,4,0)="","",VLOOKUP(H120,'Raw3'!A:P,4,0)),"") ->  | X120: =IFERROR(IF(VLOOKUP(H120&V120,'Raw1'!A:Z,26,0)="","",VLOOKUP(H120&V120,'Raw1'!A:Z,26,0)),"") -> 
H121: =IF('Raw2'!U117="","",'Raw2'!U117) ->  | L121: =IF('Raw2'!V117="","",'Raw2'!V117) ->  | M121: =IFERROR(VLOOKUP(H121,'Raw4'!A:C,2,0),"") ->  | N121: =IFERROR(VLOOKUP(H121,'Raw2'!A:F,6,0),"") ->  | O121: =IFERROR(VLOOKUP($H121,'Raw2'!$A:$I,8,0),"") ->  | P121: =IFERROR(VLOOKUP($H121,'Raw2'!$A:$I,9,0),"") ->  | Q121: =IFERROR(YEAR(VLOOKUP(H121,'Raw3'!A:C,2,0)),"") ->  | R121: =IFERROR(VLOOKUP(H121,'Raw3'!A:P,16,0),"") ->  | S121: =IFERROR(VLOOKUP(H121,'Raw3'!A:P,3,0),"") ->  | T121: =IFERROR(IF(FIND("Q1",R121)>0,VLOOKUP(H121,'Raw3'!A:P,10,0),IF(FIND("Q2",R121)>0,VLOOKUP(H121,'Raw3'!A:P,11,0),IF(FIND("Q3",R121)>0,VLOOKUP(H121,'Raw3'!A:P,12,0),))),"") ->  | U121: =IFERROR(IF(FIND("Q4",R121)>0,VLOOKUP(H121,'Raw3'!A:P,14,0),""),"") ->  | V121: =IFERROR(IF(VLOOKUP(H121,'Raw3'!A:P,5,0)="","",VLOOKUP(H121,'Raw3'!A:P,5,0)),"") ->  | W121: =IFERROR(IF(VLOOKUP(H121,'Raw3'!A:P,4,0)="","",VLOOKUP(H121,'Raw3'!A:P,4,0)),"") ->  | X121: =IFERROR(IF(VLOOKUP(H121&V121,'Raw1'!A:Z,26,0)="","",VLOOKUP(H121&V121,'Raw1'!A:Z,26,0)),"") -> 
H122: =IF('Raw2'!U118="","",'Raw2'!U118) ->  | L122: =IF('Raw2'!V118="","",'Raw2'!V118) ->  | M122: =IFERROR(VLOOKUP(H122,'Raw4'!A:C,2,0),"") ->  | N122: =IFERROR(VLOOKUP(H122,'Raw2'!A:F,6,0),"") ->  | O122: =IFERROR(VLOOKUP($H122,'Raw2'!$A:$I,8,0),"") ->  | P122: =IFERROR(VLOOKUP($H122,'Raw2'!$A:$I,9,0),"") ->  | Q122: =IFERROR(YEAR(VLOOKUP(H122,'Raw3'!A:C,2,0)),"") ->  | R122: =IFERROR(VLOOKUP(H122,'Raw3'!A:P,16,0),"") ->  | S122: =IFERROR(VLOOKUP(H122,'Raw3'!A:P,3,0),"") ->  | T122: =IFERROR(IF(FIND("Q1",R122)>0,VLOOKUP(H122,'Raw3'!A:P,10,0),IF(FIND("Q2",R122)>0,VLOOKUP(H122,'Raw3'!A:P,11,0),IF(FIND("Q3",R122)>0,VLOOKUP(H122,'Raw3'!A:P,12,0),))),"") ->  | U122: =IFERROR(IF(FIND("Q4",R122)>0,VLOOKUP(H122,'Raw3'!A:P,14,0),""),"") ->  | V122: =IFERROR(IF(VLOOKUP(H122,'Raw3'!A:P,5,0)="","",VLOOKUP(H122,'Raw3'!A:P,5,0)),"") ->  | W122: =IFERROR(IF(VLOOKUP(H122,'Raw3'!A:P,4,0)="","",VLOOKUP(H122,'Raw3'!A:P,4,0)),"") ->  | X122: =IFERROR(IF(VLOOKUP(H122&V122,'Raw1'!A:Z,26,0)="","",VLOOKUP(H122&V122,'Raw1'!A:Z,26,0)),"") -> 
H123: =IF('Raw2'!U119="","",'Raw2'!U119) ->  | L123: =IF('Raw2'!V119="","",'Raw2'!V119) ->  | M123: =IFERROR(VLOOKUP(H123,'Raw4'!A:C,2,0),"") ->  | N123: =IFERROR(VLOOKUP(H123,'Raw2'!A:F,6,0),"") ->  | O123: =IFERROR(VLOOKUP($H123,'Raw2'!$A:$I,8,0),"") ->  | P123: =IFERROR(VLOOKUP($H123,'Raw2'!$A:$I,9,0),"") ->  | Q123: =IFERROR(YEAR(VLOOKUP(H123,'Raw3'!A:C,2,0)),"") ->  | R123: =IFERROR(VLOOKUP(H123,'Raw3'!A:P,16,0),"") ->  | S123: =IFERROR(VLOOKUP(H123,'Raw3'!A:P,3,0),"") ->  | T123: =IFERROR(IF(FIND("Q1",R123)>0,VLOOKUP(H123,'Raw3'!A:P,10,0),IF(FIND("Q2",R123)>0,VLOOKUP(H123,'Raw3'!A:P,11,0),IF(FIND("Q3",R123)>0,VLOOKUP(H123,'Raw3'!A:P,12,0),))),"") ->  | U123: =IFERROR(IF(FIND("Q4",R123)>0,VLOOKUP(H123,'Raw3'!A:P,14,0),""),"") ->  | V123: =IFERROR(IF(VLOOKUP(H123,'Raw3'!A:P,5,0)="","",VLOOKUP(H123,'Raw3'!A:P,5,0)),"") ->  | W123: =IFERROR(IF(VLOOKUP(H123,'Raw3'!A:P,4,0)="","",VLOOKUP(H123,'Raw3'!A:P,4,0)),"") ->  | X123: =IFERROR(IF(VLOOKUP(H123&V123,'Raw1'!A:Z,26,0)="","",VLOOKUP(H123&V123,'Raw1'!A:Z,26,0)),"") -> 
H124: =IF('Raw2'!U120="","",'Raw2'!U120) ->  | L124: =IF('Raw2'!V120="","",'Raw2'!V120) ->  | M124: =IFERROR(VLOOKUP(H124,'Raw4'!A:C,2,0),"") ->  | N124: =IFERROR(VLOOKUP(H124,'Raw2'!A:F,6,0),"") ->  | O124: =IFERROR(VLOOKUP($H124,'Raw2'!$A:$I,8,0),"") ->  | P124: =IFERROR(VLOOKUP($H124,'Raw2'!$A:$I,9,0),"") ->  | Q124: =IFERROR(YEAR(VLOOKUP(H124,'Raw3'!A:C,2,0)),"") ->  | R124: =IFERROR(VLOOKUP(H124,'Raw3'!A:P,16,0),"") ->  | S124: =IFERROR(VLOOKUP(H124,'Raw3'!A:P,3,0),"") ->  | T124: =IFERROR(IF(FIND("Q1",R124)>0,VLOOKUP(H124,'Raw3'!A:P,10,0),IF(FIND("Q2",R124)>0,VLOOKUP(H124,'Raw3'!A:P,11,0),IF(FIND("Q3",R124)>0,VLOOKUP(H124,'Raw3'!A:P,12,0),))),"") ->  | U124: =IFERROR(IF(FIND("Q4",R124)>0,VLOOKUP(H124,'Raw3'!A:P,14,0),""),"") ->  | V124: =IFERROR(IF(VLOOKUP(H124,'Raw3'!A:P,5,0)="","",VLOOKUP(H124,'Raw3'!A:P,5,0)),"") ->  | W124: =IFERROR(IF(VLOOKUP(H124,'Raw3'!A:P,4,0)="","",VLOOKUP(H124,'Raw3'!A:P,4,0)),"") ->  | X124: =IFERROR(IF(VLOOKUP(H124&V124,'Raw1'!A:Z,26,0)="","",VLOOKUP(H124&V124,'Raw1'!A:Z,26,0)),"") -> 
H125: =IF('Raw2'!U121="","",'Raw2'!U121) ->  | L125: =IF('Raw2'!V121="","",'Raw2'!V121) ->  | M125: =IFERROR(VLOOKUP(H125,'Raw4'!A:C,2,0),"") ->  | N125: =IFERROR(VLOOKUP(H125,'Raw2'!A:F,6,0),"") ->  | O125: =IFERROR(VLOOKUP($H125,'Raw2'!$A:$I,8,0),"") ->  | P125: =IFERROR(VLOOKUP($H125,'Raw2'!$A:$I,9,0),"") ->  | Q125: =IFERROR(YEAR(VLOOKUP(H125,'Raw3'!A:C,2,0)),"") ->  | R125: =IFERROR(VLOOKUP(H125,'Raw3'!A:P,16,0),"") ->  | S125: =IFERROR(VLOOKUP(H125,'Raw3'!A:P,3,0),"") ->  | T125: =IFERROR(IF(FIND("Q1",R125)>0,VLOOKUP(H125,'Raw3'!A:P,10,0),IF(FIND("Q2",R125)>0,VLOOKUP(H125,'Raw3'!A:P,11,0),IF(FIND("Q3",R125)>0,VLOOKUP(H125,'Raw3'!A:P,12,0),))),"") ->  | U125: =IFERROR(IF(FIND("Q4",R125)>0,VLOOKUP(H125,'Raw3'!A:P,14,0),""),"") ->  | V125: =IFERROR(IF(VLOOKUP(H125,'Raw3'!A:P,5,0)="","",VLOOKUP(H125,'Raw3'!A:P,5,0)),"") ->  | W125: =IFERROR(IF(VLOOKUP(H125,'Raw3'!A:P,4,0)="","",VLOOKUP(H125,'Raw3'!A:P,4,0)),"") ->  | X125: =IFERROR(IF(VLOOKUP(H125&V125,'Raw1'!A:Z,26,0)="","",VLOOKUP(H125&V125,'Raw1'!A:Z,26,0)),"") -> 
H126: =IF('Raw2'!U122="","",'Raw2'!U122) ->  | L126: =IF('Raw2'!V122="","",'Raw2'!V122) ->  | M126: =IFERROR(VLOOKUP(H126,'Raw4'!A:C,2,0),"") ->  | N126: =IFERROR(VLOOKUP(H126,'Raw2'!A:F,6,0),"") ->  | O126: =IFERROR(VLOOKUP($H126,'Raw2'!$A:$I,8,0),"") ->  | P126: =IFERROR(VLOOKUP($H126,'Raw2'!$A:$I,9,0),"") ->  | Q126: =IFERROR(YEAR(VLOOKUP(H126,'Raw3'!A:C,2,0)),"") ->  | R126: =IFERROR(VLOOKUP(H126,'Raw3'!A:P,16,0),"") ->  | S126: =IFERROR(VLOOKUP(H126,'Raw3'!A:P,3,0),"") ->  | T126: =IFERROR(IF(FIND("Q1",R126)>0,VLOOKUP(H126,'Raw3'!A:P,10,0),IF(FIND("Q2",R126)>0,VLOOKUP(H126,'Raw3'!A:P,11,0),IF(FIND("Q3",R126)>0,VLOOKUP(H126,'Raw3'!A:P,12,0),))),"") ->  | U126: =IFERROR(IF(FIND("Q4",R126)>0,VLOOKUP(H126,'Raw3'!A:P,14,0),""),"") ->  | V126: =IFERROR(IF(VLOOKUP(H126,'Raw3'!A:P,5,0)="","",VLOOKUP(H126,'Raw3'!A:P,5,0)),"") ->  | W126: =IFERROR(IF(VLOOKUP(H126,'Raw3'!A:P,4,0)="","",VLOOKUP(H126,'Raw3'!A:P,4,0)),"") ->  | X126: =IFERROR(IF(VLOOKUP(H126&V126,'Raw1'!A:Z,26,0)="","",VLOOKUP(H126&V126,'Raw1'!A:Z,26,0)),"") -> 
H127: =IF('Raw2'!U123="","",'Raw2'!U123) ->  | L127: =IF('Raw2'!V123="","",'Raw2'!V123) ->  | M127: =IFERROR(VLOOKUP(H127,'Raw4'!A:C,2,0),"") ->  | N127: =IFERROR(VLOOKUP(H127,'Raw2'!A:F,6,0),"") ->  | O127: =IFERROR(VLOOKUP($H127,'Raw2'!$A:$I,8,0),"") ->  | P127: =IFERROR(VLOOKUP($H127,'Raw2'!$A:$I,9,0),"") ->  | Q127: =IFERROR(YEAR(VLOOKUP(H127,'Raw3'!A:C,2,0)),"") ->  | R127: =IFERROR(VLOOKUP(H127,'Raw3'!A:P,16,0),"") ->  | S127: =IFERROR(VLOOKUP(H127,'Raw3'!A:P,3,0),"") ->  | T127: =IFERROR(IF(FIND("Q1",R127)>0,VLOOKUP(H127,'Raw3'!A:P,10,0),IF(FIND("Q2",R127)>0,VLOOKUP(H127,'Raw3'!A:P,11,0),IF(FIND("Q3",R127)>0,VLOOKUP(H127,'Raw3'!A:P,12,0),))),"") ->  | U127: =IFERROR(IF(FIND("Q4",R127)>0,VLOOKUP(H127,'Raw3'!A:P,14,0),""),"") ->  | V127: =IFERROR(IF(VLOOKUP(H127,'Raw3'!A:P,5,0)="","",VLOOKUP(H127,'Raw3'!A:P,5,0)),"") ->  | W127: =IFERROR(IF(VLOOKUP(H127,'Raw3'!A:P,4,0)="","",VLOOKUP(H127,'Raw3'!A:P,4,0)),"") ->  | X127: =IFERROR(IF(VLOOKUP(H127&V127,'Raw1'!A:Z,26,0)="","",VLOOKUP(H127&V127,'Raw1'!A:Z,26,0)),"") -> 
H128: =IF('Raw2'!U124="","",'Raw2'!U124) ->  | L128: =IF('Raw2'!V124="","",'Raw2'!V124) ->  | M128: =IFERROR(VLOOKUP(H128,'Raw4'!A:C,2,0),"") ->  | N128: =IFERROR(VLOOKUP(H128,'Raw2'!A:F,6,0),"") ->  | O128: =IFERROR(VLOOKUP($H128,'Raw2'!$A:$I,8,0),"") ->  | P128: =IFERROR(VLOOKUP($H128,'Raw2'!$A:$I,9,0),"") ->  | Q128: =IFERROR(YEAR(VLOOKUP(H128,'Raw3'!A:C,2,0)),"") ->  | R128: =IFERROR(VLOOKUP(H128,'Raw3'!A:P,16,0),"") ->  | S128: =IFERROR(VLOOKUP(H128,'Raw3'!A:P,3,0),"") ->  | T128: =IFERROR(IF(FIND("Q1",R128)>0,VLOOKUP(H128,'Raw3'!A:P,10,0),IF(FIND("Q2",R128)>0,VLOOKUP(H128,'Raw3'!A:P,11,0),IF(FIND("Q3",R128)>0,VLOOKUP(H128,'Raw3'!A:P,12,0),))),"") ->  | U128: =IFERROR(IF(FIND("Q4",R128)>0,VLOOKUP(H128,'Raw3'!A:P,14,0),""),"") ->  | V128: =IFERROR(IF(VLOOKUP(H128,'Raw3'!A:P,5,0)="","",VLOOKUP(H128,'Raw3'!A:P,5,0)),"") ->  | W128: =IFERROR(IF(VLOOKUP(H128,'Raw3'!A:P,4,0)="","",VLOOKUP(H128,'Raw3'!A:P,4,0)),"") ->  | X128: =IFERROR(IF(VLOOKUP(H128&V128,'Raw1'!A:Z,26,0)="","",VLOOKUP(H128&V128,'Raw1'!A:Z,26,0)),"") -> 
H129: =IF('Raw2'!U125="","",'Raw2'!U125) ->  | L129: =IF('Raw2'!V125="","",'Raw2'!V125) ->  | M129: =IFERROR(VLOOKUP(H129,'Raw4'!A:C,2,0),"") ->  | N129: =IFERROR(VLOOKUP(H129,'Raw2'!A:F,6,0),"") ->  | O129: =IFERROR(VLOOKUP($H129,'Raw2'!$A:$I,8,0),"") ->  | P129: =IFERROR(VLOOKUP($H129,'Raw2'!$A:$I,9,0),"") ->  | Q129: =IFERROR(YEAR(VLOOKUP(H129,'Raw3'!A:C,2,0)),"") ->  | R129: =IFERROR(VLOOKUP(H129,'Raw3'!A:P,16,0),"") ->  | S129: =IFERROR(VLOOKUP(H129,'Raw3'!A:P,3,0),"") ->  | T129: =IFERROR(IF(FIND("Q1",R129)>0,VLOOKUP(H129,'Raw3'!A:P,10,0),IF(FIND("Q2",R129)>0,VLOOKUP(H129,'Raw3'!A:P,11,0),IF(FIND("Q3",R129)>0,VLOOKUP(H129,'Raw3'!A:P,12,0),))),"") ->  | U129: =IFERROR(IF(FIND("Q4",R129)>0,VLOOKUP(H129,'Raw3'!A:P,14,0),""),"") ->  | V129: =IFERROR(IF(VLOOKUP(H129,'Raw3'!A:P,5,0)="","",VLOOKUP(H129,'Raw3'!A:P,5,0)),"") ->  | W129: =IFERROR(IF(VLOOKUP(H129,'Raw3'!A:P,4,0)="","",VLOOKUP(H129,'Raw3'!A:P,4,0)),"") ->  | X129: =IFERROR(IF(VLOOKUP(H129&V129,'Raw1'!A:Z,26,0)="","",VLOOKUP(H129&V129,'Raw1'!A:Z,26,0)),"") -> 
H130: =IF('Raw2'!U126="","",'Raw2'!U126) ->  | L130: =IF('Raw2'!V126="","",'Raw2'!V126) ->  | M130: =IFERROR(VLOOKUP(H130,'Raw4'!A:C,2,0),"") ->  | N130: =IFERROR(VLOOKUP(H130,'Raw2'!A:F,6,0),"") ->  | O130: =IFERROR(VLOOKUP($H130,'Raw2'!$A:$I,8,0),"") ->  | P130: =IFERROR(VLOOKUP($H130,'Raw2'!$A:$I,9,0),"") ->  | Q130: =IFERROR(YEAR(VLOOKUP(H130,'Raw3'!A:C,2,0)),"") ->  | R130: =IFERROR(VLOOKUP(H130,'Raw3'!A:P,16,0),"") ->  | S130: =IFERROR(VLOOKUP(H130,'Raw3'!A:P,3,0),"") ->  | T130: =IFERROR(IF(FIND("Q1",R130)>0,VLOOKUP(H130,'Raw3'!A:P,10,0),IF(FIND("Q2",R130)>0,VLOOKUP(H130,'Raw3'!A:P,11,0),IF(FIND("Q3",R130)>0,VLOOKUP(H130,'Raw3'!A:P,12,0),))),"") ->  | U130: =IFERROR(IF(FIND("Q4",R130)>0,VLOOKUP(H130,'Raw3'!A:P,14,0),""),"") ->  | V130: =IFERROR(IF(VLOOKUP(H130,'Raw3'!A:P,5,0)="","",VLOOKUP(H130,'Raw3'!A:P,5,0)),"") ->  | W130: =IFERROR(IF(VLOOKUP(H130,'Raw3'!A:P,4,0)="","",VLOOKUP(H130,'Raw3'!A:P,4,0)),"") ->  | X130: =IFERROR(IF(VLOOKUP(H130&V130,'Raw1'!A:Z,26,0)="","",VLOOKUP(H130&V130,'Raw1'!A:Z,26,0)),"") -> 
H131: =IF('Raw2'!U127="","",'Raw2'!U127) ->  | L131: =IF('Raw2'!V127="","",'Raw2'!V127) ->  | M131: =IFERROR(VLOOKUP(H131,'Raw4'!A:C,2,0),"") ->  | N131: =IFERROR(VLOOKUP(H131,'Raw2'!A:F,6,0),"") ->  | O131: =IFERROR(VLOOKUP($H131,'Raw2'!$A:$I,8,0),"") ->  | P131: =IFERROR(VLOOKUP($H131,'Raw2'!$A:$I,9,0),"") ->  | Q131: =IFERROR(YEAR(VLOOKUP(H131,'Raw3'!A:C,2,0)),"") ->  | R131: =IFERROR(VLOOKUP(H131,'Raw3'!A:P,16,0),"") ->  | S131: =IFERROR(VLOOKUP(H131,'Raw3'!A:P,3,0),"") ->  | T131: =IFERROR(IF(FIND("Q1",R131)>0,VLOOKUP(H131,'Raw3'!A:P,10,0),IF(FIND("Q2",R131)>0,VLOOKUP(H131,'Raw3'!A:P,11,0),IF(FIND("Q3",R131)>0,VLOOKUP(H131,'Raw3'!A:P,12,0),))),"") ->  | U131: =IFERROR(IF(FIND("Q4",R131)>0,VLOOKUP(H131,'Raw3'!A:P,14,0),""),"") ->  | V131: =IFERROR(IF(VLOOKUP(H131,'Raw3'!A:P,5,0)="","",VLOOKUP(H131,'Raw3'!A:P,5,0)),"") ->  | W131: =IFERROR(IF(VLOOKUP(H131,'Raw3'!A:P,4,0)="","",VLOOKUP(H131,'Raw3'!A:P,4,0)),"") ->  | X131: =IFERROR(IF(VLOOKUP(H131&V131,'Raw1'!A:Z,26,0)="","",VLOOKUP(H131&V131,'Raw1'!A:Z,26,0)),"") -> 
H132: =IF('Raw2'!U128="","",'Raw2'!U128) ->  | L132: =IF('Raw2'!V128="","",'Raw2'!V128) ->  | M132: =IFERROR(VLOOKUP(H132,'Raw4'!A:C,2,0),"") ->  | N132: =IFERROR(VLOOKUP(H132,'Raw2'!A:F,6,0),"") ->  | O132: =IFERROR(VLOOKUP($H132,'Raw2'!$A:$I,8,0),"") ->  | P132: =IFERROR(VLOOKUP($H132,'Raw2'!$A:$I,9,0),"") ->  | Q132: =IFERROR(YEAR(VLOOKUP(H132,'Raw3'!A:C,2,0)),"") ->  | R132: =IFERROR(VLOOKUP(H132,'Raw3'!A:P,16,0),"") ->  | S132: =IFERROR(VLOOKUP(H132,'Raw3'!A:P,3,0),"") ->  | T132: =IFERROR(IF(FIND("Q1",R132)>0,VLOOKUP(H132,'Raw3'!A:P,10,0),IF(FIND("Q2",R132)>0,VLOOKUP(H132,'Raw3'!A:P,11,0),IF(FIND("Q3",R132)>0,VLOOKUP(H132,'Raw3'!A:P,12,0),))),"") ->  | U132: =IFERROR(IF(FIND("Q4",R132)>0,VLOOKUP(H132,'Raw3'!A:P,14,0),""),"") ->  | V132: =IFERROR(IF(VLOOKUP(H132,'Raw3'!A:P,5,0)="","",VLOOKUP(H132,'Raw3'!A:P,5,0)),"") ->  | W132: =IFERROR(IF(VLOOKUP(H132,'Raw3'!A:P,4,0)="","",VLOOKUP(H132,'Raw3'!A:P,4,0)),"") ->  | X132: =IFERROR(IF(VLOOKUP(H132&V132,'Raw1'!A:Z,26,0)="","",VLOOKUP(H132&V132,'Raw1'!A:Z,26,0)),"") -> 
H133: =IF('Raw2'!U129="","",'Raw2'!U129) ->  | L133: =IF('Raw2'!V129="","",'Raw2'!V129) ->  | M133: =IFERROR(VLOOKUP(H133,'Raw4'!A:C,2,0),"") ->  | N133: =IFERROR(VLOOKUP(H133,'Raw2'!A:F,6,0),"") ->  | O133: =IFERROR(VLOOKUP($H133,'Raw2'!$A:$I,8,0),"") ->  | P133: =IFERROR(VLOOKUP($H133,'Raw2'!$A:$I,9,0),"") ->  | Q133: =IFERROR(YEAR(VLOOKUP(H133,'Raw3'!A:C,2,0)),"") ->  | R133: =IFERROR(VLOOKUP(H133,'Raw3'!A:P,16,0),"") ->  | S133: =IFERROR(VLOOKUP(H133,'Raw3'!A:P,3,0),"") ->  | T133: =IFERROR(IF(FIND("Q1",R133)>0,VLOOKUP(H133,'Raw3'!A:P,10,0),IF(FIND("Q2",R133)>0,VLOOKUP(H133,'Raw3'!A:P,11,0),IF(FIND("Q3",R133)>0,VLOOKUP(H133,'Raw3'!A:P,12,0),))),"") ->  | U133: =IFERROR(IF(FIND("Q4",R133)>0,VLOOKUP(H133,'Raw3'!A:P,14,0),""),"") ->  | V133: =IFERROR(IF(VLOOKUP(H133,'Raw3'!A:P,5,0)="","",VLOOKUP(H133,'Raw3'!A:P,5,0)),"") ->  | W133: =IFERROR(IF(VLOOKUP(H133,'Raw3'!A:P,4,0)="","",VLOOKUP(H133,'Raw3'!A:P,4,0)),"") ->  | X133: =IFERROR(IF(VLOOKUP(H133&V133,'Raw1'!A:Z,26,0)="","",VLOOKUP(H133&V133,'Raw1'!A:Z,26,0)),"") -> 
H134: =IF('Raw2'!U130="","",'Raw2'!U130) ->  | J134: =IF(H134="","",LEFT(H134,FIND(" ",H134)-1)) ->  | K134: =IF(H134="","",MID(H134,FIND(" ",H134)+1,100)) ->  | L134: =IF('Raw2'!V130="","",'Raw2'!V130) ->  | M134: =IFERROR(VLOOKUP(H134,'Raw4'!A:C,2,0),"") ->  | N134: =IFERROR(VLOOKUP(H134,'Raw2'!A:F,6,0),"") ->  | O134: =IFERROR(VLOOKUP($H134,'Raw2'!$A:$I,8,0),"") ->  | P134: =IFERROR(VLOOKUP($H134,'Raw2'!$A:$I,9,0),"") ->  | Q134: =IFERROR(YEAR(VLOOKUP(H134,'Raw3'!A:C,2,0)),"") ->  | R134: =IFERROR(VLOOKUP(H134,'Raw3'!A:P,16,0),"") ->  | S134: =IFERROR(VLOOKUP(H134,'Raw3'!A:P,3,0),"") ->  | T134: =IFERROR(IF(FIND("Q1",R134)>0,VLOOKUP(H134,'Raw3'!A:P,10,0),IF(FIND("Q2",R134)>0,VLOOKUP(H134,'Raw3'!A:P,11,0),IF(FIND("Q3",R134)>0,VLOOKUP(H134,'Raw3'!A:P,12,0),))),"") ->  | U134: =IFERROR(IF(FIND("Q4",R134)>0,VLOOKUP(H134,'Raw3'!A:P,14,0),""),"") ->  | V134: =IFERROR(IF(VLOOKUP(H134,'Raw3'!A:P,5,0)="","",VLOOKUP(H134,'Raw3'!A:P,5,0)),"") ->  | W134: =IFERROR(IF(VLOOKUP(H134,'Raw3'!A:P,4,0)="","",VLOOKUP(H134,'Raw3'!A:P,4,0)),"") ->  | X134: =IFERROR(IF(VLOOKUP(H134&V134,'Raw1'!A:Z,26,0)="","",VLOOKUP(H134&V134,'Raw1'!A:Z,26,0)),"") -> 
H135: =IF('Raw2'!U131="","",'Raw2'!U131) ->  | L135: =IF('Raw2'!V131="","",'Raw2'!V131) ->  | M135: =IFERROR(VLOOKUP(H135,'Raw4'!A:C,2,0),"") ->  | N135: =IFERROR(VLOOKUP(H135,'Raw2'!A:F,6,0),"") ->  | O135: =IFERROR(VLOOKUP($H135,'Raw2'!$A:$I,8,0),"") ->  | P135: =IFERROR(VLOOKUP($H135,'Raw2'!$A:$I,9,0),"") ->  | Q135: =IFERROR(YEAR(VLOOKUP(H135,'Raw3'!A:C,2,0)),"") ->  | R135: =IFERROR(VLOOKUP(H135,'Raw3'!A:P,16,0),"") ->  | S135: =IFERROR(VLOOKUP(H135,'Raw3'!A:P,3,0),"") ->  | T135: =IFERROR(IF(FIND("Q1",R135)>0,VLOOKUP(H135,'Raw3'!A:P,10,0),IF(FIND("Q2",R135)>0,VLOOKUP(H135,'Raw3'!A:P,11,0),IF(FIND("Q3",R135)>0,VLOOKUP(H135,'Raw3'!A:P,12,0),))),"") ->  | U135: =IFERROR(IF(FIND("Q4",R135)>0,VLOOKUP(H135,'Raw3'!A:P,14,0),""),"") ->  | V135: =IFERROR(IF(VLOOKUP(H135,'Raw3'!A:P,5,0)="","",VLOOKUP(H135,'Raw3'!A:P,5,0)),"") ->  | W135: =IFERROR(IF(VLOOKUP(H135,'Raw3'!A:P,4,0)="","",VLOOKUP(H135,'Raw3'!A:P,4,0)),"") ->  | X135: =IFERROR(IF(VLOOKUP(H135&V135,'Raw1'!A:Z,26,0)="","",VLOOKUP(H135&V135,'Raw1'!A:Z,26,0)),"") -> 
H136: =IF('Raw2'!U132="","",'Raw2'!U132) ->  | I136: =IF(J136="","",I135+1) ->  | L136: =IF('Raw2'!V132="","",'Raw2'!V132) ->  | M136: =IFERROR(VLOOKUP(H136,'Raw4'!A:C,2,0),"") ->  | N136: =IFERROR(VLOOKUP(H136,'Raw2'!A:F,6,0),"") ->  | O136: =IFERROR(VLOOKUP($H136,'Raw2'!$A:$I,8,0),"") ->  | P136: =IFERROR(VLOOKUP($H136,'Raw2'!$A:$I,9,0),"") ->  | Q136: =IFERROR(YEAR(VLOOKUP(H136,'Raw3'!A:C,2,0)),"") ->  | R136: =IFERROR(VLOOKUP(H136,'Raw3'!A:P,16,0),"") ->  | S136: =IFERROR(VLOOKUP(H136,'Raw3'!A:P,3,0),"") ->  | T136: =IFERROR(IF(FIND("Q1",R136)>0,VLOOKUP(H136,'Raw3'!A:P,10,0),IF(FIND("Q2",R136)>0,VLOOKUP(H136,'Raw3'!A:P,11,0),IF(FIND("Q3",R136)>0,VLOOKUP(H136,'Raw3'!A:P,12,0),))),"") ->  | U136: =IFERROR(IF(FIND("Q4",R136)>0,VLOOKUP(H136,'Raw3'!A:P,14,0),""),"") ->  | V136: =IFERROR(IF(VLOOKUP(H136,'Raw3'!A:P,5,0)="","",VLOOKUP(H136,'Raw3'!A:P,5,0)),"") ->  | W136: =IFERROR(IF(VLOOKUP(H136,'Raw3'!A:P,4,0)="","",VLOOKUP(H136,'Raw3'!A:P,4,0)),"") ->  | X136: =IFERROR(IF(VLOOKUP(H136&V136,'Raw1'!A:Z,26,0)="","",VLOOKUP(H136&V136,'Raw1'!A:Z,26,0)),"") -> 
H137: =IF('Raw2'!U133="","",'Raw2'!U133) ->  | L137: =IF('Raw2'!V133="","",'Raw2'!V133) ->  | M137: =IFERROR(VLOOKUP(H137,'Raw4'!A:C,2,0),"") ->  | N137: =IFERROR(VLOOKUP(H137,'Raw2'!A:F,6,0),"") ->  | O137: =IFERROR(VLOOKUP($H137,'Raw2'!$A:$I,8,0),"") ->  | P137: =IFERROR(VLOOKUP($H137,'Raw2'!$A:$I,9,0),"") ->  | Q137: =IFERROR(YEAR(VLOOKUP(H137,'Raw3'!A:C,2,0)),"") ->  | R137: =IFERROR(VLOOKUP(H137,'Raw3'!A:P,16,0),"") ->  | S137: =IFERROR(VLOOKUP(H137,'Raw3'!A:P,3,0),"") ->  | T137: =IFERROR(IF(FIND("Q1",R137)>0,VLOOKUP(H137,'Raw3'!A:P,10,0),IF(FIND("Q2",R137)>0,VLOOKUP(H137,'Raw3'!A:P,11,0),IF(FIND("Q3",R137)>0,VLOOKUP(H137,'Raw3'!A:P,12,0),))),"") ->  | U137: =IFERROR(IF(FIND("Q4",R137)>0,VLOOKUP(H137,'Raw3'!A:P,14,0),""),"") ->  | V137: =IFERROR(IF(VLOOKUP(H137,'Raw3'!A:P,5,0)="","",VLOOKUP(H137,'Raw3'!A:P,5,0)),"") ->  | W137: =IFERROR(IF(VLOOKUP(H137,'Raw3'!A:P,4,0)="","",VLOOKUP(H137,'Raw3'!A:P,4,0)),"") ->  | X137: =IFERROR(IF(VLOOKUP(H137&V137,'Raw1'!A:Z,26,0)="","",VLOOKUP(H137&V137,'Raw1'!A:Z,26,0)),"") -> 
H138: =IF('Raw2'!U134="","",'Raw2'!U134) ->  | L138: =IF('Raw2'!V134="","",'Raw2'!V134) ->  | M138: =IFERROR(VLOOKUP(H138,'Raw4'!A:C,2,0),"") ->  | N138: =IFERROR(VLOOKUP(H138,'Raw2'!A:F,6,0),"") ->  | O138: =IFERROR(VLOOKUP($H138,'Raw2'!$A:$I,8,0),"") ->  | P138: =IFERROR(VLOOKUP($H138,'Raw2'!$A:$I,9,0),"") ->  | Q138: =IFERROR(YEAR(VLOOKUP(H138,'Raw3'!A:C,2,0)),"") ->  | R138: =IFERROR(VLOOKUP(H138,'Raw3'!A:P,16,0),"") ->  | S138: =IFERROR(VLOOKUP(H138,'Raw3'!A:P,3,0),"") ->  | T138: =IFERROR(IF(FIND("Q1",R138)>0,VLOOKUP(H138,'Raw3'!A:P,10,0),IF(FIND("Q2",R138)>0,VLOOKUP(H138,'Raw3'!A:P,11,0),IF(FIND("Q3",R138)>0,VLOOKUP(H138,'Raw3'!A:P,12,0),))),"") ->  | U138: =IFERROR(IF(FIND("Q4",R138)>0,VLOOKUP(H138,'Raw3'!A:P,14,0),""),"") ->  | V138: =IFERROR(IF(VLOOKUP(H138,'Raw3'!A:P,5,0)="","",VLOOKUP(H138,'Raw3'!A:P,5,0)),"") ->  | W138: =IFERROR(IF(VLOOKUP(H138,'Raw3'!A:P,4,0)="","",VLOOKUP(H138,'Raw3'!A:P,4,0)),"") ->  | X138: =IFERROR(IF(VLOOKUP(H138&V138,'Raw1'!A:Z,26,0)="","",VLOOKUP(H138&V138,'Raw1'!A:Z,26,0)),"") -> 
H139: =IF('Raw2'!U135="","",'Raw2'!U135) ->  | L139: =IF('Raw2'!V135="","",'Raw2'!V135) ->  | M139: =IFERROR(VLOOKUP(H139,'Raw4'!A:C,2,0),"") ->  | N139: =IFERROR(VLOOKUP(H139,'Raw2'!A:F,6,0),"") ->  | O139: =IFERROR(VLOOKUP($H139,'Raw2'!$A:$I,8,0),"") ->  | P139: =IFERROR(VLOOKUP($H139,'Raw2'!$A:$I,9,0),"") ->  | Q139: =IFERROR(YEAR(VLOOKUP(H139,'Raw3'!A:C,2,0)),"") ->  | R139: =IFERROR(VLOOKUP(H139,'Raw3'!A:P,16,0),"") ->  | S139: =IFERROR(VLOOKUP(H139,'Raw3'!A:P,3,0),"") ->  | T139: =IFERROR(IF(FIND("Q1",R139)>0,VLOOKUP(H139,'Raw3'!A:P,10,0),IF(FIND("Q2",R139)>0,VLOOKUP(H139,'Raw3'!A:P,11,0),IF(FIND("Q3",R139)>0,VLOOKUP(H139,'Raw3'!A:P,12,0),))),"") ->  | U139: =IFERROR(IF(FIND("Q4",R139)>0,VLOOKUP(H139,'Raw3'!A:P,14,0),""),"") ->  | V139: =IFERROR(IF(VLOOKUP(H139,'Raw3'!A:P,5,0)="","",VLOOKUP(H139,'Raw3'!A:P,5,0)),"") ->  | W139: =IFERROR(IF(VLOOKUP(H139,'Raw3'!A:P,4,0)="","",VLOOKUP(H139,'Raw3'!A:P,4,0)),"") ->  | X139: =IFERROR(IF(VLOOKUP(H139&V139,'Raw1'!A:Z,26,0)="","",VLOOKUP(H139&V139,'Raw1'!A:Z,26,0)),"") -> 
H140: =IF('Raw2'!U136="","",'Raw2'!U136) ->  | L140: =IF('Raw2'!V136="","",'Raw2'!V136) ->  | M140: =IFERROR(VLOOKUP(H140,'Raw4'!A:C,2,0),"") ->  | N140: =IFERROR(VLOOKUP(H140,'Raw2'!A:F,6,0),"") ->  | O140: =IFERROR(VLOOKUP($H140,'Raw2'!$A:$I,8,0),"") ->  | P140: =IFERROR(VLOOKUP($H140,'Raw2'!$A:$I,9,0),"") ->  | Q140: =IFERROR(YEAR(VLOOKUP(H140,'Raw3'!A:C,2,0)),"") ->  | R140: =IFERROR(VLOOKUP(H140,'Raw3'!A:P,16,0),"") ->  | S140: =IFERROR(VLOOKUP(H140,'Raw3'!A:P,3,0),"") ->  | T140: =IFERROR(IF(FIND("Q1",R140)>0,VLOOKUP(H140,'Raw3'!A:P,10,0),IF(FIND("Q2",R140)>0,VLOOKUP(H140,'Raw3'!A:P,11,0),IF(FIND("Q3",R140)>0,VLOOKUP(H140,'Raw3'!A:P,12,0),))),"") ->  | U140: =IFERROR(IF(FIND("Q4",R140)>0,VLOOKUP(H140,'Raw3'!A:P,14,0),""),"") ->  | V140: =IFERROR(IF(VLOOKUP(H140,'Raw3'!A:P,5,0)="","",VLOOKUP(H140,'Raw3'!A:P,5,0)),"") ->  | W140: =IFERROR(IF(VLOOKUP(H140,'Raw3'!A:P,4,0)="","",VLOOKUP(H140,'Raw3'!A:P,4,0)),"") ->  | X140: =IFERROR(IF(VLOOKUP(H140&V140,'Raw1'!A:Z,26,0)="","",VLOOKUP(H140&V140,'Raw1'!A:Z,26,0)),"") -> 
H141: =IF('Raw2'!U137="","",'Raw2'!U137) ->  | L141: =IF('Raw2'!V137="","",'Raw2'!V137) ->  | M141: =IFERROR(VLOOKUP(H141,'Raw4'!A:C,2,0),"") ->  | N141: =IFERROR(VLOOKUP(H141,'Raw2'!A:F,6,0),"") ->  | O141: =IFERROR(VLOOKUP($H141,'Raw2'!$A:$I,8,0),"") ->  | P141: =IFERROR(VLOOKUP($H141,'Raw2'!$A:$I,9,0),"") ->  | Q141: =IFERROR(YEAR(VLOOKUP(H141,'Raw3'!A:C,2,0)),"") ->  | R141: =IFERROR(VLOOKUP(H141,'Raw3'!A:P,16,0),"") ->  | S141: =IFERROR(VLOOKUP(H141,'Raw3'!A:P,3,0),"") ->  | T141: =IFERROR(IF(FIND("Q1",R141)>0,VLOOKUP(H141,'Raw3'!A:P,10,0),IF(FIND("Q2",R141)>0,VLOOKUP(H141,'Raw3'!A:P,11,0),IF(FIND("Q3",R141)>0,VLOOKUP(H141,'Raw3'!A:P,12,0),))),"") ->  | U141: =IFERROR(IF(FIND("Q4",R141)>0,VLOOKUP(H141,'Raw3'!A:P,14,0),""),"") ->  | V141: =IFERROR(IF(VLOOKUP(H141,'Raw3'!A:P,5,0)="","",VLOOKUP(H141,'Raw3'!A:P,5,0)),"") ->  | W141: =IFERROR(IF(VLOOKUP(H141,'Raw3'!A:P,4,0)="","",VLOOKUP(H141,'Raw3'!A:P,4,0)),"") ->  | X141: =IFERROR(IF(VLOOKUP(H141&V141,'Raw1'!A:Z,26,0)="","",VLOOKUP(H141&V141,'Raw1'!A:Z,26,0)),"") -> 
H142: =IF('Raw2'!U138="","",'Raw2'!U138) ->  | L142: =IF('Raw2'!V138="","",'Raw2'!V138) ->  | M142: =IFERROR(VLOOKUP(H142,'Raw4'!A:C,2,0),"") ->  | N142: =IFERROR(VLOOKUP(H142,'Raw2'!A:F,6,0),"") ->  | O142: =IFERROR(VLOOKUP($H142,'Raw2'!$A:$I,8,0),"") ->  | P142: =IFERROR(VLOOKUP($H142,'Raw2'!$A:$I,9,0),"") ->  | Q142: =IFERROR(YEAR(VLOOKUP(H142,'Raw3'!A:C,2,0)),"") ->  | R142: =IFERROR(VLOOKUP(H142,'Raw3'!A:P,16,0),"") ->  | S142: =IFERROR(VLOOKUP(H142,'Raw3'!A:P,3,0),"") ->  | T142: =IFERROR(IF(FIND("Q1",R142)>0,VLOOKUP(H142,'Raw3'!A:P,10,0),IF(FIND("Q2",R142)>0,VLOOKUP(H142,'Raw3'!A:P,11,0),IF(FIND("Q3",R142)>0,VLOOKUP(H142,'Raw3'!A:P,12,0),))),"") ->  | U142: =IFERROR(IF(FIND("Q4",R142)>0,VLOOKUP(H142,'Raw3'!A:P,14,0),""),"") ->  | V142: =IFERROR(IF(VLOOKUP(H142,'Raw3'!A:P,5,0)="","",VLOOKUP(H142,'Raw3'!A:P,5,0)),"") ->  | W142: =IFERROR(IF(VLOOKUP(H142,'Raw3'!A:P,4,0)="","",VLOOKUP(H142,'Raw3'!A:P,4,0)),"") ->  | X142: =IFERROR(IF(VLOOKUP(H142&V142,'Raw1'!A:Z,26,0)="","",VLOOKUP(H142&V142,'Raw1'!A:Z,26,0)),"") -> 
H143: =IF('Raw2'!U139="","",'Raw2'!U139) ->  | L143: =IF('Raw2'!V139="","",'Raw2'!V139) ->  | M143: =IFERROR(VLOOKUP(H143,'Raw4'!A:C,2,0),"") ->  | N143: =IFERROR(VLOOKUP(H143,'Raw2'!A:F,6,0),"") ->  | O143: =IFERROR(VLOOKUP($H143,'Raw2'!$A:$I,8,0),"") ->  | P143: =IFERROR(VLOOKUP($H143,'Raw2'!$A:$I,9,0),"") ->  | Q143: =IFERROR(YEAR(VLOOKUP(H143,'Raw3'!A:C,2,0)),"") ->  | R143: =IFERROR(VLOOKUP(H143,'Raw3'!A:P,16,0),"") ->  | S143: =IFERROR(VLOOKUP(H143,'Raw3'!A:P,3,0),"") ->  | T143: =IFERROR(IF(FIND("Q1",R143)>0,VLOOKUP(H143,'Raw3'!A:P,10,0),IF(FIND("Q2",R143)>0,VLOOKUP(H143,'Raw3'!A:P,11,0),IF(FIND("Q3",R143)>0,VLOOKUP(H143,'Raw3'!A:P,12,0),))),"") ->  | U143: =IFERROR(IF(FIND("Q4",R143)>0,VLOOKUP(H143,'Raw3'!A:P,14,0),""),"") ->  | V143: =IFERROR(IF(VLOOKUP(H143,'Raw3'!A:P,5,0)="","",VLOOKUP(H143,'Raw3'!A:P,5,0)),"") ->  | W143: =IFERROR(IF(VLOOKUP(H143,'Raw3'!A:P,4,0)="","",VLOOKUP(H143,'Raw3'!A:P,4,0)),"") ->  | X143: =IFERROR(IF(VLOOKUP(H143&V143,'Raw1'!A:Z,26,0)="","",VLOOKUP(H143&V143,'Raw1'!A:Z,26,0)),"") -> 
H144: =IF('Raw2'!U140="","",'Raw2'!U140) ->  | L144: =IF('Raw2'!V140="","",'Raw2'!V140) ->  | M144: =IFERROR(VLOOKUP(H144,'Raw4'!A:C,2,0),"") ->  | N144: =IFERROR(VLOOKUP(H144,'Raw2'!A:F,6,0),"") ->  | O144: =IFERROR(VLOOKUP($H144,'Raw2'!$A:$I,8,0),"") ->  | P144: =IFERROR(VLOOKUP($H144,'Raw2'!$A:$I,9,0),"") ->  | Q144: =IFERROR(YEAR(VLOOKUP(H144,'Raw3'!A:C,2,0)),"") ->  | R144: =IFERROR(VLOOKUP(H144,'Raw3'!A:P,16,0),"") ->  | S144: =IFERROR(VLOOKUP(H144,'Raw3'!A:P,3,0),"") ->  | T144: =IFERROR(IF(FIND("Q1",R144)>0,VLOOKUP(H144,'Raw3'!A:P,10,0),IF(FIND("Q2",R144)>0,VLOOKUP(H144,'Raw3'!A:P,11,0),IF(FIND("Q3",R144)>0,VLOOKUP(H144,'Raw3'!A:P,12,0),))),"") ->  | U144: =IFERROR(IF(FIND("Q4",R144)>0,VLOOKUP(H144,'Raw3'!A:P,14,0),""),"") ->  | V144: =IFERROR(IF(VLOOKUP(H144,'Raw3'!A:P,5,0)="","",VLOOKUP(H144,'Raw3'!A:P,5,0)),"") ->  | W144: =IFERROR(IF(VLOOKUP(H144,'Raw3'!A:P,4,0)="","",VLOOKUP(H144,'Raw3'!A:P,4,0)),"") ->  | X144: =IFERROR(IF(VLOOKUP(H144&V144,'Raw1'!A:Z,26,0)="","",VLOOKUP(H144&V144,'Raw1'!A:Z,26,0)),"") -> 
H145: =IF('Raw2'!U141="","",'Raw2'!U141) ->  | L145: =IF('Raw2'!V141="","",'Raw2'!V141) ->  | M145: =IFERROR(VLOOKUP(H145,'Raw4'!A:C,2,0),"") ->  | N145: =IFERROR(VLOOKUP(H145,'Raw2'!A:F,6,0),"") ->  | O145: =IFERROR(VLOOKUP($H145,'Raw2'!$A:$I,8,0),"") ->  | P145: =IFERROR(VLOOKUP($H145,'Raw2'!$A:$I,9,0),"") ->  | Q145: =IFERROR(YEAR(VLOOKUP(H145,'Raw3'!A:C,2,0)),"") ->  | R145: =IFERROR(VLOOKUP(H145,'Raw3'!A:P,16,0),"") ->  | S145: =IFERROR(VLOOKUP(H145,'Raw3'!A:P,3,0),"") ->  | T145: =IFERROR(IF(FIND("Q1",R145)>0,VLOOKUP(H145,'Raw3'!A:P,10,0),IF(FIND("Q2",R145)>0,VLOOKUP(H145,'Raw3'!A:P,11,0),IF(FIND("Q3",R145)>0,VLOOKUP(H145,'Raw3'!A:P,12,0),))),"") ->  | U145: =IFERROR(IF(FIND("Q4",R145)>0,VLOOKUP(H145,'Raw3'!A:P,14,0),""),"") ->  | V145: =IFERROR(IF(VLOOKUP(H145,'Raw3'!A:P,5,0)="","",VLOOKUP(H145,'Raw3'!A:P,5,0)),"") ->  | W145: =IFERROR(IF(VLOOKUP(H145,'Raw3'!A:P,4,0)="","",VLOOKUP(H145,'Raw3'!A:P,4,0)),"") ->  | X145: =IFERROR(IF(VLOOKUP(H145&V145,'Raw1'!A:Z,26,0)="","",VLOOKUP(H145&V145,'Raw1'!A:Z,26,0)),"") -> 
H146: =IF('Raw2'!U142="","",'Raw2'!U142) ->  | L146: =IF('Raw2'!V142="","",'Raw2'!V142) ->  | M146: =IFERROR(VLOOKUP(H146,'Raw4'!A:C,2,0),"") ->  | N146: =IFERROR(VLOOKUP(H146,'Raw2'!A:F,6,0),"") ->  | O146: =IFERROR(VLOOKUP($H146,'Raw2'!$A:$I,8,0),"") ->  | P146: =IFERROR(VLOOKUP($H146,'Raw2'!$A:$I,9,0),"") ->  | Q146: =IFERROR(YEAR(VLOOKUP(H146,'Raw3'!A:C,2,0)),"") ->  | R146: =IFERROR(VLOOKUP(H146,'Raw3'!A:P,16,0),"") ->  | S146: =IFERROR(VLOOKUP(H146,'Raw3'!A:P,3,0),"") ->  | T146: =IFERROR(IF(FIND("Q1",R146)>0,VLOOKUP(H146,'Raw3'!A:P,10,0),IF(FIND("Q2",R146)>0,VLOOKUP(H146,'Raw3'!A:P,11,0),IF(FIND("Q3",R146)>0,VLOOKUP(H146,'Raw3'!A:P,12,0),))),"") ->  | U146: =IFERROR(IF(FIND("Q4",R146)>0,VLOOKUP(H146,'Raw3'!A:P,14,0),""),"") ->  | V146: =IFERROR(IF(VLOOKUP(H146,'Raw3'!A:P,5,0)="","",VLOOKUP(H146,'Raw3'!A:P,5,0)),"") ->  | W146: =IFERROR(IF(VLOOKUP(H146,'Raw3'!A:P,4,0)="","",VLOOKUP(H146,'Raw3'!A:P,4,0)),"") ->  | X146: =IFERROR(IF(VLOOKUP(H146&V146,'Raw1'!A:Z,26,0)="","",VLOOKUP(H146&V146,'Raw1'!A:Z,26,0)),"") -> 
H147: =IF('Raw2'!U143="","",'Raw2'!U143) ->  | L147: =IF('Raw2'!V143="","",'Raw2'!V143) ->  | M147: =IFERROR(VLOOKUP(H147,'Raw4'!A:C,2,0),"") ->  | N147: =IFERROR(VLOOKUP(H147,'Raw2'!A:F,6,0),"") ->  | O147: =IFERROR(VLOOKUP($H147,'Raw2'!$A:$I,8,0),"") ->  | P147: =IFERROR(VLOOKUP($H147,'Raw2'!$A:$I,9,0),"") ->  | Q147: =IFERROR(YEAR(VLOOKUP(H147,'Raw3'!A:C,2,0)),"") ->  | R147: =IFERROR(VLOOKUP(H147,'Raw3'!A:P,16,0),"") ->  | S147: =IFERROR(VLOOKUP(H147,'Raw3'!A:P,3,0),"") ->  | T147: =IFERROR(IF(FIND("Q1",R147)>0,VLOOKUP(H147,'Raw3'!A:P,10,0),IF(FIND("Q2",R147)>0,VLOOKUP(H147,'Raw3'!A:P,11,0),IF(FIND("Q3",R147)>0,VLOOKUP(H147,'Raw3'!A:P,12,0),))),"") ->  | U147: =IFERROR(IF(FIND("Q4",R147)>0,VLOOKUP(H147,'Raw3'!A:P,14,0),""),"") ->  | V147: =IFERROR(IF(VLOOKUP(H147,'Raw3'!A:P,5,0)="","",VLOOKUP(H147,'Raw3'!A:P,5,0)),"") ->  | W147: =IFERROR(IF(VLOOKUP(H147,'Raw3'!A:P,4,0)="","",VLOOKUP(H147,'Raw3'!A:P,4,0)),"") ->  | X147: =IFERROR(IF(VLOOKUP(H147&V147,'Raw1'!A:Z,26,0)="","",VLOOKUP(H147&V147,'Raw1'!A:Z,26,0)),"") -> 
H148: =IF('Raw2'!U144="","",'Raw2'!U144) ->  | L148: =IF('Raw2'!V144="","",'Raw2'!V144) ->  | M148: =IFERROR(VLOOKUP(H148,'Raw4'!A:C,2,0),"") ->  | N148: =IFERROR(VLOOKUP(H148,'Raw2'!A:F,6,0),"") ->  | O148: =IFERROR(VLOOKUP($H148,'Raw2'!$A:$I,8,0),"") ->  | P148: =IFERROR(VLOOKUP($H148,'Raw2'!$A:$I,9,0),"") ->  | Q148: =IFERROR(YEAR(VLOOKUP(H148,'Raw3'!A:C,2,0)),"") ->  | R148: =IFERROR(VLOOKUP(H148,'Raw3'!A:P,16,0),"") ->  | S148: =IFERROR(VLOOKUP(H148,'Raw3'!A:P,3,0),"") ->  | T148: =IFERROR(IF(FIND("Q1",R148)>0,VLOOKUP(H148,'Raw3'!A:P,10,0),IF(FIND("Q2",R148)>0,VLOOKUP(H148,'Raw3'!A:P,11,0),IF(FIND("Q3",R148)>0,VLOOKUP(H148,'Raw3'!A:P,12,0),))),"") ->  | U148: =IFERROR(IF(FIND("Q4",R148)>0,VLOOKUP(H148,'Raw3'!A:P,14,0),""),"") ->  | V148: =IFERROR(IF(VLOOKUP(H148,'Raw3'!A:P,5,0)="","",VLOOKUP(H148,'Raw3'!A:P,5,0)),"") ->  | W148: =IFERROR(IF(VLOOKUP(H148,'Raw3'!A:P,4,0)="","",VLOOKUP(H148,'Raw3'!A:P,4,0)),"") ->  | X148: =IFERROR(IF(VLOOKUP(H148&V148,'Raw1'!A:Z,26,0)="","",VLOOKUP(H148&V148,'Raw1'!A:Z,26,0)),"") -> 
H149: =IF('Raw2'!U145="","",'Raw2'!U145) ->  | L149: =IF('Raw2'!V145="","",'Raw2'!V145) ->  | M149: =IFERROR(VLOOKUP(H149,'Raw4'!A:C,2,0),"") ->  | N149: =IFERROR(VLOOKUP(H149,'Raw2'!A:F,6,0),"") ->  | O149: =IFERROR(VLOOKUP($H149,'Raw2'!$A:$I,8,0),"") ->  | P149: =IFERROR(VLOOKUP($H149,'Raw2'!$A:$I,9,0),"") ->  | Q149: =IFERROR(YEAR(VLOOKUP(H149,'Raw3'!A:C,2,0)),"") ->  | R149: =IFERROR(VLOOKUP(H149,'Raw3'!A:P,16,0),"") ->  | S149: =IFERROR(VLOOKUP(H149,'Raw3'!A:P,3,0),"") ->  | T149: =IFERROR(IF(FIND("Q1",R149)>0,VLOOKUP(H149,'Raw3'!A:P,10,0),IF(FIND("Q2",R149)>0,VLOOKUP(H149,'Raw3'!A:P,11,0),IF(FIND("Q3",R149)>0,VLOOKUP(H149,'Raw3'!A:P,12,0),))),"") ->  | U149: =IFERROR(IF(FIND("Q4",R149)>0,VLOOKUP(H149,'Raw3'!A:P,14,0),""),"") ->  | V149: =IFERROR(IF(VLOOKUP(H149,'Raw3'!A:P,5,0)="","",VLOOKUP(H149,'Raw3'!A:P,5,0)),"") ->  | W149: =IFERROR(IF(VLOOKUP(H149,'Raw3'!A:P,4,0)="","",VLOOKUP(H149,'Raw3'!A:P,4,0)),"") ->  | X149: =IFERROR(IF(VLOOKUP(H149&V149,'Raw1'!A:Z,26,0)="","",VLOOKUP(H149&V149,'Raw1'!A:Z,26,0)),"") -> 
H150: =IF('Raw2'!U146="","",'Raw2'!U146) ->  | L150: =IF('Raw2'!V146="","",'Raw2'!V146) ->  | M150: =IFERROR(VLOOKUP(H150,'Raw4'!A:C,2,0),"") ->  | N150: =IFERROR(VLOOKUP(H150,'Raw2'!A:F,6,0),"") ->  | O150: =IFERROR(VLOOKUP($H150,'Raw2'!$A:$I,8,0),"") ->  | P150: =IFERROR(VLOOKUP($H150,'Raw2'!$A:$I,9,0),"") ->  | Q150: =IFERROR(YEAR(VLOOKUP(H150,'Raw3'!A:C,2,0)),"") ->  | R150: =IFERROR(VLOOKUP(H150,'Raw3'!A:P,16,0),"") ->  | S150: =IFERROR(VLOOKUP(H150,'Raw3'!A:P,3,0),"") ->  | T150: =IFERROR(IF(FIND("Q1",R150)>0,VLOOKUP(H150,'Raw3'!A:P,10,0),IF(FIND("Q2",R150)>0,VLOOKUP(H150,'Raw3'!A:P,11,0),IF(FIND("Q3",R150)>0,VLOOKUP(H150,'Raw3'!A:P,12,0),))),"") ->  | U150: =IFERROR(IF(FIND("Q4",R150)>0,VLOOKUP(H150,'Raw3'!A:P,14,0),""),"") ->  | V150: =IFERROR(IF(VLOOKUP(H150,'Raw3'!A:P,5,0)="","",VLOOKUP(H150,'Raw3'!A:P,5,0)),"") ->  | W150: =IFERROR(IF(VLOOKUP(H150,'Raw3'!A:P,4,0)="","",VLOOKUP(H150,'Raw3'!A:P,4,0)),"") ->  | X150: =IFERROR(IF(VLOOKUP(H150&V150,'Raw1'!A:Z,26,0)="","",VLOOKUP(H150&V150,'Raw1'!A:Z,26,0)),"") -> 
H151: =IF('Raw2'!U147="","",'Raw2'!U147) ->  | L151: =IF('Raw2'!V147="","",'Raw2'!V147) ->  | M151: =IFERROR(VLOOKUP(H151,'Raw4'!A:C,2,0),"") ->  | N151: =IFERROR(VLOOKUP(H151,'Raw2'!A:F,6,0),"") ->  | O151: =IFERROR(VLOOKUP($H151,'Raw2'!$A:$I,8,0),"") ->  | P151: =IFERROR(VLOOKUP($H151,'Raw2'!$A:$I,9,0),"") ->  | Q151: =IFERROR(YEAR(VLOOKUP(H151,'Raw3'!A:C,2,0)),"") ->  | R151: =IFERROR(VLOOKUP(H151,'Raw3'!A:P,16,0),"") ->  | S151: =IFERROR(VLOOKUP(H151,'Raw3'!A:P,3,0),"") ->  | T151: =IFERROR(IF(FIND("Q1",R151)>0,VLOOKUP(H151,'Raw3'!A:P,10,0),IF(FIND("Q2",R151)>0,VLOOKUP(H151,'Raw3'!A:P,11,0),IF(FIND("Q3",R151)>0,VLOOKUP(H151,'Raw3'!A:P,12,0),))),"") ->  | U151: =IFERROR(IF(FIND("Q4",R151)>0,VLOOKUP(H151,'Raw3'!A:P,14,0),""),"") ->  | V151: =IFERROR(IF(VLOOKUP(H151,'Raw3'!A:P,5,0)="","",VLOOKUP(H151,'Raw3'!A:P,5,0)),"") ->  | W151: =IFERROR(IF(VLOOKUP(H151,'Raw3'!A:P,4,0)="","",VLOOKUP(H151,'Raw3'!A:P,4,0)),"") ->  | X151: =IFERROR(IF(VLOOKUP(H151&V151,'Raw1'!A:Z,26,0)="","",VLOOKUP(H151&V151,'Raw1'!A:Z,26,0)),"") -> 
H152: =IF('Raw2'!U148="","",'Raw2'!U148) ->  | L152: =IF('Raw2'!V148="","",'Raw2'!V148) ->  | M152: =IFERROR(VLOOKUP(H152,'Raw4'!A:C,2,0),"") ->  | N152: =IFERROR(VLOOKUP(H152,'Raw2'!A:F,6,0),"") ->  | O152: =IFERROR(VLOOKUP($H152,'Raw2'!$A:$I,8,0),"") ->  | P152: =IFERROR(VLOOKUP($H152,'Raw2'!$A:$I,9,0),"") ->  | Q152: =IFERROR(YEAR(VLOOKUP(H152,'Raw3'!A:C,2,0)),"") ->  | R152: =IFERROR(VLOOKUP(H152,'Raw3'!A:P,16,0),"") ->  | S152: =IFERROR(VLOOKUP(H152,'Raw3'!A:P,3,0),"") ->  | T152: =IFERROR(IF(FIND("Q1",R152)>0,VLOOKUP(H152,'Raw3'!A:P,10,0),IF(FIND("Q2",R152)>0,VLOOKUP(H152,'Raw3'!A:P,11,0),IF(FIND("Q3",R152)>0,VLOOKUP(H152,'Raw3'!A:P,12,0),))),"") ->  | U152: =IFERROR(IF(FIND("Q4",R152)>0,VLOOKUP(H152,'Raw3'!A:P,14,0),""),"") ->  | V152: =IFERROR(IF(VLOOKUP(H152,'Raw3'!A:P,5,0)="","",VLOOKUP(H152,'Raw3'!A:P,5,0)),"") ->  | W152: =IFERROR(IF(VLOOKUP(H152,'Raw3'!A:P,4,0)="","",VLOOKUP(H152,'Raw3'!A:P,4,0)),"") ->  | X152: =IFERROR(IF(VLOOKUP(H152&V152,'Raw1'!A:Z,26,0)="","",VLOOKUP(H152&V152,'Raw1'!A:Z,26,0)),"") -> 
H153: =IF('Raw2'!U149="","",'Raw2'!U149) ->  | L153: =IF('Raw2'!V149="","",'Raw2'!V149) ->  | M153: =IFERROR(VLOOKUP(H153,'Raw4'!A:C,2,0),"") ->  | N153: =IFERROR(VLOOKUP(H153,'Raw2'!A:F,6,0),"") ->  | O153: =IFERROR(VLOOKUP($H153,'Raw2'!$A:$I,8,0),"") ->  | P153: =IFERROR(VLOOKUP($H153,'Raw2'!$A:$I,9,0),"") ->  | Q153: =IFERROR(YEAR(VLOOKUP(H153,'Raw3'!A:C,2,0)),"") ->  | R153: =IFERROR(VLOOKUP(H153,'Raw3'!A:P,16,0),"") ->  | S153: =IFERROR(VLOOKUP(H153,'Raw3'!A:P,3,0),"") ->  | T153: =IFERROR(IF(FIND("Q1",R153)>0,VLOOKUP(H153,'Raw3'!A:P,10,0),IF(FIND("Q2",R153)>0,VLOOKUP(H153,'Raw3'!A:P,11,0),IF(FIND("Q3",R153)>0,VLOOKUP(H153,'Raw3'!A:P,12,0),))),"") ->  | U153: =IFERROR(IF(FIND("Q4",R153)>0,VLOOKUP(H153,'Raw3'!A:P,14,0),""),"") ->  | V153: =IFERROR(IF(VLOOKUP(H153,'Raw3'!A:P,5,0)="","",VLOOKUP(H153,'Raw3'!A:P,5,0)),"") ->  | W153: =IFERROR(IF(VLOOKUP(H153,'Raw3'!A:P,4,0)="","",VLOOKUP(H153,'Raw3'!A:P,4,0)),"") ->  | X153: =IFERROR(IF(VLOOKUP(H153&V153,'Raw1'!A:Z,26,0)="","",VLOOKUP(H153&V153,'Raw1'!A:Z,26,0)),"") -> 
H154: =IF('Raw2'!U150="","",'Raw2'!U150) ->  | L154: =IF('Raw2'!V150="","",'Raw2'!V150) ->  | M154: =IFERROR(VLOOKUP(H154,'Raw4'!A:C,2,0),"") ->  | N154: =IFERROR(VLOOKUP(H154,'Raw2'!A:F,6,0),"") ->  | O154: =IFERROR(VLOOKUP($H154,'Raw2'!$A:$I,8,0),"") ->  | P154: =IFERROR(VLOOKUP($H154,'Raw2'!$A:$I,9,0),"") ->  | Q154: =IFERROR(YEAR(VLOOKUP(H154,'Raw3'!A:C,2,0)),"") ->  | R154: =IFERROR(VLOOKUP(H154,'Raw3'!A:P,16,0),"") ->  | S154: =IFERROR(VLOOKUP(H154,'Raw3'!A:P,3,0),"") ->  | T154: =IFERROR(IF(FIND("Q1",R154)>0,VLOOKUP(H154,'Raw3'!A:P,10,0),IF(FIND("Q2",R154)>0,VLOOKUP(H154,'Raw3'!A:P,11,0),IF(FIND("Q3",R154)>0,VLOOKUP(H154,'Raw3'!A:P,12,0),))),"") ->  | U154: =IFERROR(IF(FIND("Q4",R154)>0,VLOOKUP(H154,'Raw3'!A:P,14,0),""),"") ->  | V154: =IFERROR(IF(VLOOKUP(H154,'Raw3'!A:P,5,0)="","",VLOOKUP(H154,'Raw3'!A:P,5,0)),"") ->  | W154: =IFERROR(IF(VLOOKUP(H154,'Raw3'!A:P,4,0)="","",VLOOKUP(H154,'Raw3'!A:P,4,0)),"") ->  | X154: =IFERROR(IF(VLOOKUP(H154&V154,'Raw1'!A:Z,26,0)="","",VLOOKUP(H154&V154,'Raw1'!A:Z,26,0)),"") -> 
H155: =IF('Raw2'!U151="","",'Raw2'!U151) ->  | L155: =IF('Raw2'!V151="","",'Raw2'!V151) ->  | M155: =IFERROR(VLOOKUP(H155,'Raw4'!A:C,2,0),"") ->  | N155: =IFERROR(VLOOKUP(H155,'Raw2'!A:F,6,0),"") ->  | O155: =IFERROR(VLOOKUP($H155,'Raw2'!$A:$I,8,0),"") ->  | P155: =IFERROR(VLOOKUP($H155,'Raw2'!$A:$I,9,0),"") ->  | Q155: =IFERROR(YEAR(VLOOKUP(H155,'Raw3'!A:C,2,0)),"") ->  | R155: =IFERROR(VLOOKUP(H155,'Raw3'!A:P,16,0),"") ->  | S155: =IFERROR(VLOOKUP(H155,'Raw3'!A:P,3,0),"") ->  | T155: =IFERROR(IF(FIND("Q1",R155)>0,VLOOKUP(H155,'Raw3'!A:P,10,0),IF(FIND("Q2",R155)>0,VLOOKUP(H155,'Raw3'!A:P,11,0),IF(FIND("Q3",R155)>0,VLOOKUP(H155,'Raw3'!A:P,12,0),))),"") ->  | U155: =IFERROR(IF(FIND("Q4",R155)>0,VLOOKUP(H155,'Raw3'!A:P,14,0),""),"") ->  | V155: =IFERROR(IF(VLOOKUP(H155,'Raw3'!A:P,5,0)="","",VLOOKUP(H155,'Raw3'!A:P,5,0)),"") ->  | W155: =IFERROR(IF(VLOOKUP(H155,'Raw3'!A:P,4,0)="","",VLOOKUP(H155,'Raw3'!A:P,4,0)),"") ->  | X155: =IFERROR(IF(VLOOKUP(H155&V155,'Raw1'!A:Z,26,0)="","",VLOOKUP(H155&V155,'Raw1'!A:Z,26,0)),"") -> 
H156: =IF('Raw2'!U152="","",'Raw2'!U152) ->  | L156: =IF('Raw2'!V152="","",'Raw2'!V152) ->  | M156: =IFERROR(VLOOKUP(H156,'Raw4'!A:C,2,0),"") ->  | N156: =IFERROR(VLOOKUP(H156,'Raw2'!A:F,6,0),"") ->  | O156: =IFERROR(VLOOKUP($H156,'Raw2'!$A:$I,8,0),"") ->  | P156: =IFERROR(VLOOKUP($H156,'Raw2'!$A:$I,9,0),"") ->  | Q156: =IFERROR(YEAR(VLOOKUP(H156,'Raw3'!A:C,2,0)),"") ->  | R156: =IFERROR(VLOOKUP(H156,'Raw3'!A:P,16,0),"") ->  | S156: =IFERROR(VLOOKUP(H156,'Raw3'!A:P,3,0),"") ->  | T156: =IFERROR(IF(FIND("Q1",R156)>0,VLOOKUP(H156,'Raw3'!A:P,10,0),IF(FIND("Q2",R156)>0,VLOOKUP(H156,'Raw3'!A:P,11,0),IF(FIND("Q3",R156)>0,VLOOKUP(H156,'Raw3'!A:P,12,0),))),"") ->  | U156: =IFERROR(IF(FIND("Q4",R156)>0,VLOOKUP(H156,'Raw3'!A:P,14,0),""),"") ->  | V156: =IFERROR(IF(VLOOKUP(H156,'Raw3'!A:P,5,0)="","",VLOOKUP(H156,'Raw3'!A:P,5,0)),"") ->  | W156: =IFERROR(IF(VLOOKUP(H156,'Raw3'!A:P,4,0)="","",VLOOKUP(H156,'Raw3'!A:P,4,0)),"") ->  | X156: =IFERROR(IF(VLOOKUP(H156&V156,'Raw1'!A:Z,26,0)="","",VLOOKUP(H156&V156,'Raw1'!A:Z,26,0)),"") -> 
H157: =IF('Raw2'!U153="","",'Raw2'!U153) ->  | L157: =IF('Raw2'!V153="","",'Raw2'!V153) ->  | M157: =IFERROR(VLOOKUP(H157,'Raw4'!A:C,2,0),"") ->  | N157: =IFERROR(VLOOKUP(H157,'Raw2'!A:F,6,0),"") ->  | O157: =IFERROR(VLOOKUP($H157,'Raw2'!$A:$I,8,0),"") ->  | P157: =IFERROR(VLOOKUP($H157,'Raw2'!$A:$I,9,0),"") ->  | Q157: =IFERROR(YEAR(VLOOKUP(H157,'Raw3'!A:C,2,0)),"") ->  | R157: =IFERROR(VLOOKUP(H157,'Raw3'!A:P,16,0),"") ->  | S157: =IFERROR(VLOOKUP(H157,'Raw3'!A:P,3,0),"") ->  | T157: =IFERROR(IF(FIND("Q1",R157)>0,VLOOKUP(H157,'Raw3'!A:P,10,0),IF(FIND("Q2",R157)>0,VLOOKUP(H157,'Raw3'!A:P,11,0),IF(FIND("Q3",R157)>0,VLOOKUP(H157,'Raw3'!A:P,12,0),))),"") ->  | U157: =IFERROR(IF(FIND("Q4",R157)>0,VLOOKUP(H157,'Raw3'!A:P,14,0),""),"") ->  | V157: =IFERROR(IF(VLOOKUP(H157,'Raw3'!A:P,5,0)="","",VLOOKUP(H157,'Raw3'!A:P,5,0)),"") ->  | W157: =IFERROR(IF(VLOOKUP(H157,'Raw3'!A:P,4,0)="","",VLOOKUP(H157,'Raw3'!A:P,4,0)),"") ->  | X157: =IFERROR(IF(VLOOKUP(H157&V157,'Raw1'!A:Z,26,0)="","",VLOOKUP(H157&V157,'Raw1'!A:Z,26,0)),"") -> 
H158: =IF('Raw2'!U154="","",'Raw2'!U154) ->  | L158: =IF('Raw2'!V154="","",'Raw2'!V154) ->  | M158: =IFERROR(VLOOKUP(H158,'Raw4'!A:C,2,0),"") ->  | N158: =IFERROR(VLOOKUP(H158,'Raw2'!A:F,6,0),"") ->  | O158: =IFERROR(VLOOKUP($H158,'Raw2'!$A:$I,8,0),"") ->  | P158: =IFERROR(VLOOKUP($H158,'Raw2'!$A:$I,9,0),"") ->  | Q158: =IFERROR(YEAR(VLOOKUP(H158,'Raw3'!A:C,2,0)),"") ->  | R158: =IFERROR(VLOOKUP(H158,'Raw3'!A:P,16,0),"") ->  | S158: =IFERROR(VLOOKUP(H158,'Raw3'!A:P,3,0),"") ->  | T158: =IFERROR(IF(FIND("Q1",R158)>0,VLOOKUP(H158,'Raw3'!A:P,10,0),IF(FIND("Q2",R158)>0,VLOOKUP(H158,'Raw3'!A:P,11,0),IF(FIND("Q3",R158)>0,VLOOKUP(H158,'Raw3'!A:P,12,0),))),"") ->  | U158: =IFERROR(IF(FIND("Q4",R158)>0,VLOOKUP(H158,'Raw3'!A:P,14,0),""),"") ->  | V158: =IFERROR(IF(VLOOKUP(H158,'Raw3'!A:P,5,0)="","",VLOOKUP(H158,'Raw3'!A:P,5,0)),"") ->  | W158: =IFERROR(IF(VLOOKUP(H158,'Raw3'!A:P,4,0)="","",VLOOKUP(H158,'Raw3'!A:P,4,0)),"") ->  | X158: =IFERROR(IF(VLOOKUP(H158&V158,'Raw1'!A:Z,26,0)="","",VLOOKUP(H158&V158,'Raw1'!A:Z,26,0)),"") -> 
H159: =IF('Raw2'!U155="","",'Raw2'!U155) ->  | L159: =IF('Raw2'!V155="","",'Raw2'!V155) ->  | M159: =IFERROR(VLOOKUP(H159,'Raw4'!A:C,2,0),"") ->  | N159: =IFERROR(VLOOKUP(H159,'Raw2'!A:F,6,0),"") ->  | O159: =IFERROR(VLOOKUP($H159,'Raw2'!$A:$I,8,0),"") ->  | P159: =IFERROR(VLOOKUP($H159,'Raw2'!$A:$I,9,0),"") ->  | Q159: =IFERROR(YEAR(VLOOKUP(H159,'Raw3'!A:C,2,0)),"") ->  | R159: =IFERROR(VLOOKUP(H159,'Raw3'!A:P,16,0),"") ->  | S159: =IFERROR(VLOOKUP(H159,'Raw3'!A:P,3,0),"") ->  | T159: =IFERROR(IF(FIND("Q1",R159)>0,VLOOKUP(H159,'Raw3'!A:P,10,0),IF(FIND("Q2",R159)>0,VLOOKUP(H159,'Raw3'!A:P,11,0),IF(FIND("Q3",R159)>0,VLOOKUP(H159,'Raw3'!A:P,12,0),))),"") ->  | U159: =IFERROR(IF(FIND("Q4",R159)>0,VLOOKUP(H159,'Raw3'!A:P,14,0),""),"") ->  | V159: =IFERROR(IF(VLOOKUP(H159,'Raw3'!A:P,5,0)="","",VLOOKUP(H159,'Raw3'!A:P,5,0)),"") ->  | W159: =IFERROR(IF(VLOOKUP(H159,'Raw3'!A:P,4,0)="","",VLOOKUP(H159,'Raw3'!A:P,4,0)),"") ->  | X159: =IFERROR(IF(VLOOKUP(H159&V159,'Raw1'!A:Z,26,0)="","",VLOOKUP(H159&V159,'Raw1'!A:Z,26,0)),"") -> 
H160: =IF('Raw2'!U156="","",'Raw2'!U156) ->  | L160: =IF('Raw2'!V156="","",'Raw2'!V156) ->  | M160: =IFERROR(VLOOKUP(H160,'Raw4'!A:C,2,0),"") ->  | N160: =IFERROR(VLOOKUP(H160,'Raw2'!A:F,6,0),"") ->  | O160: =IFERROR(VLOOKUP($H160,'Raw2'!$A:$I,8,0),"") ->  | P160: =IFERROR(VLOOKUP($H160,'Raw2'!$A:$I,9,0),"") ->  | Q160: =IFERROR(YEAR(VLOOKUP(H160,'Raw3'!A:C,2,0)),"") ->  | R160: =IFERROR(VLOOKUP(H160,'Raw3'!A:P,16,0),"") ->  | S160: =IFERROR(VLOOKUP(H160,'Raw3'!A:P,3,0),"") ->  | T160: =IFERROR(IF(FIND("Q1",R160)>0,VLOOKUP(H160,'Raw3'!A:P,10,0),IF(FIND("Q2",R160)>0,VLOOKUP(H160,'Raw3'!A:P,11,0),IF(FIND("Q3",R160)>0,VLOOKUP(H160,'Raw3'!A:P,12,0),))),"") ->  | U160: =IFERROR(IF(FIND("Q4",R160)>0,VLOOKUP(H160,'Raw3'!A:P,14,0),""),"") ->  | V160: =IFERROR(IF(VLOOKUP(H160,'Raw3'!A:P,5,0)="","",VLOOKUP(H160,'Raw3'!A:P,5,0)),"") ->  | W160: =IFERROR(IF(VLOOKUP(H160,'Raw3'!A:P,4,0)="","",VLOOKUP(H160,'Raw3'!A:P,4,0)),"") ->  | X160: =IFERROR(IF(VLOOKUP(H160&V160,'Raw1'!A:Z,26,0)="","",VLOOKUP(H160&V160,'Raw1'!A:Z,26,0)),"") -> 
H161: =IF('Raw2'!U157="","",'Raw2'!U157) ->  | L161: =IF('Raw2'!V157="","",'Raw2'!V157) ->  | M161: =IFERROR(VLOOKUP(H161,'Raw4'!A:C,2,0),"") ->  | N161: =IFERROR(VLOOKUP(H161,'Raw2'!A:F,6,0),"") ->  | O161: =IFERROR(VLOOKUP($H161,'Raw2'!$A:$I,8,0),"") ->  | P161: =IFERROR(VLOOKUP($H161,'Raw2'!$A:$I,9,0),"") ->  | Q161: =IFERROR(YEAR(VLOOKUP(H161,'Raw3'!A:C,2,0)),"") ->  | R161: =IFERROR(VLOOKUP(H161,'Raw3'!A:P,16,0),"") ->  | S161: =IFERROR(VLOOKUP(H161,'Raw3'!A:P,3,0),"") ->  | T161: =IFERROR(IF(FIND("Q1",R161)>0,VLOOKUP(H161,'Raw3'!A:P,10,0),IF(FIND("Q2",R161)>0,VLOOKUP(H161,'Raw3'!A:P,11,0),IF(FIND("Q3",R161)>0,VLOOKUP(H161,'Raw3'!A:P,12,0),))),"") ->  | U161: =IFERROR(IF(FIND("Q4",R161)>0,VLOOKUP(H161,'Raw3'!A:P,14,0),""),"") ->  | V161: =IFERROR(IF(VLOOKUP(H161,'Raw3'!A:P,5,0)="","",VLOOKUP(H161,'Raw3'!A:P,5,0)),"") ->  | W161: =IFERROR(IF(VLOOKUP(H161,'Raw3'!A:P,4,0)="","",VLOOKUP(H161,'Raw3'!A:P,4,0)),"") ->  | X161: =IFERROR(IF(VLOOKUP(H161&V161,'Raw1'!A:Z,26,0)="","",VLOOKUP(H161&V161,'Raw1'!A:Z,26,0)),"") -> 
H162: =IF('Raw2'!U158="","",'Raw2'!U158) ->  | L162: =IF('Raw2'!V158="","",'Raw2'!V158) ->  | M162: =IFERROR(VLOOKUP(H162,'Raw4'!A:C,2,0),"") ->  | N162: =IFERROR(VLOOKUP(H162,'Raw2'!A:F,6,0),"") ->  | O162: =IFERROR(VLOOKUP($H162,'Raw2'!$A:$I,8,0),"") ->  | P162: =IFERROR(VLOOKUP($H162,'Raw2'!$A:$I,9,0),"") ->  | Q162: =IFERROR(YEAR(VLOOKUP(H162,'Raw3'!A:C,2,0)),"") ->  | R162: =IFERROR(VLOOKUP(H162,'Raw3'!A:P,16,0),"") ->  | S162: =IFERROR(VLOOKUP(H162,'Raw3'!A:P,3,0),"") ->  | T162: =IFERROR(IF(FIND("Q1",R162)>0,VLOOKUP(H162,'Raw3'!A:P,10,0),IF(FIND("Q2",R162)>0,VLOOKUP(H162,'Raw3'!A:P,11,0),IF(FIND("Q3",R162)>0,VLOOKUP(H162,'Raw3'!A:P,12,0),))),"") ->  | U162: =IFERROR(IF(FIND("Q4",R162)>0,VLOOKUP(H162,'Raw3'!A:P,14,0),""),"") ->  | V162: =IFERROR(IF(VLOOKUP(H162,'Raw3'!A:P,5,0)="","",VLOOKUP(H162,'Raw3'!A:P,5,0)),"") ->  | W162: =IFERROR(IF(VLOOKUP(H162,'Raw3'!A:P,4,0)="","",VLOOKUP(H162,'Raw3'!A:P,4,0)),"") ->  | X162: =IFERROR(IF(VLOOKUP(H162&V162,'Raw1'!A:Z,26,0)="","",VLOOKUP(H162&V162,'Raw1'!A:Z,26,0)),"") -> 
H163: =IF('Raw2'!U159="","",'Raw2'!U159) ->  | L163: =IF('Raw2'!V159="","",'Raw2'!V159) ->  | M163: =IFERROR(VLOOKUP(H163,'Raw4'!A:C,2,0),"") ->  | N163: =IFERROR(VLOOKUP(H163,'Raw2'!A:F,6,0),"") ->  | O163: =IFERROR(VLOOKUP($H163,'Raw2'!$A:$I,8,0),"") ->  | P163: =IFERROR(VLOOKUP($H163,'Raw2'!$A:$I,9,0),"") ->  | Q163: =IFERROR(YEAR(VLOOKUP(H163,'Raw3'!A:C,2,0)),"") ->  | R163: =IFERROR(VLOOKUP(H163,'Raw3'!A:P,16,0),"") ->  | S163: =IFERROR(VLOOKUP(H163,'Raw3'!A:P,3,0),"") ->  | T163: =IFERROR(IF(FIND("Q1",R163)>0,VLOOKUP(H163,'Raw3'!A:P,10,0),IF(FIND("Q2",R163)>0,VLOOKUP(H163,'Raw3'!A:P,11,0),IF(FIND("Q3",R163)>0,VLOOKUP(H163,'Raw3'!A:P,12,0),))),"") ->  | U163: =IFERROR(IF(FIND("Q4",R163)>0,VLOOKUP(H163,'Raw3'!A:P,14,0),""),"") ->  | V163: =IFERROR(IF(VLOOKUP(H163,'Raw3'!A:P,5,0)="","",VLOOKUP(H163,'Raw3'!A:P,5,0)),"") ->  | W163: =IFERROR(IF(VLOOKUP(H163,'Raw3'!A:P,4,0)="","",VLOOKUP(H163,'Raw3'!A:P,4,0)),"") ->  | X163: =IFERROR(IF(VLOOKUP(H163&V163,'Raw1'!A:Z,26,0)="","",VLOOKUP(H163&V163,'Raw1'!A:Z,26,0)),"") -> 
H164: =IF('Raw2'!U160="","",'Raw2'!U160) ->  | L164: =IF('Raw2'!V160="","",'Raw2'!V160) ->  | M164: =IFERROR(VLOOKUP(H164,'Raw4'!A:C,2,0),"") ->  | N164: =IFERROR(VLOOKUP(H164,'Raw2'!A:F,6,0),"") ->  | O164: =IFERROR(VLOOKUP($H164,'Raw2'!$A:$I,8,0),"") ->  | P164: =IFERROR(VLOOKUP($H164,'Raw2'!$A:$I,9,0),"") ->  | Q164: =IFERROR(YEAR(VLOOKUP(H164,'Raw3'!A:C,2,0)),"") ->  | R164: =IFERROR(VLOOKUP(H164,'Raw3'!A:P,16,0),"") ->  | S164: =IFERROR(VLOOKUP(H164,'Raw3'!A:P,3,0),"") ->  | T164: =IFERROR(IF(FIND("Q1",R164)>0,VLOOKUP(H164,'Raw3'!A:P,10,0),IF(FIND("Q2",R164)>0,VLOOKUP(H164,'Raw3'!A:P,11,0),IF(FIND("Q3",R164)>0,VLOOKUP(H164,'Raw3'!A:P,12,0),))),"") ->  | U164: =IFERROR(IF(FIND("Q4",R164)>0,VLOOKUP(H164,'Raw3'!A:P,14,0),""),"") ->  | V164: =IFERROR(IF(VLOOKUP(H164,'Raw3'!A:P,5,0)="","",VLOOKUP(H164,'Raw3'!A:P,5,0)),"") ->  | W164: =IFERROR(IF(VLOOKUP(H164,'Raw3'!A:P,4,0)="","",VLOOKUP(H164,'Raw3'!A:P,4,0)),"") ->  | X164: =IFERROR(IF(VLOOKUP(H164&V164,'Raw1'!A:Z,26,0)="","",VLOOKUP(H164&V164,'Raw1'!A:Z,26,0)),"") -> 
H165: =IF('Raw2'!U161="","",'Raw2'!U161) ->  | L165: =IF('Raw2'!V161="","",'Raw2'!V161) ->  | M165: =IFERROR(VLOOKUP(H165,'Raw4'!A:C,2,0),"") ->  | N165: =IFERROR(VLOOKUP(H165,'Raw2'!A:F,6,0),"") ->  | O165: =IFERROR(VLOOKUP($H165,'Raw2'!$A:$I,8,0),"") ->  | P165: =IFERROR(VLOOKUP($H165,'Raw2'!$A:$I,9,0),"") ->  | Q165: =IFERROR(YEAR(VLOOKUP(H165,'Raw3'!A:C,2,0)),"") ->  | R165: =IFERROR(VLOOKUP(H165,'Raw3'!A:P,16,0),"") ->  | S165: =IFERROR(VLOOKUP(H165,'Raw3'!A:P,3,0),"") ->  | T165: =IFERROR(IF(FIND("Q1",R165)>0,VLOOKUP(H165,'Raw3'!A:P,10,0),IF(FIND("Q2",R165)>0,VLOOKUP(H165,'Raw3'!A:P,11,0),IF(FIND("Q3",R165)>0,VLOOKUP(H165,'Raw3'!A:P,12,0),))),"") ->  | U165: =IFERROR(IF(FIND("Q4",R165)>0,VLOOKUP(H165,'Raw3'!A:P,14,0),""),"") ->  | V165: =IFERROR(IF(VLOOKUP(H165,'Raw3'!A:P,5,0)="","",VLOOKUP(H165,'Raw3'!A:P,5,0)),"") ->  | W165: =IFERROR(IF(VLOOKUP(H165,'Raw3'!A:P,4,0)="","",VLOOKUP(H165,'Raw3'!A:P,4,0)),"") ->  | X165: =IFERROR(IF(VLOOKUP(H165&V165,'Raw1'!A:Z,26,0)="","",VLOOKUP(H165&V165,'Raw1'!A:Z,26,0)),"") -> 
H166: =IF('Raw2'!U162="","",'Raw2'!U162) ->  | L166: =IF('Raw2'!V162="","",'Raw2'!V162) ->  | M166: =IFERROR(VLOOKUP(H166,'Raw4'!A:C,2,0),"") ->  | N166: =IFERROR(VLOOKUP(H166,'Raw2'!A:F,6,0),"") ->  | O166: =IFERROR(VLOOKUP($H166,'Raw2'!$A:$I,8,0),"") ->  | P166: =IFERROR(VLOOKUP($H166,'Raw2'!$A:$I,9,0),"") ->  | Q166: =IFERROR(YEAR(VLOOKUP(H166,'Raw3'!A:C,2,0)),"") ->  | R166: =IFERROR(VLOOKUP(H166,'Raw3'!A:P,16,0),"") ->  | S166: =IFERROR(VLOOKUP(H166,'Raw3'!A:P,3,0),"") ->  | T166: =IFERROR(IF(FIND("Q1",R166)>0,VLOOKUP(H166,'Raw3'!A:P,10,0),IF(FIND("Q2",R166)>0,VLOOKUP(H166,'Raw3'!A:P,11,0),IF(FIND("Q3",R166)>0,VLOOKUP(H166,'Raw3'!A:P,12,0),))),"") ->  | U166: =IFERROR(IF(FIND("Q4",R166)>0,VLOOKUP(H166,'Raw3'!A:P,14,0),""),"") ->  | V166: =IFERROR(IF(VLOOKUP(H166,'Raw3'!A:P,5,0)="","",VLOOKUP(H166,'Raw3'!A:P,5,0)),"") ->  | W166: =IFERROR(IF(VLOOKUP(H166,'Raw3'!A:P,4,0)="","",VLOOKUP(H166,'Raw3'!A:P,4,0)),"") ->  | X166: =IFERROR(IF(VLOOKUP(H166&V166,'Raw1'!A:Z,26,0)="","",VLOOKUP(H166&V166,'Raw1'!A:Z,26,0)),"") -> 
H167: =IF('Raw2'!U163="","",'Raw2'!U163) ->  | L167: =IF('Raw2'!V163="","",'Raw2'!V163) ->  | M167: =IFERROR(VLOOKUP(H167,'Raw4'!A:C,2,0),"") ->  | N167: =IFERROR(VLOOKUP(H167,'Raw2'!A:F,6,0),"") ->  | O167: =IFERROR(VLOOKUP($H167,'Raw2'!$A:$I,8,0),"") ->  | P167: =IFERROR(VLOOKUP($H167,'Raw2'!$A:$I,9,0),"") ->  | Q167: =IFERROR(YEAR(VLOOKUP(H167,'Raw3'!A:C,2,0)),"") ->  | R167: =IFERROR(VLOOKUP(H167,'Raw3'!A:P,16,0),"") ->  | S167: =IFERROR(VLOOKUP(H167,'Raw3'!A:P,3,0),"") ->  | T167: =IFERROR(IF(FIND("Q1",R167)>0,VLOOKUP(H167,'Raw3'!A:P,10,0),IF(FIND("Q2",R167)>0,VLOOKUP(H167,'Raw3'!A:P,11,0),IF(FIND("Q3",R167)>0,VLOOKUP(H167,'Raw3'!A:P,12,0),))),"") ->  | U167: =IFERROR(IF(FIND("Q4",R167)>0,VLOOKUP(H167,'Raw3'!A:P,14,0),""),"") ->  | V167: =IFERROR(IF(VLOOKUP(H167,'Raw3'!A:P,5,0)="","",VLOOKUP(H167,'Raw3'!A:P,5,0)),"") ->  | W167: =IFERROR(IF(VLOOKUP(H167,'Raw3'!A:P,4,0)="","",VLOOKUP(H167,'Raw3'!A:P,4,0)),"") ->  | X167: =IFERROR(IF(VLOOKUP(H167&V167,'Raw1'!A:Z,26,0)="","",VLOOKUP(H167&V167,'Raw1'!A:Z,26,0)),"") -> 
H168: =IF('Raw2'!U164="","",'Raw2'!U164) ->  | L168: =IF('Raw2'!V164="","",'Raw2'!V164) ->  | M168: =IFERROR(VLOOKUP(H168,'Raw4'!A:C,2,0),"") ->  | N168: =IFERROR(VLOOKUP(H168,'Raw2'!A:F,6,0),"") ->  | O168: =IFERROR(VLOOKUP($H168,'Raw2'!$A:$I,8,0),"") ->  | P168: =IFERROR(VLOOKUP($H168,'Raw2'!$A:$I,9,0),"") ->  | Q168: =IFERROR(YEAR(VLOOKUP(H168,'Raw3'!A:C,2,0)),"") ->  | R168: =IFERROR(VLOOKUP(H168,'Raw3'!A:P,16,0),"") ->  | S168: =IFERROR(VLOOKUP(H168,'Raw3'!A:P,3,0),"") ->  | T168: =IFERROR(IF(FIND("Q1",R168)>0,VLOOKUP(H168,'Raw3'!A:P,10,0),IF(FIND("Q2",R168)>0,VLOOKUP(H168,'Raw3'!A:P,11,0),IF(FIND("Q3",R168)>0,VLOOKUP(H168,'Raw3'!A:P,12,0),))),"") ->  | U168: =IFERROR(IF(FIND("Q4",R168)>0,VLOOKUP(H168,'Raw3'!A:P,14,0),""),"") ->  | V168: =IFERROR(IF(VLOOKUP(H168,'Raw3'!A:P,5,0)="","",VLOOKUP(H168,'Raw3'!A:P,5,0)),"") ->  | W168: =IFERROR(IF(VLOOKUP(H168,'Raw3'!A:P,4,0)="","",VLOOKUP(H168,'Raw3'!A:P,4,0)),"") ->  | X168: =IFERROR(IF(VLOOKUP(H168&V168,'Raw1'!A:Z,26,0)="","",VLOOKUP(H168&V168,'Raw1'!A:Z,26,0)),"") -> 
H169: =IF('Raw2'!U165="","",'Raw2'!U165) ->  | L169: =IF('Raw2'!V165="","",'Raw2'!V165) ->  | M169: =IFERROR(VLOOKUP(H169,'Raw4'!A:C,2,0),"") ->  | N169: =IFERROR(VLOOKUP(H169,'Raw2'!A:F,6,0),"") ->  | O169: =IFERROR(VLOOKUP($H169,'Raw2'!$A:$I,8,0),"") ->  | P169: =IFERROR(VLOOKUP($H169,'Raw2'!$A:$I,9,0),"") ->  | Q169: =IFERROR(YEAR(VLOOKUP(H169,'Raw3'!A:C,2,0)),"") ->  | R169: =IFERROR(VLOOKUP(H169,'Raw3'!A:P,16,0),"") ->  | S169: =IFERROR(VLOOKUP(H169,'Raw3'!A:P,3,0),"") ->  | T169: =IFERROR(IF(FIND("Q1",R169)>0,VLOOKUP(H169,'Raw3'!A:P,10,0),IF(FIND("Q2",R169)>0,VLOOKUP(H169,'Raw3'!A:P,11,0),IF(FIND("Q3",R169)>0,VLOOKUP(H169,'Raw3'!A:P,12,0),))),"") ->  | U169: =IFERROR(IF(FIND("Q4",R169)>0,VLOOKUP(H169,'Raw3'!A:P,14,0),""),"") ->  | V169: =IFERROR(IF(VLOOKUP(H169,'Raw3'!A:P,5,0)="","",VLOOKUP(H169,'Raw3'!A:P,5,0)),"") ->  | W169: =IFERROR(IF(VLOOKUP(H169,'Raw3'!A:P,4,0)="","",VLOOKUP(H169,'Raw3'!A:P,4,0)),"") ->  | X169: =IFERROR(IF(VLOOKUP(H169&V169,'Raw1'!A:Z,26,0)="","",VLOOKUP(H169&V169,'Raw1'!A:Z,26,0)),"") -> 
H170: =IF('Raw2'!U166="","",'Raw2'!U166) ->  | L170: =IF('Raw2'!V166="","",'Raw2'!V166) ->  | M170: =IFERROR(VLOOKUP(H170,'Raw4'!A:C,2,0),"") ->  | N170: =IFERROR(VLOOKUP(H170,'Raw2'!A:F,6,0),"") ->  | O170: =IFERROR(VLOOKUP($H170,'Raw2'!$A:$I,8,0),"") ->  | P170: =IFERROR(VLOOKUP($H170,'Raw2'!$A:$I,9,0),"") ->  | Q170: =IFERROR(YEAR(VLOOKUP(H170,'Raw3'!A:C,2,0)),"") ->  | R170: =IFERROR(VLOOKUP(H170,'Raw3'!A:P,16,0),"") ->  | S170: =IFERROR(VLOOKUP(H170,'Raw3'!A:P,3,0),"") ->  | T170: =IFERROR(IF(FIND("Q1",R170)>0,VLOOKUP(H170,'Raw3'!A:P,10,0),IF(FIND("Q2",R170)>0,VLOOKUP(H170,'Raw3'!A:P,11,0),IF(FIND("Q3",R170)>0,VLOOKUP(H170,'Raw3'!A:P,12,0),))),"") ->  | U170: =IFERROR(IF(FIND("Q4",R170)>0,VLOOKUP(H170,'Raw3'!A:P,14,0),""),"") ->  | V170: =IFERROR(IF(VLOOKUP(H170,'Raw3'!A:P,5,0)="","",VLOOKUP(H170,'Raw3'!A:P,5,0)),"") ->  | W170: =IFERROR(IF(VLOOKUP(H170,'Raw3'!A:P,4,0)="","",VLOOKUP(H170,'Raw3'!A:P,4,0)),"") ->  | X170: =IFERROR(IF(VLOOKUP(H170&V170,'Raw1'!A:Z,26,0)="","",VLOOKUP(H170&V170,'Raw1'!A:Z,26,0)),"") -> 
H171: =IF('Raw2'!U167="","",'Raw2'!U167) ->  | L171: =IF('Raw2'!V167="","",'Raw2'!V167) ->  | M171: =IFERROR(VLOOKUP(H171,'Raw4'!A:C,2,0),"") ->  | N171: =IFERROR(VLOOKUP(H171,'Raw2'!A:F,6,0),"") ->  | O171: =IFERROR(VLOOKUP($H171,'Raw2'!$A:$I,8,0),"") ->  | P171: =IFERROR(VLOOKUP($H171,'Raw2'!$A:$I,9,0),"") ->  | Q171: =IFERROR(YEAR(VLOOKUP(H171,'Raw3'!A:C,2,0)),"") ->  | R171: =IFERROR(VLOOKUP(H171,'Raw3'!A:P,16,0),"") ->  | S171: =IFERROR(VLOOKUP(H171,'Raw3'!A:P,3,0),"") ->  | T171: =IFERROR(IF(FIND("Q1",R171)>0,VLOOKUP(H171,'Raw3'!A:P,10,0),IF(FIND("Q2",R171)>0,VLOOKUP(H171,'Raw3'!A:P,11,0),IF(FIND("Q3",R171)>0,VLOOKUP(H171,'Raw3'!A:P,12,0),))),"") ->  | U171: =IFERROR(IF(FIND("Q4",R171)>0,VLOOKUP(H171,'Raw3'!A:P,14,0),""),"") ->  | V171: =IFERROR(IF(VLOOKUP(H171,'Raw3'!A:P,5,0)="","",VLOOKUP(H171,'Raw3'!A:P,5,0)),"") ->  | W171: =IFERROR(IF(VLOOKUP(H171,'Raw3'!A:P,4,0)="","",VLOOKUP(H171,'Raw3'!A:P,4,0)),"") ->  | X171: =IFERROR(IF(VLOOKUP(H171&V171,'Raw1'!A:Z,26,0)="","",VLOOKUP(H171&V171,'Raw1'!A:Z,26,0)),"") -> 
H172: =IF('Raw2'!U168="","",'Raw2'!U168) ->  | L172: =IF('Raw2'!V168="","",'Raw2'!V168) ->  | M172: =IFERROR(VLOOKUP(H172,'Raw4'!A:C,2,0),"") ->  | N172: =IFERROR(VLOOKUP(H172,'Raw2'!A:F,6,0),"") ->  | O172: =IFERROR(VLOOKUP($H172,'Raw2'!$A:$I,8,0),"") ->  | P172: =IFERROR(VLOOKUP($H172,'Raw2'!$A:$I,9,0),"") ->  | Q172: =IFERROR(YEAR(VLOOKUP(H172,'Raw3'!A:C,2,0)),"") ->  | R172: =IFERROR(VLOOKUP(H172,'Raw3'!A:P,16,0),"") ->  | S172: =IFERROR(VLOOKUP(H172,'Raw3'!A:P,3,0),"") ->  | T172: =IFERROR(IF(FIND("Q1",R172)>0,VLOOKUP(H172,'Raw3'!A:P,10,0),IF(FIND("Q2",R172)>0,VLOOKUP(H172,'Raw3'!A:P,11,0),IF(FIND("Q3",R172)>0,VLOOKUP(H172,'Raw3'!A:P,12,0),))),"") ->  | U172: =IFERROR(IF(FIND("Q4",R172)>0,VLOOKUP(H172,'Raw3'!A:P,14,0),""),"") ->  | V172: =IFERROR(IF(VLOOKUP(H172,'Raw3'!A:P,5,0)="","",VLOOKUP(H172,'Raw3'!A:P,5,0)),"") ->  | W172: =IFERROR(IF(VLOOKUP(H172,'Raw3'!A:P,4,0)="","",VLOOKUP(H172,'Raw3'!A:P,4,0)),"") ->  | X172: =IFERROR(IF(VLOOKUP(H172&V172,'Raw1'!A:Z,26,0)="","",VLOOKUP(H172&V172,'Raw1'!A:Z,26,0)),"") -> 
H173: =IF('Raw2'!U169="","",'Raw2'!U169) ->  | L173: =IF('Raw2'!V169="","",'Raw2'!V169) ->  | M173: =IFERROR(VLOOKUP(H173,'Raw4'!A:C,2,0),"") ->  | N173: =IFERROR(VLOOKUP(H173,'Raw2'!A:F,6,0),"") ->  | O173: =IFERROR(VLOOKUP($H173,'Raw2'!$A:$I,8,0),"") ->  | P173: =IFERROR(VLOOKUP($H173,'Raw2'!$A:$I,9,0),"") ->  | Q173: =IFERROR(YEAR(VLOOKUP(H173,'Raw3'!A:C,2,0)),"") ->  | R173: =IFERROR(VLOOKUP(H173,'Raw3'!A:P,16,0),"") ->  | S173: =IFERROR(VLOOKUP(H173,'Raw3'!A:P,3,0),"") ->  | T173: =IFERROR(IF(FIND("Q1",R173)>0,VLOOKUP(H173,'Raw3'!A:P,10,0),IF(FIND("Q2",R173)>0,VLOOKUP(H173,'Raw3'!A:P,11,0),IF(FIND("Q3",R173)>0,VLOOKUP(H173,'Raw3'!A:P,12,0),))),"") ->  | U173: =IFERROR(IF(FIND("Q4",R173)>0,VLOOKUP(H173,'Raw3'!A:P,14,0),""),"") ->  | V173: =IFERROR(IF(VLOOKUP(H173,'Raw3'!A:P,5,0)="","",VLOOKUP(H173,'Raw3'!A:P,5,0)),"") ->  | W173: =IFERROR(IF(VLOOKUP(H173,'Raw3'!A:P,4,0)="","",VLOOKUP(H173,'Raw3'!A:P,4,0)),"") ->  | X173: =IFERROR(IF(VLOOKUP(H173&V173,'Raw1'!A:Z,26,0)="","",VLOOKUP(H173&V173,'Raw1'!A:Z,26,0)),"") -> 
H174: =IF('Raw2'!U170="","",'Raw2'!U170) ->  | L174: =IF('Raw2'!V170="","",'Raw2'!V170) ->  | M174: =IFERROR(VLOOKUP(H174,'Raw4'!A:C,2,0),"") ->  | N174: =IFERROR(VLOOKUP(H174,'Raw2'!A:F,6,0),"") ->  | O174: =IFERROR(VLOOKUP($H174,'Raw2'!$A:$I,8,0),"") ->  | P174: =IFERROR(VLOOKUP($H174,'Raw2'!$A:$I,9,0),"") ->  | Q174: =IFERROR(YEAR(VLOOKUP(H174,'Raw3'!A:C,2,0)),"") ->  | R174: =IFERROR(VLOOKUP(H174,'Raw3'!A:P,16,0),"") ->  | S174: =IFERROR(VLOOKUP(H174,'Raw3'!A:P,3,0),"") ->  | T174: =IFERROR(IF(FIND("Q1",R174)>0,VLOOKUP(H174,'Raw3'!A:P,10,0),IF(FIND("Q2",R174)>0,VLOOKUP(H174,'Raw3'!A:P,11,0),IF(FIND("Q3",R174)>0,VLOOKUP(H174,'Raw3'!A:P,12,0),))),"") ->  | U174: =IFERROR(IF(FIND("Q4",R174)>0,VLOOKUP(H174,'Raw3'!A:P,14,0),""),"") ->  | V174: =IFERROR(IF(VLOOKUP(H174,'Raw3'!A:P,5,0)="","",VLOOKUP(H174,'Raw3'!A:P,5,0)),"") ->  | W174: =IFERROR(IF(VLOOKUP(H174,'Raw3'!A:P,4,0)="","",VLOOKUP(H174,'Raw3'!A:P,4,0)),"") ->  | X174: =IFERROR(IF(VLOOKUP(H174&V174,'Raw1'!A:Z,26,0)="","",VLOOKUP(H174&V174,'Raw1'!A:Z,26,0)),"") -> 
H175: =IF('Raw2'!U171="","",'Raw2'!U171) ->  | L175: =IF('Raw2'!V171="","",'Raw2'!V171) ->  | M175: =IFERROR(VLOOKUP(H175,'Raw4'!A:C,2,0),"") ->  | N175: =IFERROR(VLOOKUP(H175,'Raw2'!A:F,6,0),"") ->  | O175: =IFERROR(VLOOKUP($H175,'Raw2'!$A:$I,8,0),"") ->  | P175: =IFERROR(VLOOKUP($H175,'Raw2'!$A:$I,9,0),"") ->  | Q175: =IFERROR(YEAR(VLOOKUP(H175,'Raw3'!A:C,2,0)),"") ->  | R175: =IFERROR(VLOOKUP(H175,'Raw3'!A:P,16,0),"") ->  | S175: =IFERROR(VLOOKUP(H175,'Raw3'!A:P,3,0),"") ->  | T175: =IFERROR(IF(FIND("Q1",R175)>0,VLOOKUP(H175,'Raw3'!A:P,10,0),IF(FIND("Q2",R175)>0,VLOOKUP(H175,'Raw3'!A:P,11,0),IF(FIND("Q3",R175)>0,VLOOKUP(H175,'Raw3'!A:P,12,0),))),"") ->  | U175: =IFERROR(IF(FIND("Q4",R175)>0,VLOOKUP(H175,'Raw3'!A:P,14,0),""),"") ->  | V175: =IFERROR(IF(VLOOKUP(H175,'Raw3'!A:P,5,0)="","",VLOOKUP(H175,'Raw3'!A:P,5,0)),"") ->  | W175: =IFERROR(IF(VLOOKUP(H175,'Raw3'!A:P,4,0)="","",VLOOKUP(H175,'Raw3'!A:P,4,0)),"") ->  | X175: =IFERROR(IF(VLOOKUP(H175&V175,'Raw1'!A:Z,26,0)="","",VLOOKUP(H175&V175,'Raw1'!A:Z,26,0)),"") -> 
H176: =IF('Raw2'!U172="","",'Raw2'!U172) ->  | L176: =IF('Raw2'!V172="","",'Raw2'!V172) ->  | M176: =IFERROR(VLOOKUP(H176,'Raw4'!A:C,2,0),"") ->  | N176: =IFERROR(VLOOKUP(H176,'Raw2'!A:F,6,0),"") ->  | O176: =IFERROR(VLOOKUP($H176,'Raw2'!$A:$I,8,0),"") ->  | P176: =IFERROR(VLOOKUP($H176,'Raw2'!$A:$I,9,0),"") ->  | Q176: =IFERROR(YEAR(VLOOKUP(H176,'Raw3'!A:C,2,0)),"") ->  | R176: =IFERROR(VLOOKUP(H176,'Raw3'!A:P,16,0),"") ->  | S176: =IFERROR(VLOOKUP(H176,'Raw3'!A:P,3,0),"") ->  | T176: =IFERROR(IF(FIND("Q1",R176)>0,VLOOKUP(H176,'Raw3'!A:P,10,0),IF(FIND("Q2",R176)>0,VLOOKUP(H176,'Raw3'!A:P,11,0),IF(FIND("Q3",R176)>0,VLOOKUP(H176,'Raw3'!A:P,12,0),))),"") ->  | U176: =IFERROR(IF(FIND("Q4",R176)>0,VLOOKUP(H176,'Raw3'!A:P,14,0),""),"") ->  | V176: =IFERROR(IF(VLOOKUP(H176,'Raw3'!A:P,5,0)="","",VLOOKUP(H176,'Raw3'!A:P,5,0)),"") ->  | W176: =IFERROR(IF(VLOOKUP(H176,'Raw3'!A:P,4,0)="","",VLOOKUP(H176,'Raw3'!A:P,4,0)),"") ->  | X176: =IFERROR(IF(VLOOKUP(H176&V176,'Raw1'!A:Z,26,0)="","",VLOOKUP(H176&V176,'Raw1'!A:Z,26,0)),"") -> 
H177: =IF('Raw2'!U173="","",'Raw2'!U173) ->  | L177: =IF('Raw2'!V173="","",'Raw2'!V173) ->  | M177: =IFERROR(VLOOKUP(H177,'Raw4'!A:C,2,0),"") ->  | N177: =IFERROR(VLOOKUP(H177,'Raw2'!A:F,6,0),"") ->  | O177: =IFERROR(VLOOKUP($H177,'Raw2'!$A:$I,8,0),"") ->  | P177: =IFERROR(VLOOKUP($H177,'Raw2'!$A:$I,9,0),"") ->  | Q177: =IFERROR(YEAR(VLOOKUP(H177,'Raw3'!A:C,2,0)),"") ->  | R177: =IFERROR(VLOOKUP(H177,'Raw3'!A:P,16,0),"") ->  | S177: =IFERROR(VLOOKUP(H177,'Raw3'!A:P,3,0),"") ->  | T177: =IFERROR(IF(FIND("Q1",R177)>0,VLOOKUP(H177,'Raw3'!A:P,10,0),IF(FIND("Q2",R177)>0,VLOOKUP(H177,'Raw3'!A:P,11,0),IF(FIND("Q3",R177)>0,VLOOKUP(H177,'Raw3'!A:P,12,0),))),"") ->  | U177: =IFERROR(IF(FIND("Q4",R177)>0,VLOOKUP(H177,'Raw3'!A:P,14,0),""),"") ->  | V177: =IFERROR(IF(VLOOKUP(H177,'Raw3'!A:P,5,0)="","",VLOOKUP(H177,'Raw3'!A:P,5,0)),"") ->  | W177: =IFERROR(IF(VLOOKUP(H177,'Raw3'!A:P,4,0)="","",VLOOKUP(H177,'Raw3'!A:P,4,0)),"") ->  | X177: =IFERROR(IF(VLOOKUP(H177&V177,'Raw1'!A:Z,26,0)="","",VLOOKUP(H177&V177,'Raw1'!A:Z,26,0)),"") -> 
H178: =IF('Raw2'!U174="","",'Raw2'!U174) ->  | L178: =IF('Raw2'!V174="","",'Raw2'!V174) ->  | M178: =IFERROR(VLOOKUP(H178,'Raw4'!A:C,2,0),"") ->  | N178: =IFERROR(VLOOKUP(H178,'Raw2'!A:F,6,0),"") ->  | O178: =IFERROR(VLOOKUP($H178,'Raw2'!$A:$I,8,0),"") ->  | P178: =IFERROR(VLOOKUP($H178,'Raw2'!$A:$I,9,0),"") ->  | Q178: =IFERROR(YEAR(VLOOKUP(H178,'Raw3'!A:C,2,0)),"") ->  | R178: =IFERROR(VLOOKUP(H178,'Raw3'!A:P,16,0),"") ->  | S178: =IFERROR(VLOOKUP(H178,'Raw3'!A:P,3,0),"") ->  | T178: =IFERROR(IF(FIND("Q1",R178)>0,VLOOKUP(H178,'Raw3'!A:P,10,0),IF(FIND("Q2",R178)>0,VLOOKUP(H178,'Raw3'!A:P,11,0),IF(FIND("Q3",R178)>0,VLOOKUP(H178,'Raw3'!A:P,12,0),))),"") ->  | U178: =IFERROR(IF(FIND("Q4",R178)>0,VLOOKUP(H178,'Raw3'!A:P,14,0),""),"") ->  | V178: =IFERROR(IF(VLOOKUP(H178,'Raw3'!A:P,5,0)="","",VLOOKUP(H178,'Raw3'!A:P,5,0)),"") ->  | W178: =IFERROR(IF(VLOOKUP(H178,'Raw3'!A:P,4,0)="","",VLOOKUP(H178,'Raw3'!A:P,4,0)),"") ->  | X178: =IFERROR(IF(VLOOKUP(H178&V178,'Raw1'!A:Z,26,0)="","",VLOOKUP(H178&V178,'Raw1'!A:Z,26,0)),"") -> 
H179: =IF('Raw2'!U175="","",'Raw2'!U175) ->  | L179: =IF('Raw2'!V175="","",'Raw2'!V175) ->  | M179: =IFERROR(VLOOKUP(H179,'Raw4'!A:C,2,0),"") ->  | N179: =IFERROR(VLOOKUP(H179,'Raw2'!A:F,6,0),"") ->  | O179: =IFERROR(VLOOKUP($H179,'Raw2'!$A:$I,8,0),"") ->  | P179: =IFERROR(VLOOKUP($H179,'Raw2'!$A:$I,9,0),"") ->  | Q179: =IFERROR(YEAR(VLOOKUP(H179,'Raw3'!A:C,2,0)),"") ->  | R179: =IFERROR(VLOOKUP(H179,'Raw3'!A:P,16,0),"") ->  | S179: =IFERROR(VLOOKUP(H179,'Raw3'!A:P,3,0),"") ->  | T179: =IFERROR(IF(FIND("Q1",R179)>0,VLOOKUP(H179,'Raw3'!A:P,10,0),IF(FIND("Q2",R179)>0,VLOOKUP(H179,'Raw3'!A:P,11,0),IF(FIND("Q3",R179)>0,VLOOKUP(H179,'Raw3'!A:P,12,0),))),"") ->  | U179: =IFERROR(IF(FIND("Q4",R179)>0,VLOOKUP(H179,'Raw3'!A:P,14,0),""),"") ->  | V179: =IFERROR(IF(VLOOKUP(H179,'Raw3'!A:P,5,0)="","",VLOOKUP(H179,'Raw3'!A:P,5,0)),"") ->  | W179: =IFERROR(IF(VLOOKUP(H179,'Raw3'!A:P,4,0)="","",VLOOKUP(H179,'Raw3'!A:P,4,0)),"") ->  | X179: =IFERROR(IF(VLOOKUP(H179&V179,'Raw1'!A:Z,26,0)="","",VLOOKUP(H179&V179,'Raw1'!A:Z,26,0)),"") -> 
H180: =IF('Raw2'!U176="","",'Raw2'!U176) ->  | L180: =IF('Raw2'!V176="","",'Raw2'!V176) ->  | M180: =IFERROR(VLOOKUP(H180,'Raw4'!A:C,2,0),"") ->  | N180: =IFERROR(VLOOKUP(H180,'Raw2'!A:F,6,0),"") ->  | O180: =IFERROR(VLOOKUP($H180,'Raw2'!$A:$I,8,0),"") ->  | P180: =IFERROR(VLOOKUP($H180,'Raw2'!$A:$I,9,0),"") ->  | Q180: =IFERROR(YEAR(VLOOKUP(H180,'Raw3'!A:C,2,0)),"") ->  | R180: =IFERROR(VLOOKUP(H180,'Raw3'!A:P,16,0),"") ->  | S180: =IFERROR(VLOOKUP(H180,'Raw3'!A:P,3,0),"") ->  | T180: =IFERROR(IF(FIND("Q1",R180)>0,VLOOKUP(H180,'Raw3'!A:P,10,0),IF(FIND("Q2",R180)>0,VLOOKUP(H180,'Raw3'!A:P,11,0),IF(FIND("Q3",R180)>0,VLOOKUP(H180,'Raw3'!A:P,12,0),))),"") ->  | U180: =IFERROR(IF(FIND("Q4",R180)>0,VLOOKUP(H180,'Raw3'!A:P,14,0),""),"") ->  | V180: =IFERROR(IF(VLOOKUP(H180,'Raw3'!A:P,5,0)="","",VLOOKUP(H180,'Raw3'!A:P,5,0)),"") ->  | W180: =IFERROR(IF(VLOOKUP(H180,'Raw3'!A:P,4,0)="","",VLOOKUP(H180,'Raw3'!A:P,4,0)),"") ->  | X180: =IFERROR(IF(VLOOKUP(H180&V180,'Raw1'!A:Z,26,0)="","",VLOOKUP(H180&V180,'Raw1'!A:Z,26,0)),"") -> 
H181: =IF('Raw2'!U177="","",'Raw2'!U177) ->  | L181: =IF('Raw2'!V177="","",'Raw2'!V177) ->  | M181: =IFERROR(VLOOKUP(H181,'Raw4'!A:C,2,0),"") ->  | N181: =IFERROR(VLOOKUP(H181,'Raw2'!A:F,6,0),"") ->  | O181: =IFERROR(VLOOKUP($H181,'Raw2'!$A:$I,8,0),"") ->  | P181: =IFERROR(VLOOKUP($H181,'Raw2'!$A:$I,9,0),"") ->  | Q181: =IFERROR(YEAR(VLOOKUP(H181,'Raw3'!A:C,2,0)),"") ->  | R181: =IFERROR(VLOOKUP(H181,'Raw3'!A:P,16,0),"") ->  | S181: =IFERROR(VLOOKUP(H181,'Raw3'!A:P,3,0),"") ->  | T181: =IFERROR(IF(FIND("Q1",R181)>0,VLOOKUP(H181,'Raw3'!A:P,10,0),IF(FIND("Q2",R181)>0,VLOOKUP(H181,'Raw3'!A:P,11,0),IF(FIND("Q3",R181)>0,VLOOKUP(H181,'Raw3'!A:P,12,0),))),"") ->  | U181: =IFERROR(IF(FIND("Q4",R181)>0,VLOOKUP(H181,'Raw3'!A:P,14,0),""),"") ->  | V181: =IFERROR(IF(VLOOKUP(H181,'Raw3'!A:P,5,0)="","",VLOOKUP(H181,'Raw3'!A:P,5,0)),"") ->  | W181: =IFERROR(IF(VLOOKUP(H181,'Raw3'!A:P,4,0)="","",VLOOKUP(H181,'Raw3'!A:P,4,0)),"") ->  | X181: =IFERROR(IF(VLOOKUP(H181&V181,'Raw1'!A:Z,26,0)="","",VLOOKUP(H181&V181,'Raw1'!A:Z,26,0)),"") -> 
H182: =IF('Raw2'!U178="","",'Raw2'!U178) ->  | L182: =IF('Raw2'!V178="","",'Raw2'!V178) ->  | M182: =IFERROR(VLOOKUP(H182,'Raw4'!A:C,2,0),"") ->  | N182: =IFERROR(VLOOKUP(H182,'Raw2'!A:F,6,0),"") ->  | O182: =IFERROR(VLOOKUP($H182,'Raw2'!$A:$I,8,0),"") ->  | P182: =IFERROR(VLOOKUP($H182,'Raw2'!$A:$I,9,0),"") ->  | Q182: =IFERROR(YEAR(VLOOKUP(H182,'Raw3'!A:C,2,0)),"") ->  | R182: =IFERROR(VLOOKUP(H182,'Raw3'!A:P,16,0),"") ->  | S182: =IFERROR(VLOOKUP(H182,'Raw3'!A:P,3,0),"") ->  | T182: =IFERROR(IF(FIND("Q1",R182)>0,VLOOKUP(H182,'Raw3'!A:P,10,0),IF(FIND("Q2",R182)>0,VLOOKUP(H182,'Raw3'!A:P,11,0),IF(FIND("Q3",R182)>0,VLOOKUP(H182,'Raw3'!A:P,12,0),))),"") ->  | U182: =IFERROR(IF(FIND("Q4",R182)>0,VLOOKUP(H182,'Raw3'!A:P,14,0),""),"") ->  | V182: =IFERROR(IF(VLOOKUP(H182,'Raw3'!A:P,5,0)="","",VLOOKUP(H182,'Raw3'!A:P,5,0)),"") ->  | W182: =IFERROR(IF(VLOOKUP(H182,'Raw3'!A:P,4,0)="","",VLOOKUP(H182,'Raw3'!A:P,4,0)),"") ->  | X182: =IFERROR(IF(VLOOKUP(H182&V182,'Raw1'!A:Z,26,0)="","",VLOOKUP(H182&V182,'Raw1'!A:Z,26,0)),"") -> 
H183: =IF('Raw2'!U179="","",'Raw2'!U179) ->  | L183: =IF('Raw2'!V179="","",'Raw2'!V179) ->  | M183: =IFERROR(VLOOKUP(H183,'Raw4'!A:C,2,0),"") ->  | N183: =IFERROR(VLOOKUP(H183,'Raw2'!A:F,6,0),"") ->  | O183: =IFERROR(VLOOKUP($H183,'Raw2'!$A:$I,8,0),"") ->  | P183: =IFERROR(VLOOKUP($H183,'Raw2'!$A:$I,9,0),"") ->  | Q183: =IFERROR(YEAR(VLOOKUP(H183,'Raw3'!A:C,2,0)),"") ->  | R183: =IFERROR(VLOOKUP(H183,'Raw3'!A:P,16,0),"") ->  | S183: =IFERROR(VLOOKUP(H183,'Raw3'!A:P,3,0),"") ->  | T183: =IFERROR(IF(FIND("Q1",R183)>0,VLOOKUP(H183,'Raw3'!A:P,10,0),IF(FIND("Q2",R183)>0,VLOOKUP(H183,'Raw3'!A:P,11,0),IF(FIND("Q3",R183)>0,VLOOKUP(H183,'Raw3'!A:P,12,0),))),"") ->  | U183: =IFERROR(IF(FIND("Q4",R183)>0,VLOOKUP(H183,'Raw3'!A:P,14,0),""),"") ->  | V183: =IFERROR(IF(VLOOKUP(H183,'Raw3'!A:P,5,0)="","",VLOOKUP(H183,'Raw3'!A:P,5,0)),"") ->  | W183: =IFERROR(IF(VLOOKUP(H183,'Raw3'!A:P,4,0)="","",VLOOKUP(H183,'Raw3'!A:P,4,0)),"") ->  | X183: =IFERROR(IF(VLOOKUP(H183&V183,'Raw1'!A:Z,26,0)="","",VLOOKUP(H183&V183,'Raw1'!A:Z,26,0)),"") -> 
H184: =IF('Raw2'!U180="","",'Raw2'!U180) ->  | L184: =IF('Raw2'!V180="","",'Raw2'!V180) ->  | M184: =IFERROR(VLOOKUP(H184,'Raw4'!A:C,2,0),"") ->  | N184: =IFERROR(VLOOKUP(H184,'Raw2'!A:F,6,0),"") ->  | O184: =IFERROR(VLOOKUP($H184,'Raw2'!$A:$I,8,0),"") ->  | P184: =IFERROR(VLOOKUP($H184,'Raw2'!$A:$I,9,0),"") ->  | Q184: =IFERROR(YEAR(VLOOKUP(H184,'Raw3'!A:C,2,0)),"") ->  | R184: =IFERROR(VLOOKUP(H184,'Raw3'!A:P,16,0),"") ->  | S184: =IFERROR(VLOOKUP(H184,'Raw3'!A:P,3,0),"") ->  | T184: =IFERROR(IF(FIND("Q1",R184)>0,VLOOKUP(H184,'Raw3'!A:P,10,0),IF(FIND("Q2",R184)>0,VLOOKUP(H184,'Raw3'!A:P,11,0),IF(FIND("Q3",R184)>0,VLOOKUP(H184,'Raw3'!A:P,12,0),))),"") ->  | U184: =IFERROR(IF(FIND("Q4",R184)>0,VLOOKUP(H184,'Raw3'!A:P,14,0),""),"") ->  | V184: =IFERROR(IF(VLOOKUP(H184,'Raw3'!A:P,5,0)="","",VLOOKUP(H184,'Raw3'!A:P,5,0)),"") ->  | W184: =IFERROR(IF(VLOOKUP(H184,'Raw3'!A:P,4,0)="","",VLOOKUP(H184,'Raw3'!A:P,4,0)),"") ->  | X184: =IFERROR(IF(VLOOKUP(H184&V184,'Raw1'!A:Z,26,0)="","",VLOOKUP(H184&V184,'Raw1'!A:Z,26,0)),"") -> 
H185: =IF('Raw2'!U181="","",'Raw2'!U181) ->  | L185: =IF('Raw2'!V181="","",'Raw2'!V181) ->  | M185: =IFERROR(VLOOKUP(H185,'Raw4'!A:C,2,0),"") ->  | N185: =IFERROR(VLOOKUP(H185,'Raw2'!A:F,6,0),"") ->  | O185: =IFERROR(VLOOKUP($H185,'Raw2'!$A:$I,8,0),"") ->  | P185: =IFERROR(VLOOKUP($H185,'Raw2'!$A:$I,9,0),"") ->  | Q185: =IFERROR(YEAR(VLOOKUP(H185,'Raw3'!A:C,2,0)),"") ->  | R185: =IFERROR(VLOOKUP(H185,'Raw3'!A:P,16,0),"") ->  | S185: =IFERROR(VLOOKUP(H185,'Raw3'!A:P,3,0),"") ->  | T185: =IFERROR(IF(FIND("Q1",R185)>0,VLOOKUP(H185,'Raw3'!A:P,10,0),IF(FIND("Q2",R185)>0,VLOOKUP(H185,'Raw3'!A:P,11,0),IF(FIND("Q3",R185)>0,VLOOKUP(H185,'Raw3'!A:P,12,0),))),"") ->  | U185: =IFERROR(IF(FIND("Q4",R185)>0,VLOOKUP(H185,'Raw3'!A:P,14,0),""),"") ->  | V185: =IFERROR(IF(VLOOKUP(H185,'Raw3'!A:P,5,0)="","",VLOOKUP(H185,'Raw3'!A:P,5,0)),"") ->  | W185: =IFERROR(IF(VLOOKUP(H185,'Raw3'!A:P,4,0)="","",VLOOKUP(H185,'Raw3'!A:P,4,0)),"") ->  | X185: =IFERROR(IF(VLOOKUP(H185&V185,'Raw1'!A:Z,26,0)="","",VLOOKUP(H185&V185,'Raw1'!A:Z,26,0)),"") -> 
H186: =IF('Raw2'!U182="","",'Raw2'!U182) ->  | L186: =IF('Raw2'!V182="","",'Raw2'!V182) ->  | M186: =IFERROR(VLOOKUP(H186,'Raw4'!A:C,2,0),"") ->  | N186: =IFERROR(VLOOKUP(H186,'Raw2'!A:F,6,0),"") ->  | O186: =IFERROR(VLOOKUP($H186,'Raw2'!$A:$I,8,0),"") ->  | P186: =IFERROR(VLOOKUP($H186,'Raw2'!$A:$I,9,0),"") ->  | Q186: =IFERROR(YEAR(VLOOKUP(H186,'Raw3'!A:C,2,0)),"") ->  | R186: =IFERROR(VLOOKUP(H186,'Raw3'!A:P,16,0),"") ->  | S186: =IFERROR(VLOOKUP(H186,'Raw3'!A:P,3,0),"") ->  | T186: =IFERROR(IF(FIND("Q1",R186)>0,VLOOKUP(H186,'Raw3'!A:P,10,0),IF(FIND("Q2",R186)>0,VLOOKUP(H186,'Raw3'!A:P,11,0),IF(FIND("Q3",R186)>0,VLOOKUP(H186,'Raw3'!A:P,12,0),))),"") ->  | U186: =IFERROR(IF(FIND("Q4",R186)>0,VLOOKUP(H186,'Raw3'!A:P,14,0),""),"") ->  | V186: =IFERROR(IF(VLOOKUP(H186,'Raw3'!A:P,5,0)="","",VLOOKUP(H186,'Raw3'!A:P,5,0)),"") ->  | W186: =IFERROR(IF(VLOOKUP(H186,'Raw3'!A:P,4,0)="","",VLOOKUP(H186,'Raw3'!A:P,4,0)),"") ->  | X186: =IFERROR(IF(VLOOKUP(H186&V186,'Raw1'!A:Z,26,0)="","",VLOOKUP(H186&V186,'Raw1'!A:Z,26,0)),"") -> 
H187: =IF('Raw2'!U183="","",'Raw2'!U183) ->  | L187: =IF('Raw2'!V183="","",'Raw2'!V183) ->  | M187: =IFERROR(VLOOKUP(H187,'Raw4'!A:C,2,0),"") ->  | N187: =IFERROR(VLOOKUP(H187,'Raw2'!A:F,6,0),"") ->  | O187: =IFERROR(VLOOKUP($H187,'Raw2'!$A:$I,8,0),"") ->  | P187: =IFERROR(VLOOKUP($H187,'Raw2'!$A:$I,9,0),"") ->  | Q187: =IFERROR(YEAR(VLOOKUP(H187,'Raw3'!A:C,2,0)),"") ->  | R187: =IFERROR(VLOOKUP(H187,'Raw3'!A:P,16,0),"") ->  | S187: =IFERROR(VLOOKUP(H187,'Raw3'!A:P,3,0),"") ->  | T187: =IFERROR(IF(FIND("Q1",R187)>0,VLOOKUP(H187,'Raw3'!A:P,10,0),IF(FIND("Q2",R187)>0,VLOOKUP(H187,'Raw3'!A:P,11,0),IF(FIND("Q3",R187)>0,VLOOKUP(H187,'Raw3'!A:P,12,0),))),"") ->  | U187: =IFERROR(IF(FIND("Q4",R187)>0,VLOOKUP(H187,'Raw3'!A:P,14,0),""),"") ->  | V187: =IFERROR(IF(VLOOKUP(H187,'Raw3'!A:P,5,0)="","",VLOOKUP(H187,'Raw3'!A:P,5,0)),"") ->  | W187: =IFERROR(IF(VLOOKUP(H187,'Raw3'!A:P,4,0)="","",VLOOKUP(H187,'Raw3'!A:P,4,0)),"") ->  | X187: =IFERROR(IF(VLOOKUP(H187&V187,'Raw1'!A:Z,26,0)="","",VLOOKUP(H187&V187,'Raw1'!A:Z,26,0)),"") -> 
H188: =IF('Raw2'!U184="","",'Raw2'!U184) ->  | L188: =IF('Raw2'!V184="","",'Raw2'!V184) ->  | M188: =IFERROR(VLOOKUP(H188,'Raw4'!A:C,2,0),"") ->  | N188: =IFERROR(VLOOKUP(H188,'Raw2'!A:F,6,0),"") ->  | O188: =IFERROR(VLOOKUP($H188,'Raw2'!$A:$I,8,0),"") ->  | P188: =IFERROR(VLOOKUP($H188,'Raw2'!$A:$I,9,0),"") ->  | Q188: =IFERROR(YEAR(VLOOKUP(H188,'Raw3'!A:C,2,0)),"") ->  | R188: =IFERROR(VLOOKUP(H188,'Raw3'!A:P,16,0),"") ->  | S188: =IFERROR(VLOOKUP(H188,'Raw3'!A:P,3,0),"") ->  | T188: =IFERROR(IF(FIND("Q1",R188)>0,VLOOKUP(H188,'Raw3'!A:P,10,0),IF(FIND("Q2",R188)>0,VLOOKUP(H188,'Raw3'!A:P,11,0),IF(FIND("Q3",R188)>0,VLOOKUP(H188,'Raw3'!A:P,12,0),))),"") ->  | U188: =IFERROR(IF(FIND("Q4",R188)>0,VLOOKUP(H188,'Raw3'!A:P,14,0),""),"") ->  | V188: =IFERROR(IF(VLOOKUP(H188,'Raw3'!A:P,5,0)="","",VLOOKUP(H188,'Raw3'!A:P,5,0)),"") ->  | W188: =IFERROR(IF(VLOOKUP(H188,'Raw3'!A:P,4,0)="","",VLOOKUP(H188,'Raw3'!A:P,4,0)),"") ->  | X188: =IFERROR(IF(VLOOKUP(H188&V188,'Raw1'!A:Z,26,0)="","",VLOOKUP(H188&V188,'Raw1'!A:Z,26,0)),"") -> 
H189: =IF('Raw2'!U185="","",'Raw2'!U185) ->  | L189: =IF('Raw2'!V185="","",'Raw2'!V185) ->  | M189: =IFERROR(VLOOKUP(H189,'Raw4'!A:C,2,0),"") ->  | N189: =IFERROR(VLOOKUP(H189,'Raw2'!A:F,6,0),"") ->  | O189: =IFERROR(VLOOKUP($H189,'Raw2'!$A:$I,8,0),"") ->  | P189: =IFERROR(VLOOKUP($H189,'Raw2'!$A:$I,9,0),"") ->  | Q189: =IFERROR(YEAR(VLOOKUP(H189,'Raw3'!A:C,2,0)),"") ->  | R189: =IFERROR(VLOOKUP(H189,'Raw3'!A:P,16,0),"") ->  | S189: =IFERROR(VLOOKUP(H189,'Raw3'!A:P,3,0),"") ->  | T189: =IFERROR(IF(FIND("Q1",R189)>0,VLOOKUP(H189,'Raw3'!A:P,10,0),IF(FIND("Q2",R189)>0,VLOOKUP(H189,'Raw3'!A:P,11,0),IF(FIND("Q3",R189)>0,VLOOKUP(H189,'Raw3'!A:P,12,0),))),"") ->  | U189: =IFERROR(IF(FIND("Q4",R189)>0,VLOOKUP(H189,'Raw3'!A:P,14,0),""),"") ->  | V189: =IFERROR(IF(VLOOKUP(H189,'Raw3'!A:P,5,0)="","",VLOOKUP(H189,'Raw3'!A:P,5,0)),"") ->  | W189: =IFERROR(IF(VLOOKUP(H189,'Raw3'!A:P,4,0)="","",VLOOKUP(H189,'Raw3'!A:P,4,0)),"") ->  | X189: =IFERROR(IF(VLOOKUP(H189&V189,'Raw1'!A:Z,26,0)="","",VLOOKUP(H189&V189,'Raw1'!A:Z,26,0)),"") -> 
H190: =IF('Raw2'!U186="","",'Raw2'!U186) ->  | L190: =IF('Raw2'!V186="","",'Raw2'!V186) ->  | M190: =IFERROR(VLOOKUP(H190,'Raw4'!A:C,2,0),"") ->  | N190: =IFERROR(VLOOKUP(H190,'Raw2'!A:F,6,0),"") ->  | O190: =IFERROR(VLOOKUP($H190,'Raw2'!$A:$I,8,0),"") ->  | P190: =IFERROR(VLOOKUP($H190,'Raw2'!$A:$I,9,0),"") ->  | Q190: =IFERROR(YEAR(VLOOKUP(H190,'Raw3'!A:C,2,0)),"") ->  | R190: =IFERROR(VLOOKUP(H190,'Raw3'!A:P,16,0),"") ->  | S190: =IFERROR(VLOOKUP(H190,'Raw3'!A:P,3,0),"") ->  | T190: =IFERROR(IF(FIND("Q1",R190)>0,VLOOKUP(H190,'Raw3'!A:P,10,0),IF(FIND("Q2",R190)>0,VLOOKUP(H190,'Raw3'!A:P,11,0),IF(FIND("Q3",R190)>0,VLOOKUP(H190,'Raw3'!A:P,12,0),))),"") ->  | U190: =IFERROR(IF(FIND("Q4",R190)>0,VLOOKUP(H190,'Raw3'!A:P,14,0),""),"") ->  | V190: =IFERROR(IF(VLOOKUP(H190,'Raw3'!A:P,5,0)="","",VLOOKUP(H190,'Raw3'!A:P,5,0)),"") ->  | W190: =IFERROR(IF(VLOOKUP(H190,'Raw3'!A:P,4,0)="","",VLOOKUP(H190,'Raw3'!A:P,4,0)),"") ->  | X190: =IFERROR(IF(VLOOKUP(H190&V190,'Raw1'!A:Z,26,0)="","",VLOOKUP(H190&V190,'Raw1'!A:Z,26,0)),"") -> 
H191: =IF('Raw2'!U187="","",'Raw2'!U187) ->  | L191: =IF('Raw2'!V187="","",'Raw2'!V187) ->  | M191: =IFERROR(VLOOKUP(H191,'Raw4'!A:C,2,0),"") ->  | N191: =IFERROR(VLOOKUP(H191,'Raw2'!A:F,6,0),"") ->  | O191: =IFERROR(VLOOKUP($H191,'Raw2'!$A:$I,8,0),"") ->  | P191: =IFERROR(VLOOKUP($H191,'Raw2'!$A:$I,9,0),"") ->  | Q191: =IFERROR(YEAR(VLOOKUP(H191,'Raw3'!A:C,2,0)),"") ->  | R191: =IFERROR(VLOOKUP(H191,'Raw3'!A:P,16,0),"") ->  | S191: =IFERROR(VLOOKUP(H191,'Raw3'!A:P,3,0),"") ->  | T191: =IFERROR(IF(FIND("Q1",R191)>0,VLOOKUP(H191,'Raw3'!A:P,10,0),IF(FIND("Q2",R191)>0,VLOOKUP(H191,'Raw3'!A:P,11,0),IF(FIND("Q3",R191)>0,VLOOKUP(H191,'Raw3'!A:P,12,0),))),"") ->  | U191: =IFERROR(IF(FIND("Q4",R191)>0,VLOOKUP(H191,'Raw3'!A:P,14,0),""),"") ->  | V191: =IFERROR(IF(VLOOKUP(H191,'Raw3'!A:P,5,0)="","",VLOOKUP(H191,'Raw3'!A:P,5,0)),"") ->  | W191: =IFERROR(IF(VLOOKUP(H191,'Raw3'!A:P,4,0)="","",VLOOKUP(H191,'Raw3'!A:P,4,0)),"") ->  | X191: =IFERROR(IF(VLOOKUP(H191&V191,'Raw1'!A:Z,26,0)="","",VLOOKUP(H191&V191,'Raw1'!A:Z,26,0)),"") -> 
H192: =IF('Raw2'!U188="","",'Raw2'!U188) ->  | L192: =IF('Raw2'!V188="","",'Raw2'!V188) ->  | M192: =IFERROR(VLOOKUP(H192,'Raw4'!A:C,2,0),"") ->  | N192: =IFERROR(VLOOKUP(H192,'Raw2'!A:F,6,0),"") ->  | O192: =IFERROR(VLOOKUP($H192,'Raw2'!$A:$I,8,0),"") ->  | P192: =IFERROR(VLOOKUP($H192,'Raw2'!$A:$I,9,0),"") ->  | Q192: =IFERROR(YEAR(VLOOKUP(H192,'Raw3'!A:C,2,0)),"") ->  | R192: =IFERROR(VLOOKUP(H192,'Raw3'!A:P,16,0),"") ->  | S192: =IFERROR(VLOOKUP(H192,'Raw3'!A:P,3,0),"") ->  | T192: =IFERROR(IF(FIND("Q1",R192)>0,VLOOKUP(H192,'Raw3'!A:P,10,0),IF(FIND("Q2",R192)>0,VLOOKUP(H192,'Raw3'!A:P,11,0),IF(FIND("Q3",R192)>0,VLOOKUP(H192,'Raw3'!A:P,12,0),))),"") ->  | U192: =IFERROR(IF(FIND("Q4",R192)>0,VLOOKUP(H192,'Raw3'!A:P,14,0),""),"") ->  | V192: =IFERROR(IF(VLOOKUP(H192,'Raw3'!A:P,5,0)="","",VLOOKUP(H192,'Raw3'!A:P,5,0)),"") ->  | W192: =IFERROR(IF(VLOOKUP(H192,'Raw3'!A:P,4,0)="","",VLOOKUP(H192,'Raw3'!A:P,4,0)),"") ->  | X192: =IFERROR(IF(VLOOKUP(H192&V192,'Raw1'!A:Z,26,0)="","",VLOOKUP(H192&V192,'Raw1'!A:Z,26,0)),"") -> 
H193: =IF('Raw2'!U189="","",'Raw2'!U189) ->  | L193: =IF('Raw2'!V189="","",'Raw2'!V189) ->  | M193: =IFERROR(VLOOKUP(H193,'Raw4'!A:C,2,0),"") ->  | N193: =IFERROR(VLOOKUP(H193,'Raw2'!A:F,6,0),"") ->  | O193: =IFERROR(VLOOKUP($H193,'Raw2'!$A:$I,8,0),"") ->  | P193: =IFERROR(VLOOKUP($H193,'Raw2'!$A:$I,9,0),"") ->  | Q193: =IFERROR(YEAR(VLOOKUP(H193,'Raw3'!A:C,2,0)),"") ->  | R193: =IFERROR(VLOOKUP(H193,'Raw3'!A:P,16,0),"") ->  | S193: =IFERROR(VLOOKUP(H193,'Raw3'!A:P,3,0),"") ->  | T193: =IFERROR(IF(FIND("Q1",R193)>0,VLOOKUP(H193,'Raw3'!A:P,10,0),IF(FIND("Q2",R193)>0,VLOOKUP(H193,'Raw3'!A:P,11,0),IF(FIND("Q3",R193)>0,VLOOKUP(H193,'Raw3'!A:P,12,0),))),"") ->  | U193: =IFERROR(IF(FIND("Q4",R193)>0,VLOOKUP(H193,'Raw3'!A:P,14,0),""),"") ->  | V193: =IFERROR(IF(VLOOKUP(H193,'Raw3'!A:P,5,0)="","",VLOOKUP(H193,'Raw3'!A:P,5,0)),"") ->  | W193: =IFERROR(IF(VLOOKUP(H193,'Raw3'!A:P,4,0)="","",VLOOKUP(H193,'Raw3'!A:P,4,0)),"") ->  | X193: =IFERROR(IF(VLOOKUP(H193&V193,'Raw1'!A:Z,26,0)="","",VLOOKUP(H193&V193,'Raw1'!A:Z,26,0)),"") -> 
H194: =IF('Raw2'!U190="","",'Raw2'!U190) ->  | L194: =IF('Raw2'!V190="","",'Raw2'!V190) ->  | M194: =IFERROR(VLOOKUP(H194,'Raw4'!A:C,2,0),"") ->  | N194: =IFERROR(VLOOKUP(H194,'Raw2'!A:F,6,0),"") ->  | O194: =IFERROR(VLOOKUP($H194,'Raw2'!$A:$I,8,0),"") ->  | P194: =IFERROR(VLOOKUP($H194,'Raw2'!$A:$I,9,0),"") ->  | Q194: =IFERROR(YEAR(VLOOKUP(H194,'Raw3'!A:C,2,0)),"") ->  | R194: =IFERROR(VLOOKUP(H194,'Raw3'!A:P,16,0),"") ->  | S194: =IFERROR(VLOOKUP(H194,'Raw3'!A:P,3,0),"") ->  | T194: =IFERROR(IF(FIND("Q1",R194)>0,VLOOKUP(H194,'Raw3'!A:P,10,0),IF(FIND("Q2",R194)>0,VLOOKUP(H194,'Raw3'!A:P,11,0),IF(FIND("Q3",R194)>0,VLOOKUP(H194,'Raw3'!A:P,12,0),))),"") ->  | U194: =IFERROR(IF(FIND("Q4",R194)>0,VLOOKUP(H194,'Raw3'!A:P,14,0),""),"") ->  | V194: =IFERROR(IF(VLOOKUP(H194,'Raw3'!A:P,5,0)="","",VLOOKUP(H194,'Raw3'!A:P,5,0)),"") ->  | W194: =IFERROR(IF(VLOOKUP(H194,'Raw3'!A:P,4,0)="","",VLOOKUP(H194,'Raw3'!A:P,4,0)),"") ->  | X194: =IFERROR(IF(VLOOKUP(H194&V194,'Raw1'!A:Z,26,0)="","",VLOOKUP(H194&V194,'Raw1'!A:Z,26,0)),"") -> 
H195: =IF('Raw2'!U191="","",'Raw2'!U191) ->  | L195: =IF('Raw2'!V191="","",'Raw2'!V191) ->  | M195: =IFERROR(VLOOKUP(H195,'Raw4'!A:C,2,0),"") ->  | N195: =IFERROR(VLOOKUP(H195,'Raw2'!A:F,6,0),"") ->  | O195: =IFERROR(VLOOKUP($H195,'Raw2'!$A:$I,8,0),"") ->  | P195: =IFERROR(VLOOKUP($H195,'Raw2'!$A:$I,9,0),"") ->  | Q195: =IFERROR(YEAR(VLOOKUP(H195,'Raw3'!A:C,2,0)),"") ->  | R195: =IFERROR(VLOOKUP(H195,'Raw3'!A:P,16,0),"") ->  | S195: =IFERROR(VLOOKUP(H195,'Raw3'!A:P,3,0),"") ->  | T195: =IFERROR(IF(FIND("Q1",R195)>0,VLOOKUP(H195,'Raw3'!A:P,10,0),IF(FIND("Q2",R195)>0,VLOOKUP(H195,'Raw3'!A:P,11,0),IF(FIND("Q3",R195)>0,VLOOKUP(H195,'Raw3'!A:P,12,0),))),"") ->  | U195: =IFERROR(IF(FIND("Q4",R195)>0,VLOOKUP(H195,'Raw3'!A:P,14,0),""),"") ->  | V195: =IFERROR(IF(VLOOKUP(H195,'Raw3'!A:P,5,0)="","",VLOOKUP(H195,'Raw3'!A:P,5,0)),"") ->  | W195: =IFERROR(IF(VLOOKUP(H195,'Raw3'!A:P,4,0)="","",VLOOKUP(H195,'Raw3'!A:P,4,0)),"") ->  | X195: =IFERROR(IF(VLOOKUP(H195&V195,'Raw1'!A:Z,26,0)="","",VLOOKUP(H195&V195,'Raw1'!A:Z,26,0)),"") -> 
H196: =IF('Raw2'!U192="","",'Raw2'!U192) ->  | L196: =IF('Raw2'!V192="","",'Raw2'!V192) ->  | M196: =IFERROR(VLOOKUP(H196,'Raw4'!A:C,2,0),"") ->  | N196: =IFERROR(VLOOKUP(H196,'Raw2'!A:F,6,0),"") ->  | O196: =IFERROR(VLOOKUP($H196,'Raw2'!$A:$I,8,0),"") ->  | P196: =IFERROR(VLOOKUP($H196,'Raw2'!$A:$I,9,0),"") ->  | Q196: =IFERROR(YEAR(VLOOKUP(H196,'Raw3'!A:C,2,0)),"") ->  | R196: =IFERROR(VLOOKUP(H196,'Raw3'!A:P,16,0),"") ->  | S196: =IFERROR(VLOOKUP(H196,'Raw3'!A:P,3,0),"") ->  | T196: =IFERROR(IF(FIND("Q1",R196)>0,VLOOKUP(H196,'Raw3'!A:P,10,0),IF(FIND("Q2",R196)>0,VLOOKUP(H196,'Raw3'!A:P,11,0),IF(FIND("Q3",R196)>0,VLOOKUP(H196,'Raw3'!A:P,12,0),))),"") ->  | U196: =IFERROR(IF(FIND("Q4",R196)>0,VLOOKUP(H196,'Raw3'!A:P,14,0),""),"") ->  | V196: =IFERROR(IF(VLOOKUP(H196,'Raw3'!A:P,5,0)="","",VLOOKUP(H196,'Raw3'!A:P,5,0)),"") ->  | W196: =IFERROR(IF(VLOOKUP(H196,'Raw3'!A:P,4,0)="","",VLOOKUP(H196,'Raw3'!A:P,4,0)),"") ->  | X196: =IFERROR(IF(VLOOKUP(H196&V196,'Raw1'!A:Z,26,0)="","",VLOOKUP(H196&V196,'Raw1'!A:Z,26,0)),"") -> 
H197: =IF('Raw2'!U193="","",'Raw2'!U193) ->  | L197: =IF('Raw2'!V193="","",'Raw2'!V193) ->  | M197: =IFERROR(VLOOKUP(H197,'Raw4'!A:C,2,0),"") ->  | N197: =IFERROR(VLOOKUP(H197,'Raw2'!A:F,6,0),"") ->  | O197: =IFERROR(VLOOKUP($H197,'Raw2'!$A:$I,8,0),"") ->  | P197: =IFERROR(VLOOKUP($H197,'Raw2'!$A:$I,9,0),"") ->  | Q197: =IFERROR(YEAR(VLOOKUP(H197,'Raw3'!A:C,2,0)),"") ->  | R197: =IFERROR(VLOOKUP(H197,'Raw3'!A:P,16,0),"") ->  | S197: =IFERROR(VLOOKUP(H197,'Raw3'!A:P,3,0),"") ->  | T197: =IFERROR(IF(FIND("Q1",R197)>0,VLOOKUP(H197,'Raw3'!A:P,10,0),IF(FIND("Q2",R197)>0,VLOOKUP(H197,'Raw3'!A:P,11,0),IF(FIND("Q3",R197)>0,VLOOKUP(H197,'Raw3'!A:P,12,0),))),"") ->  | U197: =IFERROR(IF(FIND("Q4",R197)>0,VLOOKUP(H197,'Raw3'!A:P,14,0),""),"") ->  | V197: =IFERROR(IF(VLOOKUP(H197,'Raw3'!A:P,5,0)="","",VLOOKUP(H197,'Raw3'!A:P,5,0)),"") ->  | W197: =IFERROR(IF(VLOOKUP(H197,'Raw3'!A:P,4,0)="","",VLOOKUP(H197,'Raw3'!A:P,4,0)),"") ->  | X197: =IFERROR(IF(VLOOKUP(H197&V197,'Raw1'!A:Z,26,0)="","",VLOOKUP(H197&V197,'Raw1'!A:Z,26,0)),"") -> 
H198: =IF('Raw2'!U194="","",'Raw2'!U194) ->  | J198: =IF(H198="","",LEFT(H198,FIND(" ",H198)-1)) ->  | K198: =IF(H198="","",MID(H198,FIND(" ",H198)+1,100)) ->  | L198: =IF('Raw2'!V194="","",'Raw2'!V194) ->  | M198: =IFERROR(VLOOKUP(H198,'Raw4'!A:C,2,0),"") ->  | N198: =IFERROR(VLOOKUP(H198,'Raw2'!A:F,6,0),"") ->  | O198: =IFERROR(VLOOKUP($H198,'Raw2'!$A:$I,8,0),"") ->  | P198: =IFERROR(VLOOKUP($H198,'Raw2'!$A:$I,9,0),"") ->  | Q198: =IFERROR(YEAR(VLOOKUP(H198,'Raw3'!A:C,2,0)),"") ->  | R198: =IFERROR(VLOOKUP(H198,'Raw3'!A:P,16,0),"") ->  | S198: =IFERROR(VLOOKUP(H198,'Raw3'!A:P,3,0),"") ->  | T198: =IFERROR(IF(FIND("Q1",R198)>0,VLOOKUP(H198,'Raw3'!A:P,10,0),IF(FIND("Q2",R198)>0,VLOOKUP(H198,'Raw3'!A:P,11,0),IF(FIND("Q3",R198)>0,VLOOKUP(H198,'Raw3'!A:P,12,0),))),"") ->  | U198: =IFERROR(IF(FIND("Q4",R198)>0,VLOOKUP(H198,'Raw3'!A:P,14,0),""),"") ->  | V198: =IFERROR(IF(VLOOKUP(H198,'Raw3'!A:P,5,0)="","",VLOOKUP(H198,'Raw3'!A:P,5,0)),"") ->  | W198: =IFERROR(IF(VLOOKUP(H198,'Raw3'!A:P,4,0)="","",VLOOKUP(H198,'Raw3'!A:P,4,0)),"") ->  | X198: =IFERROR(IF(VLOOKUP(H198&V198,'Raw1'!A:Z,26,0)="","",VLOOKUP(H198&V198,'Raw1'!A:Z,26,0)),"") -> 
H199: =IF('Raw2'!U195="","",'Raw2'!U195) ->  | L199: =IF('Raw2'!V195="","",'Raw2'!V195) ->  | M199: =IFERROR(VLOOKUP(H199,'Raw4'!A:C,2,0),"") ->  | N199: =IFERROR(VLOOKUP(H199,'Raw2'!A:F,6,0),"") ->  | O199: =IFERROR(VLOOKUP($H199,'Raw2'!$A:$I,8,0),"") ->  | P199: =IFERROR(VLOOKUP($H199,'Raw2'!$A:$I,9,0),"") ->  | Q199: =IFERROR(YEAR(VLOOKUP(H199,'Raw3'!A:C,2,0)),"") ->  | R199: =IFERROR(VLOOKUP(H199,'Raw3'!A:P,16,0),"") ->  | S199: =IFERROR(VLOOKUP(H199,'Raw3'!A:P,3,0),"") ->  | T199: =IFERROR(IF(FIND("Q1",R199)>0,VLOOKUP(H199,'Raw3'!A:P,10,0),IF(FIND("Q2",R199)>0,VLOOKUP(H199,'Raw3'!A:P,11,0),IF(FIND("Q3",R199)>0,VLOOKUP(H199,'Raw3'!A:P,12,0),))),"") ->  | U199: =IFERROR(IF(FIND("Q4",R199)>0,VLOOKUP(H199,'Raw3'!A:P,14,0),""),"") ->  | V199: =IFERROR(IF(VLOOKUP(H199,'Raw3'!A:P,5,0)="","",VLOOKUP(H199,'Raw3'!A:P,5,0)),"") ->  | W199: =IFERROR(IF(VLOOKUP(H199,'Raw3'!A:P,4,0)="","",VLOOKUP(H199,'Raw3'!A:P,4,0)),"") ->  | X199: =IFERROR(IF(VLOOKUP(H199&V199,'Raw1'!A:Z,26,0)="","",VLOOKUP(H199&V199,'Raw1'!A:Z,26,0)),"") -> 
H200: =IF('Raw2'!U196="","",'Raw2'!U196) ->  | I200: =IF(J200="","",I199+1) ->  | L200: =IF('Raw2'!V196="","",'Raw2'!V196) ->  | M200: =IFERROR(VLOOKUP(H200,'Raw4'!A:C,2,0),"") ->  | N200: =IFERROR(VLOOKUP(H200,'Raw2'!A:F,6,0),"") ->  | O200: =IFERROR(VLOOKUP($H200,'Raw2'!$A:$I,8,0),"") ->  | P200: =IFERROR(VLOOKUP($H200,'Raw2'!$A:$I,9,0),"") ->  | Q200: =IFERROR(YEAR(VLOOKUP(H200,'Raw3'!A:C,2,0)),"") ->  | R200: =IFERROR(VLOOKUP(H200,'Raw3'!A:P,16,0),"") ->  | S200: =IFERROR(VLOOKUP(H200,'Raw3'!A:P,3,0),"") ->  | T200: =IFERROR(IF(FIND("Q1",R200)>0,VLOOKUP(H200,'Raw3'!A:P,10,0),IF(FIND("Q2",R200)>0,VLOOKUP(H200,'Raw3'!A:P,11,0),IF(FIND("Q3",R200)>0,VLOOKUP(H200,'Raw3'!A:P,12,0),))),"") ->  | U200: =IFERROR(IF(FIND("Q4",R200)>0,VLOOKUP(H200,'Raw3'!A:P,14,0),""),"") ->  | V200: =IFERROR(IF(VLOOKUP(H200,'Raw3'!A:P,5,0)="","",VLOOKUP(H200,'Raw3'!A:P,5,0)),"") ->  | W200: =IFERROR(IF(VLOOKUP(H200,'Raw3'!A:P,4,0)="","",VLOOKUP(H200,'Raw3'!A:P,4,0)),"") ->  | X200: =IFERROR(IF(VLOOKUP(H200&V200,'Raw1'!A:Z,26,0)="","",VLOOKUP(H200&V200,'Raw1'!A:Z,26,0)),"") -> 
H201: =IF('Raw2'!U197="","",'Raw2'!U197) ->  | L201: =IF('Raw2'!V197="","",'Raw2'!V197) ->  | M201: =IFERROR(VLOOKUP(H201,'Raw4'!A:C,2,0),"") ->  | N201: =IFERROR(VLOOKUP(H201,'Raw2'!A:F,6,0),"") ->  | O201: =IFERROR(VLOOKUP($H201,'Raw2'!$A:$I,8,0),"") ->  | P201: =IFERROR(VLOOKUP($H201,'Raw2'!$A:$I,9,0),"") ->  | Q201: =IFERROR(YEAR(VLOOKUP(H201,'Raw3'!A:C,2,0)),"") ->  | R201: =IFERROR(VLOOKUP(H201,'Raw3'!A:P,16,0),"") ->  | S201: =IFERROR(VLOOKUP(H201,'Raw3'!A:P,3,0),"") ->  | T201: =IFERROR(IF(FIND("Q1",R201)>0,VLOOKUP(H201,'Raw3'!A:P,10,0),IF(FIND("Q2",R201)>0,VLOOKUP(H201,'Raw3'!A:P,11,0),IF(FIND("Q3",R201)>0,VLOOKUP(H201,'Raw3'!A:P,12,0),))),"") ->  | U201: =IFERROR(IF(FIND("Q4",R201)>0,VLOOKUP(H201,'Raw3'!A:P,14,0),""),"") ->  | V201: =IFERROR(IF(VLOOKUP(H201,'Raw3'!A:P,5,0)="","",VLOOKUP(H201,'Raw3'!A:P,5,0)),"") ->  | W201: =IFERROR(IF(VLOOKUP(H201,'Raw3'!A:P,4,0)="","",VLOOKUP(H201,'Raw3'!A:P,4,0)),"") ->  | X201: =IFERROR(IF(VLOOKUP(H201&V201,'Raw1'!A:Z,26,0)="","",VLOOKUP(H201&V201,'Raw1'!A:Z,26,0)),"") -> 
... 1372 more rows

Sheet Raw1
C1: 證券碼 | D1: 除權息日 | E1: 股東會日期 | F1: 分配年度 | G1: 市場別 | H1: 除權息類別 | I1: 現金股息_每股元 | J1: 股票股利_每股元 | K1: 除權息前收盤價 | L1: 除權息參考價 | M1: 填權息日 | N1: 填權息日最高價 | O1: 填權息日收盤價 | P1: 填權息天數 | Q1: 除權息日前一週報酬率 | R1: 除權息日後一週報酬率 | S1: 現金股利發放日 | T1: 股票股利發放日 | U1: 填權息日_收盤價註記 | V1: 填權息(Y/N)
A2: =C2&D2 -> 1711 永光43999 | B2: =C2&F2 -> 1711 永光2019 | C2: 1711 永光 | D2: 2020-06-17 | E2: 2020-05-28 | F2: 2019 | G2: TSE | H2: 除息 | I2: 0.3 | J2: 0 | K2: 14.85 | L2: 14.55 | P2: 0 | Q2: -0.0001 | S2: 2020-07-15 | V2: N
A3: =C3&D3 -> 2404 漢唐43999 | B3: =C3&F3 -> 2404 漢唐2019 | C3: 2404 漢唐 | D3: 2020-06-17 | E3: 2020-05-28 | F3: 2019 | G3: TSE | H3: 除息 | I3: 13 | J3: 0 | K3: 224 | L3: 211 | P3: 0 | Q3: 3.2258 | S3: 2020-07-14 | V3: N
A4: 6112 聚碩43999 | B4: 6112 聚碩2019 | C4: 6112 聚碩 | D4: 2020-06-17 | E4: 2020-05-28 | F4: 2019 | G4: TSE | H4: 除息 | I4: 3 | J4: 0 | K4: 45.95 | L4: 42.95 | P4: 0 | Q4: 0.3276 | S4: 2020-07-10 | V4: N
A5: 6505 台塑化43999 | B5: 6505 台塑化2019 | C5: 6505 台塑化 | D5: 2020-06-17 | E5: 2020-05-29 | F5: 2019 | G5: TSE | H5: 除息 | I5: 2.9 | J5: 0 | K5: 90.8 | L5: 87.9 | P5: 0 | Q5: -5.4166 | S5: 2020-07-22 | V5: N
A6: 8432 東生華43999 | B6: 8432 東生華2019 | C6: 8432 東生華 | D6: 2020-06-17 | E6: 2020-05-29 | F6: 2019 | G6: OTC | H6: 除息 | I6: 1.8 | J6: 0 | K6: 67.8 | L6: 66 | P6: 0 | Q6: -0.4405 | S6: 2020-07-22 | V6: N
A7: 1264 德麥43998 | B7: 1264 德麥2019 | C7: 1264 德麥 | D7: 2020-06-16 | E7: 2020-05-27 | F7: 2019 | G7: OTC | H7: 除息 | I7: 11.0039187 | J7: 0 | K7: 228 | L7: 216.9961 | P7: 0 | Q7: -0.6536 | S7: 2020-07-10 | V7: N
A8: 2347 聯強43998 | B8: 2347 聯強2019 | C8: 2347 聯強 | D8: 2020-06-16 | E8: 2020-06-12 | F8: 2019 | G8: TSE | H8: 除息 | I8: 2.6 | J8: 0 | K8: 46.1 | L8: 43.5 | P8: 0 | Q8: 0.7651 | S8: 2020-07-15 | V8: N
A9: 3118 進階43998 | B9: 3118 進階2019 | C9: 3118 進階 | D9: 2020-06-16 | E9: 2020-05-28 | F9: 2019 | G9: OTC | H9: 除息 | I9: 1.3 | J9: 0 | K9: 36.3 | L9: 35 | M9: 2020-06-16 | N9: 37.2 | O9: 35.7 | P9: 1 | Q9: 13.4375 | S9: 2020-07-10 | U9: H | V9: Y
A10: 3167 大量43998 | B10: 3167 大量2019 | C10: 3167 大量 | D10: 2020-06-16 | E10: 2020-05-28 | F10: 2019 | G10: TSE | H10: 除息 | I10: 2 | J10: 0 | K10: 40.95 | L10: 38.95 | P10: 0 | Q10: 1.1111 | S10: 2020-07-03 | V10: N
A11: 4972 湯石照明43998 | B11: 4972 湯石照明2019 | C11: 4972 湯石照明 | D11: 2020-06-16 | E11: 2020-05-28 | F11: 2019 | G11: OTC | H11: 除息 | I11: 2.24135984 | J11: 0 | K11: 31.05 | L11: 28.8086 | P11: 0 | Q11: 0.1612 | S11: 2020-07-17 | V11: N
A12: 1611 中電43997 | B12: 1611 中電2019 | C12: 1611 中電 | D12: 2020-06-15 | E12: 2020-05-28 | F12: 2019 | G12: TSE | H12: 除息 | I12: 1.2 | J12: 0 | K12: 13.65 | L12: 12.45 | P12: 0 | Q12: 0.3677 | S12: 2020-07-13 | V12: N
A13: 1727 中華化43997 | B13: 1727 中華化2019 | C13: 1727 中華化 | D13: 2020-06-15 | E13: 2020-05-29 | F13: 2019 | G13: TSE | H13: 除息 | I13: 0.2 | J13: 0 | K13: 9.42 | L13: 9.22 | P13: 0 | Q13: -0.8421 | S13: 2020-07-17 | V13: N
A14: 2458 義隆43997 | B14: 2458 義隆2019 | C14: 2458 義隆 | D14: 2020-06-15 | E14: 2020-05-27 | F14: 2019 | G14: TSE | H14: 除息 | I14: 6.5 | J14: 0 | K14: 126.5 | L14: 120 | P14: 0 | Q14: 10.0001 | S14: 2020-07-03 | V14: N
A15: 2642 宅配通43997 | B15: 2642 宅配通2019 | C15: 2642 宅配通 | D15: 2020-06-15 | E15: 2020-05-28 | F15: 2019 | G15: TSE | H15: 除息 | I15: 1.2 | J15: 0 | K15: 36.7 | L15: 35.5 | P15: 0 | Q15: -1.3441 | S15: 2020-07-01 | V15: N
A16: 3303 岱稜43997 | B16: 3303 岱稜2019 | C16: 3303 岱稜 | D16: 2020-06-15 | E16: 2020-05-27 | F16: 2019 | G16: OTC | H16: 除息 | I16: 1.6687643 | J16: 0 | K16: 25.1 | L16: 23.4312 | P16: 0 | Q16: -0.3968 | S16: 2020-07-16 | V16: N
A17: 3416 融程電43997 | B17: 3416 融程電2019 | C17: 3416 融程電 | D17: 2020-06-15 | E17: 2020-05-27 | F17: 2019 | G17: TSE | H17: 除息 | I17: 3 | J17: 0 | K17: 61.1 | L17: 58.1 | P17: 0 | Q17: -3.9309 | S17: 2020-07-14 | V17: N
A18: 3563 牧德43997 | B18: 3563 牧德2019 | C18: 3563 牧德 | D18: 2020-06-15 | E18: 2020-05-29 | F18: 2019 | G18: TSE | H18: 除息 | I18: 10 | J18: 0 | K18: 322 | L18: 312 | P18: 0 | Q18: -3.0121 | S18: 2020-07-14 | V18: N
A19: 4527 方土霖43997 | B19: 4527 方土霖2019 | C19: 4527 方土霖 | D19: 2020-06-15 | E19: 2020-05-28 | F19: 2019 | G19: OTC | H19: 除息 | I19: 1.6 | J19: 0 | K19: 26.45 | L19: 24.85 | P19: 0 | Q19: 0.7618 | S19: 2020-07-15 | V19: N
A20: 5514 三豐43997 | B20: 5514 三豐2019 | C20: 5514 三豐 | D20: 2020-06-15 | E20: 2020-05-28 | F20: 2019 | G20: OTC | H20: 除息 | I20: 0.5 | J20: 1 | K20: 20.75 | L20: 20.25 | P20: 0 | Q20: -1.1903 | S20: 2020-07-15 | V20: N
A21: 6581 鋼聯43997 | B21: 6581 鋼聯2019 | C21: 6581 鋼聯 | D21: 2020-06-15 | E21: 2020-05-28 | F21: 2019 | G21: TSE | H21: 除息 | I21: 2.6 | J21: 0 | K21: 62 | L21: 59.4 | M21: 2020-06-16 | N21: 62 | O21: 61.6 | P21: 2 | Q21: -4.0249 | S21: 2020-07-15 | U21: H | V21: Y
A22: 8416 實威43997 | B22: 8416 實威2019 | C22: 8416 實威 | D22: 2020-06-15 | E22: 2020-05-28 | F22: 2019 | G22: OTC | H22: 除息 | I22: 7 | J22: 0 | K22: 121.5 | L22: 114.5 | P22: 0 | Q22: -1.6194 | S22: 2020-07-10 | V22: N
A23: 1587 吉茂43994 | B23: 1587 吉茂2019 | C23: 1587 吉茂 | D23: 2020-06-12 | E23: 2020-05-28 | F23: 2019 | G23: TSE | H23: 除息 | I23: 0.5024634 | J23: 0 | K23: 13.25 | L23: 12.7475 | P23: 0 | Q23: 1.9231 | S23: 2020-07-08 | V23: N
A24: 2006 東和鋼鐵43994 | B24: 2006 東和鋼鐵2019 | C24: 2006 東和鋼鐵 | D24: 2020-06-12 | E24: 2020-05-19 | F24: 2019 | G24: TSE | H24: 除息 | I24: 1.35 | J24: 0 | K24: 24.3 | L24: 22.95 | P24: 0 | Q24: 0.2062 | S24: 2020-07-17 | V24: N
A25: 2832 台產43994 | B25: 2832 台產2019 | C25: 2832 台產 | D25: 2020-06-12 | E25: 2020-06-12 | F25: 2019 | G25: TSE | H25: 除息 | I25: 1 | J25: 0 | K25: 20.5 | L25: 19.5 | P25: 0 | Q25: 0.4902 | S25: 2020-07-10 | V25: N
A26: 3675 德微43994 | B26: 3675 德微2019 | C26: 3675 德微 | D26: 2020-06-12 | E26: 2020-05-28 | F26: 2019 | G26: OTC | H26: 除息 | I26: 1.3 | J26: 0 | K26: 66.9 | L26: 65.6 | M26: 2020-06-12 | N26: 71.8 | O26: 70.4 | P26: 1 | Q26: 7.2114 | S26: 2020-07-09 | U26: HC | V26: Y
A27: 6266 泰詠43994 | B27: 6266 泰詠2019 | C27: 6266 泰詠 | D27: 2020-06-12 | E27: 2020-05-28 | F27: 2019 | G27: OTC | H27: 除息 | I27: 1.57999999 | J27: 0 | K27: 21.3 | L27: 19.72 | P27: 0 | Q27: -2.5171 | S27: 2020-07-10 | V27: N
A28: 6579 研揚43994 | B28: 6579 研揚2019 | C28: 6579 研揚 | D28: 2020-06-12 | E28: 2020-05-27 | F28: 2019 | G28: TSE | H28: 除息 | I28: 3.2 | J28: 0 | K28: 67.8 | L28: 64.6 | P28: 0 | Q28: 0.4444 | S28: 2020-07-10 | V28: N
A29: 6596 寬宏藝術43994 | B29: 6596 寬宏藝術2019 | C29: 6596 寬宏藝術 | D29: 2020-06-12 | E29: 2020-06-09 | F29: 2019 | G29: OTC | H29: 除息 | I29: 4.5 | J29: 0 | K29: 60.9 | L29: 56.4 | P29: 0 | Q29: -2.0899 | S29: 2020-07-10 | V29: N
A30: 8482 商億-KY43994 | B30: 8482 商億-KY2019 | C30: 8482 商億-KY | D30: 2020-06-12 | E30: 2020-05-27 | F30: 2019 | G30: TSE | H30: 除息 | I30: 6.03730315 | J30: 0 | K30: 113 | L30: 106.9627 | P30: 0 | Q30: 1.8018 | S30: 2020-07-15 | V30: N
A31: 1504 東元43993 | B31: 1504 東元2019 | C31: 1504 東元 | D31: 2020-06-11 | E31: 2020-05-11 | F31: 2019 | G31: TSE | H31: 除息 | I31: 0.99 | J31: 0 | K31: 28.65 | L31: 27.66 | P31: 0 | Q31: 1.9572 | S31: 2020-07-16 | V31: N
A32: 2890 永豐金43993 | B32: 2890 永豐金2019 | C32: 2890 永豐金 | D32: 2020-06-11 | E32: 2020-05-13 | F32: 2019 | G32: TSE | H32: 除息 | I32: 0.7 | J32: 0 | K32: 12.35 | L32: 11.65 | P32: 0 | Q32: 1.2295 | S32: 2020-07-16 | V32: N
A33: 3030 德律43993 | B33: 3030 德律2019 | C33: 3030 德律 | D33: 2020-06-11 | E33: 2020-05-27 | F33: 2019 | G33: TSE | H33: 除息 | I33: 3.3 | J33: 0 | K33: 59.2 | L33: 55.9 | P33: 0 | Q33: 0.339 | S33: 2020-07-03 | V33: N
A34: 4747 強生43993 | B34: 4747 強生2019 | C34: 4747 強生 | D34: 2020-06-11 | E34: 2020-05-27 | F34: 2019 | G34: OTC | H34: 除息 | I34: 1.8 | J34: 0 | K34: 43.9 | L34: 42.1 | P34: 0 | Q34: 1.7381 | S34: 2020-07-08 | V34: N
A35: 5543 崇佑-KY43993 | B35: 5543 崇佑-KY2019 | C35: 5543 崇佑-KY | D35: 2020-06-11 | E35: 2020-05-18 | F35: 2019 | G35: OTC | H35: 除息 | I35: 0.8 | J35: 0 | K35: 20.55 | L35: 19.75 | M35: 2020-06-11 | N35: 21 | O35: 20.55 | P35: 1 | Q35: -1.202 | S35: 2020-07-03 | U35: HC | V35: Y
A36: 5878 台名43993 | B36: 5878 台名2019 | C36: 5878 台名 | D36: 2020-06-11 | E36: 2020-05-27 | F36: 2019 | G36: OTC | H36: 除息 | I36: 3 | J36: 0 | K36: 49.2 | L36: 46.2 | P36: 0 | Q36: 2.287 | S36: 2020-07-03 | V36: N
A37: 6023 元大期43993 | B37: 6023 元大期2019 | C37: 6023 元大期 | D37: 2020-06-11 | E37: 2020-05-27 | F37: 2019 | G37: OTC | H37: 除息 | I37: 3.2 | J37: 0 | K37: 58.6 | L37: 55.4 | P37: 0 | Q37: 1.0346 | S37: 2020-06-30 | V37: N
A38: 6491 晶碩43993 | B38: 6491 晶碩2019 | C38: 6491 晶碩 | D38: 2020-06-11 | E38: 2020-05-27 | F38: 2019 | G38: TSE | H38: 除息 | I38: 2.5 | J38: 0 | K38: 169 | L38: 166.5 | M38: 2020-06-11 | N38: 183 | O38: 176 | P38: 1 | Q38: 16.5517 | S38: 2020-07-09 | U38: HC | V38: Y
A39: 6680 鑫創電子43993 | B39: 6680 鑫創電子2019 | C39: 6680 鑫創電子 | D39: 2020-06-11 | E39: 2020-06-09 | F39: 2019 | G39: OTC | H39: 除息 | I39: 2.52175917 | J39: 0.6 | K39: 66.6 | L39: 64.0782 | P39: 0 | Q39: 5.7143 | S39: 2020-07-09 | V39: N
A40: 8213 志超43993 | B40: 8213 志超2019 | C40: 8213 志超 | D40: 2020-06-11 | E40: 2020-06-11 | F40: 2019 | G40: TSE | H40: 除息 | I40: 2.54668077 | J40: 0 | K40: 38.2 | L40: 35.6533 | P40: 0 | Q40: 1.0582 | S40: 2020-07-03 | V40: N
A41: 2548 華固43992 | B41: 2548 華固2019 | C41: 2548 華固 | D41: 2020-06-10 | E41: 2020-05-26 | F41: 2019 | G41: TSE | H41: 除息 | I41: 7.5 | J41: 0 | K41: 98.5 | L41: 91 | P41: 0 | Q41: 0.9222 | R41: -5.2268 | S41: 2020-06-30 | V41: N
A42: 3029 零壹43992 | B42: 3029 零壹2019 | C42: 3029 零壹 | D42: 2020-06-10 | E42: 2020-06-10 | F42: 2019 | G42: TSE | H42: 除息 | I42: 2.01013223 | J42: 0 | K42: 38.2 | L42: 36.1899 | M42: 2020-06-12 | N42: 38.2 | O42: 37.4 | P42: 3 | Q42: 9.9281 | R42: 3.7342 | S42: 2020-07-03 | U42: H | V42: Y
A43: 5230 雷笛克光學43992 | B43: 5230 雷笛克光學2019 | C43: 5230 雷笛克光學 | D43: 2020-06-10 | E43: 2020-05-25 | F43: 2019 | G43: OTC | H43: 除息 | I43: 0.63833388 | J43: 0 | K43: 23.2 | L43: 22.5617 | P43: 0 | Q43: 1.978 | R43: 1.0515 | S43: 2020-07-03 | V43: N
A44: 6123 上奇43992 | B44: 6123 上奇2019 | C44: 6123 上奇 | D44: 2020-06-10 | E44: 2020-06-09 | F44: 2019 | G44: OTC | H44: 除息 | I44: 2.6 | J44: 0 | K44: 43.2 | L44: 40.6 | P44: 0 | Q44: -0.4608 | R44: -1.4632 | S44: 2020-07-10 | V44: N
A45: 6654 天正國際43992 | B45: 6654 天正國際2019 | C45: 6654 天正國際 | D45: 2020-06-10 | E45: 2020-06-05 | F45: 2019 | G45: OTC | H45: 除息 | I45: 1 | J45: 0 | K45: 57.6 | L45: 56.6 | M45: 2020-06-10 | N45: 60 | O45: 58.5 | P45: 1 | Q45: 15.1999 | R45: -2.3519 | S45: 2020-06-30 | U45: HC | V45: Y
A46: 1218 泰山43991 | B46: 1218 泰山2019 | C46: 1218 泰山 | D46: 2020-06-09 | E46: 2020-05-21 | F46: 2019 | G46: TSE | H46: 除息 | I46: 0.9 | J46: 0 | K46: 25.25 | L46: 24.35 | P46: 0 | Q46: 0.5976 | R46: -5.5233 | S46: 2020-07-10 | V46: N
A47: 910322 康師傅-DR43991 | B47: 910322 康師傅-DR2019 | C47: 910322 康師傅-DR | D47: 2020-06-09 | E47: 2020-06-08 | F47: 2019 | G47: TSE | H47: 除息 | I47: 0.636 | J47: 0 | K47: 25.05 | L47: 23.778 | P47: 0 | Q47: -0.5952 | R47: -0.8056 | V47: N
A48: 9940 信義43991 | B48: 9940 信義2019 | C48: 9940 信義 | D48: 2020-06-09 | E48: 2020-05-22 | F48: 2019 | G48: TSE | H48: 除息 | I48: 1.2 | J48: 0 | K48: 29.3 | L48: 28.1 | P48: 0 | Q48: 5.7761 | R48: -4.2774 | S48: 2020-07-10 | V48: N
A49: 2467 志聖43990 | B49: 2467 志聖2019 | C49: 2467 志聖 | D49: 2020-06-08 | E49: 2020-05-21 | F49: 2019 | G49: TSE | H49: 除息 | I49: 2.5 | J49: 0 | K49: 33 | L49: 30.5 | P49: 0 | Q49: 0.4566 | R49: -10.8019 | S49: 2020-07-03 | V49: N
A50: 3388 崇越電43990 | B50: 3388 崇越電2019 | C50: 3388 崇越電 | D50: 2020-06-08 | E50: 2020-05-22 | F50: 2019 | G50: OTC | H50: 除息 | I50: 3.6 | J50: 0 | K50: 69.5 | L50: 65.9 | P50: 0 | Q50: 2.9629 | R50: -3.7631 | S50: 2020-06-30 | V50: N
A51: 4420 光明43990 | B51: 4420 光明2019 | C51: 4420 光明 | D51: 2020-06-08 | E51: 2020-06-04 | F51: 2019 | G51: OTC | H51: 除息 | I51: 1 | J51: 0 | K51: 25 | L51: 24 | P51: 0 | Q51: 0.4016 | R51: -2.9247 | S51: 2020-07-01 | V51: N
A52: 5211 蒙恬43990 | B52: 5211 蒙恬2019 | C52: 5211 蒙恬 | D52: 2020-06-08 | E52: 2020-05-21 | F52: 2019 | G52: OTC | H52: 除息 | I52: 0.4 | J52: 0 | K52: 14.3 | L52: 13.9 | M52: 2020-06-15 | N52: 14.7 | O52: 14 | P52: 6 | Q52: 2.5089 | R52: -0.7393 | S52: 2020-06-30 | U52: H | V52: Y
A53: 5274 信驊43986 | B53: 5274 信驊2019 | C53: 5274 信驊 | D53: 2020-06-04 | E53: 2020-05-19 | F53: 2019 | G53: OTC | H53: 除息 | I53: 22 | J53: 0 | K53: 1295 | L53: 1273 | M53: 2020-06-04 | N53: 1365 | O53: 1290 | P53: 1 | Q53: -9.7561 | R53: 9.5591 | S53: 2020-06-30 | U53: H | V53: Y
A54: 9136 巨騰-DR43985 | B54: 9136 巨騰-DR2019 | C54: 9136 巨騰-DR | D54: 2020-06-03 | E54: 2020-05-27 | F54: 2019 | G54: TSE | H54: 除息 | I54: 0.3834 | J54: 0 | K54: 9.7 | L54: 9.3166 | M54: 2020-06-03 | N54: 9.76 | O54: 9.69 | P54: 1 | Q54: 5.4348 | R54: 12.5305 | U54: H | V54: Y
A55: 8454 富邦媒43984 | B55: 8454 富邦媒2019 | C55: 8454 富邦媒 | D55: 2020-06-02 | E55: 2020-05-15 | F55: 2019 | G55: TSE | H55: 除息 | I55: 8.5 | J55: 0 | K55: 585 | L55: 576.5 | M55: 2020-06-04 | N55: 590 | O55: 579 | P55: 3 | Q55: 4.2781 | R55: 0.6342 | S55: 2020-06-30 | U55: H | V55: Y
A56: 3443 創意43983 | B56: 3443 創意2019 | C56: 3443 創意 | D56: 2020-06-01 | E56: 2020-05-14 | F56: 2019 | G56: TSE | H56: 除息 | I56: 5 | J56: 0 | K56: 231 | L56: 226 | M56: 2020-06-01 | N56: 233 | O56: 227.5 | P56: 1 | Q56: 3.125 | R56: 1.3131 | S56: 2020-06-24 | U56: H | V56: Y
A57: 2809 京城銀43979 | B57: 2809 京城銀2019 | C57: 2809 京城銀 | D57: 2020-05-28 | E57: 2020-05-12 | F57: 2019 | G57: TSE | H57: 除息 | I57: 1.5 | J57: 0 | K57: 34.1 | L57: 32.6 | M57: 2020-06-08 | N57: 36.35 | O57: 36.35 | P57: 8 | Q57: 3.6474 | R57: 0.7462 | S57: 2020-06-19 | U57: HC | V57: Y
A58: 8924 大田43978 | B58: 8924 大田2019 | C58: 8924 大田 | D58: 2020-05-27 | E58: 2020-05-12 | F58: 2019 | G58: OTC | H58: 除息 | I58: 3.8 | J58: 0 | K58: 47.9 | L58: 44.1 | P58: 0 | Q58: 1.0549 | R58: -8.9283 | S58: 2020-06-11 | V58: N
A59: 5864 致和證43971 | B59: 5864 致和證2019 | C59: 5864 致和證 | D59: 2020-05-20 | E59: 2020-04-30 | F59: 2019 | G59: OTC | H59: 除息 | I59: 0.55 | J59: 0 | K59: 8.8 | L59: 8.25 | M59: 2020-06-08 | N59: 8.8 | O59: 8.41 | P59: 14 | Q59: -1.676 | R59: -4.7383 | S59: 2020-06-12 | U59: H | V59: Y
A60: 8440 綠電43971 | B60: 8440 綠電2019 | C60: 8440 綠電 | D60: 2020-05-20 | E60: 2020-04-29 | F60: 2019 | G60: OTC | H60: 除息 | I60: 0.4 | J60: 0 | K60: 13.3 | L60: 12.9 | P60: 0 | Q60: 1.1406 | R60: -3.1007 | S60: 2020-06-12 | V60: N
A61: 6219 富旺43963 | B61: 6219 富旺2019 | C61: 6219 富旺 | D61: 2020-05-12 | E61: 2020-04-17 | F61: 2019 | G61: OTC | H61: 除息 | I61: 0.65208208 | J61: 0 | K61: 16.95 | L61: 16.2979 | P61: 0 | Q61: 6.6039 | R61: -15.8062 | S61: 2020-06-04 | V61: N
A62: 2064 晉椿43944 | B62: 2064 晉椿2019 | C62: 2064 晉椿 | D62: 2020-04-23 | E62: 2020-06-23 | F62: 2019 | G62: OTC | H62: 除息 | I62: 0.6 | J62: 0 | K62: 12.1 | L62: 11.5 | P62: 0 | Q62: 0.8333 | R62: 0.4348 | S62: 2020-05-21 | V62: N
A63: 2726 雅茗-KY43944 | B63: 2726 雅茗-KY2019 | C63: 2726 雅茗-KY | D63: 2020-04-23 | E63: 2020-06-23 | F63: 2019 | G63: OTC | H63: 除息 | I63: 2.50051358 | J63: 0.5 | K63: 58.2 | L63: 55.6995 | M63: 2020-04-29 | N63: 59.3 | O63: 57.7 | P63: 5 | Q63: 0.5181 | R63: 3.4977 | S63: 2020-05-22 | U63: H | V63: Y
A64: 6224 聚鼎43944 | B64: 6224 聚鼎2019 | C64: 6224 聚鼎 | D64: 2020-04-23 | E64: 2020-06-24 | F64: 2019 | G64: TSE | H64: 除息 | I64: 4 | J64: 0 | K64: 65.5 | L64: 61.5 | M64: 2020-06-03 | N64: 65.8 | O64: 65.7 | P64: 29 | Q64: 2.5038 | R64: -0.7534 | S64: 2020-05-15 | U64: HC | V64: Y
A65: 8112 至上43944 | B65: 8112 至上2019 | C65: 8112 至上 | D65: 2020-04-23 | E65: 2020-06-24 | F65: 2019 | G65: TSE | H65: 除息 | I65: 2.7 | J65: 0 | K65: 34.95 | L65: 32.25 | M65: 2020-04-29 | N65: 34.95 | O65: 34.2 | P65: 5 | Q65: 1.4514 | R65: 6.0722 | S65: 2020-05-22 | U65: H | V65: Y
A66: 2910 統領43943 | B66: 2910 統領2019 | C66: 2910 統領 | D66: 2020-04-22 | E66: 2020-06-22 | F66: 2019 | G66: TSE | H66: 除息 | I66: 0.7 | J66: 0 | K66: 30.9 | L66: 30.2 | M66: 2020-04-30 | N66: 31.9 | O66: 31.3 | P66: 7 | Q66: 1.9802 | R66: -0.1618 | S66: 2020-05-20 | U66: HC | V66: Y
A67: =C67&D67 -> 6274 台燿43938 | B67: =C67&F67 -> 6274 台燿2019 | C67: 6274 台燿 | D67: 2020-04-17 | E67: 2020-06-19 | F67: 2019 | G67: OTC | H67: 除息 | I67: 4.60373477 | J67: 0 | K67: 132 | L67: 127.3963 | M67: 2020-04-30 | N67: 136 | O67: 136 | P67: 10 | Q67: 9.0909 | R67: -0.7466 | S67: 2020-05-22 | U67: HC | V67: Y
A68: 8446 華研43937 | B68: 8446 華研2019 | C68: 8446 華研 | D68: 2020-04-16 | E68: 2020-06-17 | F68: 2019 | G68: OTC | H68: 除息 | I68: 4.5 | J68: 0 | K68: 114.5 | L68: 110 | M68: 2020-05-25 | N68: 115 | O68: 114 | P68: 27 | Q68: 7.0095 | R68: -2.6564 | S68: 2020-05-05 | U68: H | V68: Y
A69: 3218 大學光43936 | B69: 3218 大學光2019 | C69: 3218 大學光 | D69: 2020-04-15 | E69: 2020-06-15 | F69: 2019 | G69: OTC | H69: 除息 | I69: 2 | J69: 0 | K69: 76.3 | L69: 74.3 | M69: 2020-04-15 | N69: 77.3 | O69: 74.4 | P69: 1 | Q69: 13.7109 | R69: 0.4003 | S69: 2020-05-08 | U69: H | V69: Y
A70: 4973 廣穎43934 | B70: 4973 廣穎2019 | C70: 4973 廣穎 | D70: 2020-04-13 | E70: 2020-06-19 | F70: 2019 | G70: OTC | H70: 除息 | I70: 1.2 | J70: 0 | K70: 26.9 | L70: 25.7 | M70: 2020-04-20 | N70: 27 | O70: 27 | P70: 6 | Q70: 8.0321 | R70: -3.5673 | S70: 2020-05-15 | U70: HC | V70: Y
A71: 1457 宜進43930 | B71: 1457 宜進2019 | C71: 1457 宜進 | D71: 2020-04-09 | E71: 2020-06-11 | F71: 2019 | G71: TSE | H71: 除息 | I71: 0.5 | J71: 0 | K71: 11.8 | L71: 11.3 | M71: 2020-04-30 | N71: 11.8 | O71: 11.75 | P71: 16 | Q71: 6.7874 | R71: 2.6548 | S71: 2020-05-05 | U71: H | V71: Y
A72: 1524 耿鼎43930 | B72: 1524 耿鼎2019 | C72: 1524 耿鼎 | D72: 2020-04-09 | E72: 2020-06-10 | F72: 2019 | G72: TSE | H72: 除息 | I72: 0.4 | J72: 0 | K72: 8.83 | L72: 8.43 | M72: 2020-04-30 | N72: 8.95 | O72: 8.95 | P72: 16 | Q72: 2.0809 | R72: 0.372 | S72: 2020-05-13 | U72: HC | V72: Y
A73: 2063 世鎧43930 | B73: 2063 世鎧2019 | C73: 2063 世鎧 | D73: 2020-04-09 | E73: 2020-06-10 | F73: 2019 | G73: OTC | H73: 除息 | I73: 2.5 | J73: 0 | K73: 35.85 | L73: 33.35 | P73: 0 | Q73: 4.3668 | R73: -2.7871 | S73: 2020-05-07 | V73: N
A74: 2385 群光43930 | B74: 2385 群光2019 | C74: 2385 群光 | D74: 2020-04-09 | E74: 2020-06-10 | F74: 2019 | G74: TSE | H74: 除息 | I74: 5.9 | J74: 0 | K74: 82.8 | L74: 76.9 | M74: 2020-04-17 | N74: 82.8 | O74: 81.8 | P74: 7 | Q74: 4.8101 | R74: 3.0359 | S74: 2020-05-12 | U74: H | V74: Y
A75: 6412 群電43930 | B75: 6412 群電2019 | C75: 6412 群電 | D75: 2020-04-09 | E75: 2020-06-09 | F75: 2019 | G75: TSE | H75: 除息 | I75: 3.2 | J75: 0 | K75: 57.6 | L75: 54.4 | M75: 2020-04-09 | N75: 58 | O75: 54.5 | P75: 1 | Q75: 5.6881 | R75: 4.0335 | S75: 2020-05-14 | U75: H | V75: Y
A76: 1712 興農43929 | B76: 1712 興農2019 | C76: 1712 興農 | D76: 2020-04-08 | E76: 2020-06-23 | F76: 2019 | G76: TSE | H76: 除息 | I76: 1.3 | J76: 0 | K76: 19.15 | L76: 17.85 | M76: 2020-05-06 | N76: 19.15 | O76: 18.95 | P76: 20 | Q76: 0.7895 | R76: 2.9093 | S76: 2020-05-08 | U76: H | V76: Y
A77: 8401 白紗科43922 | B77: 8401 白紗科2019 | C77: 8401 白紗科 | D77: 2020-04-01 | E77: 2020-06-05 | F77: 2019 | G77: OTC | H77: 除息 | I77: 0.5005605 | J77: 0 | K77: 11 | L77: 10.4994 | M77: 2020-04-09 | N77: 11.05 | O77: 10.9 | P77: 5 | Q77: 8.9108 | R77: 1.4118 | S77: 2020-04-29 | U77: H | V77: Y
A78: 1313 聯成43921 | B78: 1313 聯成2019 | C78: 1313 聯成 | D78: 2020-03-31 | E78: 2020-06-10 | F78: 2019 | G78: TSE | H78: 除息 | I78: 0.2 | J78: 0 | K78: 8.13 | L78: 7.93 | M78: 2020-03-31 | N78: 8.13 | O78: 7.97 | P78: 1 | Q78: 11.6757 | R78: 2.2573 | S78: 2020-04-29 | U78: H | V78: Y
A79: 5904 寶雅43921 | B79: 5904 寶雅2019 | C79: 5904 寶雅 | D79: 2020-03-31 | E79: 2020-06-23 | F79: 2019 | G79: OTC | H79: 除息 | I79: 17.1 | J79: 0 | K79: 440 | L79: 422.9 | M79: 2020-04-01 | N79: 450 | O79: 425 | P79: 2 | Q79: 8.642 | R79: 0.5592 | S79: 2020-06-12 | U79: H | V79: Y
A80: 8908 欣雄43921 | B80: 8908 欣雄2019 | C80: 8908 欣雄 | D80: 2020-03-31 | E80: 2020-06-15 | F80: 2019 | G80: OTC | H80: 除息 | I80: 0.9 | J80: 1.1 | K80: 43.2 | L80: 42.3 | M80: 2020-03-31 | N80: 43.8 | O80: 43.8 | P80: 1 | Q80: 8.0001 | R80: 3.7084 | S80: 2020-04-29 | U80: HC | V80: Y
A81: 3004 豐達科43920 | B81: 3004 豐達科2019 | C81: 3004 豐達科 | D81: 2020-03-30 | E81: 2020-06-16 | F81: 2019 | G81: TSE | H81: 除息 | I81: 2.67 | J81: 0 | K81: 53.6 | L81: 50.93 | M81: 2020-04-07 | N81: 53.9 | O81: 53.9 | P81: 5 | Q81: 18.9789 | R81: -1.8422 | S81: 2020-04-30 | U81: HC | V81: Y
A82: 6104 創惟43920 | B82: 6104 創惟2019 | C82: 6104 創惟 | D82: 2020-03-30 | E82: 2020-06-12 | F82: 2019 | G82: OTC | H82: 除息 | I82: 2 | J82: 0 | K82: 29.5 | L82: 27.5 | M82: 2020-04-13 | N82: 30.95 | O82: 30.95 | P82: 9 | Q82: 13.6801 | R82: -3.2961 | S82: 2020-04-24 | U82: HC | V82: Y
A83: 3005 神基43917 | B83: 3005 神基2019 | C83: 3005 神基 | D83: 2020-03-27 | E83: 2020-05-29 | F83: 2019 | G83: TSE | H83: 除息 | I83: 2.79597267 | J83: 0 | K83: 45.55 | L83: 42.754 | M83: 2020-05-07 | N83: 47.9 | O83: 46.85 | P83: 27 | Q83: 16.4962 | R83: 0.5953 | S83: 2020-04-24 | U83: HC | V83: Y
A84: 2613 中櫃43916 | B84: 2613 中櫃2019 | C84: 2613 中櫃 | D84: 2020-03-26 | E84: 2020-05-28 | F84: 2019 | G84: TSE | H84: 除息 | I84: 0.17 | J84: 0 | K84: 10.55 | L84: 10.38 | M84: 2020-03-26 | N84: 10.55 | O84: 10.5 | P84: 1 | Q84: -4.5249 | R84: 1.8868 | S84: 2020-04-24 | U84: H | V84: Y
A85: 2939 凱羿-KY43916 | B85: 2939 凱羿-KY2019 | C85: 2939 凱羿-KY | D85: 2020-03-26 | E85: 2020-05-28 | F85: 2019 | G85: TSE | H85: 除息 | I85: 4.5 | J85: 0 | K85: 92.3 | L85: 87.8 | M85: 2020-03-27 | N85: 96 | O85: 95.6 | P85: 2 | Q85: 3.5915 | R85: 6.1716 | S85: 2020-04-27 | U85: HC | V85: Y
A86: 5283 禾聯碩43910 | B86: 5283 禾聯碩2019 | C86: 5283 禾聯碩 | D86: 2020-03-20 | E86: 2019-12-23 | F86: 2019 | G86: TSE | H86: 除息 | I86: 4 | J86: 0 | K86: 82.1 | L86: 78.1 | M86: 2020-03-20 | N86: 82.9 | O86: 81.1 | P86: 1 | Q86: -14.211 | R86: 16.4352 | S86: 2020-04-21 | U86: H | V86: Y
A87: 9105 泰金寶-DR43910 | B87: 9105 泰金寶-DR2019 | C87: 9105 泰金寶-DR | D87: 2020-03-20 | E87: 2020-02-28 | F87: 2019 | G87: TSE | H87: 除息 | I87: 0.029166 | J87: 0 | K87: 2.21 | L87: 2.1808 | M87: 2020-03-20 | N87: 2.36 | O87: 2.3 | P87: 1 | Q87: -19.9275 | R87: 9.058 | S87: 2020-05-29 | U87: HC | V87: Y
A88: 2330 台積電43909 | B88: 2330 台積電2019 | C88: 2330 台積電 | D88: 2020-03-19 | E88: 2019-11-12 | F88: 2019 | G88: TSE | H88: 除息 | I88: 2.5 | J88: 0 | K88: 260 | L88: 257.5 | M88: 2020-03-20 | N88: 270 | O88: 270 | P88: 2 | Q88: -13.9073 | R88: 7.6125 | S88: 2020-04-16 | U88: HC | V88: Y
A89: 2483 百容43906 | B89: 2483 百容2019 | C89: 2483 百容 | D89: 2020-03-16 | E89: 2020-06-02 | F89: 2019 | G89: TSE | H89: 除息 | I89: 1 | J89: 0 | K89: 18.35 | L89: 17.35 | M89: 2020-04-30 | N89: 18.35 | O89: 18.3 | P89: 32 | Q89: -8.4788 | R89: -13.7362 | S89: 2020-04-17 | U89: H | V89: Y
A90: 2752 豆府43906 | B90: 2752 豆府2019 | C90: 2752 豆府 | D90: 2020-03-16 | E90: 2020-05-28 | F90: 2019 | G90: OTC | H90: 除息 | I90: 5.2 | J90: 0.3 | K90: 105 | L90: 99.8 | M90: 2020-05-12 | N90: 107 | O90: 107 | P90: 39 | Q90: -5.4055 | R90: -17.0008 | S90: 2020-04-07 | U90: HC | V90: Y
A91: 5225 東科-KY43906 | B91: 5225 東科-KY2019 | C91: 5225 東科-KY | D91: 2020-03-16 | E91: 2020-06-12 | F91: 2019 | G91: TSE | H91: 除息 | I91: 0.51 | J91: 0 | K91: 23.1 | L91: 22.59 | M91: 2020-03-16 | N91: 23.9 | O91: 22 | P91: 1 | Q91: -26.4331 | R91: -10.084 | S91: 2020-04-17 | U91: H | V91: Y
A92: 2101 南港43902 | B92: 2101 南港2019 | C92: 2101 南港 | D92: 2020-03-12 | E92: 2020-05-13 | F92: 2019 | G92: TSE | H92: 除息 | I92: 0.75 | J92: 0 | K92: 41.55 | L92: 40.8 | M92: 2020-04-10 | N92: 42.9 | O92: 42.3 | P92: 20 | Q92: -1.889 | R92: -0.2146 | S92: 2020-03-25 | U92: HC | V92: Y
A93: 3680 家登43902 | B93: 3680 家登2019 | C93: 3680 家登 | D93: 2020-03-12 | E93: 2019-12-28 | F93: 2019 | G93: OTC | H93: 除息 | I93: 0.95230865 | J93: 0 | K93: 160 | L93: 159.05 | M93: 2020-04-30 | N93: 166.5 | O93: 166.5 | P93: 34 | Q93: -4.1916 | R93: -37.7144 | S93: 2020-04-10 | U93: HC | V93: Y
A94: 6208 日揚43902 | B94: 6208 日揚2019 | C94: 6208 日揚 | D94: 2020-03-12 | E94: 2020-06-19 | F94: 2019 | G94: OTC | H94: 除息 | I94: 1.7 | J94: 0 | K94: 27.35 | L94: 25.65 | M94: 2020-06-05 | N94: 29.8 | O94: 29.8 | P94: 59 | Q94: 0.1832 | R94: -16.9692 | S94: 2020-04-07 | U94: HC | V94: Y
A95: 6523 達爾膚43895 | B95: 6523 達爾膚2018 | C95: 6523 達爾膚 | D95: 2020-03-05 | E95: 2020-02-18 | F95: 2018 | G95: OTC | H95: 除息 | I95: 10 | J95: 0 | K95: 91 | L95: 81 | P95: 0 | Q95: 0.6637 | R95: -19.987 | S95: 2020-03-31 | V95: N
A96: 2542 興富發43881 | B96: 2542 興富發2019 | C96: 2542 興富發 | D96: 2020-02-20 | E96: 2019-11-13 | F96: 2019 | G96: TSE | H96: 除息 | I96: 1 | J96: 0 | K96: 46.2 | L96: 45.2 | M96: 2020-06-03 | N96: 46.35 | O96: 46.25 | P96: 71 | Q96: 0.8733 | R96: -0.9082 | S96: 2020-03-16 | U96: HC | V96: Y
A97: 6123 上奇43826 | B97: 6123 上奇2019 | C97: 6123 上奇 | D97: 2019-12-27 | E97: 2019-11-04 | F97: 2019 | G97: OTC | H97: 除息 | I97: 1 | J97: 0 | K97: 41.45 | L97: 40.45 | M97: 2020-01-17 | N97: 44.3 | O97: 42.8 | P97: 15 | Q97: 1.7178 | R97: 0.3531 | S97: 2020-01-17 | U97: HC | V97: Y
A98: 2330 台積電43818 | B98: 2330 台積電2019 | C98: 2330 台積電 | D98: 2019-12-19 | F98: 2019 | G98: TSE | H98: 除息 | I98: 2.5 | J98: 0 | K98: 344.5 | L98: 342 | M98: 2020-01-03 | N98: 345 | O98: 339.5 | P98: 11 | Q98: 7.9937 | R98: -2.6167 | S98: 2020-01-16 | U98: H | V98: Y
A99: 6548 長科*43811 | B99: 6548 長科*2019 | C99: 6548 長科* | D99: 2019-12-12 | E99: 2019-11-07 | F99: 2019 | G99: OTC | H99: 除息 | I99: 0.34 | J99: 0 | K99: 34.4 | L99: 34.06 | M99: 2019-12-12 | N99: 34.5 | O99: 34.25 | P99: 1 | Q99: -1.4326 | R99: 2.4606 | S99: 2020-01-15 | U99: H | V99: Y
A100: 8070 長華43811 | B100: 8070 長華2019 | C100: 8070 長華 | D100: 2019-12-12 | E100: 2019-11-07 | F100: 2019 | G100: TSE | H100: 除息 | I100: 4.1 | J100: 0 | K100: 177.5 | L100: 173.4 | M100: 2019-12-12 | N100: 177.5 | O100: 176 | P100: 1 | Q100: 0.5666 | R100: 0.6 | S100: 2020-01-17 | U100: H | V100: Y
A101: 6219 富旺43802 | B101: 6219 富旺2019 | C101: 6219 富旺 | D101: 2019-12-03 | E101: 2019-11-08 | F101: 2019 | G101: OTC | H101: 除息 | I101: 0.51942562 | J101: 0 | K101: 16.2 | L101: 15.68 | M101: 2019-12-03 | N101: 16.35 | O101: 16.35 | P101: 1 | Q101: 1.25 | R101: -3.5104 | S101: 2019-12-25 | U101: HC | V101: Y
A102: 2929 淘帝-KY43797 | B102: 2929 淘帝-KY2018 | C102: 2929 淘帝-KY | D102: 2019-11-28 | E102: 2019-06-14 | F102: 2018 | G102: TSE | H102: 除權除息 | I102: 3.12800776 | J102: 1.489527507 | K102: 107.5 | L102: 90.84 | P102: 0 | Q102: 3.8648 | R102: -6.2813 | S102: 2019-12-25 | T102: 2019-12-25 | V102: N
A103: 3252 海灣43796 | B103: 3252 海灣2018 | C103: 3252 海灣 | D103: 2019-11-27 | E103: 2019-06-24 | F103: 2018 | G103: OTC | H103: 除息 | I103: 0.5 | J103: 0 | K103: 16.85 | L103: 16.35 | M103: 2019-12-23 | N103: 16.95 | O103: 16.8 | P103: 19 | Q103: -0.0001 | R103: -0.3238 | S103: 2019-12-20 | U103: H | V103: Y
A104: 5278 尚凡43796 | B104: 5278 尚凡2019 | C104: 5278 尚凡 | D104: 2019-11-27 | E104: 2019-11-07 | F104: 2019 | G104: OTC | H104: 除息 | I104: 2.26136645 | J104: 0 | K104: 141 | L104: 138.74 | M104: 2019-12-18 | N104: 143.5 | O104: 142 | P104: 16 | Q104: 0 | R104: -6.3077 | S104: 2019-12-24 | U104: HC | V104: Y
A105: 6452 康友-KY43796 | B105: 6452 康友-KY2018 | C105: 6452 康友-KY | D105: 2019-11-27 | E105: 2019-06-28 | F105: 2018 | G105: TSE | H105: 除權除息 | I105: 3.2 | J105: 2.82051282 | K105: 257 | L105: 197.96 | P105: 0 | Q105: -0.7722 | R105: 5.7242 | S105: 2019-12-18 | T105: 2019-12-18 | V105: N
A106: 8455 大拓-KY43796 | B106: 8455 大拓-KY2018 | C106: 8455 大拓-KY | D106: 2019-11-27 | E106: 2019-06-26 | F106: 2018 | G106: OTC | H106: 除息 | I106: 0.17260079 | J106: 0 | K106: 30.45 | L106: 30.28 | M106: 2019-11-27 | N106: 30.55 | O106: 30.55 | P106: 1 | Q106: 0 | R106: -2.9028 | S106: 2019-12-26 | U106: HC | V106: Y
A107: 8941 關中43796 | B107: 8941 關中2018 | C107: 8941 關中 | D107: 2019-11-27 | E107: 2019-06-18 | F107: 2018 | G107: OTC | H107: 除權 | I107: 0 | J107: 1 | K107: 47.15 | L107: 42.86 | P107: 0 | Q107: 1.507 | R107: 3.351 | T107: 2019-12-27 | V107: N
A108: 8446 華研43788 | B108: 8446 華研2019 | C108: 8446 華研 | D108: 2019-11-19 | E108: 2019-11-04 | F108: 2019 | G108: OTC | H108: 除息 | I108: 4.5 | J108: 0 | K108: 134.5 | L108: 130 | P108: 0 | Q108: 1.1278 | R108: -1.8976 | S108: 2019-12-06 | V108: N
A109: 1235 興泰43783 | B109: 1235 興泰2018 | C109: 1235 興泰 | D109: 2019-11-14 | E109: 2019-06-24 | F109: 2018 | G109: TSE | H109: 除權 | I109: 0 | J109: 1.25 | K109: 29.25 | L109: 26 | P109: 0 | Q109: -3.6244 | R109: 6.5385 | T109: 2019-12-17 | V109: N
A110: 1808 潤隆43773 | B110: 1808 潤隆2018 | C110: 1808 潤隆 | D110: 2019-11-04 | E110: 2019-06-10 | F110: 2018 | G110: TSE | H110: 除息 | I110: 8 | J110: 0 | K110: 68.4 | L110: 60.4 | P110: 0 | Q110: -0.7257 | R110: 2.9406 | S110: 2019-11-29 | V110: N
A111: 9935 慶豐富43767 | B111: 9935 慶豐富2018 | C111: 9935 慶豐富 | D111: 2019-10-29 | E111: 2019-06-28 | F111: 2018 | G111: TSE | H111: 除息 | I111: 0.33 | J111: 0 | K111: 45.85 | L111: 45.52 | M111: 2019-10-29 | N111: 46.45 | O111: 45.05 | P111: 1 | Q111: 3.4988 | R111: 0.0734 | S111: 2019-11-22 | U111: H | V111: Y
A112: 2239 英利-KY43766 | B112: 2239 英利-KY2018 | C112: 2239 英利-KY | D112: 2019-10-28 | E112: 2019-06-24 | F112: 2018 | G112: TSE | H112: 除息 | I112: 4.5 | J112: 0 | K112: 101.5 | L112: 97 | P112: 0 | Q112: -0.9756 | R112: -1.0667 | S112: 2019-11-15 | V112: N
A113: 1714 和桐43763 | B113: 1714 和桐2018 | C113: 1714 和桐 | D113: 2019-10-25 | E113: 2019-06-25 | F113: 2018 | G113: TSE | H113: 除息 | I113: 0.15 | J113: 0 | K113: 7.4 | L113: 7.25 | M113: 2019-12-06 | N113: 7.43 | O113: 7.32 | P113: 31 | Q113: 0.1352 | R113: -2.3421 | S113: 2019-11-26 | U113: H | V113: Y
A114: 4502 健信43761 | B114: 4502 健信2018 | C114: 4502 健信 | D114: 2019-10-23 | E114: 2019-06-19 | F114: 2018 | G114: OTC | H114: 除權除息 | I114: 0.30064768 | J114: 0.70151124 | K114: 61.2 | L114: 56.91 | M114: 2019-11-01 | N114: 64.2 | O114: 64.2 | P114: 8 | Q114: 24.2639 | R114: -0.7194 | S114: 2019-11-29 | T114: 2019-11-29 | U114: HC | V114: Y
A115: 8936 國統43761 | B115: 8936 國統2018 | C115: 8936 國統 | D115: 2019-10-23 | E115: 2019-06-12 | F115: 2018 | G115: OTC | H115: 除權除息 | I115: 0.09186452 | J115: 0.13779676 | K115: 19.05 | L115: 18.7 | M115: 2019-10-23 | N115: 19.1 | O115: 19.05 | P115: 1 | Q115: 2.973 | R115: 3.4663 | S115: 2019-11-20 | T115: 2019-12-11 | U115: HC | V115: Y
A116: 4503 金雨43760 | B116: 4503 金雨2018 | C116: 4503 金雨 | D116: 2019-10-22 | E116: 2019-06-28 | F116: 2018 | G116: OTC | H116: 除息 | I116: 0.5 | J116: 0 | K116: 27.9 | L116: 27.4 | M116: 2019-10-25 | N116: 29.5 | O116: 28.5 | P116: 4 | Q116: 7.3076 | R116: 2.744 | S116: 2019-11-08 | U116: HC | V116: Y
A117: 1603 華電43755 | B117: 1603 華電2018 | C117: 1603 華電 | D117: 2019-10-17 | E117: 2019-09-30 | F117: 2018 | G117: TSE | H117: 除息 | I117: 0.5 | J117: 0 | K117: 22 | L117: 21.5 | M117: 2019-10-18 | N117: 23 | O117: 23 | P117: 2 | Q117: 1.1494 | R117: 21.5899 | S117: 2019-11-20 | U117: HC | V117: Y
A118: 5481 新華43755 | B118: 5481 新華2018 | C118: 5481 新華 | D118: 2019-10-17 | E118: 2019-06-13 | F118: 2018 | G118: OTC | H118: 除息 | I118: 0.41243031 | J118: 0 | K118: 15.9 | L118: 15.49 | M118: 2019-10-18 | N118: 16.45 | O118: 15.3 | P118: 2 | Q118: -1.548 | R118: -8.6307 | S118: 2019-11-14 | U118: H | V118: Y
A119: 2515 中工43747 | B119: 2515 中工2018 | C119: 2515 中工 | D119: 2019-10-09 | E119: 2019-06-21 | F119: 2018 | G119: TSE | H119: 除息 | I119: 0.197 | J119: 0 | K119: 7.88 | L119: 7.68 | M119: 2019-10-14 | N119: 7.98 | O119: 7.98 | P119: 2 | Q119: 1.2853 | R119: 4.4973 | S119: 2019-11-15 | U119: HC | V119: Y
A120: 6432 今展科43745 | B120: 6432 今展科2018 | C120: 6432 今展科 | D120: 2019-10-07 | E120: 2019-06-18 | F120: 2018 | G120: OTC | H120: 除息 | I120: 1.6 | J120: 0 | K120: 28.85 | L120: 27.25 | M120: 2019-10-08 | N120: 29.35 | O120: 28.3 | P120: 2 | Q120: 1.0507 | R120: 1.4519 | S120: 2019-11-06 | U120: H | V120: Y
A121: 6246 臺龍43741 | B121: 6246 臺龍2018 | C121: 6246 臺龍 | D121: 2019-10-03 | E121: 2019-06-21 | F121: 2018 | G121: OTC | H121: 除權 | I121: 0 | J121: 0.4000010143 | K121: 9.89 | L121: 9.51 | M121: 2019-12-24 | N121: 9.95 | O121: 9.15 | P121: 57 | Q121: -0.101 | R121: -1.9588 | T121: 2019-11-08 | U121: H | V121: Y
A122: 2542 興富發43740 | B122: 2542 興富發2019 | C122: 2542 興富發 | D122: 2019-10-02 | E122: 2019-06-10 | F122: 2019 | G122: TSE | H122: 除息 | I122: 4.5 | J122: 0 | K122: 49.95 | L122: 45.45 | P122: 0 | Q122: 0.6042 | R122: -0.1982 | S122: 2019-10-30 | V122: N
A123: 4967 十銓43739 | B123: 4967 十銓2018 | C123: 4967 十銓 | D123: 2019-10-01 | E123: 2019-06-21 | F123: 2018 | G123: TSE | H123: 除息 | I123: 2 | J123: 0 | K123: 25.45 | L123: 23.45 | M123: 2019-11-04 | N123: 25.8 | O123: 25 | P123: 23 | Q123: -1.7375 | R123: -6.0717 | S123: 2019-10-30 | U123: H | V123: Y
A124: 6221 晉泰43739 | B124: 6221 晉泰2018 | C124: 6221 晉泰 | D124: 2019-10-01 | E124: 2019-06-12 | F124: 2018 | G124: OTC | H124: 除權除息 | I124: 1.25000006 | J124: 1.250000063 | K124: 52.5 | L124: 45.56 | M124: 2019-10-17 | N124: 53 | O124: 52.1 | P124: 11 | Q124: 2.3392 | R124: 5.7889 | S124: 2019-10-31 | T124: 2019-10-31 | U124: H | V124: Y
A125: 6596 寬宏藝術43739 | B125: 6596 寬宏藝術2018 | C125: 6596 寬宏藝術 | D125: 2019-10-01 | E125: 2019-06-05 | F125: 2018 | G125: OTC | H125: 除權 | I125: 0 | J125: 1 | K125: 80.3 | L125: 73 | P125: 0 | Q125: 0.3752 | R125: -3.0137 | T125: 2019-11-15 | V125: N
A126: 8027 鈦昇43739 | B126: 8027 鈦昇2018 | C126: 8027 鈦昇 | D126: 2019-10-01 | E126: 2019-06-19 | F126: 2018 | G126: OTC | H126: 除權除息 | I126: 0.3026 | J126: 0.20173 | K126: 33.4 | L126: 32.44 | M126: 2019-10-02 | N126: 34.95 | O126: 34.4 | P126: 2 | Q126: -5.3825 | R126: 5.1145 | S126: 2019-11-01 | T126: 2019-11-01 | U126: HC | V126: Y
A127: 2506 太設43734 | B127: 2506 太設2018 | C127: 2506 太設 | D127: 2019-09-26 | E127: 2019-06-13 | F127: 2018 | G127: TSE | H127: 除息 | I127: 0.16 | J127: 0 | K127: 11.45 | L127: 11.29 | M127: 2019-09-27 | N127: 11.45 | O127: 11.45 | P127: 2 | Q127: -1.2931 | R127: -0.3678 | S127: 2019-10-25 | U127: HC | V127: Y
A128: 3017 奇鋐43734 | B128: 3017 奇鋐2018 | C128: 3017 奇鋐 | D128: 2019-09-26 | E128: 2019-06-13 | F128: 2018 | G128: TSE | H128: 除息 | I128: 1 | J128: 0 | K128: 40.55 | L128: 39.55 | M128: 2019-10-02 | N128: 41.15 | O128: 41.1 | P128: 4 | Q128: -0.7344 | R128: 3.9289 | S128: 2019-10-25 | U128: HC | V128: Y
A129: 4552 力達-KY43733 | B129: 4552 力達-KY2018 | C129: 4552 力達-KY | D129: 2019-09-25 | E129: 2019-06-13 | F129: 2018 | G129: TSE | H129: 除權除息 | I129: 2.3 | J129: 1.6 | K129: 51.8 | L129: 42.67 | P129: 0 | Q129: 2.3716 | R129: -3.6472 | S129: 2019-10-31 | T129: 2019-10-31 | V129: N
A130: 2062 橋椿43732 | B130: 2062 橋椿2018 | C130: 2062 橋椿 | D130: 2019-09-24 | E130: 2019-05-08 | F130: 2018 | G130: TSE | H130: 除息 | I130: 0.3 | J130: 0 | K130: 30.7 | L130: 30.4 | P130: 0 | Q130: 0.9868 | S130: 2019-10-18 | V130: N
A131: =C131&D131 -> 2488 漢平43732 | B131: =C131&F131 -> 2488 漢平2018 | C131: 2488 漢平 | D131: 2019-09-24 | E131: 2019-06-24 | F131: 2018 | G131: TSE | H131: 除息 | I131: 2.5 | J131: 0 | K131: 39.15 | L131: 36.65 | P131: 0 | Q131: 0.9021 | S131: 2019-10-25 | V131: N
A132: 2889 國票金43732 | B132: 2889 國票金2018 | C132: 2889 國票金 | D132: 2019-09-24 | E132: 2019-06-14 | F132: 2018 | G132: TSE | H132: 除權 | I132: 0 | J132: 0.1 | K132: 10.95 | L132: 10.84 | M132: 2019-10-21 | N132: 11 | O132: 10.95 | P132: 17 | Q132: 1.3889 | R132: -1.306 | T132: 2019-11-01 | U132: HC | V132: Y
A133: 2342 茂矽43731 | B133: 2342 茂矽2018 | C133: 2342 茂矽 | D133: 2019-09-23 | E133: 2019-06-13 | F133: 2018 | G133: TSE | H133: 除息 | I133: 0.27 | J133: 0 | K133: 21.3 | L133: 21.03 | M133: 2019-09-23 | N133: 21.35 | O133: 20.95 | P133: 1 | Q133: 1.4285 | R133: -8.2219 | S133: 2019-10-17 | U133: H | V133: Y
A134: 2605 新興43728 | B134: 2605 新興2018 | C134: 2605 新興 | D134: 2019-09-20 | E134: 2019-06-28 | F134: 2018 | G134: TSE | H134: 除權除息 | I134: 0.2 | J134: 0.3 | K134: 17.2 | L134: 16.5 | M134: 2019-10-09 | N134: 17.25 | O134: 16.85 | P134: 13 | Q134: -0.578 | R134: -0.9447 | S134: 2019-11-01 | T134: 2019-11-01 | U134: H | V134: Y
A135: 6154 順發43728 | B135: 6154 順發2018 | C135: 6154 順發 | D135: 2019-09-20 | E135: 2019-06-06 | F135: 2018 | G135: OTC | H135: 除息 | I135: 1 | J135: 0 | K135: 16.1 | L135: 15.1 | P135: 0 | Q135: 1.2579 | R135: -1.263 | S135: 2019-10-15 | V135: N
A136: 1569 濱川43727 | B136: 1569 濱川2018 | C136: 1569 濱川 | D136: 2019-09-19 | E136: 2019-06-25 | F136: 2018 | G136: OTC | H136: 除息 | I136: 0.25 | J136: 0 | K136: 23.1 | L136: 22.85 | M136: 2019-09-20 | N136: 23.2 | O136: 22.3 | P136: 2 | Q136: -4.1494 | R136: -0.8776 | S136: 2019-10-18 | U136: H | V136: Y
A137: 2330 台積電43727 | B137: 2330 台積電2019 | C137: 2330 台積電 | D137: 2019-09-19 | F137: 2019 | G137: TSE | H137: 除息 | I137: 2 | J137: 0 | K137: 267 | L137: 265 | M137: 2019-09-19 | N137: 268 | O137: 265 | P137: 1 | Q137: 1.521 | R137: 0.3774 | S137: 2019-10-17 | U137: H | V137: Y
A138: 6235 華孚43727 | B138: 6235 華孚2018 | C138: 6235 華孚 | D138: 2019-09-19 | E138: 2019-06-18 | F138: 2018 | G138: TSE | H138: 除息 | I138: 0.497576 | J138: 0 | K138: 13.3 | L138: 12.8 | M138: 2019-09-23 | N138: 13.4 | O138: 13.2 | P138: 3 | Q138: 0 | R138: 5.4037 | S138: 2019-10-18 | U138: H | V138: Y
A139: 2601 益航43726 | B139: 2601 益航2018 | C139: 2601 益航 | D139: 2019-09-18 | E139: 2019-06-28 | F139: 2018 | G139: TSE | H139: 除息 | I139: 0.1 | J139: 0 | K139: 12.35 | L139: 12.25 | M139: 2019-09-18 | N139: 12.4 | O139: 12.3 | P139: 1 | Q139: -0.4032 | R139: 2.0375 | S139: 2019-10-08 | U139: H | V139: Y
A140: 3322 建舜電43726 | B140: 3322 建舜電2018 | C140: 3322 建舜電 | D140: 2019-09-18 | E140: 2019-06-12 | F140: 2018 | G140: OTC | H140: 除息 | I140: 0.24528563 | J140: 0 | K140: 8.75 | L140: 8.5 | M140: 2019-09-23 | N140: 8.78 | O140: 8.78 | P140: 4 | Q140: 0.4593 | R140: 13.4683 | S140: 2019-10-25 | U140: HC | V140: Y
A141: 6133 金橋43726 | B141: 6133 金橋2018 | C141: 6133 金橋 | D141: 2019-09-18 | E141: 2019-06-28 | F141: 2018 | G141: TSE | H141: 除息 | I141: 0.25 | J141: 0 | K141: 8.54 | L141: 8.29 | M141: 2020-01-17 | N141: 8.75 | O141: 8.67 | P141: 84 | Q141: 0.5889 | R141: 0.6209 | S141: 2019-10-17 | U141: HC | V141: Y
A142: 9958 世紀鋼43726 | B142: 9958 世紀鋼2018 | C142: 9958 世紀鋼 | D142: 2019-09-18 | E142: 2019-06-24 | F142: 2018 | G142: TSE | H142: 除息 | I142: 0.29993241 | J142: 0 | K142: 77.3 | L142: 77 | M142: 2019-09-18 | N142: 79.3 | O142: 77.7 | P142: 1 | Q142: 3.3422 | R142: -0.0036 | S142: 2019-10-18 | U142: HC | V142: Y
A143: 3059 華晶科43725 | B143: 3059 華晶科2018 | C143: 3059 華晶科 | D143: 2019-09-17 | E143: 2019-06-13 | F143: 2018 | G143: TSE | H143: 除息 | I143: 0.49736805 | J143: 0 | K143: 24.9 | L143: 24.4 | M143: 2019-09-18 | N143: 25.35 | O143: 25.2 | P143: 2 | Q143: 0 | R143: 5.1032 | S143: 2019-10-21 | U143: HC | V143: Y
A144: 3432 台端43725 | B144: 3432 台端2018 | C144: 3432 台端 | D144: 2019-09-17 | E144: 2019-06-10 | F144: 2018 | G144: TSE | H144: 除息 | I144: 0.5 | J144: 0 | K144: 14.3 | L144: 13.8 | P144: 0 | Q144: 1.0601 | R144: 0.6868 | S144: 2019-10-18 | V144: N
A145: 2474 可成43724 | B145: 2474 可成2018 | C145: 2474 可成 | D145: 2019-09-16 | E145: 2019-06-12 | F145: 2018 | G145: TSE | H145: 除息 | I145: 12 | J145: 0 | K145: 235 | L145: 223 | M145: 2019-09-24 | N145: 235 | O145: 233 | P145: 7 | Q145: 2.3965 | R145: 3.5057 | S145: 2019-10-16 | U145: H | V145: Y
A146: 6616 特昇-KY43724 | B146: 6616 特昇-KY2019 | C146: 6616 特昇-KY | D146: 2019-09-16 | F146: 2019 | G146: OTC | H146: 除息 | I146: 0.8 | J146: 0 | K146: 35.95 | L146: 35.15 | M146: 2019-09-25 | N146: 36.9 | O146: 36.9 | P146: 8 | Q146: 2.8612 | R146: -2.4089 | S146: 2019-10-08 | U146: HC | V146: Y
A147: 910861 神州-DR43720 | B147: 910861 神州-DR2018 | C147: 910861 神州-DR | D147: 2019-09-12 | E147: 2019-09-10 | F147: 2018 | G147: TSE | H147: 除息 | I147: 0.0615505 | J147: 0 | K147: 8.75 | L147: 8.6884 | M147: 2020-05-12 | N147: 8.88 | O147: 8.5 | P147: 158 | Q147: 10.2014 | R147: -1.8042 | S147: 2019-10-16 | U147: H | V147: Y
A148: 2707 晶華43719 | B148: 2707 晶華2019 | C148: 2707 晶華 | D148: 2019-09-11 | F148: 2019 | G148: TSE | H148: 除息 | I148: 6.1248 | J148: 0 | K148: 164 | L148: 157.88 | M148: 2019-11-01 | N148: 166 | O148: 162.5 | P148: 34 | Q148: -0.6061 | R148: 0.9907 | S148: 2019-10-03 | U148: H | V148: Y
A149: 2836 高雄銀43719 | B149: 2836 高雄銀2018 | C149: 2836 高雄銀 | D149: 2019-09-11 | E149: 2019-06-20 | F149: 2018 | G149: TSE | H149: 除權除息 | I149: 0.11 | J149: 0.39 | K149: 9.88 | L149: 9.4 | M149: 2020-01-03 | N149: 9.89 | O149: 9.85 | P149: 78 | Q149: 1.3333 | R149: 2.3984 | S149: 2019-10-16 | T149: 2019-10-16 | U149: H | V149: Y
A150: 5487 通泰43719 | B150: 5487 通泰2018 | C150: 5487 通泰 | D150: 2019-09-11 | E150: 2019-08-09 | F150: 2018 | G150: OTC | H150: 除息 | I150: 0.88276278 | J150: 0 | K150: 34.75 | L150: 33.87 | M150: 2019-09-11 | N150: 37.25 | O150: 37.25 | P150: 1 | Q150: 4.0419 | R150: 40.8138 | S150: 2019-10-02 | U150: HC | V150: Y
A151: 8261 富鼎43719 | B151: 8261 富鼎2018 | C151: 8261 富鼎 | D151: 2019-09-11 | E151: 2019-05-16 | F151: 2018 | G151: TSE | H151: 除息 | I151: 1 | J151: 0 | K151: 28.7 | L151: 27.7 | M151: 2019-09-19 | N151: 29.6 | O151: 29.2 | P151: 6 | Q151: -0.6921 | R151: -0.3609 | S151: 2019-10-07 | U151: HC | V151: Y
A152: 3594 磐儀43718 | B152: 3594 磐儀2018 | C152: 3594 磐儀 | D152: 2019-09-10 | E152: 2019-06-19 | F152: 2018 | G152: OTC | H152: 除權除息 | I152: 0.1 | J152: 0.2 | K152: 24 | L152: 23.43 | M152: 2020-01-07 | N152: 25.45 | O152: 25.45 | P152: 81 | Q152: -1.2346 | R152: -0.986 | S152: 2019-10-16 | T152: 2019-10-28 | U152: HC | V152: Y
A153: 8354 冠好43718 | B153: 8354 冠好2018 | C153: 8354 冠好 | D153: 2019-09-10 | E153: 2019-06-26 | F153: 2018 | G153: OTC | H153: 除權除息 | I153: 0.6 | J153: 1.2 | K153: 22.95 | L153: 19.96 | P153: 0 | Q153: -1.0777 | R153: -3.4286 | S153: 2019-10-14 | T153: 2019-10-14 | V153: N
A154: 2236 百達-KY43717 | B154: 2236 百達-KY2018 | C154: 2236 百達-KY | D154: 2019-09-09 | E154: 2019-06-28 | F154: 2018 | G154: TSE | H154: 除權除息 | I154: 0.10244247 | J154: 0.92198329 | K154: 24.8 | L154: 22.61 | M154: 2019-11-21 | N154: 25.4 | O154: 25.4 | P154: 50 | Q154: 1.6393 | R154: 1.2756 | S154: 2019-10-14 | T154: 2019-10-14 | U154: HC | V154: Y
A155: 3577 泓格43717 | B155: 3577 泓格2018 | C155: 3577 泓格 | D155: 2019-09-09 | E155: 2019-06-03 | F155: 2018 | G155: OTC | H155: 除權除息 | I155: 0.7000000603 | J155: 1 | K155: 36.35 | L155: 32.41 | M155: 2019-11-01 | N155: 37.4 | O155: 36.95 | P155: 36 | Q155: 2.2503 | R155: -0.3361 | S155: 2019-10-07 | T155: 2019-10-22 | U155: HC | V155: Y
A156: 4430 耀億43717 | B156: 4430 耀億2018 | C156: 4430 耀億 | D156: 2019-09-09 | E156: 2019-06-10 | F156: 2018 | G156: OTC | H156: 除息 | I156: 1.5 | J156: 0 | K156: 34.7 | L156: 33.2 | M156: 2019-10-29 | N156: 35.3 | O156: 34.85 | P156: 33 | Q156: 5.7927 | R156: -0.753 | S156: 2019-10-04 | U156: HC | V156: Y
A157: 4716 大立43717 | B157: 4716 大立2018 | C157: 4716 大立 | D157: 2019-09-09 | E157: 2019-06-19 | F157: 2018 | G157: OTC | H157: 除息 | I157: 0.40493028 | J157: 0 | K157: 14.75 | L157: 14.35 | M157: 2019-09-16 | N157: 15 | O157: 14.35 | P157: 5 | Q157: 1.724 | R157: -0.6731 | S157: 2019-09-27 | U157: H | V157: Y
A158: 5519 隆大43717 | B158: 5519 隆大2018 | C158: 5519 隆大 | D158: 2019-09-09 | E158: 2019-06-19 | F158: 2018 | G158: TSE | H158: 除息 | I158: 0.95148085 | J158: 0 | K158: 16.75 | L158: 15.8 | M158: 2020-01-10 | N158: 17.1 | O158: 17.05 | P158: 85 | Q158: 0.6006 | R158: -1.8901 | S158: 2019-10-04 | U158: HC | V158: Y
A159: 8499 鼎炫-KY43717 | B159: 8499 鼎炫-KY2018 | C159: 8499 鼎炫-KY | D159: 2019-09-09 | E159: 2019-06-06 | F159: 2018 | G159: TSE | H159: 除息 | I159: 5 | J159: 0 | K159: 142 | L159: 137 | P159: 0 | Q159: 12.253 | R159: -6.8734 | S159: 2019-10-28 | V159: N
A160: 4416 三圓43714 | B160: 4416 三圓2018 | C160: 4416 三圓 | D160: 2019-09-06 | E160: 2019-06-05 | F160: 2018 | G160: OTC | H160: 除息 | I160: 2 | J160: 0 | K160: 72.5 | L160: 70.5 | M160: 2019-09-12 | N160: 72.5 | O160: 72.5 | P160: 5 | Q160: 0 | R160: 2.6912 | S160: 2019-10-02 | U160: HC | V160: Y
A161: 5464 霖宏43714 | B161: 5464 霖宏2018 | C161: 5464 霖宏 | D161: 2019-09-06 | E161: 2019-06-18 | F161: 2018 | G161: OTC | H161: 除息 | I161: 1 | J161: 0 | K161: 17.95 | L161: 16.95 | P161: 0 | Q161: 3.161 | R161: -1.1731 | S161: 2019-10-07 | V161: N
A162: 6426 統新43714 | B162: 6426 統新2018 | C162: 6426 統新 | D162: 2019-09-06 | E162: 2019-06-05 | F162: 2018 | G162: OTC | H162: 除息 | I162: 1.49449253 | J162: 0 | K162: 132 | L162: 130.51 | M162: 2019-09-25 | N162: 134 | O162: 129 | P162: 13 | Q162: -0.7518 | R162: 1.2551 | S162: 2019-09-27 | U162: H | V162: Y
A163: 8076 伍豐43714 | B163: 8076 伍豐2018 | C163: 8076 伍豐 | D163: 2019-09-06 | E163: 2019-06-21 | F163: 2018 | G163: OTC | H163: 除息 | I163: 1 | J163: 0 | K163: 40.6 | L163: 39.6 | P163: 0 | Q163: 1.882 | R163: -0.6259 | S163: 2019-09-27 | V163: N
A164: 8450 霹靂43714 | B164: 8450 霹靂2018 | C164: 8450 霹靂 | D164: 2019-09-06 | E164: 2019-05-27 | F164: 2018 | G164: OTC | H164: 除息 | I164: 0.8 | J164: 0 | K164: 41.25 | L164: 40.45 | M164: 2019-09-09 | N164: 41.25 | O164: 40.85 | P164: 2 | Q164: 3.2541 | R164: 1.9778 | S164: 2019-10-09 | U164: H | V164: Y
A165: 9943 好樂迪43714 | B165: 9943 好樂迪2018 | C165: 9943 好樂迪 | D165: 2019-09-06 | E165: 2019-06-26 | F165: 2018 | G165: TSE | H165: 除息 | I165: 5.4 | J165: 0 | K165: 70.2 | L165: 64.8 | M165: 2019-12-16 | N165: 70.8 | O165: 70.6 | P165: 68 | Q165: 2.7819 | R165: 2.4391 | S165: 2019-10-02 | U165: HC | V165: Y
A166: 2379 瑞昱43713 | B166: 2379 瑞昱2018 | C166: 2379 瑞昱 | D166: 2019-09-05 | E166: 2019-06-12 | F166: 2018 | G166: TSE | H166: 除息 | I166: 7 | J166: 0 | K166: 220 | L166: 213 | M166: 2019-09-17 | N166: 220 | O166: 218 | P166: 8 | Q166: 8.3743 | R166: 0.9315 | S166: 2019-10-09 | U166: H | V166: Y
A167: 2618 長榮航43713 | B167: 2618 長榮航2018 | C167: 2618 長榮航 | D167: 2019-09-05 | E167: 2019-06-24 | F167: 2018 | G167: TSE | H167: 除權除息 | I167: 0.49727797 | J167: 0.29836678 | K167: 14.25 | L167: 13.35 | M167: 2019-10-18 | N167: 14.3 | O167: 14.2 | P167: 28 | Q167: 1.7856 | R167: 3.2303 | S167: 2019-10-07 | T167: 2019-10-17 | U167: H | V167: Y
A168: 4420 光明43713 | B168: 4420 光明2019 | C168: 4420 光明 | D168: 2019-09-05 | F168: 2019 | G168: OTC | H168: 除息 | I168: 1 | J168: 0 | K168: 34.65 | L168: 33.65 | P168: 0 | Q168: -0.7162 | R168: -0.4584 | S168: 2019-10-01 | V168: N
A169: 4426 利勤43713 | B169: 4426 利勤2018 | C169: 4426 利勤 | D169: 2019-09-05 | E169: 2019-06-14 | F169: 2018 | G169: TSE | H169: 除權除息 | I169: 0.36 | J169: 0.84 | K169: 61.3 | L169: 56.21 | P169: 0 | Q169: 5.8723 | R169: 2.6348 | S169: 2019-09-27 | T169: 2019-10-24 | V169: N
A170: 8234 新漢43713 | B170: 8234 新漢2018 | C170: 8234 新漢 | D170: 2019-09-05 | E170: 2019-06-25 | F170: 2018 | G170: OTC | H170: 除息 | I170: 0.7 | J170: 0 | K170: 30.8 | L170: 30.1 | P170: 0 | Q170: 3.3558 | R170: -3.6545 | S170: 2019-10-04 | V170: N
A171: 8403 盛弘43713 | B171: 8403 盛弘2018 | C171: 8403 盛弘 | D171: 2019-09-05 | E171: 2019-06-27 | F171: 2018 | G171: OTC | H171: 除權除息 | I171: 0.5 | J171: 0.5 | K171: 30.4 | L171: 28.48 | M171: 2019-11-22 | N171: 31.5 | O171: 31.1 | P171: 53 | Q171: 3.4014 | R171: 0.2351 | S171: 2019-10-08 | T171: 2019-10-18 | U171: HC | V171: Y
A172: 1203 味王43712 | B172: 1203 味王2018 | C172: 1203 味王 | D172: 2019-09-04 | E172: 2019-06-26 | F172: 2018 | G172: TSE | H172: 除息 | I172: 1 | J172: 0 | K172: 27.05 | L172: 26.05 | M172: 2019-11-05 | N172: 27.1 | O172: 27.05 | P172: 41 | Q172: 1.1214 | R172: 1.6847 | S172: 2019-10-04 | U172: HC | V172: Y
A173: 2816 旺旺保43712 | B173: 2816 旺旺保2018 | C173: 2816 旺旺保 | D173: 2019-09-04 | E173: 2019-06-18 | F173: 2018 | G173: TSE | H173: 除息 | I173: 0.9 | J173: 0 | K173: 20.3 | L173: 19.4 | M173: 2019-11-12 | N173: 21.5 | O173: 21.3 | P173: 46 | Q173: 2.01 | R173: 1.0195 | S173: 2019-09-27 | U173: HC | V173: Y
A174: 3346 麗清43712 | B174: 3346 麗清2018 | C174: 3346 麗清 | D174: 2019-09-04 | E174: 2019-06-28 | F174: 2018 | G174: TSE | H174: 除息 | I174: 1.4957173 | J174: 0 | K174: 33.3 | L174: 31.8 | M174: 2019-09-16 | N174: 33.35 | O174: 33.25 | P174: 8 | Q174: 3.4161 | R174: 0.5878 | S174: 2019-10-01 | U174: H | V174: Y
A175: 4763 材料-KY43712 | B175: 4763 材料-KY2018 | C175: 4763 材料-KY | D175: 2019-09-04 | E175: 2019-06-28 | F175: 2018 | G175: TSE | H175: 除權除息 | I175: 4 | J175: 1 | K175: 149 | L175: 131.81 | P175: 0 | Q175: 4.5615 | R175: -3.7161 | S175: 2019-10-09 | T175: 2019-10-09 | V175: N
A176: 6020 大展證43712 | B176: 6020 大展證2018 | C176: 6020 大展證 | D176: 2019-09-04 | E176: 2019-06-24 | F176: 2018 | G176: OTC | H176: 除息 | I176: 0.02663921 | J176: 0 | K176: 12.9 | L176: 12.87 | M176: 2019-09-04 | N176: 12.9 | O176: 12.9 | P176: 1 | Q176: 0 | R176: -0.5703 | S176: 2019-09-25 | U176: HC | V176: Y
A177: 6223 旺矽43712 | B177: 6223 旺矽2018 | C177: 6223 旺矽 | D177: 2019-09-04 | E177: 2019-06-11 | F177: 2018 | G177: OTC | H177: 除息 | I177: 1.99964997 | J177: 0 | K177: 66.3 | L177: 64.3 | M177: 2019-09-05 | N177: 69.2 | O177: 66.7 | P177: 2 | Q177: -0.5996 | R177: 3.4308 | S177: 2019-09-23 | U177: HC | V177: Y
A178: 1590 亞德客-KY43711 | B178: 1590 亞德客-KY2018 | C178: 1590 亞德客-KY | D178: 2019-09-03 | E178: 2019-06-21 | F178: 2018 | G178: TSE | H178: 除息 | I178: 5.05412 | J178: 0 | K178: 327.5 | L178: 322.45 | M178: 2019-09-05 | N178: 331 | O178: 329 | P178: 3 | Q178: 6.3312 | R178: 1.0322 | S178: 2019-10-04 | U178: HC | V178: Y
A179: 1815 富喬43711 | B179: 1815 富喬2018 | C179: 1815 富喬 | D179: 2019-09-03 | E179: 2019-06-18 | F179: 2018 | G179: OTC | H179: 除權除息 | I179: 0.5 | J179: 0.1 | K179: 15.15 | L179: 14.5 | M179: 2019-09-06 | N179: 15.5 | O179: 15.15 | P179: 4 | Q179: 0.9999 | R179: 3.4024 | S179: 2019-10-08 | T179: 2019-10-08 | U179: HC | V179: Y
A180: 2230 泰茂43711 | B180: 2230 泰茂2018 | C180: 2230 泰茂 | D180: 2019-09-03 | E180: 2019-06-28 | F180: 2018 | G180: OTC | H180: 除息 | I180: 0.14983694 | J180: 0 | K180: 15.2 | L180: 15.05 | M180: 2019-09-04 | N180: 15.55 | O180: 15.5 | P180: 2 | Q180: -0.6536 | R180: 1.6533 | S180: 2019-09-30 | U180: HC | V180: Y
A181: 3455 由田43711 | B181: 3455 由田2018 | C181: 3455 由田 | D181: 2019-09-03 | E181: 2019-06-26 | F181: 2018 | G181: OTC | H181: 除息 | I181: 3 | J181: 0 | K181: 74.8 | L181: 71.8 | P181: 0 | Q181: -6.0302 | R181: -0.8022 | S181: 2019-09-27 | V181: N
A182: 3646 艾恩特43711 | B182: 3646 艾恩特2018 | C182: 3646 艾恩特 | D182: 2019-09-03 | E182: 2019-06-24 | F182: 2018 | G182: OTC | H182: 除息 | I182: 0.99720083 | J182: 0 | K182: 18.8 | L182: 17.8 | M182: 2019-11-15 | N182: 18.8 | O182: 17.35 | P182: 50 | Q182: 3.2967 | R182: -1.2109 | S182: 2019-09-26 | U182: H | V182: Y
A183: 4438 廣越43711 | B183: 4438 廣越2018 | C183: 4438 廣越 | D183: 2019-09-03 | E183: 2019-06-18 | F183: 2018 | G183: TSE | H183: 除息 | I183: 6 | J183: 0 | K183: 159 | L183: 153 | P183: 0 | Q183: 0.6329 | R183: -5.5671 | S183: 2019-09-27 | V183: N
A184: 4568 科際精密43711 | B184: 4568 科際精密2018 | C184: 4568 科際精密 | D184: 2019-09-03 | E184: 2019-06-24 | F184: 2018 | G184: OTC | H184: 除息 | I184: 4.47700675 | J184: 0 | K184: 70.1 | L184: 65.62 | M184: 2019-11-04 | N184: 70.4 | O184: 66 | P184: 41 | Q184: 3.0883 | R184: -1.1443 | S184: 2019-10-01 | U184: H | V184: Y
A185: 4803 VHQ-KY43711 | B185: 4803 VHQ-KY2018 | C185: 4803 VHQ-KY | D185: 2019-09-03 | E185: 2019-06-26 | F185: 2018 | G185: OTC | H185: 除息 | I185: 6.95498041 | J185: 0 | K185: 134.5 | L185: 127.55 | P185: 0 | Q185: 2.6717 | R185: -4.2265 | S185: 2019-09-30 | V185: N
A186: 5907 大洋-KY43711 | B186: 5907 大洋-KY2018 | C186: 5907 大洋-KY | D186: 2019-09-03 | E186: 2019-06-27 | F186: 2018 | G186: TSE | H186: 除息 | I186: 1.69377618 | J186: 0 | K186: 31.3 | L186: 29.61 | M186: 2019-10-21 | N186: 31.45 | O186: 31.3 | P186: 31 | Q186: 3.9867 | R186: 0.2724 | S186: 2019-09-26 | U186: HC | V186: Y
A187: 8421 旭源43711 | B187: 8421 旭源2018 | C187: 8421 旭源 | D187: 2019-09-03 | E187: 2019-06-10 | F187: 2018 | G187: OTC | H187: 除權除息 | I187: 0.35000006 | J187: 0.24999992 | K187: 15.3 | L187: 14.59 | P187: 0 | Q187: 2.6846 | R187: -3.6877 | S187: 2019-09-25 | T187: 2019-10-25 | V187: N
A188: 9951 皇田43711 | B188: 9951 皇田2018 | C188: 9951 皇田 | D188: 2019-09-03 | E188: 2019-06-06 | F188: 2018 | G188: OTC | H188: 除息 | I188: 4.2 | J188: 0 | K188: 99.9 | L188: 95.7 | M188: 2019-09-09 | N188: 101.5 | O188: 101 | P188: 5 | Q188: 9.5395 | R188: 5.5336 | S188: 2019-10-04 | U188: HC | V188: Y
A189: 1583 程泰43710 | B189: 1583 程泰2018 | C189: 1583 程泰 | D189: 2019-09-02 | E189: 2019-06-14 | F189: 2018 | G189: TSE | H189: 除息 | I189: 3 | J189: 0 | K189: 55.1 | L189: 52.1 | M189: 2019-11-20 | N189: 55.9 | O189: 55.9 | P189: 54 | Q189: 3.7665 | R189: -0.6576 | S189: 2019-09-25 | U189: HC | V189: Y
A190: 2901 欣欣43710 | B190: 2901 欣欣2018 | C190: 2901 欣欣 | D190: 2019-09-02 | E190: 2019-06-19 | F190: 2018 | G190: TSE | H190: 除息 | I190: 0.3866951 | J190: 0 | K190: 23.1 | L190: 22.71 | M190: 2019-09-24 | N190: 23.1 | O190: 23.05 | P190: 16 | Q190: 0 | R190: -0.2923 | S190: 2019-09-25 | U190: H | V190: Y
A191: 2905 三商43710 | B191: 2905 三商2018 | C191: 2905 三商 | D191: 2019-09-02 | E191: 2019-06-14 | F191: 2018 | G191: TSE | H191: 除息 | I191: 0.5 | J191: 0 | K191: 18.25 | L191: 17.75 | M191: 2019-09-05 | N191: 18.55 | O191: 18.4 | P191: 4 | Q191: 1.1081 | R191: 3.1066 | S191: 2019-09-30 | U191: HC | V191: Y
A192: 6409 旭隼43710 | B192: 6409 旭隼2018 | C192: 6409 旭隼 | D192: 2019-09-02 | E192: 2019-06-25 | F192: 2018 | G192: TSE | H192: 除權除息 | I192: 21 | J192: 0.5000000635 | K192: 705 | L192: 651.42 | M192: 2019-11-11 | N192: 718 | O192: 707 | P192: 47 | Q192: 0.1421 | R192: -0.4921 | S192: 2019-10-25 | T192: 2019-10-25 | U192: HC | V192: Y
A193: 8429 金麗-KY43710 | B193: 8429 金麗-KY2018 | C193: 8429 金麗-KY | D193: 2019-09-02 | E193: 2019-06-27 | F193: 2018 | G193: TSE | H193: 除權除息 | I193: 0.13 | J193: 0.17 | K193: 13.9 | L193: 13.53 | P193: 0 | Q193: 2.2059 | R193: 0.8164 | S193: 2019-09-27 | T193: 2019-09-27 | V193: N
A194: 8488 吉源-KY43710 | B194: 8488 吉源-KY2018 | C194: 8488 吉源-KY | D194: 2019-09-02 | E194: 2019-06-21 | F194: 2018 | G194: TSE | H194: 除息 | I194: 0.5 | J194: 0 | K194: 17.85 | L194: 17.35 | M194: 2019-09-04 | N194: 17.9 | O194: 17.5 | P194: 3 | Q194: -0.8334 | R194: 1.1447 | S194: 2019-10-01 | U194: H | V194: Y
A195: =C195&D195 -> 9105 泰金寶-DR43710 | B195: =C195&F195 -> 9105 泰金寶-DR2019 | C195: 9105 泰金寶-DR | D195: 2019-09-02 | F195: 2019 | G195: TSE | H195: 除息 | I195: 0.060576 | J195: 0 | K195: 2.37 | L195: 2.31 | M195: 2019-09-19 | N195: 2.37 | O195: 2.35 | P195: 13 | Q195: -0.4203 | R195: 1.3346 | S195: 2019-09-27 | U195: H | V195: Y
A196: 1517 利奇43707 | B196: 1517 利奇2018 | C196: 1517 利奇 | D196: 2019-08-30 | E196: 2019-06-25 | F196: 2018 | G196: TSE | H196: 除息 | I196: 0.25 | J196: 0 | K196: 9.6 | L196: 9.35 | M196: 2020-06-08 | N196: 9.6 | O196: 9.04 | P196: 186 | Q196: 0.4184 | R196: -0.7623 | S196: 2019-09-26 | U196: H | V196: Y
A197: 1539 巨庭43707 | B197: 1539 巨庭2018 | C197: 1539 巨庭 | D197: 2019-08-30 | E197: 2019-06-20 | F197: 2018 | G197: TSE | H197: 除息 | I197: 1.8 | J197: 0 | K197: 23.9 | L197: 22.1 | P197: 0 | Q197: 1.2712 | R197: -3.3103 | S197: 2019-10-04 | V197: N
A198: 2103 台橡43707 | B198: 2103 台橡2018 | C198: 2103 台橡 | D198: 2019-08-30 | E198: 2019-06-06 | F198: 2018 | G198: TSE | H198: 除息 | I198: 0.98 | J198: 0 | K198: 24.95 | L198: 23.97 | M198: 2019-09-16 | N198: 24.95 | O198: 24.8 | P198: 11 | Q198: -0.992 | R198: 0.9794 | S198: 2019-09-25 | U198: H | V198: Y
A199: 2221 大甲43707 | B199: 2221 大甲2018 | C199: 2221 大甲 | D199: 2019-08-30 | E199: 2019-06-20 | F199: 2018 | G199: OTC | H199: 除息 | I199: 2.1049616 | J199: 0 | K199: 34.05 | L199: 31.95 | P199: 0 | Q199: -1.1612 | R199: 1.6093 | S199: 2019-09-27 | V199: N
A200: 2468 華經43707 | B200: 2468 華經2018 | C200: 2468 華經 | D200: 2019-08-30 | E200: 2019-06-21 | F200: 2018 | G200: TSE | H200: 除息 | I200: 0.5 | J200: 0 | K200: 12.85 | L200: 12.35 | M200: 2019-10-14 | N200: 13.4 | O200: 13 | P200: 28 | Q200: 0.7842 | R200: 1.5719 | S200: 2019-09-25 | U200: HC | V200: Y
... 2946 more rows

Sheet Raw2
C1: 2020-06-17 | D1: 2020-06-17 | E1: 2020-06-17 | J1: 2018 | U1: 證券代碼 | V1: 上市別 | W1: TSE新產業_代碼 | X1: TSE新產業_名稱 | Y1: 收盤價(元) | Z1: 除權息次數 | AA1: 填權息成功次數 | AB1: 填權息成功率 | AC1: 填權息平均天數 | AD1: 填權息天數 | AE1: 填權息成功率等級 | AF1: 填權息速度等級 | AG1: 結論 | AH1: CHECK
A2: 證券代碼 | B2: 上市別 | C2: TSE新產業_代碼 | D2: TSE新產業_名稱 | E2: 收盤價(元) | F2: 除權息次數 | G2: 填權息成功次數 | H2: 填權息成功率 | I2: 填權息平均天數 | J2: 填權息天數 | K2: 填權息成功率等級 | L2: 填權息速度等級 | M2: 結論 | N2: CHECK | P2: 填權息成功率 | R2: 填權息速度 | U2: 4523 永彰 | V2: OTC | W2: M1500 | X2: 電機機械 | Y2: 21.35 | Z2: 8 | AA2: 8 | AB2: 100 | AC2: 1.25 | AE2: 1 | AF2: 1 | AG2: 填權息成功率高和速度快 | AH2: V
A3: 1101 台泥 | B3: TSE | C3: M1100 | D3: 水泥工業 | E3: 42.85 | F3: =COUNTIF('Raw1'!C:C,'Raw2'!A3) -> 9 | G3: =COUNTIFS('Raw1'!C:C,'Raw2'!A3,'Raw1'!V:V,"Y") -> 7 | H3: =IFERROR(ROUND(G3/F3*100,2),"") -> 77.78 | I3: =IFERROR(ROUND(AVERAGEIF('Raw1'!C:C,'Raw2'!A3,'Raw1'!P:P),2),"") -> 52.56 | J3: =IFERROR(IF(VLOOKUP(A3&$J$1,'Raw1'!B:Z,15,0)="","",VLOOKUP(A3&$J$1,'Raw1'!B:Z,15,0)),"") -> 98 | K3: =IF(OR(H3<$Q$3,H3=$Q$3),4,IF(AND(OR(H3<$Q$4,H3=$Q$4),H3>$Q$3),3,IF(AND(H3>$Q$4,H3<$Q$5),2,IF(OR(H3>$Q$5,H3=$Q$5),1,"CHCEK")))) -> 3 | L3: =IF(OR(I3<$S$3,I3=$S$3),1,IF(AND(OR(I3<$S$4,I3=$S$4),I3>$S$3),2,IF(AND(I3>$S$4,I3<$S$5),3,IF(OR(I3>$S$5,I3=$S$5),4,"CHCEK")))) -> 4 | M3: =IF(AND(OR(K3=1,K3=2),OR(L3=1,L3=2)),"填權息成功率高和速度快",IF(AND(OR(K3=1,K3=2),OR(L3=3,L3=4)),"填權息成功率高速度慢",IF(AND(OR(K3=3,K3=4),OR(L3=1,L3=2)),"填權息成功率低速度快",IF(AND(OR(K3=3,K3=4),OR(L3=3,L3=4)),"填權息成功率低速度低","CHECK")))) -> 填權息成功率低速度低 | N3: =IF(OR(F3>Report!$B$17,F3=Report!$B$17),"V","") -> V | P3: 第一四分位 | Q3: =QUARTILE(H:H,1) -> 70 | R3: 第一四分位 | S3: =QUARTILE(I:I,1) -> 7.67 | U3: 9944 新麗 | V3: TSE | W3: M9900 | X3: 其他 | Y3: 23.6 | Z3: 8 | AA3: 8 | AB3: 100 | AC3: 2.25 | AE3: 1 | AF3: 1 | AG3: 填權息成功率高和速度快 | AH3: V
A4: 1102 亞泥 | B4: TSE | C4: M1100 | D4: 水泥工業 | E4: 43.4 | F4: =COUNTIF('Raw1'!C:C,'Raw2'!A4) -> 9 | G4: =COUNTIFS('Raw1'!C:C,'Raw2'!A4,'Raw1'!V:V,"Y") -> 7 | H4: 77.78 | I4: =IFERROR(ROUND(AVERAGEIF('Raw1'!C:C,'Raw2'!A4,'Raw1'!P:P),2),"") -> 75.78 | J4: =IFERROR(IF(VLOOKUP(A4&$J$1,'Raw1'!B:Z,15,0)="","",VLOOKUP(A4&$J$1,'Raw1'!B:Z,15,0)),"") -> 96 | K4: 3 | L4: 4 | M4: 填權息成功率低速度低 | N4: =IF(OR(F4>Report!$B$17,F4=Report!$B$17),"V","") -> V | P4: 中位數 | Q4: =QUARTILE(H:H,2) -> 85.71 | R4: 中位數 | S4: =QUARTILE(I:I,2) -> 23 | U4: 1815 富喬 | V4: OTC | W4: M2328 | X4: 電子零組件 | Y4: 10.7 | Z4: 8 | AA4: 8 | AB4: 100 | AC4: 2.63 | AD4: 4 | AE4: 1 | AF4: 1 | AG4: 填權息成功率高和速度快 | AH4: V
A5: 1103 嘉泥 | B5: TSE | C5: M1100 | D5: 水泥工業 | E5: 17.3 | F5: =COUNTIF('Raw1'!C:C,'Raw2'!A5) -> 8 | G5: =COUNTIFS('Raw1'!C:C,'Raw2'!A5,'Raw1'!V:V,"Y") -> 6 | H5: 75 | I5: =IFERROR(ROUND(AVERAGEIF('Raw1'!C:C,'Raw2'!A5,'Raw1'!P:P),2),"") -> 5.63 | J5: =IFERROR(IF(VLOOKUP(A5&$J$1,'Raw1'!B:Z,15,0)="","",VLOOKUP(A5&$J$1,'Raw1'!B:Z,15,0)),"") -> 4 | K5: 3 | L5: 1 | M5: 填權息成功率低速度快 | N5: =IF(OR(F5>Report!$B$17,F5=Report!$B$17),"V","") -> V | P5: 第三四分位數 | Q5: =QUARTILE(H:H,3) -> 100 | R5: 第三四分位數 | S5: =QUARTILE(I:I,3) -> 42.6 | U5: 2059 川湖 | V5: TSE | W5: M2328 | X5: 電子零組件 | Y5: 338.5 | Z5: 9 | AA5: 9 | AB5: 100 | AC5: 2.89 | AD5: 1 | AE5: 1 | AF5: 1 | AG5: 填權息成功率高和速度快 | AH5: V
A6: 1104 環泥 | B6: TSE | C6: M1100 | D6: 水泥工業 | E6: 18.1 | F6: =COUNTIF('Raw1'!C:C,'Raw2'!A6) -> 9 | G6: =COUNTIFS('Raw1'!C:C,'Raw2'!A6,'Raw1'!V:V,"Y") -> 6 | H6: 66.67 | I6: =IFERROR(ROUND(AVERAGEIF('Raw1'!C:C,'Raw2'!A6,'Raw1'!P:P),2),"") -> 5.22 | J6: =IFERROR(IF(VLOOKUP(A6&$J$1,'Raw1'!B:Z,15,0)="","",VLOOKUP(A6&$J$1,'Raw1'!B:Z,15,0)),"") -> 0 | K6: 4 | L6: 1 | M6: 填權息成功率低速度快 | N6: =IF(OR(F6>Report!$B$17,F6=Report!$B$17),"V","") -> V | U6: 2313 華通 | V6: TSE | W6: M2328 | X6: 電子零組件 | Y6: 46.05 | Z6: 8 | AA6: 8 | AB6: 100 | AC6: 3.5 | AD6: 2 | AE6: 1 | AF6: 1 | AG6: 填權息成功率高和速度快 | AH6: V
A7: 1108 幸福 | B7: TSE | C7: M1100 | D7: 水泥工業 | E7: 10.45 | F7: =COUNTIF('Raw1'!C:C,'Raw2'!A7) -> 4 | G7: =COUNTIFS('Raw1'!C:C,'Raw2'!A7,'Raw1'!V:V,"Y") -> 3 | H7: 75 | I7: =IFERROR(ROUND(AVERAGEIF('Raw1'!C:C,'Raw2'!A7,'Raw1'!P:P),2),"") -> 50.25 | J7: =IFERROR(IF(VLOOKUP(A7&$J$1,'Raw1'!B:Z,15,0)="","",VLOOKUP(A7&$J$1,'Raw1'!B:Z,15,0)),"") ->  | K7: 3 | L7: 4 | M7: 填權息成功率低速度低 | N7: =IF(OR(F7>Report!$B$17,F7=Report!$B$17),"V","") ->  | P7: 填權息成功率等級 | Q7: 填權息速度等級 | R7: CHECK | U7: 2328 廣宇 | V7: TSE | W7: M2328 | X7: 電子零組件 | Y7: 18.05 | Z7: 8 | AA7: 8 | AB7: 100 | AC7: 3.63 | AD7: 2 | AE7: 1 | AF7: 1 | AG7: 填權息成功率高和速度快 | AH7: V
A8: 1109 信大 | B8: TSE | C8: M1100 | D8: 水泥工業 | E8: 18 | F8: =COUNTIF('Raw1'!C:C,'Raw2'!A8) -> 9 | G8: =COUNTIFS('Raw1'!C:C,'Raw2'!A8,'Raw1'!V:V,"Y") -> 7 | H8: 77.78 | I8: =IFERROR(ROUND(AVERAGEIF('Raw1'!C:C,'Raw2'!A8,'Raw1'!P:P),2),"") -> 17.67 | J8: =IFERROR(IF(VLOOKUP(A8&$J$1,'Raw1'!B:Z,15,0)="","",VLOOKUP(A8&$J$1,'Raw1'!B:Z,15,0)),"") -> 85 | K8: 3 | L8: 2 | M8: 填權息成功率低速度快 | N8: =IF(OR(F8>Report!$B$17,F8=Report!$B$17),"V","") -> V | P8: =Report!B13 -> 1 | Q8: =Report!B15 -> 1 | R8: V | U8: 9921 巨大 | V8: TSE | W8: M9900 | X8: 其他 | Y8: 264.5 | Z8: 9 | AA8: 9 | AB8: 100 | AC8: 4 | AD8: 1 | AE8: 1 | AF8: 1 | AG8: 填權息成功率高和速度快 | AH8: V
A9: 1110 東泥 | B9: TSE | C9: M1100 | D9: 水泥工業 | E9: 16.4 | F9: =COUNTIF('Raw1'!C:C,'Raw2'!A9) -> 9 | G9: =COUNTIFS('Raw1'!C:C,'Raw2'!A9,'Raw1'!V:V,"Y") -> 9 | H9: 100 | I9: =IFERROR(ROUND(AVERAGEIF('Raw1'!C:C,'Raw2'!A9,'Raw1'!P:P),2),"") -> 13.11 | J9: =IFERROR(IF(VLOOKUP(A9&$J$1,'Raw1'!B:Z,15,0)="","",VLOOKUP(A9&$J$1,'Raw1'!B:Z,15,0)),"") -> 12 | K9: 1 | L9: 2 | M9: 填權息成功率高和速度快 | N9: =IF(OR(F9>Report!$B$17,F9=Report!$B$17),"V","") -> V | U9: 4133 亞諾法 | V9: TSE | W9: M1722 | X9: 生技醫療 | Y9: 76.3 | Z9: 9 | AA9: 9 | AB9: 100 | AC9: 4.22 | AD9: 1 | AE9: 1 | AF9: 1 | AG9: 填權息成功率高和速度快 | AH9: V
A10: 1201 味全 | B10: TSE | C10: M1200 | D10: 食品工業 | E10: 22.15 | F10: =COUNTIF('Raw1'!C:C,'Raw2'!A10) -> 5 | G10: =COUNTIFS('Raw1'!C:C,'Raw2'!A10,'Raw1'!V:V,"Y") -> 3 | H10: 60 | I10: =IFERROR(ROUND(AVERAGEIF('Raw1'!C:C,'Raw2'!A10,'Raw1'!P:P),2),"") -> 6.4 | J10: =IFERROR(IF(VLOOKUP(A10&$J$1,'Raw1'!B:Z,15,0)="","",VLOOKUP(A10&$J$1,'Raw1'!B:Z,15,0)),"") -> 0 | K10: 4 | L10: 1 | M10: 填權息成功率低速度快 | N10: =IF(OR(F10>Report!$B$17,F10=Report!$B$17),"V","") ->  | U10: 1734 杏輝 | V10: TSE | W10: M1722 | X10: 生技醫療 | Y10: 28.1 | Z10: 10 | AA10: 10 | AB10: 100 | AC10: 5 | AD10: 1 | AE10: 1 | AF10: 1 | AG10: 填權息成功率高和速度快 | AH10: V
A11: 1203 味王 | B11: TSE | C11: M1200 | D11: 食品工業 | E11: 28.65 | F11: =COUNTIF('Raw1'!C:C,'Raw2'!A11) -> 9 | G11: =COUNTIFS('Raw1'!C:C,'Raw2'!A11,'Raw1'!V:V,"Y") -> 8 | H11: 88.89 | I11: =IFERROR(ROUND(AVERAGEIF('Raw1'!C:C,'Raw2'!A11,'Raw1'!P:P),2),"") -> 29.44 | J11: =IFERROR(IF(VLOOKUP(A11&$J$1,'Raw1'!B:Z,15,0)="","",VLOOKUP(A11&$J$1,'Raw1'!B:Z,15,0)),"") -> 41 | K11: 2 | L11: 3 | M11: 填權息成功率高速度慢 | N11: =IF(OR(F11>Report!$B$17,F11=Report!$B$17),"V","") -> V | U11: 3003 健和興 | V11: TSE | W11: M2328 | X11: 電子零組件 | Y11: 42.2 | Z11: 9 | AA11: 9 | AB11: 100 | AC11: 5.56 | AD11: 8 | AE11: 1 | AF11: 1 | AG11: 填權息成功率高和速度快 | AH11: V
A12: 1210 大成 | B12: TSE | C12: M1200 | D12: 食品工業 | E12: 43.1 | F12: =COUNTIF('Raw1'!C:C,'Raw2'!A12) -> 9 | G12: =COUNTIFS('Raw1'!C:C,'Raw2'!A12,'Raw1'!V:V,"Y") -> 6 | H12: 66.67 | I12: =IFERROR(ROUND(AVERAGEIF('Raw1'!C:C,'Raw2'!A12,'Raw1'!P:P),2),"") -> 36.11 | J12: =IFERROR(IF(VLOOKUP(A12&$J$1,'Raw1'!B:Z,15,0)="","",VLOOKUP(A12&$J$1,'Raw1'!B:Z,15,0)),"") -> 53 | K12: 4 | L12: 3 | M12: 填權息成功率低速度低 | N12: =IF(OR(F12>Report!$B$17,F12=Report!$B$17),"V","") -> V | U12: 6237 驊訊 | V12: OTC | W12: M2324 | X12: 半導體 | Y12: 34.95 | Z12: 8 | AA12: 8 | AB12: 100 | AC12: 5.63 | AD12: 3 | AE12: 1 | AF12: 1 | AG12: 填權息成功率高和速度快 | AH12: V
A13: 1213 大飲 | B13: TSE | C13: M1200 | D13: 食品工業 | E13: 5.85 | F13: =COUNTIF('Raw1'!C:C,'Raw2'!A13) -> 1 | G13: =COUNTIFS('Raw1'!C:C,'Raw2'!A13,'Raw1'!V:V,"Y") -> 0 | H13: 0 | I13: =IFERROR(ROUND(AVERAGEIF('Raw1'!C:C,'Raw2'!A13,'Raw1'!P:P),2),"") -> 0 | J13: =IFERROR(IF(VLOOKUP(A13&$J$1,'Raw1'!B:Z,15,0)="","",VLOOKUP(A13&$J$1,'Raw1'!B:Z,15,0)),"") ->  | K13: 4 | L13: 1 | M13: 填權息成功率低速度快 | N13: =IF(OR(F13>Report!$B$17,F13=Report!$B$17),"V","") ->  | U13: 2436 偉詮電 | V13: TSE | W13: M2324 | X13: 半導體 | Y13: 27.7 | Z13: 8 | AA13: 8 | AB13: 100 | AC13: 5.88 | AD13: 16 | AE13: 1 | AF13: 1 | AG13: 填權息成功率高和速度快 | AH13: V
A14: 1215 卜蜂 | B14: TSE | C14: M1200 | D14: 食品工業 | E14: 73.6 | F14: =COUNTIF('Raw1'!C:C,'Raw2'!A14) -> 9 | G14: =COUNTIFS('Raw1'!C:C,'Raw2'!A14,'Raw1'!V:V,"Y") -> 8 | H14: 88.89 | I14: =IFERROR(ROUND(AVERAGEIF('Raw1'!C:C,'Raw2'!A14,'Raw1'!P:P),2),"") -> 76.89 | J14: =IFERROR(IF(VLOOKUP(A14&$J$1,'Raw1'!B:Z,15,0)="","",VLOOKUP(A14&$J$1,'Raw1'!B:Z,15,0)),"") -> 6 | K14: 2 | L14: 4 | M14: 填權息成功率高速度慢 | N14: =IF(OR(F14>Report!$B$17,F14=Report!$B$17),"V","") -> V | U14: 2901 欣欣 | V14: TSE | W14: M2900 | X14: 貿易百貨 | Y14: 24 | Z14: 9 | AA14: 9 | AB14: 100 | AC14: 6.22 | AD14: 16 | AE14: 1 | AF14: 1 | AG14: 填權息成功率高和速度快 | AH14: V
A15: 1216 統一 | B15: TSE | C15: M1200 | D15: 食品工業 | E15: 72.5 | F15: =COUNTIF('Raw1'!C:C,'Raw2'!A15) -> 9 | G15: =COUNTIFS('Raw1'!C:C,'Raw2'!A15,'Raw1'!V:V,"Y") -> 6 | H15: 66.67 | I15: =IFERROR(ROUND(AVERAGEIF('Raw1'!C:C,'Raw2'!A15,'Raw1'!P:P),2),"") -> 15.78 | J15: =IFERROR(IF(VLOOKUP(A15&$J$1,'Raw1'!B:Z,15,0)="","",VLOOKUP(A15&$J$1,'Raw1'!B:Z,15,0)),"") -> 0 | K15: 4 | L15: 2 | M15: 填權息成功率低速度快 | N15: =IF(OR(F15>Report!$B$17,F15=Report!$B$17),"V","") -> V | U15: 1470 大統新創 | V15: TSE | W15: M1400 | X15: 紡織纖維 | Y15: 18.85 | Z15: 8 | AA15: 8 | AB15: 100 | AC15: 6.38 | AD15: 1 | AE15: 1 | AF15: 1 | AG15: 填權息成功率高和速度快 | AH15: V
A16: 1217 愛之味 | B16: TSE | C16: M1200 | D16: 食品工業 | E16: 7.62 | F16: =COUNTIF('Raw1'!C:C,'Raw2'!A16) -> 1 | G16: =COUNTIFS('Raw1'!C:C,'Raw2'!A16,'Raw1'!V:V,"Y") -> 1 | H16: 100 | I16: =IFERROR(ROUND(AVERAGEIF('Raw1'!C:C,'Raw2'!A16,'Raw1'!P:P),2),"") -> 10 | J16: =IFERROR(IF(VLOOKUP(A16&$J$1,'Raw1'!B:Z,15,0)="","",VLOOKUP(A16&$J$1,'Raw1'!B:Z,15,0)),"") ->  | K16: 1 | L16: 2 | M16: 填權息成功率高和速度快 | N16: =IF(OR(F16>Report!$B$17,F16=Report!$B$17),"V","") ->  | U16: 3004 豐達科 | V16: TSE | W16: M2000 | X16: 鋼鐵工業 | Y16: 58.9 | Z16: 8 | AA16: 8 | AB16: 100 | AC16: 6.38 | AD16: 2 | AE16: 1 | AF16: 1 | AG16: 填權息成功率高和速度快 | AH16: V
A17: 1218 泰山 | B17: TSE | C17: M1200 | D17: 食品工業 | E17: 23.15 | F17: =COUNTIF('Raw1'!C:C,'Raw2'!A17) -> 5 | G17: =COUNTIFS('Raw1'!C:C,'Raw2'!A17,'Raw1'!V:V,"Y") -> 4 | H17: 80 | I17: =IFERROR(ROUND(AVERAGEIF('Raw1'!C:C,'Raw2'!A17,'Raw1'!P:P),2),"") -> 28.2 | J17: =IFERROR(IF(VLOOKUP(A17&$J$1,'Raw1'!B:Z,15,0)="","",VLOOKUP(A17&$J$1,'Raw1'!B:Z,15,0)),"") -> 107 | K17: 3 | L17: 3 | M17: 填權息成功率低速度低 | N17: =IF(OR(F17>Report!$B$17,F17=Report!$B$17),"V","") ->  | U17: 5904 寶雅 | V17: OTC | W17: M2900 | X17: 貿易百貨 | Y17: 584 | Z17: 10 | AA17: 10 | AB17: 100 | AC17: 7.1 | AD17: 3 | AE17: 1 | AF17: 1 | AG17: 填權息成功率高和速度快 | AH17: V
A18: 1219 福壽 | B18: TSE | C18: M1200 | D18: 食品工業 | E18: 22.1 | F18: =COUNTIF('Raw1'!C:C,'Raw2'!A18) -> 10 | G18: =COUNTIFS('Raw1'!C:C,'Raw2'!A18,'Raw1'!V:V,"Y") -> 9 | H18: 90 | I18: =IFERROR(ROUND(AVERAGEIF('Raw1'!C:C,'Raw2'!A18,'Raw1'!P:P),2),"") -> 9.7 | J18: =IFERROR(IF(VLOOKUP(A18&$J$1,'Raw1'!B:Z,15,0)="","",VLOOKUP(A18&$J$1,'Raw1'!B:Z,15,0)),"") -> 1 | K18: 2 | L18: 2 | M18: 填權息成功率高和速度快 | N18: =IF(OR(F18>Report!$B$17,F18=Report!$B$17),"V","") -> V
A19: 1220 台榮 | B19: TSE | C19: M1200 | D19: 食品工業 | E19: 11.2 | F19: =COUNTIF('Raw1'!C:C,'Raw2'!A19) -> 7 | G19: =COUNTIFS('Raw1'!C:C,'Raw2'!A19,'Raw1'!V:V,"Y") -> 5 | H19: 71.43 | I19: =IFERROR(ROUND(AVERAGEIF('Raw1'!C:C,'Raw2'!A19,'Raw1'!P:P),2),"") -> 17.43 | J19: =IFERROR(IF(VLOOKUP(A19&$J$1,'Raw1'!B:Z,15,0)="","",VLOOKUP(A19&$J$1,'Raw1'!B:Z,15,0)),"") -> 0 | K19: 3 | L19: 2 | M19: 填權息成功率低速度快 | N19: =IF(OR(F19>Report!$B$17,F19=Report!$B$17),"V","") -> 
A20: 1225 福懋油 | B20: TSE | C20: M1200 | D20: 食品工業 | E20: 37.35 | F20: =COUNTIF('Raw1'!C:C,'Raw2'!A20) -> 9 | G20: =COUNTIFS('Raw1'!C:C,'Raw2'!A20,'Raw1'!V:V,"Y") -> 8 | H20: 88.89 | I20: =IFERROR(ROUND(AVERAGEIF('Raw1'!C:C,'Raw2'!A20,'Raw1'!P:P),2),"") -> 18.56 | J20: =IFERROR(IF(VLOOKUP(A20&$J$1,'Raw1'!B:Z,15,0)="","",VLOOKUP(A20&$J$1,'Raw1'!B:Z,15,0)),"") -> 2 | K20: 2 | L20: 2 | M20: 填權息成功率高和速度快 | N20: =IF(OR(F20>Report!$B$17,F20=Report!$B$17),"V","") -> V
A21: 1227 佳格 | B21: TSE | C21: M1200 | D21: 食品工業 | E21: 64.1 | F21: =COUNTIF('Raw1'!C:C,'Raw2'!A21) -> 9 | G21: =COUNTIFS('Raw1'!C:C,'Raw2'!A21,'Raw1'!V:V,"Y") -> 4 | H21: 44.44 | I21: =IFERROR(ROUND(AVERAGEIF('Raw1'!C:C,'Raw2'!A21,'Raw1'!P:P),2),"") -> 68.11 | J21: =IFERROR(IF(VLOOKUP(A21&$J$1,'Raw1'!B:Z,15,0)="","",VLOOKUP(A21&$J$1,'Raw1'!B:Z,15,0)),"") -> 31 | K21: 4 | L21: 4 | M21: 填權息成功率低速度低 | N21: =IF(OR(F21>Report!$B$17,F21=Report!$B$17),"V","") -> V
A22: 1229 聯華 | B22: TSE | C22: M1200 | D22: 食品工業 | E22: 42.3 | F22: =COUNTIF('Raw1'!C:C,'Raw2'!A22) -> 9 | G22: =COUNTIFS('Raw1'!C:C,'Raw2'!A22,'Raw1'!V:V,"Y") -> 7 | H22: 77.78 | I22: =IFERROR(ROUND(AVERAGEIF('Raw1'!C:C,'Raw2'!A22,'Raw1'!P:P),2),"") -> 44.44 | J22: =IFERROR(IF(VLOOKUP(A22&$J$1,'Raw1'!B:Z,15,0)="","",VLOOKUP(A22&$J$1,'Raw1'!B:Z,15,0)),"") -> 70 | K22: 3 | L22: 4 | M22: 填權息成功率低速度低 | N22: =IF(OR(F22>Report!$B$17,F22=Report!$B$17),"V","") -> V
A23: 1231 聯華食 | B23: TSE | C23: M1200 | D23: 食品工業 | E23: 42.3 | F23: =COUNTIF('Raw1'!C:C,'Raw2'!A23) -> 9 | G23: =COUNTIFS('Raw1'!C:C,'Raw2'!A23,'Raw1'!V:V,"Y") -> 6 | H23: 66.67 | I23: =IFERROR(ROUND(AVERAGEIF('Raw1'!C:C,'Raw2'!A23,'Raw1'!P:P),2),"") -> 62 | J23: =IFERROR(IF(VLOOKUP(A23&$J$1,'Raw1'!B:Z,15,0)="","",VLOOKUP(A23&$J$1,'Raw1'!B:Z,15,0)),"") -> 0 | K23: 4 | L23: 4 | M23: 填權息成功率低速度低 | N23: =IF(OR(F23>Report!$B$17,F23=Report!$B$17),"V","") -> V
A24: 1232 大統益 | B24: TSE | C24: M1200 | D24: 食品工業 | E24: 122.5 | F24: =COUNTIF('Raw1'!C:C,'Raw2'!A24) -> 9 | G24: =COUNTIFS('Raw1'!C:C,'Raw2'!A24,'Raw1'!V:V,"Y") -> 7 | H24: 77.78 | I24: =IFERROR(ROUND(AVERAGEIF('Raw1'!C:C,'Raw2'!A24,'Raw1'!P:P),2),"") -> 52.44 | J24: =IFERROR(IF(VLOOKUP(A24&$J$1,'Raw1'!B:Z,15,0)="","",VLOOKUP(A24&$J$1,'Raw1'!B:Z,15,0)),"") -> 1 | K24: 3 | L24: 4 | M24: 填權息成功率低速度低 | N24: =IF(OR(F24>Report!$B$17,F24=Report!$B$17),"V","") -> V
A25: 1233 天仁 | B25: TSE | C25: M1200 | D25: 食品工業 | E25: 36.15 | F25: =COUNTIF('Raw1'!C:C,'Raw2'!A25) -> 9 | G25: =COUNTIFS('Raw1'!C:C,'Raw2'!A25,'Raw1'!V:V,"Y") -> 7 | H25: 77.78 | I25: =IFERROR(ROUND(AVERAGEIF('Raw1'!C:C,'Raw2'!A25,'Raw1'!P:P),2),"") -> 86.44 | J25: =IFERROR(IF(VLOOKUP(A25&$J$1,'Raw1'!B:Z,15,0)="","",VLOOKUP(A25&$J$1,'Raw1'!B:Z,15,0)),"") -> 61 | K25: 3 | L25: 4 | M25: 填權息成功率低速度低 | N25: =IF(OR(F25>Report!$B$17,F25=Report!$B$17),"V","") -> V
A26: 1234 黑松 | B26: TSE | C26: M1200 | D26: 食品工業 | E26: 32.75 | F26: =COUNTIF('Raw1'!C:C,'Raw2'!A26) -> 9 | G26: =COUNTIFS('Raw1'!C:C,'Raw2'!A26,'Raw1'!V:V,"Y") -> 7 | H26: 77.78 | I26: =IFERROR(ROUND(AVERAGEIF('Raw1'!C:C,'Raw2'!A26,'Raw1'!P:P),2),"") -> 39.67 | J26: =IFERROR(IF(VLOOKUP(A26&$J$1,'Raw1'!B:Z,15,0)="","",VLOOKUP(A26&$J$1,'Raw1'!B:Z,15,0)),"") -> 117 | K26: 3 | L26: 3 | M26: 填權息成功率低速度低 | N26: =IF(OR(F26>Report!$B$17,F26=Report!$B$17),"V","") -> V
A27: 1235 興泰 | B27: TSE | C27: M1200 | D27: 食品工業 | E27: 25.6 | F27: =COUNTIF('Raw1'!C:C,'Raw2'!A27) -> 4 | G27: =COUNTIFS('Raw1'!C:C,'Raw2'!A27,'Raw1'!V:V,"Y") -> 2 | H27: 50 | I27: =IFERROR(ROUND(AVERAGEIF('Raw1'!C:C,'Raw2'!A27,'Raw1'!P:P),2),"") -> 21.5 | J27: =IFERROR(IF(VLOOKUP(A27&$J$1,'Raw1'!B:Z,15,0)="","",VLOOKUP(A27&$J$1,'Raw1'!B:Z,15,0)),"") -> 0 | K27: 4 | L27: 2 | M27: 填權息成功率低速度快 | N27: =IF(OR(F27>Report!$B$17,F27=Report!$B$17),"V","") -> 
A28: 1236 宏亞 | B28: TSE | C28: M1200 | D28: 食品工業 | E28: 12.3 | F28: =COUNTIF('Raw1'!C:C,'Raw2'!A28) -> 9 | G28: =COUNTIFS('Raw1'!C:C,'Raw2'!A28,'Raw1'!V:V,"Y") -> 8 | H28: 88.89 | I28: =IFERROR(ROUND(AVERAGEIF('Raw1'!C:C,'Raw2'!A28,'Raw1'!P:P),2),"") -> 55.22 | J28: =IFERROR(IF(VLOOKUP(A28&$J$1,'Raw1'!B:Z,15,0)="","",VLOOKUP(A28&$J$1,'Raw1'!B:Z,15,0)),"") -> 106 | K28: 2 | L28: 4 | M28: 填權息成功率高速度慢 | N28: =IF(OR(F28>Report!$B$17,F28=Report!$B$17),"V","") -> V
A29: 1240 茂生農經 | B29: OTC | C29: M3300 | D29: 農業科技 | E29: 60.8 | F29: =COUNTIF('Raw1'!C:C,'Raw2'!A29) -> 1 | G29: =COUNTIFS('Raw1'!C:C,'Raw2'!A29,'Raw1'!V:V,"Y") -> 1 | H29: 100 | I29: =IFERROR(ROUND(AVERAGEIF('Raw1'!C:C,'Raw2'!A29,'Raw1'!P:P),2),"") -> 5 | J29: =IFERROR(IF(VLOOKUP(A29&$J$1,'Raw1'!B:Z,15,0)="","",VLOOKUP(A29&$J$1,'Raw1'!B:Z,15,0)),"") -> 5 | K29: 1 | L29: 1 | M29: 填權息成功率高和速度快 | N29: =IF(OR(F29>Report!$B$17,F29=Report!$B$17),"V","") -> 
A30: 1256 鮮活果汁-KY | B30: TSE | C30: M1200 | D30: 食品工業 | E30: 211 | F30: =COUNTIF('Raw1'!C:C,'Raw2'!A30) -> 7 | G30: =COUNTIFS('Raw1'!C:C,'Raw2'!A30,'Raw1'!V:V,"Y") -> 5 | H30: 71.43 | I30: =IFERROR(ROUND(AVERAGEIF('Raw1'!C:C,'Raw2'!A30,'Raw1'!P:P),2),"") -> 30.57 | J30: =IFERROR(IF(VLOOKUP(A30&$J$1,'Raw1'!B:Z,15,0)="","",VLOOKUP(A30&$J$1,'Raw1'!B:Z,15,0)),"") -> 128 | K30: 3 | L30: 3 | M30: 填權息成功率低速度低 | N30: =IF(OR(F30>Report!$B$17,F30=Report!$B$17),"V","") -> 
A31: 1258 其祥-KY | B31: OTC | C31: M1200 | D31: 食品工業 | E31: 12.35 | F31: =COUNTIF('Raw1'!C:C,'Raw2'!A31) -> 7 | G31: =COUNTIFS('Raw1'!C:C,'Raw2'!A31,'Raw1'!V:V,"Y") -> 6 | H31: 85.71 | I31: =IFERROR(ROUND(AVERAGEIF('Raw1'!C:C,'Raw2'!A31,'Raw1'!P:P),2),"") -> 6.43 | J31: =IFERROR(IF(VLOOKUP(A31&$J$1,'Raw1'!B:Z,15,0)="","",VLOOKUP(A31&$J$1,'Raw1'!B:Z,15,0)),"") ->  | K31: 3 | L31: 1 | M31: 填權息成功率低速度快 | N31: =IF(OR(F31>Report!$B$17,F31=Report!$B$17),"V","") -> 
A32: 1259 安心 | B32: OTC | C32: M2700 | D32: 觀光事業 | E32: 71 | F32: =COUNTIF('Raw1'!C:C,'Raw2'!A32) -> 8 | G32: =COUNTIFS('Raw1'!C:C,'Raw2'!A32,'Raw1'!V:V,"Y") -> 7 | H32: 87.5 | I32: =IFERROR(ROUND(AVERAGEIF('Raw1'!C:C,'Raw2'!A32,'Raw1'!P:P),2),"") -> 40.13 | J32: =IFERROR(IF(VLOOKUP(A32&$J$1,'Raw1'!B:Z,15,0)="","",VLOOKUP(A32&$J$1,'Raw1'!B:Z,15,0)),"") -> 99 | K32: 2 | L32: 3 | M32: 填權息成功率高速度慢 | N32: =IF(OR(F32>Report!$B$17,F32=Report!$B$17),"V","") -> V
A33: 1264 德麥 | B33: OTC | C33: M1200 | D33: 食品工業 | E33: 218.5 | F33: =COUNTIF('Raw1'!C:C,'Raw2'!A33) -> 6 | G33: =COUNTIFS('Raw1'!C:C,'Raw2'!A33,'Raw1'!V:V,"Y") -> 3 | H33: 50 | I33: =IFERROR(ROUND(AVERAGEIF('Raw1'!C:C,'Raw2'!A33,'Raw1'!P:P),2),"") -> 80.67 | J33: =IFERROR(IF(VLOOKUP(A33&$J$1,'Raw1'!B:Z,15,0)="","",VLOOKUP(A33&$J$1,'Raw1'!B:Z,15,0)),"") -> 216 | K33: 4 | L33: 4 | M33: 填權息成功率低速度低 | N33: =IF(OR(F33>Report!$B$17,F33=Report!$B$17),"V","") -> 
A34: 1268 漢來美食 | B34: OTC | C34: M2700 | D34: 觀光事業 | E34: 135 | F34: =COUNTIF('Raw1'!C:C,'Raw2'!A34) -> 2 | G34: =COUNTIFS('Raw1'!C:C,'Raw2'!A34,'Raw1'!V:V,"Y") -> 1 | H34: 50 | I34: =IFERROR(ROUND(AVERAGEIF('Raw1'!C:C,'Raw2'!A34,'Raw1'!P:P),2),"") -> 2.5 | J34: =IFERROR(IF(VLOOKUP(A34&$J$1,'Raw1'!B:Z,15,0)="","",VLOOKUP(A34&$J$1,'Raw1'!B:Z,15,0)),"") -> 0 | K34: 4 | L34: 1 | M34: 填權息成功率低速度快 | N34: =IF(OR(F34>Report!$B$17,F34=Report!$B$17),"V","") -> 
A35: 1301 台塑 | B35: TSE | C35: M1300 | D35: 塑膠工業 | E35: 86.2 | F35: =COUNTIF('Raw1'!C:C,'Raw2'!A35) -> 9 | G35: =COUNTIFS('Raw1'!C:C,'Raw2'!A35,'Raw1'!V:V,"Y") -> 8 | H35: 88.89 | I35: =IFERROR(ROUND(AVERAGEIF('Raw1'!C:C,'Raw2'!A35,'Raw1'!P:P),2),"") -> 35.33 | J35: =IFERROR(IF(VLOOKUP(A35&$J$1,'Raw1'!B:Z,15,0)="","",VLOOKUP(A35&$J$1,'Raw1'!B:Z,15,0)),"") -> 0 | K35: 2 | L35: 3 | M35: 填權息成功率高速度慢 | N35: =IF(OR(F35>Report!$B$17,F35=Report!$B$17),"V","") -> V
A36: 1303 南亞 | B36: TSE | C36: M1300 | D36: 塑膠工業 | E36: 64.9 | F36: =COUNTIF('Raw1'!C:C,'Raw2'!A36) -> 9 | G36: =COUNTIFS('Raw1'!C:C,'Raw2'!A36,'Raw1'!V:V,"Y") -> 7 | H36: 77.78 | I36: =IFERROR(ROUND(AVERAGEIF('Raw1'!C:C,'Raw2'!A36,'Raw1'!P:P),2),"") -> 24.33 | J36: =IFERROR(IF(VLOOKUP(A36&$J$1,'Raw1'!B:Z,15,0)="","",VLOOKUP(A36&$J$1,'Raw1'!B:Z,15,0)),"") -> 0 | K36: 3 | L36: 3 | M36: 填權息成功率低速度低 | N36: =IF(OR(F36>Report!$B$17,F36=Report!$B$17),"V","") -> V
A37: 1304 台聚 | B37: TSE | C37: M1300 | D37: 塑膠工業 | E37: 12.05 | F37: =COUNTIF('Raw1'!C:C,'Raw2'!A37) -> 9 | G37: =COUNTIFS('Raw1'!C:C,'Raw2'!A37,'Raw1'!V:V,"Y") -> 8 | H37: 88.89 | I37: =IFERROR(ROUND(AVERAGEIF('Raw1'!C:C,'Raw2'!A37,'Raw1'!P:P),2),"") -> 36.44 | J37: =IFERROR(IF(VLOOKUP(A37&$J$1,'Raw1'!B:Z,15,0)="","",VLOOKUP(A37&$J$1,'Raw1'!B:Z,15,0)),"") -> 3 | K37: 2 | L37: 3 | M37: 填權息成功率高速度慢 | N37: =IF(OR(F37>Report!$B$17,F37=Report!$B$17),"V","") -> V
A38: 1305 華夏 | B38: TSE | C38: M1300 | D38: 塑膠工業 | E38: 18.95 | F38: =COUNTIF('Raw1'!C:C,'Raw2'!A38) -> 7 | G38: =COUNTIFS('Raw1'!C:C,'Raw2'!A38,'Raw1'!V:V,"Y") -> 6 | H38: 85.71 | I38: =IFERROR(ROUND(AVERAGEIF('Raw1'!C:C,'Raw2'!A38,'Raw1'!P:P),2),"") -> 29 | J38: =IFERROR(IF(VLOOKUP(A38&$J$1,'Raw1'!B:Z,15,0)="","",VLOOKUP(A38&$J$1,'Raw1'!B:Z,15,0)),"") -> 0 | K38: 3 | L38: 3 | M38: 填權息成功率低速度低 | N38: =IF(OR(F38>Report!$B$17,F38=Report!$B$17),"V","") -> 
A39: 1307 三芳 | B39: TSE | C39: M1300 | D39: 塑膠工業 | E39: 22.2 | F39: =COUNTIF('Raw1'!C:C,'Raw2'!A39) -> 11 | G39: =COUNTIFS('Raw1'!C:C,'Raw2'!A39,'Raw1'!V:V,"Y") -> 5 | H39: 45.45 | I39: =IFERROR(ROUND(AVERAGEIF('Raw1'!C:C,'Raw2'!A39,'Raw1'!P:P),2),"") -> 20.82 | J39: =IFERROR(IF(VLOOKUP(A39&$J$1,'Raw1'!B:Z,15,0)="","",VLOOKUP(A39&$J$1,'Raw1'!B:Z,15,0)),"") -> 62 | K39: 4 | L39: 2 | M39: 填權息成功率低速度快 | N39: =IF(OR(F39>Report!$B$17,F39=Report!$B$17),"V","") -> V
A40: 1308 亞聚 | B40: TSE | C40: M1300 | D40: 塑膠工業 | E40: 19.2 | F40: =COUNTIF('Raw1'!C:C,'Raw2'!A40) -> 9 | G40: =COUNTIFS('Raw1'!C:C,'Raw2'!A40,'Raw1'!V:V,"Y") -> 6 | H40: 66.67 | I40: =IFERROR(ROUND(AVERAGEIF('Raw1'!C:C,'Raw2'!A40,'Raw1'!P:P),2),"") -> 25.89 | J40: =IFERROR(IF(VLOOKUP(A40&$J$1,'Raw1'!B:Z,15,0)="","",VLOOKUP(A40&$J$1,'Raw1'!B:Z,15,0)),"") -> 1 | K40: 4 | L40: 3 | M40: 填權息成功率低速度低 | N40: =IF(OR(F40>Report!$B$17,F40=Report!$B$17),"V","") -> V
A41: 1309 台達化 | B41: TSE | C41: M1300 | D41: 塑膠工業 | E41: 14.95 | F41: =COUNTIF('Raw1'!C:C,'Raw2'!A41) -> 3 | G41: =COUNTIFS('Raw1'!C:C,'Raw2'!A41,'Raw1'!V:V,"Y") -> 2 | H41: 66.67 | I41: =IFERROR(ROUND(AVERAGEIF('Raw1'!C:C,'Raw2'!A41,'Raw1'!P:P),2),"") -> 76 | J41: =IFERROR(IF(VLOOKUP(A41&$J$1,'Raw1'!B:Z,15,0)="","",VLOOKUP(A41&$J$1,'Raw1'!B:Z,15,0)),"") -> 14 | K41: 4 | L41: 4 | M41: 填權息成功率低速度低 | N41: =IF(OR(F41>Report!$B$17,F41=Report!$B$17),"V","") -> 
A42: 1310 台苯 | B42: TSE | C42: M1300 | D42: 塑膠工業 | E42: 16.25 | F42: =COUNTIF('Raw1'!C:C,'Raw2'!A42) -> 5 | G42: =COUNTIFS('Raw1'!C:C,'Raw2'!A42,'Raw1'!V:V,"Y") -> 4 | H42: 80 | I42: =IFERROR(ROUND(AVERAGEIF('Raw1'!C:C,'Raw2'!A42,'Raw1'!P:P),2),"") -> 92.8 | J42: =IFERROR(IF(VLOOKUP(A42&$J$1,'Raw1'!B:Z,15,0)="","",VLOOKUP(A42&$J$1,'Raw1'!B:Z,15,0)),"") -> 0 | K42: 3 | L42: 4 | M42: 填權息成功率低速度低 | N42: =IF(OR(F42>Report!$B$17,F42=Report!$B$17),"V","") -> 
A43: 1312 國喬 | B43: TSE | C43: M1300 | D43: 塑膠工業 | E43: 15.1 | F43: =COUNTIF('Raw1'!C:C,'Raw2'!A43) -> 8 | G43: =COUNTIFS('Raw1'!C:C,'Raw2'!A43,'Raw1'!V:V,"Y") -> 8 | H43: 100 | I43: =IFERROR(ROUND(AVERAGEIF('Raw1'!C:C,'Raw2'!A43,'Raw1'!P:P),2),"") -> 30.25 | J43: =IFERROR(IF(VLOOKUP(A43&$J$1,'Raw1'!B:Z,15,0)="","",VLOOKUP(A43&$J$1,'Raw1'!B:Z,15,0)),"") ->  | K43: 1 | L43: 3 | M43: 填權息成功率高速度慢 | N43: =IF(OR(F43>Report!$B$17,F43=Report!$B$17),"V","") -> V
A44: 1313 聯成 | B44: TSE | C44: M1300 | D44: 塑膠工業 | E44: 10 | F44: =COUNTIF('Raw1'!C:C,'Raw2'!A44) -> 11 | G44: =COUNTIFS('Raw1'!C:C,'Raw2'!A44,'Raw1'!V:V,"Y") -> 8 | H44: 72.73 | I44: =IFERROR(ROUND(AVERAGEIF('Raw1'!C:C,'Raw2'!A44,'Raw1'!P:P),2),"") -> 13.91 | J44: =IFERROR(IF(VLOOKUP(A44&$J$1,'Raw1'!B:Z,15,0)="","",VLOOKUP(A44&$J$1,'Raw1'!B:Z,15,0)),"") -> 6 | K44: 3 | L44: 2 | M44: 填權息成功率低速度快 | N44: =IF(OR(F44>Report!$B$17,F44=Report!$B$17),"V","") -> V
A45: 1314 中石化 | B45: TSE | C45: M1300 | D45: 塑膠工業 | E45: 8.33 | F45: =COUNTIF('Raw1'!C:C,'Raw2'!A45) -> 5 | G45: =COUNTIFS('Raw1'!C:C,'Raw2'!A45,'Raw1'!V:V,"Y") -> 3 | H45: 60 | I45: =IFERROR(ROUND(AVERAGEIF('Raw1'!C:C,'Raw2'!A45,'Raw1'!P:P),2),"") -> 16.4 | J45: =IFERROR(IF(VLOOKUP(A45&$J$1,'Raw1'!B:Z,15,0)="","",VLOOKUP(A45&$J$1,'Raw1'!B:Z,15,0)),"") -> 0 | K45: 4 | L45: 2 | M45: 填權息成功率低速度快 | N45: =IF(OR(F45>Report!$B$17,F45=Report!$B$17),"V","") -> 
A46: 1315 達新 | B46: TSE | C46: M1300 | D46: 塑膠工業 | E46: 59.4 | F46: =COUNTIF('Raw1'!C:C,'Raw2'!A46) -> 9 | G46: =COUNTIFS('Raw1'!C:C,'Raw2'!A46,'Raw1'!V:V,"Y") -> 9 | H46: 100 | I46: =IFERROR(ROUND(AVERAGEIF('Raw1'!C:C,'Raw2'!A46,'Raw1'!P:P),2),"") -> 58.11 | J46: =IFERROR(IF(VLOOKUP(A46&$J$1,'Raw1'!B:Z,15,0)="","",VLOOKUP(A46&$J$1,'Raw1'!B:Z,15,0)),"") -> 11 | K46: 1 | L46: 4 | M46: 填權息成功率高速度慢 | N46: =IF(OR(F46>Report!$B$17,F46=Report!$B$17),"V","") -> V
A47: 1316 上曜 | B47: TSE | C47: M2500 | D47: 建材營造 | E47: 11.3 | F47: =COUNTIF('Raw1'!C:C,'Raw2'!A47) -> 2 | G47: =COUNTIFS('Raw1'!C:C,'Raw2'!A47,'Raw1'!V:V,"Y") -> 1 | H47: 50 | I47: =IFERROR(ROUND(AVERAGEIF('Raw1'!C:C,'Raw2'!A47,'Raw1'!P:P),2),"") -> 39.5 | J47: =IFERROR(IF(VLOOKUP(A47&$J$1,'Raw1'!B:Z,15,0)="","",VLOOKUP(A47&$J$1,'Raw1'!B:Z,15,0)),"") -> 0 | K47: 4 | L47: 3 | M47: 填權息成功率低速度低 | N47: =IF(OR(F47>Report!$B$17,F47=Report!$B$17),"V","") -> 
A48: 1319 東陽 | B48: TSE | C48: M2200 | D48: 汽車工業 | E48: 40 | F48: =COUNTIF('Raw1'!C:C,'Raw2'!A48) -> 9 | G48: =COUNTIFS('Raw1'!C:C,'Raw2'!A48,'Raw1'!V:V,"Y") -> 9 | H48: 100 | I48: =IFERROR(ROUND(AVERAGEIF('Raw1'!C:C,'Raw2'!A48,'Raw1'!P:P),2),"") -> 36.78 | J48: =IFERROR(IF(VLOOKUP(A48&$J$1,'Raw1'!B:Z,15,0)="","",VLOOKUP(A48&$J$1,'Raw1'!B:Z,15,0)),"") -> 38 | K48: 1 | L48: 3 | M48: 填權息成功率高速度慢 | N48: =IF(OR(F48>Report!$B$17,F48=Report!$B$17),"V","") -> V
A49: 1321 大洋 | B49: TSE | C49: M1300 | D49: 塑膠工業 | E49: 32.35 | F49: =COUNTIF('Raw1'!C:C,'Raw2'!A49) -> 0 | G49: =COUNTIFS('Raw1'!C:C,'Raw2'!A49,'Raw1'!V:V,"Y") -> 0 | I49: =IFERROR(ROUND(AVERAGEIF('Raw1'!C:C,'Raw2'!A49,'Raw1'!P:P),2),"") ->  | J49: =IFERROR(IF(VLOOKUP(A49&$J$1,'Raw1'!B:Z,15,0)="","",VLOOKUP(A49&$J$1,'Raw1'!B:Z,15,0)),"") ->  | K49: 1 | L49: 4 | M49: 填權息成功率高速度慢 | N49: =IF(OR(F49>Report!$B$17,F49=Report!$B$17),"V","") -> 
A50: 1323 永裕 | B50: TSE | C50: M1300 | D50: 塑膠工業 | E50: 33.2 | F50: =COUNTIF('Raw1'!C:C,'Raw2'!A50) -> 11 | G50: =COUNTIFS('Raw1'!C:C,'Raw2'!A50,'Raw1'!V:V,"Y") -> 10 | H50: 90.91 | I50: =IFERROR(ROUND(AVERAGEIF('Raw1'!C:C,'Raw2'!A50,'Raw1'!P:P),2),"") -> 22 | J50: =IFERROR(IF(VLOOKUP(A50&$J$1,'Raw1'!B:Z,15,0)="","",VLOOKUP(A50&$J$1,'Raw1'!B:Z,15,0)),"") -> 0 | K50: 2 | L50: 2 | M50: 填權息成功率高和速度快 | N50: =IF(OR(F50>Report!$B$17,F50=Report!$B$17),"V","") -> V
A51: 1324 地球 | B51: TSE | C51: M1300 | D51: 塑膠工業 | E51: 9.87 | F51: =COUNTIF('Raw1'!C:C,'Raw2'!A51) -> 9 | G51: =COUNTIFS('Raw1'!C:C,'Raw2'!A51,'Raw1'!V:V,"Y") -> 7 | H51: 77.78 | I51: =IFERROR(ROUND(AVERAGEIF('Raw1'!C:C,'Raw2'!A51,'Raw1'!P:P),2),"") -> 31.56 | J51: =IFERROR(IF(VLOOKUP(A51&$J$1,'Raw1'!B:Z,15,0)="","",VLOOKUP(A51&$J$1,'Raw1'!B:Z,15,0)),"") -> 0 | K51: 3 | L51: 3 | M51: 填權息成功率低速度低 | N51: =IF(OR(F51>Report!$B$17,F51=Report!$B$17),"V","") -> V
A52: 1325 恒大 | B52: TSE | C52: M1300 | D52: 塑膠工業 | E52: 185.5 | F52: =COUNTIF('Raw1'!C:C,'Raw2'!A52) -> 10 | G52: =COUNTIFS('Raw1'!C:C,'Raw2'!A52,'Raw1'!V:V,"Y") -> 8 | H52: 80 | I52: =IFERROR(ROUND(AVERAGEIF('Raw1'!C:C,'Raw2'!A52,'Raw1'!P:P),2),"") -> 30.4 | J52: =IFERROR(IF(VLOOKUP(A52&$J$1,'Raw1'!B:Z,15,0)="","",VLOOKUP(A52&$J$1,'Raw1'!B:Z,15,0)),"") -> 118 | K52: 3 | L52: 3 | M52: 填權息成功率低速度低 | N52: =IF(OR(F52>Report!$B$17,F52=Report!$B$17),"V","") -> V
A53: 1326 台化 | B53: TSE | C53: M1300 | D53: 塑膠工業 | E53: 73.9 | F53: =COUNTIF('Raw1'!C:C,'Raw2'!A53) -> 9 | G53: =COUNTIFS('Raw1'!C:C,'Raw2'!A53,'Raw1'!V:V,"Y") -> 7 | H53: 77.78 | I53: =IFERROR(ROUND(AVERAGEIF('Raw1'!C:C,'Raw2'!A53,'Raw1'!P:P),2),"") -> 26.78 | J53: =IFERROR(IF(VLOOKUP(A53&$J$1,'Raw1'!B:Z,15,0)="","",VLOOKUP(A53&$J$1,'Raw1'!B:Z,15,0)),"") -> 0 | K53: 3 | L53: 3 | M53: 填權息成功率低速度低 | N53: =IF(OR(F53>Report!$B$17,F53=Report!$B$17),"V","") -> V
A54: 1333 恩得利 | B54: OTC | C54: M2328 | D54: 電子零組件 | F54: =COUNTIF('Raw1'!C:C,'Raw2'!A54) -> 0 | G54: =COUNTIFS('Raw1'!C:C,'Raw2'!A54,'Raw1'!V:V,"Y") -> 0 | I54: =IFERROR(ROUND(AVERAGEIF('Raw1'!C:C,'Raw2'!A54,'Raw1'!P:P),2),"") ->  | J54: =IFERROR(IF(VLOOKUP(A54&$J$1,'Raw1'!B:Z,15,0)="","",VLOOKUP(A54&$J$1,'Raw1'!B:Z,15,0)),"") ->  | K54: 1 | L54: 4 | M54: 填權息成功率高速度慢 | N54: =IF(OR(F54>Report!$B$17,F54=Report!$B$17),"V","") -> 
A55: 1336 台翰 | B55: OTC | C55: M2328 | D55: 電子零組件 | E55: 16 | F55: =COUNTIF('Raw1'!C:C,'Raw2'!A55) -> 5 | G55: =COUNTIFS('Raw1'!C:C,'Raw2'!A55,'Raw1'!V:V,"Y") -> 4 | H55: 80 | I55: =IFERROR(ROUND(AVERAGEIF('Raw1'!C:C,'Raw2'!A55,'Raw1'!P:P),2),"") -> 24.2 | J55: =IFERROR(IF(VLOOKUP(A55&$J$1,'Raw1'!B:Z,15,0)="","",VLOOKUP(A55&$J$1,'Raw1'!B:Z,15,0)),"") -> 79 | K55: 3 | L55: 3 | M55: 填權息成功率低速度低 | N55: =IF(OR(F55>Report!$B$17,F55=Report!$B$17),"V","") -> 
A56: 1337 再生-KY | B56: TSE | C56: M1300 | D56: 塑膠工業 | E56: 5.08 | F56: =COUNTIF('Raw1'!C:C,'Raw2'!A56) -> 8 | G56: =COUNTIFS('Raw1'!C:C,'Raw2'!A56,'Raw1'!V:V,"Y") -> 7 | H56: 87.5 | I56: =IFERROR(ROUND(AVERAGEIF('Raw1'!C:C,'Raw2'!A56,'Raw1'!P:P),2),"") -> 18 | J56: =IFERROR(IF(VLOOKUP(A56&$J$1,'Raw1'!B:Z,15,0)="","",VLOOKUP(A56&$J$1,'Raw1'!B:Z,15,0)),"") ->  | K56: 2 | L56: 2 | M56: 填權息成功率高和速度快 | N56: =IF(OR(F56>Report!$B$17,F56=Report!$B$17),"V","") -> V
A57: 1338 廣華-KY | B57: TSE | C57: M2200 | D57: 汽車工業 | E57: 55.4 | F57: =COUNTIF('Raw1'!C:C,'Raw2'!A57) -> 7 | G57: =COUNTIFS('Raw1'!C:C,'Raw2'!A57,'Raw1'!V:V,"Y") -> 7 | H57: 100 | I57: =IFERROR(ROUND(AVERAGEIF('Raw1'!C:C,'Raw2'!A57,'Raw1'!P:P),2),"") -> 24.86 | J57: =IFERROR(IF(VLOOKUP(A57&$J$1,'Raw1'!B:Z,15,0)="","",VLOOKUP(A57&$J$1,'Raw1'!B:Z,15,0)),"") -> 129 | K57: 1 | L57: 3 | M57: 填權息成功率高速度慢 | N57: =IF(OR(F57>Report!$B$17,F57=Report!$B$17),"V","") -> 
A58: 1339 昭輝 | B58: TSE | C58: M2200 | D58: 汽車工業 | E58: 44.8 | F58: =COUNTIF('Raw1'!C:C,'Raw2'!A58) -> 8 | G58: =COUNTIFS('Raw1'!C:C,'Raw2'!A58,'Raw1'!V:V,"Y") -> 7 | H58: 87.5 | I58: =IFERROR(ROUND(AVERAGEIF('Raw1'!C:C,'Raw2'!A58,'Raw1'!P:P),2),"") -> 60 | J58: =IFERROR(IF(VLOOKUP(A58&$J$1,'Raw1'!B:Z,15,0)="","",VLOOKUP(A58&$J$1,'Raw1'!B:Z,15,0)),"") -> 7 | K58: 2 | L58: 4 | M58: 填權息成功率高速度慢 | N58: =IF(OR(F58>Report!$B$17,F58=Report!$B$17),"V","") -> V
A59: 1340 勝悅-KY | B59: TSE | C59: M1300 | D59: 塑膠工業 | E59: 10.2 | F59: =COUNTIF('Raw1'!C:C,'Raw2'!A59) -> 6 | G59: =COUNTIFS('Raw1'!C:C,'Raw2'!A59,'Raw1'!V:V,"Y") -> 1 | H59: 16.67 | I59: =IFERROR(ROUND(AVERAGEIF('Raw1'!C:C,'Raw2'!A59,'Raw1'!P:P),2),"") -> 0.17 | J59: =IFERROR(IF(VLOOKUP(A59&$J$1,'Raw1'!B:Z,15,0)="","",VLOOKUP(A59&$J$1,'Raw1'!B:Z,15,0)),"") -> 0 | K59: 4 | L59: 1 | M59: 填權息成功率低速度快 | N59: =IF(OR(F59>Report!$B$17,F59=Report!$B$17),"V","") -> 
A60: 1341 富林-KY | B60: TSE | C60: M1300 | D60: 塑膠工業 | E60: 61.8 | F60: =COUNTIF('Raw1'!C:C,'Raw2'!A60) -> 1 | G60: =COUNTIFS('Raw1'!C:C,'Raw2'!A60,'Raw1'!V:V,"Y") -> 1 | H60: 100 | I60: =IFERROR(ROUND(AVERAGEIF('Raw1'!C:C,'Raw2'!A60,'Raw1'!P:P),2),"") -> 22 | J60: =IFERROR(IF(VLOOKUP(A60&$J$1,'Raw1'!B:Z,15,0)="","",VLOOKUP(A60&$J$1,'Raw1'!B:Z,15,0)),"") -> 22 | K60: 1 | L60: 2 | M60: 填權息成功率高和速度快 | N60: =IF(OR(F60>Report!$B$17,F60=Report!$B$17),"V","") -> 
A61: 1402 遠東新 | B61: TSE | C61: M1400 | D61: 紡織纖維 | E61: 27.9 | F61: =COUNTIF('Raw1'!C:C,'Raw2'!A61) -> 9 | G61: =COUNTIFS('Raw1'!C:C,'Raw2'!A61,'Raw1'!V:V,"Y") -> 5 | H61: 55.56 | I61: =IFERROR(ROUND(AVERAGEIF('Raw1'!C:C,'Raw2'!A61,'Raw1'!P:P),2),"") -> 33.11 | J61: =IFERROR(IF(VLOOKUP(A61&$J$1,'Raw1'!B:Z,15,0)="","",VLOOKUP(A61&$J$1,'Raw1'!B:Z,15,0)),"") -> 0 | K61: 4 | L61: 3 | M61: 填權息成功率低速度低 | N61: =IF(OR(F61>Report!$B$17,F61=Report!$B$17),"V","") -> V
A62: 1409 新纖 | B62: TSE | C62: M1400 | D62: 紡織纖維 | E62: 11.2 | F62: =COUNTIF('Raw1'!C:C,'Raw2'!A62) -> 9 | G62: =COUNTIFS('Raw1'!C:C,'Raw2'!A62,'Raw1'!V:V,"Y") -> 9 | H62: 100 | I62: =IFERROR(ROUND(AVERAGEIF('Raw1'!C:C,'Raw2'!A62,'Raw1'!P:P),2),"") -> 40.33 | J62: =IFERROR(IF(VLOOKUP(A62&$J$1,'Raw1'!B:Z,15,0)="","",VLOOKUP(A62&$J$1,'Raw1'!B:Z,15,0)),"") -> 97 | K62: 1 | L62: 3 | M62: 填權息成功率高速度慢 | N62: =IF(OR(F62>Report!$B$17,F62=Report!$B$17),"V","") -> V
A63: 1410 南染 | B63: TSE | C63: M1400 | D63: 紡織纖維 | E63: 31.7 | F63: =COUNTIF('Raw1'!C:C,'Raw2'!A63) -> 9 | G63: =COUNTIFS('Raw1'!C:C,'Raw2'!A63,'Raw1'!V:V,"Y") -> 9 | H63: 100 | I63: =IFERROR(ROUND(AVERAGEIF('Raw1'!C:C,'Raw2'!A63,'Raw1'!P:P),2),"") -> 42.89 | J63: =IFERROR(IF(VLOOKUP(A63&$J$1,'Raw1'!B:Z,15,0)="","",VLOOKUP(A63&$J$1,'Raw1'!B:Z,15,0)),"") -> 61 | K63: 1 | L63: 4 | M63: 填權息成功率高速度慢 | N63: =IF(OR(F63>Report!$B$17,F63=Report!$B$17),"V","") -> V
A64: 1413 宏洲 | B64: TSE | C64: M1400 | D64: 紡織纖維 | E64: 7.95 | F64: =COUNTIF('Raw1'!C:C,'Raw2'!A64) -> 0 | G64: =COUNTIFS('Raw1'!C:C,'Raw2'!A64,'Raw1'!V:V,"Y") -> 0 | I64: =IFERROR(ROUND(AVERAGEIF('Raw1'!C:C,'Raw2'!A64,'Raw1'!P:P),2),"") ->  | J64: =IFERROR(IF(VLOOKUP(A64&$J$1,'Raw1'!B:Z,15,0)="","",VLOOKUP(A64&$J$1,'Raw1'!B:Z,15,0)),"") ->  | K64: 1 | L64: 4 | M64: 填權息成功率高速度慢 | N64: =IF(OR(F64>Report!$B$17,F64=Report!$B$17),"V","") -> 
A65: 1414 東和 | B65: TSE | C65: M1400 | D65: 紡織纖維 | E65: 7.41 | F65: =COUNTIF('Raw1'!C:C,'Raw2'!A65) -> 8 | G65: =COUNTIFS('Raw1'!C:C,'Raw2'!A65,'Raw1'!V:V,"Y") -> 7 | H65: 87.5 | I65: =IFERROR(ROUND(AVERAGEIF('Raw1'!C:C,'Raw2'!A65,'Raw1'!P:P),2),"") -> 47.88 | J65: =IFERROR(IF(VLOOKUP(A65&$J$1,'Raw1'!B:Z,15,0)="","",VLOOKUP(A65&$J$1,'Raw1'!B:Z,15,0)),"") -> 46 | K65: 2 | L65: 4 | M65: 填權息成功率高速度慢 | N65: =IF(OR(F65>Report!$B$17,F65=Report!$B$17),"V","") -> V
A66: 1416 廣豐 | B66: TSE | C66: M9900 | D66: 其他 | E66: 12.8 | F66: =COUNTIF('Raw1'!C:C,'Raw2'!A66) -> 8 | G66: =COUNTIFS('Raw1'!C:C,'Raw2'!A66,'Raw1'!V:V,"Y") -> 5 | H66: 62.5 | I66: =IFERROR(ROUND(AVERAGEIF('Raw1'!C:C,'Raw2'!A66,'Raw1'!P:P),2),"") -> 41.5 | J66: =IFERROR(IF(VLOOKUP(A66&$J$1,'Raw1'!B:Z,15,0)="","",VLOOKUP(A66&$J$1,'Raw1'!B:Z,15,0)),"") -> 0 | K66: 4 | L66: 3 | M66: 填權息成功率低速度低 | N66: =IF(OR(F66>Report!$B$17,F66=Report!$B$17),"V","") -> V
A67: 1417 嘉裕 | B67: TSE | C67: M1400 | D67: 紡織纖維 | E67: 9.62 | F67: =COUNTIF('Raw1'!C:C,'Raw2'!A67) -> 2 | G67: =COUNTIFS('Raw1'!C:C,'Raw2'!A67,'Raw1'!V:V,"Y") -> 1 | H67: =IFERROR(ROUND(G67/F67*100,2),"") -> 50 | I67: =IFERROR(ROUND(AVERAGEIF('Raw1'!C:C,'Raw2'!A67,'Raw1'!P:P),2),"") -> 5 | J67: =IFERROR(IF(VLOOKUP(A67&$J$1,'Raw1'!B:Z,15,0)="","",VLOOKUP(A67&$J$1,'Raw1'!B:Z,15,0)),"") ->  | K67: =IF(OR(H67<$Q$3,H67=$Q$3),4,IF(AND(OR(H67<$Q$4,H67=$Q$4),H67>$Q$3),3,IF(AND(H67>$Q$4,H67<$Q$5),2,IF(OR(H67>$Q$5,H67=$Q$5),1,"CHCEK")))) -> 4 | L67: =IF(OR(I67<$S$3,I67=$S$3),1,IF(AND(OR(I67<$S$4,I67=$S$4),I67>$S$3),2,IF(AND(I67>$S$4,I67<$S$5),3,IF(OR(I67>$S$5,I67=$S$5),4,"CHCEK")))) -> 1 | M67: =IF(AND(OR(K67=1,K67=2),OR(L67=1,L67=2)),"填權息成功率高和速度快",IF(AND(OR(K67=1,K67=2),OR(L67=3,L67=4)),"填權息成功率高速度慢",IF(AND(OR(K67=3,K67=4),OR(L67=1,L67=2)),"填權息成功率低速度快",IF(AND(OR(K67=3,K67=4),OR(L67=3,L67=4)),"填權息成功率低速度低","CHECK")))) -> 填權息成功率低速度快 | N67: =IF(OR(F67>Report!$B$17,F67=Report!$B$17),"V","") -> 
A68: 1418 東華 | B68: TSE | C68: M1400 | D68: 紡織纖維 | E68: 5.7 | F68: =COUNTIF('Raw1'!C:C,'Raw2'!A68) -> 0 | G68: =COUNTIFS('Raw1'!C:C,'Raw2'!A68,'Raw1'!V:V,"Y") -> 0 | I68: =IFERROR(ROUND(AVERAGEIF('Raw1'!C:C,'Raw2'!A68,'Raw1'!P:P),2),"") ->  | J68: =IFERROR(IF(VLOOKUP(A68&$J$1,'Raw1'!B:Z,15,0)="","",VLOOKUP(A68&$J$1,'Raw1'!B:Z,15,0)),"") ->  | K68: 1 | L68: 4 | M68: 填權息成功率高速度慢 | N68: =IF(OR(F68>Report!$B$17,F68=Report!$B$17),"V","") -> 
A69: 1419 新紡 | B69: TSE | C69: M1400 | D69: 紡織纖維 | E69: 43.85 | F69: =COUNTIF('Raw1'!C:C,'Raw2'!A69) -> 9 | G69: =COUNTIFS('Raw1'!C:C,'Raw2'!A69,'Raw1'!V:V,"Y") -> 7 | H69: 77.78 | I69: =IFERROR(ROUND(AVERAGEIF('Raw1'!C:C,'Raw2'!A69,'Raw1'!P:P),2),"") -> 2.22 | J69: =IFERROR(IF(VLOOKUP(A69&$J$1,'Raw1'!B:Z,15,0)="","",VLOOKUP(A69&$J$1,'Raw1'!B:Z,15,0)),"") -> 1 | K69: 3 | L69: 1 | M69: 填權息成功率低速度快 | N69: =IF(OR(F69>Report!$B$17,F69=Report!$B$17),"V","") -> V
A70: 1423 利華 | B70: TSE | C70: M1400 | D70: 紡織纖維 | E70: 12.8 | F70: =COUNTIF('Raw1'!C:C,'Raw2'!A70) -> 0 | G70: =COUNTIFS('Raw1'!C:C,'Raw2'!A70,'Raw1'!V:V,"Y") -> 0 | I70: =IFERROR(ROUND(AVERAGEIF('Raw1'!C:C,'Raw2'!A70,'Raw1'!P:P),2),"") ->  | J70: =IFERROR(IF(VLOOKUP(A70&$J$1,'Raw1'!B:Z,15,0)="","",VLOOKUP(A70&$J$1,'Raw1'!B:Z,15,0)),"") ->  | K70: 1 | L70: 4 | M70: 填權息成功率高速度慢 | N70: =IF(OR(F70>Report!$B$17,F70=Report!$B$17),"V","") -> 
A71: 1432 大魯閣 | B71: TSE | C71: M2900 | D71: 貿易百貨 | E71: 6.48 | F71: =COUNTIF('Raw1'!C:C,'Raw2'!A71) -> 1 | G71: =COUNTIFS('Raw1'!C:C,'Raw2'!A71,'Raw1'!V:V,"Y") -> 0 | H71: 0 | I71: =IFERROR(ROUND(AVERAGEIF('Raw1'!C:C,'Raw2'!A71,'Raw1'!P:P),2),"") -> 0 | J71: =IFERROR(IF(VLOOKUP(A71&$J$1,'Raw1'!B:Z,15,0)="","",VLOOKUP(A71&$J$1,'Raw1'!B:Z,15,0)),"") ->  | K71: 4 | L71: 1 | M71: 填權息成功率低速度快 | N71: =IF(OR(F71>Report!$B$17,F71=Report!$B$17),"V","") -> 
A72: 1434 福懋 | B72: TSE | C72: M1400 | D72: 紡織纖維 | E72: 38.7 | F72: =COUNTIF('Raw1'!C:C,'Raw2'!A72) -> 9 | G72: =COUNTIFS('Raw1'!C:C,'Raw2'!A72,'Raw1'!V:V,"Y") -> 8 | H72: 88.89 | I72: =IFERROR(ROUND(AVERAGEIF('Raw1'!C:C,'Raw2'!A72,'Raw1'!P:P),2),"") -> 61.78 | J72: =IFERROR(IF(VLOOKUP(A72&$J$1,'Raw1'!B:Z,15,0)="","",VLOOKUP(A72&$J$1,'Raw1'!B:Z,15,0)),"") -> 218 | K72: 2 | L72: 4 | M72: 填權息成功率高速度慢 | N72: =IF(OR(F72>Report!$B$17,F72=Report!$B$17),"V","") -> V
A73: 1435 中福 | B73: TSE | C73: M9900 | D73: 其他 | E73: 8.67 | F73: =COUNTIF('Raw1'!C:C,'Raw2'!A73) -> 0 | G73: =COUNTIFS('Raw1'!C:C,'Raw2'!A73,'Raw1'!V:V,"Y") -> 0 | I73: =IFERROR(ROUND(AVERAGEIF('Raw1'!C:C,'Raw2'!A73,'Raw1'!P:P),2),"") ->  | J73: =IFERROR(IF(VLOOKUP(A73&$J$1,'Raw1'!B:Z,15,0)="","",VLOOKUP(A73&$J$1,'Raw1'!B:Z,15,0)),"") ->  | K73: 1 | L73: 4 | M73: 填權息成功率高速度慢 | N73: =IF(OR(F73>Report!$B$17,F73=Report!$B$17),"V","") -> 
A74: 1436 華友聯 | B74: TSE | C74: M2500 | D74: 建材營造 | E74: 39 | F74: =COUNTIF('Raw1'!C:C,'Raw2'!A74) -> 7 | G74: =COUNTIFS('Raw1'!C:C,'Raw2'!A74,'Raw1'!V:V,"Y") -> 6 | H74: 85.71 | I74: =IFERROR(ROUND(AVERAGEIF('Raw1'!C:C,'Raw2'!A74,'Raw1'!P:P),2),"") -> 34.86 | J74: =IFERROR(IF(VLOOKUP(A74&$J$1,'Raw1'!B:Z,15,0)="","",VLOOKUP(A74&$J$1,'Raw1'!B:Z,15,0)),"") -> 89 | K74: 3 | L74: 3 | M74: 填權息成功率低速度低 | N74: =IF(OR(F74>Report!$B$17,F74=Report!$B$17),"V","") -> 
A75: 1437 勤益控 | B75: TSE | C75: M9900 | D75: 其他 | E75: 22.45 | F75: =COUNTIF('Raw1'!C:C,'Raw2'!A75) -> 5 | G75: =COUNTIFS('Raw1'!C:C,'Raw2'!A75,'Raw1'!V:V,"Y") -> 4 | H75: 80 | I75: =IFERROR(ROUND(AVERAGEIF('Raw1'!C:C,'Raw2'!A75,'Raw1'!P:P),2),"") -> 15.6 | J75: =IFERROR(IF(VLOOKUP(A75&$J$1,'Raw1'!B:Z,15,0)="","",VLOOKUP(A75&$J$1,'Raw1'!B:Z,15,0)),"") -> 6 | K75: 3 | L75: 2 | M75: 填權息成功率低速度快 | N75: =IF(OR(F75>Report!$B$17,F75=Report!$B$17),"V","") -> 
A76: 1438 裕豐 | B76: TSE | C76: M2500 | D76: 建材營造 | E76: 12.65 | F76: =COUNTIF('Raw1'!C:C,'Raw2'!A76) -> 0 | G76: =COUNTIFS('Raw1'!C:C,'Raw2'!A76,'Raw1'!V:V,"Y") -> 0 | I76: =IFERROR(ROUND(AVERAGEIF('Raw1'!C:C,'Raw2'!A76,'Raw1'!P:P),2),"") ->  | J76: =IFERROR(IF(VLOOKUP(A76&$J$1,'Raw1'!B:Z,15,0)="","",VLOOKUP(A76&$J$1,'Raw1'!B:Z,15,0)),"") ->  | K76: 1 | L76: 4 | M76: 填權息成功率高速度慢 | N76: =IF(OR(F76>Report!$B$17,F76=Report!$B$17),"V","") -> 
A77: 1439 中和 | B77: TSE | C77: M1400 | D77: 紡織纖維 | E77: 37 | F77: =COUNTIF('Raw1'!C:C,'Raw2'!A77) -> 7 | G77: =COUNTIFS('Raw1'!C:C,'Raw2'!A77,'Raw1'!V:V,"Y") -> 6 | H77: 85.71 | I77: =IFERROR(ROUND(AVERAGEIF('Raw1'!C:C,'Raw2'!A77,'Raw1'!P:P),2),"") -> 4.14 | J77: =IFERROR(IF(VLOOKUP(A77&$J$1,'Raw1'!B:Z,15,0)="","",VLOOKUP(A77&$J$1,'Raw1'!B:Z,15,0)),"") ->  | K77: 3 | L77: 1 | M77: 填權息成功率低速度快 | N77: =IF(OR(F77>Report!$B$17,F77=Report!$B$17),"V","") -> 
A78: 1440 南紡 | B78: TSE | C78: M1400 | D78: 紡織纖維 | E78: 11.4 | F78: =COUNTIF('Raw1'!C:C,'Raw2'!A78) -> 9 | G78: =COUNTIFS('Raw1'!C:C,'Raw2'!A78,'Raw1'!V:V,"Y") -> 6 | H78: 66.67 | I78: =IFERROR(ROUND(AVERAGEIF('Raw1'!C:C,'Raw2'!A78,'Raw1'!P:P),2),"") -> 17.44 | J78: =IFERROR(IF(VLOOKUP(A78&$J$1,'Raw1'!B:Z,15,0)="","",VLOOKUP(A78&$J$1,'Raw1'!B:Z,15,0)),"") -> 0 | K78: 4 | L78: 2 | M78: 填權息成功率低速度快 | N78: =IF(OR(F78>Report!$B$17,F78=Report!$B$17),"V","") -> V
A79: 1441 大東 | B79: TSE | C79: M1400 | D79: 紡織纖維 | E79: 8.6 | F79: =COUNTIF('Raw1'!C:C,'Raw2'!A79) -> 4 | G79: =COUNTIFS('Raw1'!C:C,'Raw2'!A79,'Raw1'!V:V,"Y") -> 2 | H79: 50 | I79: =IFERROR(ROUND(AVERAGEIF('Raw1'!C:C,'Raw2'!A79,'Raw1'!P:P),2),"") -> 2.5 | J79: =IFERROR(IF(VLOOKUP(A79&$J$1,'Raw1'!B:Z,15,0)="","",VLOOKUP(A79&$J$1,'Raw1'!B:Z,15,0)),"") -> 0 | K79: 4 | L79: 1 | M79: 填權息成功率低速度快 | N79: =IF(OR(F79>Report!$B$17,F79=Report!$B$17),"V","") -> 
A80: 1442 名軒 | B80: TSE | C80: M2500 | D80: 建材營造 | E80: 17.7 | F80: =COUNTIF('Raw1'!C:C,'Raw2'!A80) -> 9 | G80: =COUNTIFS('Raw1'!C:C,'Raw2'!A80,'Raw1'!V:V,"Y") -> 6 | H80: 66.67 | I80: =IFERROR(ROUND(AVERAGEIF('Raw1'!C:C,'Raw2'!A80,'Raw1'!P:P),2),"") -> 70.33 | J80: =IFERROR(IF(VLOOKUP(A80&$J$1,'Raw1'!B:Z,15,0)="","",VLOOKUP(A80&$J$1,'Raw1'!B:Z,15,0)),"") -> 13 | K80: 4 | L80: 4 | M80: 填權息成功率低速度低 | N80: =IF(OR(F80>Report!$B$17,F80=Report!$B$17),"V","") -> V
A81: 1443 立益 | B81: TSE | C81: M1400 | D81: 紡織纖維 | E81: 9.25 | F81: =COUNTIF('Raw1'!C:C,'Raw2'!A81) -> 0 | G81: =COUNTIFS('Raw1'!C:C,'Raw2'!A81,'Raw1'!V:V,"Y") -> 0 | I81: =IFERROR(ROUND(AVERAGEIF('Raw1'!C:C,'Raw2'!A81,'Raw1'!P:P),2),"") ->  | J81: =IFERROR(IF(VLOOKUP(A81&$J$1,'Raw1'!B:Z,15,0)="","",VLOOKUP(A81&$J$1,'Raw1'!B:Z,15,0)),"") ->  | K81: 1 | L81: 4 | M81: 填權息成功率高速度慢 | N81: =IF(OR(F81>Report!$B$17,F81=Report!$B$17),"V","") -> 
A82: 1444 力麗 | B82: TSE | C82: M1400 | D82: 紡織纖維 | E82: 7.76 | F82: =COUNTIF('Raw1'!C:C,'Raw2'!A82) -> 8 | G82: =COUNTIFS('Raw1'!C:C,'Raw2'!A82,'Raw1'!V:V,"Y") -> 6 | H82: 75 | I82: =IFERROR(ROUND(AVERAGEIF('Raw1'!C:C,'Raw2'!A82,'Raw1'!P:P),2),"") -> 43.5 | J82: =IFERROR(IF(VLOOKUP(A82&$J$1,'Raw1'!B:Z,15,0)="","",VLOOKUP(A82&$J$1,'Raw1'!B:Z,15,0)),"") -> 0 | K82: 3 | L82: 4 | M82: 填權息成功率低速度低 | N82: =IF(OR(F82>Report!$B$17,F82=Report!$B$17),"V","") -> V
A83: 1445 大宇 | B83: TSE | C83: M1400 | D83: 紡織纖維 | E83: 9.28 | F83: =COUNTIF('Raw1'!C:C,'Raw2'!A83) -> 9 | G83: =COUNTIFS('Raw1'!C:C,'Raw2'!A83,'Raw1'!V:V,"Y") -> 6 | H83: 66.67 | I83: =IFERROR(ROUND(AVERAGEIF('Raw1'!C:C,'Raw2'!A83,'Raw1'!P:P),2),"") -> 42.67 | J83: =IFERROR(IF(VLOOKUP(A83&$J$1,'Raw1'!B:Z,15,0)="","",VLOOKUP(A83&$J$1,'Raw1'!B:Z,15,0)),"") -> 157 | K83: 4 | L83: 4 | M83: 填權息成功率低速度低 | N83: =IF(OR(F83>Report!$B$17,F83=Report!$B$17),"V","") -> V
A84: 1446 宏和 | B84: TSE | C84: M1400 | D84: 紡織纖維 | E84: 30.25 | F84: =COUNTIF('Raw1'!C:C,'Raw2'!A84) -> 8 | G84: =COUNTIFS('Raw1'!C:C,'Raw2'!A84,'Raw1'!V:V,"Y") -> 8 | H84: 100 | I84: =IFERROR(ROUND(AVERAGEIF('Raw1'!C:C,'Raw2'!A84,'Raw1'!P:P),2),"") -> 14.63 | J84: =IFERROR(IF(VLOOKUP(A84&$J$1,'Raw1'!B:Z,15,0)="","",VLOOKUP(A84&$J$1,'Raw1'!B:Z,15,0)),"") -> 1 | K84: 1 | L84: 2 | M84: 填權息成功率高和速度快 | N84: =IF(OR(F84>Report!$B$17,F84=Report!$B$17),"V","") -> V
A85: 1447 力鵬 | B85: TSE | C85: M1400 | D85: 紡織纖維 | E85: 6.55 | F85: =COUNTIF('Raw1'!C:C,'Raw2'!A85) -> 6 | G85: =COUNTIFS('Raw1'!C:C,'Raw2'!A85,'Raw1'!V:V,"Y") -> 3 | H85: 50 | I85: =IFERROR(ROUND(AVERAGEIF('Raw1'!C:C,'Raw2'!A85,'Raw1'!P:P),2),"") -> 6.17 | J85: =IFERROR(IF(VLOOKUP(A85&$J$1,'Raw1'!B:Z,15,0)="","",VLOOKUP(A85&$J$1,'Raw1'!B:Z,15,0)),"") -> 0 | K85: 4 | L85: 1 | M85: 填權息成功率低速度快 | N85: =IF(OR(F85>Report!$B$17,F85=Report!$B$17),"V","") -> 
